{"text_format":"1","workbook":"xlsx","n_sheets":16,"sheets":["IRA Worksheet","215a Blank","Instructions","IRA Matrix","Lists","Sheet1","formula","Hazard Library","11_1 215a Hurricane Michael","Hurricane Michael 11_1_18","Wild Fire Hazard Library","Flood Hazard Library","Severe Weather Hazard Library","Earthquake Hazard Library","Terrorism Hazard Library","Other Hazard Library"],"not_rendered":{"charts":0,"images":0,"macros":1,"external_links":1,"defined_names":18,"comments":7,"pivot_tables":0},"unopened":[],"bounds":{"document_bytes":16777216,"sheet_cells":100000,"rows_first":2000,"rows_last":500,"rows_between":2000,"halvings":0,"cell_chars":16384,"cell_head_chars":4096},"cells_cut":0,"cells_raw":0,"read":"whole","date_system":"1900"}

{"sheet":"IRA Worksheet","index":0,"n_rows":10,"n_cols":11,"rows_kept":10,"cut":false,"hidden":false,"merged":[[5,0,5,4],[1,4,1,5],[3,4,3,5],[4,4,4,5],[1,6,1,10],[2,4,2,5],[2,6,2,10],[1,0,2,3],[3,0,3,3],[4,0,4,3],[5,6,5,10],[3,6,3,10],[4,6,4,10]]}
[]
["Incident Risk Assessment Worksheet",null,null,null,"1. Incident Name/Number",null,"2.  Location  "]
[null,null,null,null,"Hurrican Michael",null,"Tallahassee FL"]
["Identification of Hazards and Risk",null,null,null,"3.  Name and Title of Analyst",null,"4.  Date    "]
["Assessment",null,null,null,", Von Gruber SOF1  ",null,"2018-11-01"]
["5. Pre-Control",null,null,null,null,"6.  Control or Abatement Action (Engineering, Administrative, PPE, Avoidance, Education, etc)","7.  Post-Control"]
["8. Location","9. Mission and Hazards","10. Hazard Probability","11. Severity Code","12. RAC","Actions \n(double-click in cell then click alt + enter to add a line)","13. Hazard Probability","14. Severity Code","15. RAC","16. Acceptable (Yes/No)","Export (Yes/No)"]
["All Areas","\nAccess Clearing and Field Operations:\nHazard trees and overhead Hazards.Felling/Bucking operations-mechanical and hand fallering. Heavy equipment operations on access routes to utilities, recreation sites and roadways, Operational tempo, cumulative fatigue, and Complacency. Other vehicle and Pedestrian traffic in and around travel routes and work locations. Additional hunting seasons opening, with increased poetential for public interactions. Possibility of Thunderstorms in the planned work areas and associated weather (Rain, Wind, Lightning) Soft muddy roads, downed trees and Utility lines or poles. Reptiles, insects, wildlife. Green trees and Snags falling during windy conditions ","Likely B","Critical II",{"$f":"IFERROR(INDEX(formula!$B$3:$E$6,MATCH(C8,(formula!$A$3:$A$6),0),MATCH(D8,(formula!$B$2:$E$2),0)),\"No Data\")","v":"Serious"},"Do not work near or around personnel during active felling and bucking operations \nAlert crew personnel of identified overhead hazards and or falling debris by allerting affected individuals.\nAvoid working in Heavy Equipment work zone.\nProvide and review JHA for chipper and chainsaw, operations\nProvide safety and operational briefings before each shift\nIdentify and notify known and identified hazards.\nPost lookouts in hazardous situations.\nStrong communication, clear leader's intent, and close supervision.\nSet work pace for sustained safe production.\nPractice good defencive driving skills, and plan for the unexspected \nGet a needed rest, proper diet and hydration, take breaks as needed to allow for muscle recharge. \nBrief resources on weather possibilities and communicate of approaching weather changes.\nReview Thunderstorm safety guidence. Plan Youe exit plan and route.\nMove personnel to Vehicles and Vehicles to Hard Surface roads or Work centers.\nIdentify hazards, Notify resources and Mitigate, for wildlife reptiles and insects follow same procedures plus do not handle.\n","Occasional C","Critical II",{"$f":"IFERROR(INDEX(formula!$B$3:$E$6,MATCH(G8,(formula!$A$3:$A$6),0),MATCH(H8,(formula!$B$2:$E$2),0)),\"No Data\")","v":"Moderate"},"Yes","Yes"]
["All Areas","Driving and Travel:\nLight and Heavy vehicles traveling on narrow roads Thunder storm and inclement weather forecast, heavy rains reducing visibility and pudling, Slick roadways and Hydroplaining concerns.  \nHeavy equipment woking in proximity with people and vehicle traffic.\nGreen trees and snags falling during windy conditions blocking roadways hindering travel capabilities\n","Likely B","Critical II",{"$f":"IFERROR(INDEX(formula!$B$3:$E$6,MATCH(C9,(formula!$A$3:$A$6),0),MATCH(D9,(formula!$B$2:$E$2),0)),\"No Data\")","v":"Serious"},"Maintain sufficient following distances between vehicles and pay extra attention in congested areas, near school and pedestrian zones.\nMake eye contact and confirm it's safe to approach the equipment while working with or around.\nUse spotters and flaggers to keep work area free of intrusion and to control traffic flow.\nUse flaggers and radio call-out system on heavily travelled roads if impacted by operations.\nPost lookouts in areas where padertian travels my intrude work areas\nMitigate hazard trees in travel area prior to starting general clearing work.\nUse caution when traveling native surface roads and stream crossing don't exceed equipment capabilities if in question check before you go.\nHave a spotter when backing when at all possible\nUse headlights and Turn signals at all times.\nCheck windshield whippers and safety devices before traveling to field work areas.\nRepiar deficient items as soon as possible.\nCertified drivers and operators at all times (licensed for equipement operating).\nSlow down travel during windy and rainy conditions, to be prepaired for changing road conditions.\n\n\n\n","Occasional C","Critical II",{"$f":"IFERROR(INDEX(formula!$B$3:$E$6,MATCH(G9,(formula!$A$3:$A$6),0),MATCH(H9,(formula!$B$2:$E$2),0)),\"No Data\")","v":"Moderate"},"Yes","Yes"]
["All Areas","RCW Incert placement\nWorking from Ladders and elavated stands, chainsaw operations, overhead hazards, reptile and wildlife concerns, hazard trees and inclement weather hindering safe operations","Likely B","Critical II",{"$f":"IFERROR(INDEX(formula!$B$3:$E$6,MATCH(C10,(formula!$A$3:$A$6),0),MATCH(D10,(formula!$B$2:$E$2),0)),\"No Data\")","v":"Serious"},"Follow agency policy for ladder use and working above ground\nCertified in chainsaw operations and trained in RCW insert processes\nPay attention for reptile and wildlife in work areas and mitigate if possible and don’t handle.\nStay curring on observed and expected weather\nUse of proper PPE for climbing and chainsaw operations.\nMitigate known hazards effecting safe operations prior to completing project if possible.\n","Rarely D","Critical II",{"$f":"IFERROR(INDEX(formula!$B$3:$E$6,MATCH(G10,(formula!$A$3:$A$6),0),MATCH(H10,(formula!$B$2:$E$2),0)),\"No Data\")","v":"Minor"},"Yes","Yes"]

{"sheet":"215a Blank","index":1,"n_rows":2,"n_cols":3,"rows_kept":2,"cut":false,"hidden":true,"merged":[[0,0,0,2]]}
[]
["8. Location","9. Hazard","6.  Control or Abatement Action (Engineering, Administrative, PPE, Avoidance, Education, etc)"]

{"sheet":"Instructions","index":2,"n_rows":42,"n_cols":2,"rows_kept":42,"cut":false,"hidden":false,"merged":[[37,0,37,1],[0,0,0,1],[1,0,1,1],[31,0,31,1],[25,0,25,1],[2,0,2,1],[20,0,20,1],[24,0,24,1]]}
[" Risk Assessment Worksheet Instructions"]
["Incident Master Record"]
["The Incident Risk Assessment (IRA) Worksheet will identify the hazards associated with the incident or project, initial risk, mitigations and post mitigation risk. The Incident Commander, Project Manager or Agency Administrator will review the IRA and mitigation strategies to ensure risk is at an acceptable level for task or activity.  The leader of the incident/project/task will brief employees on associated hazards.  "]
[]
["Blocks 1-4","Self explanitory"]
["Block 5","Pre-Control:  What hazards are involved with the project or activity"]
["Block 6","Control or Abatement Strategy:  What mitigation or abatement strategy will minimize risk or exposure (ex. engineering, administrative, PPE, Avoidance, education, etc.)  Genertic control measures will auto populate this field based on the hazard.  Double click in the box to edit. To add aother line, press \"Alt Enter\""]
["Block 7","Post-Control:  What hazards and risk associated with hazards are still present following mitigation or abatement strategy  "]
["Block 8","Location: Where on the incident the hazard and risks have been identified (i.e. Division A, ICP)."]
["Block 9","Hazards:  What hazards exist with project (ex. hazard trees, driving, rolling debris, heat, etc.)  Click drop down box and select or type in a new hazard"]
["Block 10","Hazard Probability: What is probability a hazard will be encountered during project or activity.  Select from drop down box.   "]
["Block 11","Severity Code: What are the consequences should an unplanned event occur.  Select from drop down box.  "]
["Block 12","Risk Level:  A Pre-control action level will be automatically assigned."]
["Block 13","Hazard Probabilty:  Following mitigation or abatement actions the probability of exposure or risk. Select from drop down box."]
["Block 14","Severity Code:  Following mitigation or abatement actions the severity or consequences associated with task or project.  Select from drop down box."]
["Block 15","Risk Level:  A post control action level will be automatically assigned."]
["Block 16","Acceptable Level Yes/No:  Is level of risk acceptable following mitigation or abatement actions, decision should be made at appropriate management level"]
["Export yes/no","Select yes for the hazards that are pertinent for the operational period to be included in an operational215a."]
["Export (Blue)","Click in this box to export to another worksheet for current  operations period.  When asked for \"Name\" Type in date and operational period.  Incident Safety Analysis 215a"]
[]
["Operational Period RAC and 215a"]
[null,"This is saved as a new tab with the operational period and date.  This tab will allow you to reevaluate the hazards given the current changes in fire activity, weather, operations, etc.   When you have reevaluated the hazards, click on the export to 215a button.  This will create a three column 215a for that operational period."]
[]
[]
["Risk Assessment Code (RAC)"]
["Severity Code"]
["Catastrophic ","Imminent and immediate danger of death or permanent disability."]
["Critical","Permanent partial disability, temporary total disability."]
["Significant","Hospitalized minor injury, reversible illness."]
["Minor","First aid or minor medical treatment."]
[]
["Hazard Probability"]
["Frequent","Immediate danger to health and safety of the public, staff or property and resources."]
["Likely","Probably will occur in time if not corrected, or probably will occur one or more times."]
["Occasional","Possible to occur in time if not corrected."]
["Rarely","Unlikely to occur; may assume exposure, will not occur.  "]
[]
["  Definitions"]
["Probability","The likelihood that a hazard will result in a mishap or loss (Exposure in terms of time, proximity, and repetition)"]
["Severity – ","The worst credible consequence that can occur as a result of a hazard"]
["Hazard –","Any real or potential condition that can cause injury, illness or death of personnel, or loss and damage to equipment"]
["Risk –","An expression of possible loss in terms of severity and probability (associated with human interaction)"]

{"sheet":"IRA Matrix","index":3,"n_rows":25,"n_cols":6,"rows_kept":25,"cut":false,"hidden":false,"merged":[[25,2,25,5],[26,2,26,5],[27,2,27,5],[28,2,28,5],[34,2,34,5],[29,2,29,5],[30,2,30,5],[31,2,31,5],[32,2,32,5],[33,2,33,5],[14,2,14,5],[15,2,15,5],[16,2,16,5],[17,2,17,5],[18,2,18,5],[9,2,9,5],[10,2,10,5],[11,2,11,5],[12,2,12,5],[13,2,13,5],[30,0,30,1],[31,0,31,1],[32,0,32,1],[33,0,33,1],[34,0,34,1],[25,0,25,1],[26,0,26,1],[27,0,27,1],[28,0,28,1],[29,0,29,1],[19,0,19,1],[21,0,21,1],[22,0,22,1],[23,0,23,1],[24,0,24,1],[20,0,20,5],[19,2,19,5],[21,2,21,5],[22,2,22,5],[23,2,23,5],[24,2,24,5],[0,2,0,5],[2,0,5,0],[0,0,1,1],[8,0,8,1],[8,2,8,5],[9,0,9,1],[10,0,10,1],[11,0,11,1],[12,0,12,1],[13,0,13,1],[14,0,14,1],[15,0,15,1],[16,0,16,1],[17,0,17,1],[18,0,18,1]]}
[null,null,"Severity"]
[null,null,"Catastrophic I","Critical II","Significant III","Minor IV"]
["Probability","Frequently A","Critical","Critical","Serious","Moderate"]
[null,"Likely B","Critical","Serious","Moderate","Minor"]
[null,"Occasional C","Serious","Moderate","Minor","Negligible"]
[null,"Rarely D","Moderate","Minor","Negligible","Negligible"]
[]
[]
["Severity Code"]
["Catastrophic ",null,"Imminent and immediate danger of death or permanent disability."]
["Critical",null,"Permanent partial disability, temporary total disability."]
["Significant",null,"Hospitalized minor injury, reversible illness."]
["Minor",null,"First aid or minor medical treatment."]
[]
["Hazard Probability"]
["Frequent",null,"Immediate danger to health and safety of the public, staff or property and resources."]
["Likely",null,"Probably will occur in time if not corrected, or probably will occur one or more times."]
["Occasional",null,"Possible to occur in time if not corrected."]
["Rarely",null,"Unlikely to occur; may assume exposure, will not occur.  "]
[]
["  Definitions"]
["Probability",null,"The likelihood that a hazard will result in a mishap or loss (Exposure in terms of time, proximity, and repetition)"]
["Severity – ",null,"The worst credible consequence that can occur as a result of a hazard"]
["Hazard –",null,"Any real or potential condition that can cause injury, illness or death of personnel, or loss and damage to equipment","Any real or potential condition that can cause injury, illness or death of personnel, or loss and damage to equipment","Any real or potential condition that can cause injury, illness or death of personnel, or loss and damage to equipment","Any real or potential condition that can cause injury, illness or death of personnel, or loss and damage to equipment"]
["Risk –",null,"An expression of possible loss in terms of severity and probability (associated with human interaction)","An expression of possible loss in terms of severity and probability (associated with human interaction)","An expression of possible loss in terms of severity and probability (associated with human interaction)","An expression of possible loss in terms of severity and probability (associated with human interaction)"]

{"sheet":"Lists","index":4,"n_rows":25,"n_cols":5,"rows_kept":25,"cut":false,"hidden":true,"merged":[]}
[" ",null,"Air Operations",null,"Practice “Defensive Driving” techniques traveling along Hwy 24 corridor and through city streets to fire"]
["Frequently A",null,"ATV/UTV Use",null,"Position vehicle away from  DANGER for quick egress"]
["Likely B",null,"Chain Saw Operations",null,"Use spotters when backing,  honk horn to alert personnel, and use headlights"]
["Occasional C",null,"Cold Weather",null,"Follow 3 second rule when driving"]
["Rarely D",null,"Communications",null,"Use chock blocks, turn wheels into hill"]
[" ",null,"Driving"]
["Catastrophic I",null,"Extreme Fire Behavior"]
["Critical II",null,"Fatigue"]
["Significant III",null,"Hazard Trees"]
["Minor IV",null,"Hazardous Materials"]
[null,null,"Heat Related Illness"]
["Yes",null,"Hot Weather"]
["No",null,"Line Construction"]
[null,null,"Mechanized Equipment"]
["Critical",null,"Mines"]
["Serious",null,"Night Operations"]
["Moderate",null,"Oil & Gas"]
["Minor",null,"Personal Hygiene"]
["Negligible",null,"Powerlines & Utilities"]
[null,null,"Rehab & Mop Up"]
[null,null,"Severe Weather"]
[null,null,"Steep Terrain & Rolling Debris\n"]
[null,null,"Structure Protection"]
[null,null,"UXO"]
[null,null,"Wildlife"]

{"sheet":"Sheet1","index":5,"n_rows":28,"n_cols":9,"rows_kept":28,"cut":false,"hidden":true,"merged":[]}
[]
["Probability","Castastrophic I","Critical II","Significant III","Minor IV"]
["Frequently A","Critical","Critical","Serious","Moderate"]
["Likely B","Critical","Serious","Moderate","Minor"]
["Occasional C","Serious","Moderate","Minor","Negligible"]
["Rarely D","Moderate","Minor","Negligible","Negligible"]
[]
[]
["Likely B","Critical II",{"$f":"INDEX($B$3:$E$6,MATCH(A9,$A$3:$A$6,0),MATCH(B9,$B$2:$E$2,0))","v":"Serious"}]
["Frequently A","Critical II",{"$f":"INDEX($B$3:$E$6,MATCH(A10,$A$3:$A$6,0),MATCH(B10,$B$2:$E$2,0))","v":"Critical"}]
["Occasional C","Significant III","Minor"]
["Rarely D","Minor IV","Negligible",null,null,"to add the color to the cell go to conditional formatting"]
["Likely B","Minor IV","Minor",null,null,"Select Manage Rules, Choose",null,null,"Format only cells that contain"]
["Occasional C","Minor IV","Negligible",null,null,"Choose cell value  equil to then type in the word ie Serious/Critical etc"]
["Rarely D","Minor IV","Negligible",null,null,"Select format and choose the color you want"]
["Frequently A","Castastrophic I","Critical",null,null,"Keep adding the rules for all the colors and values"]
["Frequently A","Critical II","Critical"]
["Frequently A","Significant III","Serious"]
["Frequently A","Minor IV","Moderate"]
["Frequently A","Minor IV","Moderate",null,null,"Here is how the formula works"]
["Frequently A","Minor IV","Moderate",null,null,"INDEX($B$3:$E$6,MATCH(A9,$A$3:$A$6,0),MATCH(B9,$B$2:$E$2,0))"]
["Frequently A","Minor IV","Moderate",null,null,"Use and equal sign in front of the Index(Select the cells that contain the results table put $ in front of the column and Row,"]
["Frequently A","Minor IV","Moderate",null,null,"B3:E6 contain this data"]
["Frequently A","Minor IV","Moderate",null,null,"Match(A9 this cell contains the first probability,select the cells that contain the \"choices\" put $ in front of the column and row,"]
["Frequently A","Minor IV","Moderate",null,null,"0 tells it to match exactly),Match(B9 this is the cell that contains the second probability,"]
["Frequently A","Minor IV","Moderate",null,null," select the cells that contain the \"second probability Choices\" put $ in front of the column and row,"]
["Frequently A","Minor IV","Moderate",null,null,"0 tells it to match exactly))"]
["Frequently A","Minor IV","Moderate"]

{"sheet":"formula","index":6,"n_rows":31,"n_cols":9,"rows_kept":31,"cut":false,"hidden":true,"merged":[]}
[]
["Probability","Catastrophic I","Critical II","Significant III","Minor IV"]
["Frequently A","Critical","Critical","Serious","Moderate"]
["Likely B","Critical","Serious","Moderate","Minor"]
["Occasional C","Serious","Moderate","Minor","Negligible"]
["Rarely D","Moderate","Minor","Negligible","Negligible"]
[]
[]
["Likely B","Critical II",{"$f":"INDEX($B$3:$E$6,MATCH(A9,$A$3:$A$6,0),MATCH(B9,$B$2:$E$2,0))","v":"Serious"}]
["Frequently A","Critical II",{"$f":"INDEX($B$3:$E$6,MATCH(A10,$A$3:$A$6,0),MATCH(B10,$B$2:$E$2,0))","v":"Critical"}]
["Occasional C","Significant III","Minor"]
["Rarely D","Minor IV","Negligible",null,null,"to add the color to the cell go to conditional formatting"]
["Likely B","Minor IV","Minor",null,null,"Select Manage Rules, Choose",null,null,"Format only cells that contain"]
["Occasional C","Minor IV","Negligible",null,null,"Choose cell value  equil to then type in the word ie Serious/Critical etc"]
["Rarely D","Minor IV","Negligible",null,null,"Select format and choose the color you want"]
["Frequently A","Catastrophic I","Critical",null,null,"Keep adding the rules for all the colors and values"]
["Frequently A","Critical II","Critical"]
["Frequently A","Significant III","Serious"]
["Occasional C","Catastrophic I","Serious"]
["Frequently A","Minor IV","Moderate",null,null,"Here is how the formula works"]
["Frequently A","Minor IV","Moderate",null,null,"INDEX($B$3:$E$6,MATCH(A9,$A$3:$A$6,0),MATCH(B9,$B$2:$E$2,0))"]
["Frequently A","Minor IV","Moderate",null,null,"Use and equal sign in front of the Index(Select the cells that contain the results table put $ in front of the column and Row,"]
["Frequently A","Minor IV","Moderate",null,null,"B3:E6 contain this data"]
["Frequently A","Minor IV","Moderate",null,null,"Match(A9 this cell contains the first probability,select the cells that contain the \"choices\" put $ in front of the column and row,"]
["Frequently A","Minor IV","Moderate",null,null,"0 tells it to match exactly),Match(B9 this is the cell that contains the second probability,"]
["Frequently A","Minor IV","Moderate",null,null," select the cells that contain the \"second probability Choices\" put $ in front of the column and row,"]
["Frequently A","Minor IV","Moderate",null,null,"0 tells it to match exactly))"]
["Frequently A","Minor IV","Moderate"]
[]
[]
[null,"Frequently A","Catastrophic I",{"$f":"INDEX($B$3:$E$6,MATCH(B31,$A$3:$A$6,0),MATCH(C31,$B$2:$E$2,0))","v":"Critical"},null,null,null," "]

{"sheet":"Hazard Library","index":7,"n_rows":58,"n_cols":16384,"rows_kept":58,"cut":false,"hidden":false,"merged":[]}
["Wild Fire Hazard","Mitigation or Abatement Action(Engineering, Administrative, PPE, Avoidance, Education, etc.)","Column1","Column2","Column3","Column4","Column5","Column6","Column7","Column8","Column9","Column10","Column11","Column12","Column13","Column14","Column15","Column16","Column17","Column18","Column19","Column20","Column21","Column22","Column23","Column24","Column25","Column26","Column27","Column28","Column29","Column30","Column31","Column32","Column33","Column34","Column35","Column36","Column37","Column38","Column39","Column40","Column41","Column42","Column43","Column44","Column45","Column46","Column47","Column48","Column49","Column50","Column51","Column52","Column53","Column54","Column55","Column56","Column57","Column58","Column59","Column60","Column61","Column62","Column63","Column64","Column65","Column66","Column67","Column68","Column69","Column70","Column71","Column72","Column73","Column74","Column75","Column76","Column77","Column78","Column79","Column80","Column81","Column82","Column83","Column84","Column85","Column86","Column87","Column88","Column89","Column90","Column91","Column92","Column93","Column94","Column95","Column96","Column97","Column98","Column99","Column100","Column101","Column102","Column103","Column104","Column105","Column106","Column107","Column108","Column109","Column110","Column111","Column112","Column113","Column114","Column115","Column116","Column117","Column118","Column119","Column120","Column121","Column122","Column123","Column124","Column125","Column126","Column127","Column128","Column129","Column130","Column131","Column132","Column133","Column134","Column135","Column136","Column137","Column138","Column139","Column140","Column141","Column142","Column143","Column144","Column145","Column146","Column147","Column148","Column149","Column150","Column151","Column152","Column153","Column154","Column155","Column156","Column157","Column158","Column159","Column160","Column161","Column162","Column163","Column164","Column165","Column166","Column167","Column168","Column169","Column170","Column171","Column172","Column173","Column174","Column175","Column176","Column177","Column178","Column179","Column180","Column181","Column182","Column183","Column184","Column185","Column186","Column187","Column188","Column189","Column190","Column191","Column192","Column193","Column194","Column195","Column196","Column197","Column198","Column199","Column200","Column201","Column202","Column203","Column204","Column205","Column206","Column207","Column208","Column209","Column210","Column211","Column212","Column213","Column214","Column215","Column216","Column217","Column218","Column219","Column220","Column221","Column222","Column223","Column224","Column225","Column226","Column227","Column228","Column229","Column230","Column231","Column232","Column233","Column234","Column235","Column236","Column237","Column238","Column239","Column240","Column241","Column242","Column243","Column244","Column245","Column246","Column247","Column248","Column249","Column250","Column251","Column252","Column253","Column254","Column255","Column256","Column257","Column258","Column259","Column260","Column261","Column262","Column263","Column264","Column265","Column266","Column267","Column268","Column269","Column270","Column271","Column272","Column273","Column274","Column275","Column276","Column277","Column278","Column279","Column280","Column281","Column282","Column283","Column284","Column285","Column286","Column287","Column288","Column289","Column290","Column291","Column292","Column293","Column294","Column295","Column296","Column297","Column298","Column299","Column300","Column301","Column302","Column303","Column304","Column305","Column306","Column307","Column308","Column309","Column310","Column311","Column312","Column313","Column314","Column315","Column316","Column317","Column318","Column319","Column320","Column321","Column322","Column323","Column324","Column325","Column326","Column327","Column328","Column329","Column330","Column331","Column332","Column333","Column334","Column335","Column336","Column337","Column338","Column339","Column340","Column341","Column342","Column343","Column344","Column345","Column346","Column347","Column348","Column349","Column350","Column351","Column352","Column353","Column354","Column355","Column356","Column357","Column358","Column359","Column360","Column361","Column362","Column363","Column364","Column365","Column366","Column367","Column368","Column369","Column370","Column371","Column372","Column373","Column374","Column375","Column376","Column377","Column378","Column379","Column380","Column381","Column382","Column383","Column384","Column385","Column386","Column387","Column388","Column389","Column390","Column391","Column392","Column393","Column394","Column395","Column396","Column397","Column398","Column399","Column400","Column401","Column402","Column403","Column404","Column405","Column406","Column407","Column408","Column409","Column410","Column411","Column412","Column413","Column414","Column415","Column416","Column417","Column418","Column419","Column420","Column421","Column422","Column423","Column424","Column425","Column426","Column427","Column428","Column429","Column430","Column431","Column432","Column433","Column434","Column435","Column436","Column437","Column438","Column439","Column440","Column441","Column442","Column443","Column444","Column445","Column446","Column447","Column448","Column449","Column450","Column451","Column452","Column453","Column454","Column455","Column456","Column457","Column458","Column459","Column460","Column461","Column462","Column463","Column464","Column465","Column466","Column467","Column468","Column469","Column470","Column471","Column472","Column473","Column474","Column475","Column476","Column477","Column478","Column479","Column480","Column481","Column482","Column483","Column484","Column485","Column486","Column487","Column488","Column489","Column490","Column491","Column492","Column493","Column494","Column495","Column496","Column497","Column498","Column499","Column500","Column501","Column502","Column503","Column504","Column505","Column506","Column507","Column508","Column509","Column510","Column511","Column512","Column513","Column514","Column515","Column516","Column517","Column518","Column519","Column520","Column521","Column522","Column523","Column524","Column525","Column526","Column527","Column528","Column529","Column530","Column531","Column532","Column533","Column534","Column535","Column536","Column537","Column538","Column539","Column540","Column541","Column542","Column543","Column544","Column545","Column546","Column547","Column548","Column549","Column550","Column551","Column552","Column553","Column554","Column555","Column556","Column557","Column558","Column559","Column560","Column561","Column562","Column563","Column564","Column565","Column566","Column567","Column568","Column569","Column570","Column571","Column572","Column573","Column574","Column575","Column576","Column577","Column578","Column579","Column580","Column581","Column582","Column583","Column584","Column585","Column586","Column587","Column588","Column589","Column590","Column591","Column592","Column593","Column594","Column595","Column596","Column597","Column598","Column599","Column600","Column601","Column602","Column603","Column604","Column605","Column606","Column607","Column608","Column609","Column610","Column611","Column612","Column613","Column614","Column615","Column616","Column617","Column618","Column619","Column620","Column621","Column622","Column623","Column624","Column625","Column626","Column627","Column628","Column629","Column630","Column631","Column632","Column633","Column634","Column635","Column636","Column637","Column638","Column639","Column640","Column641","Column642","Column643","Column644","Column645","Column646","Column647","Column648","Column649","Column650","Column651","Column652","Column653","Column654","Column655","Column656","Column657","Column658","Column659","Column660","Column661","Column662","Column663","Column664","Column665","Column666","Column667","Column668","Column669","Column670","Column671","Column672","Column673","Column674","Column675","Column676","Column677","Column678","Column679","Column680","Column681","Column682","Column683","Column684","Column685","Column686","Column687","Column688","Column689","Column690","Column691","Column692","Column693","Column694","Column695","Column696","Column697","Column698","Column699","Column700","Column701","Column702","Column703","Column704","Column705","Column706","Column707","Column708","Column709","Column710","Column711","Column712","Column713","Column714","Column715","Column716","Column717","Column718","Column719","Column720","Column721","Column722","Column723","Column724","Column725","Column726","Column727","Column728","Column729","Column730","Column731","Column732","Column733","Column734","Column735","Column736","Column737","Column738","Column739","Column740","Column741","Column742","Column743","Column744","Column745","Column746","Column747","Column748","Column749","Column750","Column751","Column752","Column753","Column754","Column755","Column756","Column757","Column758","Column759","Column760","Column761","Column762","Column763","Column764","Column765","Column766","Column767","Column768","Column769","Column770","Column771","Column772","Column773","Column774","Column775","Column776","Column777","Column778","Column779","Column780","Column781","Column782","Column783","Column784","Column785","Column786","Column787","Column788","Column789","Column790","Column791","Column792","Column793","Column794","Column795","Column796","Column797","Column798","Column799","Column800","Column801","Column802","Column803","Column804","Column805","Column806","Column807","Column808","Column809","Column810","Column811","Column812","Column813","Column814","Column815","Column816","Column817","Column818","Column819","Column820","Column821","Column822","Column823","Column824","Column825","Column826","Column827","Column828","Column829","Column830","Column831","Column832","Column833","Column834","Column835","Column836","Column837","Column838","Column839","Column840","Column841","Column842","Column843","Column844","Column845","Column846","Column847","Column848","Column849","Column850","Column851","Column852","Column853","Column854","Column855","Column856","Column857","Column858","Column859","Column860","Column861","Column862","Column863","Column864","Column865","Column866","Column867","Column868","Column869","Column870","Column871","Column872","Column873","Column874","Column875","Column876","Column877","Column878","Column879","Column880","Column881","Column882","Column883","Column884","Column885","Column886","Column887","Column888","Column889","Column890","Column891","Column892","Column893","Column894","Column895","Column896","Column897","Column898","Column899","Column900","Column901","Column902","Column903","Column904","Column905","Column906","Column907","Column908","Column909","Column910","Column911","Column912","Column913","Column914","Column915","Column916","Column917","Column918","Column919","Column920","Column921","Column922","Column923","Column924","Column925","Column926","Column927","Column928","Column929","Column930","Column931","Column932","Column933","Column934","Column935","Column936","Column937","Column938","Column939","Column940","Column941","Column942","Column943","Column944","Column945","Column946","Column947","Column948","Column949","Column950","Column951","Column952","Column953","Column954","Column955","Column956","Column957","Column958","Column959","Column960","Column961","Column962","Column963","Column964","Column965","Column966","Column967","Column968","Column969","Column970","Column971","Column972","Column973","Column974","Column975","Column976","Column977","Column978","Column979","Column980","Column981","Column982","Column983","Column984","Column985","Column986","Column987","Column988","Column989","Column990","Column991","Column992","Column993","Column994","Column995","Column996","Column997","Column998","Column999","Column1000","Column1001","Column1002","Column1003","Column1004","Column1005","Column1006","Column1007","Column1008","Column1009","Column1010","Column1011","Column1012","Column1013","Column1014","Column1015","Column1016","Column1017","Column1018","Column1019","Column1020","Column1021","Column1022","Column1023","Column1024","Column1025","Column1026","Column1027","Column1028","Column1029","Column1030","Column1031","Column1032","Column1033","Column1034","Column1035","Column1036","Column1037","Column1038","Column1039","Column1040","Column1041","Column1042","Column1043","Column1044","Column1045","Column1046","Column1047","Column1048","Column1049","Column1050","Column1051","Column1052","Column1053","Column1054","Column1055","Column1056","Column1057","Column1058","Column1059","Column1060","Column1061","Column1062","Column1063","Column1064","Column1065","Column1066","Column1067","Column1068","Column1069","Column1070","Column1071","Column1072","Column1073","Column1074","Column1075","Column1076","Column1077","Column1078","Column1079","Column1080","Column1081","Column1082","Column1083","Column1084","Column1085","Column1086","Column1087","Column1088","Column1089","Column1090","Column1091","Column1092","Column1093","Column1094","Column1095","Column1096","Column1097","Column1098","Column1099","Column1100","Column1101","Column1102","Column1103","Column1104","Column1105","Column1106","Column1107","Column1108","Column1109","Column1110","Column1111","Column1112","Column1113","Column1114","Column1115","Column1116","Column1117","Column1118","Column1119","Column1120","Column1121","Column1122","Column1123","Column1124","Column1125","Column1126","Column1127","Column1128","Column1129","Column1130","Column1131","Column1132","Column1133","Column1134","Column1135","Column1136","Column1137","Column1138","Column1139","Column1140","Column1141","Column1142","Column1143","Column1144","Column1145","Column1146","Column1147","Column1148","Column1149","Column1150","Column1151","Column1152","Column1153","Column1154","Column1155","Column1156","Column1157","Column1158","Column1159","Column1160","Column1161","Column1162","Column1163","Column1164","Column1165","Column1166","Column1167","Column1168","Column1169","Column1170","Column1171","Column1172","Column1173","Column1174","Column1175","Column1176","Column1177","Column1178","Column1179","Column1180","Column1181","Column1182","Column1183","Column1184","Column1185","Column1186","Column1187","Column1188","Column1189","Column1190","Column1191","Column1192","Column1193","Column1194","Column1195","Column1196","Column1197","Column1198","Column1199","Column1200","Column1201","Column1202","Column1203","Column1204","Column1205","Column1206","Column1207","Column1208","Column1209","Column1210","Column1211","Column1212","Column1213","Column1214","Column1215","Column1216","Column1217","Column1218","Column1219","Column1220","Column1221","Column1222","Column1223","Column1224","Column1225","Column1226","Column1227","Column1228","Column1229","Column1230","Column1231","Column1232","Column1233","Column1234","Column1235","Column1236","Column1237","Column1238","Column1239","Column1240","Column1241","Column1242","Column1243","Column1244","Column1245","Column1246","Column1247","Column1248","Column1249","Column1250","Column1251","Column1252","Column1253","Column1254","Column1255","Column1256","Column1257","Column1258","Column1259","Column1260","Column1261","Column1262","Column1263","Column1264","Column1265","Column1266","Column1267","Column1268","Column1269","Column1270","Column1271","Column1272","Column1273","Column1274","Column1275","Column1276","Column1277","Column1278","Column1279","Column1280","Column1281","Column1282","Column1283","Column1284","Column1285","Column1286","Column1287","Column1288","Column1289","Column1290","Column1291","Column1292","Column1293","Column1294","Column1295","Column1296","Column1297","Column1298","Column1299","Column1300","Column1301","Column1302","Column1303","Column1304","Column1305","Column1306","Column1307","Column1308","Column1309","Column1310","Column1311","Column1312","Column1313","Column1314","Column1315","Column1316","Column1317","Column1318","Column1319","Column1320","Column1321","Column1322","Column1323","Column1324","Column1325","Column1326","Column1327","Column1328","Column1329","Column1330","Column1331","Column1332","Column1333","Column1334","Column1335","Column1336","Column1337","Column1338","Column1339","Column1340","Column1341","Column1342","Column1343","Column1344","Column1345","Column1346","Column1347","Column1348","Column1349","Column1350","Column1351","Column1352","Column1353","Column1354","Column1355","Column1356","Column1357","Column1358","Column1359","Column1360","Column1361","Column1362","Column1363","Column1364","Column1365","Column1366","Column1367","Column1368","Column1369","Column1370","Column1371","Column1372","Column1373","Column1374","Column1375","Column1376","Column1377","Column1378","Column1379","Column1380","Column1381","Column1382","Column1383","Column1384","Column1385","Column1386","Column1387","Column1388","Column1389","Column1390","Column1391","Column1392","Column1393","Column1394","Column1395","Column1396","Column1397","Column1398","Column1399","Column1400","Column1401","Column1402","Column1403","Column1404","Column1405","Column1406","Column1407","Column1408","Column1409","Column1410","Column1411","Column1412","Column1413","Column1414","Column1415","Column1416","Column1417","Column1418","Column1419","Column1420","Column1421","Column1422","Column1423","Column1424","Column1425","Column1426","Column1427","Column1428","Column1429","Column1430","Column1431","Column1432","Column1433","Column1434","Column1435","Column1436","Column1437","Column1438","Column1439","Column1440","Column1441","Column1442","Column1443","Column1444","Column1445","Column1446","Column1447","Column1448","Column1449","Column1450","Column1451","Column1452","Column1453","Column1454","Column1455","Column1456","Column1457","Column1458","Column1459","Column1460","Column1461","Column1462","Column1463","Column1464","Column1465","Column1466","Column1467","Column1468","Column1469","Column1470","Column1471","Column1472","Column1473","Column1474","Column1475","Column1476","Column1477","Column1478","Column1479","Column1480","Column1481","Column1482","Column1483","Column1484","Column1485","Column1486","Column1487","Column1488","Column1489","Column1490","Column1491","Column1492","Column1493","Column1494","Column1495","Column1496","Column1497","Column1498","Column1499","Column1500","Column1501","Column1502","Column1503","Column1504","Column1505","Column1506","Column1507","Column1508","Column1509","Column1510","Column1511","Column1512","Column1513","Column1514","Column1515","Column1516","Column1517","Column1518","Column1519","Column1520","Column1521","Column1522","Column1523","Column1524","Column1525","Column1526","Column1527","Column1528","Column1529","Column1530","Column1531","Column1532","Column1533","Column1534","Column1535","Column1536","Column1537","Column1538","Column1539","Column1540","Column1541","Column1542","Column1543","Column1544","Column1545","Column1546","Column1547","Column1548","Column1549","Column1550","Column1551","Column1552","Column1553","Column1554","Column1555","Column1556","Column1557","Column1558","Column1559","Column1560","Column1561","Column1562","Column1563","Column1564","Column1565","Column1566","Column1567","Column1568","Column1569","Column1570","Column1571","Column1572","Column1573","Column1574","Column1575","Column1576","Column1577","Column1578","Column1579","Column1580","Column1581","Column1582","Column1583","Column1584","Column1585","Column1586","Column1587","Column1588","Column1589","Column1590","Column1591","Column1592","Column1593","Column1594","Column1595","Column1596","Column1597","Column1598","Column1599","Column1600","Column1601","Column1602","Column1603","Column1604","Column1605","Column1606","Column1607","Column1608","Column1609","Column1610","Column1611","Column1612","Column1613","Column1614","Column1615","Column1616","Column1617","Column1618","Column1619","Column1620","Column1621","Column1622","Column1623","Column1624","Column1625","Column1626","Column1627","Column1628","Column1629","Column1630","Column1631","Column1632","Column1633","Column1634","Column1635","Column1636","Column1637","Column1638","Column1639","Column1640","Column1641","Column1642","Column1643","Column1644","Column1645","Column1646","Column1647","Column1648","Column1649","Column1650","Column1651","Column1652","Column1653","Column1654","Column1655","Column1656","Column1657","Column1658","Column1659","Column1660","Column1661","Column1662","Column1663","Column1664","Column1665","Column1666","Column1667","Column1668","Column1669","Column1670","Column1671","Column1672","Column1673","Column1674","Column1675","Column1676","Column1677","Column1678","Column1679","Column1680","Column1681","Column1682","Column1683","Column1684","Column1685","Column1686","Column1687","Column1688","Column1689","Column1690","Column1691","Column1692","Column1693","Column1694","Column1695","Column1696","Column1697","Column1698","Column1699","Column1700","Column1701","Column1702","Column1703","Column1704","Column1705","Column1706","Column1707","Column1708","Column1709","Column1710","Column1711","Column1712","Column1713","Column1714","Column1715","Column1716","Column1717","Column1718","Column1719","Column1720","Column1721","Column1722","Column1723","Column1724","Column1725","Column1726","Column1727","Column1728","Column1729","Column1730","Column1731","Column1732","Column1733","Column1734","Column1735","Column1736","Column1737","Column1738","Column1739","Column1740","Column1741","Column1742","Column1743","Column1744","Column1745","Column1746","Column1747","Column1748","Column1749","Column1750","Column1751","Column1752","Column1753","Column1754","Column1755","Column1756","Column1757","Column1758","Column1759","Column1760","Column1761","Column1762","Column1763","Column1764","Column1765","Column1766","Column1767","Column1768","Column1769","Column1770","Column1771","Column1772","Column1773","Column1774","Column1775","Column1776","Column1777","Column1778","Column1779","Column1780","Column1781","Column1782","Column1783","Column1784","Column1785","Column1786","Column1787","Column1788","Column1789","Column1790","Column1791","Column1792","Column1793","Column1794","Column1795","Column1796","Column1797","Column1798","Column1799","Column1800","Column1801","Column1802","Column1803","Column1804","Column1805","Column1806","Column1807","Column1808","Column1809","Column1810","Column1811","Column1812","Column1813","Column1814","Column1815","Column1816","Column1817","Column1818","Column1819","Column1820","Column1821","Column1822","Column1823","Column1824","Column1825","Column1826","Column1827","Column1828","Column1829","Column1830","Column1831","Column1832","Column1833","Column1834","Column1835","Column1836","Column1837","Column1838","Column1839","Column1840","Column1841","Column1842","Column1843","Column1844","Column1845","Column1846","Column1847","Column1848","Column1849","Column1850","Column1851","Column1852","Column1853","Column1854","Column1855","Column1856","Column1857","Column1858","Column1859","Column1860","Column1861","Column1862","Column1863","Column1864","Column1865","Column1866","Column1867","Column1868","Column1869","Column1870","Column1871","Column1872","Column1873","Column1874","Column1875","Column1876","Column1877","Column1878","Column1879","Column1880","Column1881","Column1882","Column1883","Column1884","Column1885","Column1886","Column1887","Column1888","Column1889","Column1890","Column1891","Column1892","Column1893","Column1894","Column1895","Column1896","Column1897","Column1898","Column1899","Column1900","Column1901","Column1902","Column1903","Column1904","Column1905","Column1906","Column1907","Column1908","Column1909","Column1910","Column1911","Column1912","Column1913","Column1914","Column1915","Column1916","Column1917","Column1918","Column1919","Column1920","Column1921","Column1922","Column1923","Column1924","Column1925","Column1926","Column1927","Column1928","Column1929","Column1930","Column1931","Column1932","Column1933","Column1934","Column1935","Column1936","Column1937","Column1938","Column1939","Column1940","Column1941","Column1942","Column1943","Column1944","Column1945","Column1946","Column1947","Column1948","Column1949","Column1950","Column1951","Column1952","Column1953","Column1954","Column1955","Column1956","Column1957","Column1958","Column1959","Column1960","Column1961","Column1962","Column1963","Column1964","Column1965","Column1966","Column1967","Column1968","Column1969","Column1970","Column1971","Column1972","Column1973","Column1974","Column1975","Column1976","Column1977","Column1978","Column1979","Column1980","Column1981","Column1982","Column1983","Column1984","Column1985","Column1986","Column1987","Column1988","Column1989","Column1990","Column1991","Column1992","Column1993","Column1994","Column1995","Column1996","Column1997","Column1998","Column1999","Column2000","Column2001","Column2002","Column2003","Column2004","Column2005","Column2006","Column2007","Column2008","Column2009","Column2010","Column2011","Column2012","Column2013","Column2014","Column2015","Column2016","Column2017","Column2018","Column2019","Column2020","Column2021","Column2022","Column2023","Column2024","Column2025","Column2026","Column2027","Column2028","Column2029","Column2030","Column2031","Column2032","Column2033","Column2034","Column2035","Column2036","Column2037","Column2038","Column2039","Column2040","Column2041","Column2042","Column2043","Column2044","Column2045","Column2046","Column2047","Column2048","Column2049","Column2050","Column2051","Column2052","Column2053","Column2054","Column2055","Column2056","Column2057","Column2058","Column2059","Column2060","Column2061","Column2062","Column2063","Column2064","Column2065","Column2066","Column2067","Column2068","Column2069","Column2070","Column2071","Column2072","Column2073","Column2074","Column2075","Column2076","Column2077","Column2078","Column2079","Column2080","Column2081","Column2082","Column2083","Column2084","Column2085","Column2086","Column2087","Column2088","Column2089","Column2090","Column2091","Column2092","Column2093","Column2094","Column2095","Column2096","Column2097","Column2098","Column2099","Column2100","Column2101","Column2102","Column2103","Column2104","Column2105","Column2106","Column2107","Column2108","Column2109","Column2110","Column2111","Column2112","Column2113","Column2114","Column2115","Column2116","Column2117","Column2118","Column2119","Column2120","Column2121","Column2122","Column2123","Column2124","Column2125","Column2126","Column2127","Column2128","Column2129","Column2130","Column2131","Column2132","Column2133","Column2134","Column2135","Column2136","Column2137","Column2138","Column2139","Column2140","Column2141","Column2142","Column2143","Column2144","Column2145","Column2146","Column2147","Column2148","Column2149","Column2150","Column2151","Column2152","Column2153","Column2154","Column2155","Column2156","Column2157","Column2158","Column2159","Column2160","Column2161","Column2162","Column2163","Column2164","Column2165","Column2166","Column2167","Column2168","Column2169","Column2170","Column2171","Column2172","Column2173","Column2174","Column2175","Column2176","Column2177","Column2178","Column2179","Column2180","Column2181","Column2182","Column2183","Column2184","Column2185","Column2186","Column2187","Column2188","Column2189","Column2190","Column2191","Column2192","Column2193","Column2194","Column2195","Column2196","Column2197","Column2198","Column2199","Column2200","Column2201","Column2202","Column2203","Column2204","Column2205","Column2206","Column2207","Column2208","Column2209","Column2210","Column2211","Column2212","Column2213","Column2214","Column2215","Column2216","Column2217","Column2218","Column2219","Column2220","Column2221","Column2222","Column2223","Column2224","Column2225","Column2226","Column2227","Column2228","Column2229","Column2230","Column2231","Column2232","Column2233","Column2234","Column2235","Column2236","Column2237","Column2238","Column2239","Column2240","Column2241","Column2242","Column2243","Column2244","Column2245","Column2246","Column2247","Column2248","Column2249","Column2250","Column2251","Column2252","Column2253","Column2254","Column2255","Column2256","Column2257","Column2258","Column2259","Column2260","Column2261","Column2262","Column2263","Column2264","Column2265","Column2266","Column2267","Column2268","Column2269","Column2270","Column2271","Column2272","Column2273","Column2274","Column2275","Column2276","Column2277","Column2278","Column2279","Column2280","Column2281","Column2282","Column2283","Column2284","Column2285","Column2286","Column2287","Column2288","Column2289","Column2290","Column2291","Column2292","Column2293","Column2294","Column2295","Column2296","Column2297","Column2298","Column2299","Column2300","Column2301","Column2302","Column2303","Column2304","Column2305","Column2306","Column2307","Column2308","Column2309","Column2310","Column2311","Column2312","Column2313","Column2314","Column2315","Column2316","Column2317","Column2318","Column2319","Column2320","Column2321","Column2322","Column2323","Column2324","Column2325","Column2326","Column2327","Column2328","Column2329","Column2330","Column2331","Column2332","Column2333","Column2334","Column2335","Column2336","Column2337","Column2338","Column2339","Column2340","Column2341","Column2342","Column2343","Column2344","Column2345","Column2346","Column2347","Column2348","Column2349","Column2350","Column2351","Column2352","Column2353","Column2354","Column2355","Column2356","Column2357","Column2358","Column2359","Column2360","Column2361","Column2362","Column2363","Column2364","Column2365","Column2366","Column2367","Column2368","Column2369","Column2370","Column2371","Column2372","Column2373","Column2374","Column2375","Column2376","Column2377","Column2378","Column2379","Column2380","Column2381","Column2382","Column2383","Column2384","Column2385","Column2386","Column2387","Column2388","Column2389","Column2390","Column2391","Column2392","Column2393","Column2394","Column2395","Column2396","Column2397","Column2398","Column2399","Column2400","Column2401","Column2402","Column2403","Column2404","Column2405","Column2406","Column2407","Column2408","Column2409","Column2410","Column2411","Column2412","Column2413","Column2414","Column2415","Column2416","Column2417","Column2418","Column2419","Column2420","Column2421","Column2422","Column2423","Column2424","Column2425","Column2426","Column2427","Column2428","Column2429","Column2430","Column2431","Column2432","Column2433","Column2434","Column2435","Column2436","Column2437","Column2438","Column2439","Column2440","Column2441","Column2442","Column2443","Column2444","Column2445","Column2446","Column2447","Column2448","Column2449","Column2450","Column2451","Column2452","Column2453","Column2454","Column2455","Column2456","Column2457","Column2458","Column2459","Column2460","Column2461","Column2462","Column2463","Column2464","Column2465","Column2466","Column2467","Column2468","Column2469","Column2470","Column2471","Column2472","Column2473","Column2474","Column2475","Column2476","Column2477","Column2478","Column2479","Column2480","Column2481","Column2482","Column2483","Column2484","Column2485","Column2486","Column2487","Column2488","Column2489","Column2490","Column2491","Column2492","Column2493","Column2494","Column2495","Column2496","Column2497","Column2498","Column2499","Column2500","Column2501","Column2502","Column2503","Column2504","Column2505","Column2506","Column2507","Column2508","Column2509","Column2510","Column2511","Column2512","Column2513","Column2514","Column2515","Column2516","Column2517","Column2518","Column2519","Column2520","Column2521","Column2522","Column2523","Column2524","Column2525","Column2526","Column2527","Column2528","Column2529","Column2530","Column2531","Column2532","Column2533","Column2534","Column2535","Column2536","Column2537","Column2538","Column2539","Column2540","Column2541","Column2542","Column2543","Column2544","Column2545","Column2546","Column2547","Column2548","Column2549","Column2550","Column2551","Column2552","Column2553","Column2554","Column2555","Column2556","Column2557","Column2558","Column2559","Column2560","Column2561","Column2562","Column2563","Column2564","Column2565","Column2566","Column2567","Column2568","Column2569","Column2570","Column2571","Column2572","Column2573","Column2574","Column2575","Column2576","Column2577","Column2578","Column2579","Column2580","Column2581","Column2582","Column2583","Column2584","Column2585","Column2586","Column2587","Column2588","Column2589","Column2590","Column2591","Column2592","Column2593","Column2594","Column2595","Column2596","Column2597","Column2598","Column2599","Column2600","Column2601","Column2602","Column2603","Column2604","Column2605","Column2606","Column2607","Column2608","Column2609","Column2610","Column2611","Column2612","Column2613","Column2614","Column2615","Column2616","Column2617","Column2618","Column2619","Column2620","Column2621","Column2622","Column2623","Column2624","Column2625","Column2626","Column2627","Column2628","Column2629","Column2630","Column2631","Column2632","Column2633","Column2634","Column2635","Column2636","Column2637","Column2638","Column2639","Column2640","Column2641","Column2642","Column2643","Column2644","Column2645","Column2646","Column2647","Column2648","Column2649","Column2650","Column2651","Column2652","Column2653","Column2654","Column2655","Column2656","Column2657","Column2658","Column2659","Column2660","Column2661","Column2662","Column2663","Column2664","Column2665","Column2666","Column2667","Column2668","Column2669","Column2670","Column2671","Column2672","Column2673","Column2674","Column2675","Column2676","Column2677","Column2678","Column2679","Column2680","Column2681","Column2682","Column2683","Column2684","Column2685","Column2686","Column2687","Column2688","Column2689","Column2690","Column2691","Column2692","Column2693","Column2694","Column2695","Column2696","Column2697","Column2698","Column2699","Column2700","Column2701","Column2702","Column2703","Column2704","Column2705","Column2706","Column2707","Column2708","Column2709","Column2710","Column2711","Column2712","Column2713","Column2714","Column2715","Column2716","Column2717","Column2718","Column2719","Column2720","Column2721","Column2722","Column2723","Column2724","Column2725","Column2726","Column2727","Column2728","Column2729","Column2730","Column2731","Column2732","Column2733","Column2734","Column2735","Column2736","Column2737","Column2738","Column2739","Column2740","Column2741","Column2742","Column2743","Column2744","Column2745","Column2746","Column2747","Column2748","Column2749","Column2750","Column2751","Column2752","Column2753","Column2754","Column2755","Column2756","Column2757","Column2758","Column2759","Column2760","Column2761","Column2762","Column2763","Column2764","Column2765","Column2766","Column2767","Column2768","Column2769","Column2770","Column2771","Column2772","Column2773","Column2774","Column2775","Column2776","Column2777","Column2778","Column2779","Column2780","Column2781","Column2782","Column2783","Column2784","Column2785","Column2786","Column2787","Column2788","Column2789","Column2790","Column2791","Column2792","Column2793","Column2794","Column2795","Column2796","Column2797","Column2798","Column2799","Column2800","Column2801","Column2802","Column2803","Column2804","Column2805","Column2806","Column2807","Column2808","Column2809","Column2810","Column2811","Column2812","Column2813","Column2814","Column2815","Column2816","Column2817","Column2818","Column2819","Column2820","Column2821","Column2822","Column2823","Column2824","Column2825","Column2826","Column2827","Column2828","Column2829","Column2830","Column2831","Column2832","Column2833","Column2834","Column2835","Column2836","Column2837","Column2838","Column2839","Column2840","Column2841","Column2842","Column2843","Column2844","Column2845","Column2846","Column2847","Column2848","Column2849","Column2850","Column2851","Column2852","Column2853","Column2854","Column2855","Column2856","Column2857","Column2858","Column2859","Column2860","Column2861","Column2862","Column2863","Column2864","Column2865","Column2866","Column2867","Column2868","Column2869","Column2870","Column2871","Column2872","Column2873","Column2874","Column2875","Column2876","Column2877","Column2878","Column2879","Column2880","Column2881","Column2882","Column2883","Column2884","Column2885","Column2886","Column2887","Column2888","Column2889","Column2890","Column2891","Column2892","Column2893","Column2894","Column2895","Column2896","Column2897","Column2898","Column2899","Column2900","Column2901","Column2902","Column2903","Column2904","Column2905","Column2906","Column2907","Column2908","Column2909","Column2910","Column2911","Column2912","Column2913","Column2914","Column2915","Column2916","Column2917","Column2918","Column2919","Column2920","Column2921","Column2922","Column2923","Column2924","Column2925","Column2926","Column2927","Column2928","Column2929","Column2930","Column2931","Column2932","Column2933","Column2934","Column2935","Column2936","Column2937","Column2938","Column2939","Column2940","Column2941","Column2942","Column2943","Column2944","Column2945","Column2946","Column2947","Column2948","Column2949","Column2950","Column2951","Column2952","Column2953","Column2954","Column2955","Column2956","Column2957","Column2958","Column2959","Column2960","Column2961","Column2962","Column2963","Column2964","Column2965","Column2966","Column2967","Column2968","Column2969","Column2970","Column2971","Column2972","Column2973","Column2974","Column2975","Column2976","Column2977","Column2978","Column2979","Column2980","Column2981","Column2982","Column2983","Column2984","Column2985","Column2986","Column2987","Column2988","Column2989","Column2990","Column2991","Column2992","Column2993","Column2994","Column2995","Column2996","Column2997","Column2998","Column2999","Column3000","Column3001","Column3002","Column3003","Column3004","Column3005","Column3006","Column3007","Column3008","Column3009","Column3010","Column3011","Column3012","Column3013","Column3014","Column3015","Column3016","Column3017","Column3018","Column3019","Column3020","Column3021","Column3022","Column3023","Column3024","Column3025","Column3026","Column3027","Column3028","Column3029","Column3030","Column3031","Column3032","Column3033","Column3034","Column3035","Column3036","Column3037","Column3038","Column3039","Column3040","Column3041","Column3042","Column3043","Column3044","Column3045","Column3046","Column3047","Column3048","Column3049","Column3050","Column3051","Column3052","Column3053","Column3054","Column3055","Column3056","Column3057","Column3058","Column3059","Column3060","Column3061","Column3062","Column3063","Column3064","Column3065","Column3066","Column3067","Column3068","Column3069","Column3070","Column3071","Column3072","Column3073","Column3074","Column3075","Column3076","Column3077","Column3078","Column3079","Column3080","Column3081","Column3082","Column3083","Column3084","Column3085","Column3086","Column3087","Column3088","Column3089","Column3090","Column3091","Column3092","Column3093","Column3094","Column3095","Column3096","Column3097","Column3098","Column3099","Column3100","Column3101","Column3102","Column3103","Column3104","Column3105","Column3106","Column3107","Column3108","Column3109","Column3110","Column3111","Column3112","Column3113","Column3114","Column3115","Column3116","Column3117","Column3118","Column3119","Column3120","Column3121","Column3122","Column3123","Column3124","Column3125","Column3126","Column3127","Column3128","Column3129","Column3130","Column3131","Column3132","Column3133","Column3134","Column3135","Column3136","Column3137","Column3138","Column3139","Column3140","Column3141","Column3142","Column3143","Column3144","Column3145","Column3146","Column3147","Column3148","Column3149","Column3150","Column3151","Column3152","Column3153","Column3154","Column3155","Column3156","Column3157","Column3158","Column3159","Column3160","Column3161","Column3162","Column3163","Column3164","Column3165","Column3166","Column3167","Column3168","Column3169","Column3170","Column3171","Column3172","Column3173","Column3174","Column3175","Column3176","Column3177","Column3178","Column3179","Column3180","Column3181","Column3182","Column3183","Column3184","Column3185","Column3186","Column3187","Column3188","Column3189","Column3190","Column3191","Column3192","Column3193","Column3194","Column3195","Column3196","Column3197","Column3198","Column3199","Column3200","Column3201","Column3202","Column3203","Column3204","Column3205","Column3206","Column3207","Column3208","Column3209","Column3210","Column3211","Column3212","Column3213","Column3214","Column3215","Column3216","Column3217","Column3218","Column3219","Column3220","Column3221","Column3222","Column3223","Column3224","Column3225","Column3226","Column3227","Column3228","Column3229","Column3230","Column3231","Column3232","Column3233","Column3234","Column3235","Column3236","Column3237","Column3238","Column3239","Column3240","Column3241","Column3242","Column3243","Column3244","Column3245","Column3246","Column3247","Column3248","Column3249","Column3250","Column3251","Column3252","Column3253","Column3254","Column3255","Column3256","Column3257","Column3258","Column3259","Column3260","Column3261","Column3262","Column3263","Column3264","Column3265","Column3266","Column3267","Column3268","Column3269","Column3270","Column3271","Column3272","Column3273","Column3274","Column3275","Column3276","Column3277","Column3278","Column3279","Column3280","Column3281","Column3282","Column3283","Column3284","Column3285","Column3286","Column3287","Column3288","Column3289","Column3290","Column3291","Column3292","Column3293","Column3294","Column3295","Column3296","Column3297","Column3298","Column3299","Column3300","Column3301","Column3302","Column3303","Column3304","Column3305","Column3306","Column3307","Column3308","Column3309","Column3310","Column3311","Column3312","Column3313","Column3314","Column3315","Column3316","Column3317","Column3318","Column3319","Column3320","Column3321","Column3322","Column3323","Column3324","Column3325","Column3326","Column3327","Column3328","Column3329","Column3330","Column3331","Column3332","Column3333","Column3334","Column3335","Column3336","Column3337","Column3338","Column3339","Column3340","Column3341","Column3342","Column3343","Column3344","Column3345","Column3346","Column3347","Column3348","Column3349","Column3350","Column3351","Column3352","Column3353","Column3354","Column3355","Column3356","Column3357","Column3358","Column3359","Column3360","Column3361","Column3362","Column3363","Column3364","Column3365","Column3366","Column3367","Column3368","Column3369","Column3370","Column3371","Column3372","Column3373","Column3374","Column3375","Column3376","Column3377","Column3378","Column3379","Column3380","Column3381","Column3382","Column3383","Column3384","Column3385","Column3386","Column3387","Column3388","Column3389","Column3390","Column3391","Column3392","Column3393","Column3394","Column3395","Column3396","Column3397","Column3398","Column3399","Column3400","Column3401","Column3402","Column3403","Column3404","Column3405","Column3406","Column3407","Column3408","Column3409","Column3410","Column3411","Column3412","Column3413","Column3414","Column3415","Column3416","Column3417","Column3418","Column3419","Column3420","Column3421","Column3422","Column3423","Column3424","Column3425","Column3426","Column3427","Column3428","Column3429","Column3430","Column3431","Column3432","Column3433","Column3434","Column3435","Column3436","Column3437","Column3438","Column3439","Column3440","Column3441","Column3442","Column3443","Column3444","Column3445","Column3446","Column3447","Column3448","Column3449","Column3450","Column3451","Column3452","Column3453","Column3454","Column3455","Column3456","Column3457","Column3458","Column3459","Column3460","Column3461","Column3462","Column3463","Column3464","Column3465","Column3466","Column3467","Column3468","Column3469","Column3470","Column3471","Column3472","Column3473","Column3474","Column3475","Column3476","Column3477","Column3478","Column3479","Column3480","Column3481","Column3482","Column3483","Column3484","Column3485","Column3486","Column3487","Column3488","Column3489","Column3490","Column3491","Column3492","Column3493","Column3494","Column3495","Column3496","Column3497","Column3498","Column3499","Column3500","Column3501","Column3502","Column3503","Column3504","Column3505","Column3506","Column3507","Column3508","Column3509","Column3510","Column3511","Column3512","Column3513","Column3514","Column3515","Column3516","Column3517","Column3518","Column3519","Column3520","Column3521","Column3522","Column3523","Column3524","Column3525","Column3526","Column3527","Column3528","Column3529","Column3530","Column3531","Column3532","Column3533","Column3534","Column3535","Column3536","Column3537","Column3538","Column3539","Column3540","Column3541","Column3542","Column3543","Column3544","Column3545","Column3546","Column3547","Column3548","Column3549","Column3550","Column3551","Column3552","Column3553","Column3554","Column3555","Column3556","Column3557","Column3558","Column3559","Column3560","Column3561","Column3562","Column3563","Column3564","Column3565","Column3566","Column3567","Column3568","Column3569","Column3570","Column3571","Column3572","Column3573","Column3574","Column3575","Column3576","Column3577","Column3578","Column3579","Column3580","Column3581","Column3582","Column3583","Column3584","Column3585","Column3586","Column3587","Column3588","Column3589","Column3590","Column3591","Column3592","Column3593","Column3594","Column3595","Column3596","Column3597","Column3598","Column3599","Column3600","Column3601","Column3602","Column3603","Column3604","Column3605","Column3606","Column3607","Column3608","Column3609","Column3610","Column3611","Column3612","Column3613","Column3614","Column3615","Column3616","Column3617","Column3618","Column3619","Column3620","Column3621","Column3622","Column3623","Column3624","Column3625","Column3626","Column3627","Column3628","Column3629","Column3630","Column3631","Column3632","Column3633","Column3634","Column3635","Column3636","Column3637","Column3638","Column3639","Column3640","Column3641","Column3642","Column3643","Column3644","Column3645","Column3646","Column3647","Column3648","Column3649","Column3650","Column3651","Column3652","Column3653","Column3654","Column3655","Column3656","Column3657","Column3658","Column3659","Column3660","Column3661","Column3662","Column3663","Column3664","Column3665","Column3666","Column3667","Column3668","Column3669","Column3670","Column3671","Column3672","Column3673","Column3674","Column3675","Column3676","Column3677","Column3678","Column3679","Column3680","Column3681","Column3682","Column3683","Column3684","Column3685","Column3686","Column3687","Column3688","Column3689","Column3690","Column3691","Column3692","Column3693","Column3694","Column3695","Column3696","Column3697","Column3698","Column3699","Column3700","Column3701","Column3702","Column3703","Column3704","Column3705","Column3706","Column3707","Column3708","Column3709","Column3710","Column3711","Column3712","Column3713","Column3714","Column3715","Column3716","Column3717","Column3718","Column3719","Column3720","Column3721","Column3722","Column3723","Column3724","Column3725","Column3726","Column3727","Column3728","Column3729","Column3730","Column3731","Column3732","Column3733","Column3734","Column3735","Column3736","Column3737","Column3738","Column3739","Column3740","Column3741","Column3742","Column3743","Column3744","Column3745","Column3746","Column3747","Column3748","Column3749","Column3750","Column3751","Column3752","Column3753","Column3754","Column3755","Column3756","Column3757","Column3758","Column3759","Column3760","Column3761","Column3762","Column3763","Column3764","Column3765","Column3766","Column3767","Column3768","Column3769","Column3770","Column3771","Column3772","Column3773","Column3774","Column3775","Column3776","Column3777","Column3778","Column3779","Column3780","Column3781","Column3782","Column3783","Column3784","Column3785","Column3786","Column3787","Column3788","Column3789","Column3790","Column3791","Column3792","Column3793","Column3794","Column3795","Column3796","Column3797","Column3798","Column3799","Column3800","Column3801","Column3802","Column3803","Column3804","Column3805","Column3806","Column3807","Column3808","Column3809","Column3810","Column3811","Column3812","Column3813","Column3814","Column3815","Column3816","Column3817","Column3818","Column3819","Column3820","Column3821","Column3822","Column3823","Column3824","Column3825","Column3826","Column3827","Column3828","Column3829","Column3830","Column3831","Column3832","Column3833","Column3834","Column3835","Column3836","Column3837","Column3838","Column3839","Column3840","Column3841","Column3842","Column3843","Column3844","Column3845","Column3846","Column3847","Column3848","Column3849","Column3850","Column3851","Column3852","Column3853","Column3854","Column3855","Column3856","Column3857","Column3858","Column3859","Column3860","Column3861","Column3862","Column3863","Column3864","Column3865","Column3866","Column3867","Column3868","Column3869","Column3870","Column3871","Column3872","Column3873","Column3874","Column3875","Column3876","Column3877","Column3878","Column3879","Column3880","Column3881","Column3882","Column3883","Column3884","Column3885","Column3886","Column3887","Column3888","Column3889","Column3890","Column3891","Column3892","Column3893","Column3894","Column3895","Column3896","Column3897","Column3898","Column3899","Column3900","Column3901","Column3902","Column3903","Column3904","Column3905","Column3906","Column3907","Column3908","Column3909","Column3910","Column3911","Column3912","Column3913","Column3914","Column3915","Column3916","Column3917","Column3918","Column3919","Column3920","Column3921","Column3922","Column3923","Column3924","Column3925","Column3926","Column3927","Column3928","Column3929","Column3930","Column3931","Column3932","Column3933","Column3934","Column3935","Column3936","Column3937","Column3938","Column3939","Column3940","Column3941","Column3942","Column3943","Column3944","Column3945","Column3946","Column3947","Column3948","Column3949","Column3950","Column3951","Column3952","Column3953","Column3954","Column3955","Column3956","Column3957","Column3958","Column3959","Column3960","Column3961","Column3962","Column3963","Column3964","Column3965","Column3966","Column3967","Column3968","Column3969","Column3970","Column3971","Column3972","Column3973","Column3974","Column3975","Column3976","Column3977","Column3978","Column3979","Column3980","Column3981","Column3982","Column3983","Column3984","Column3985","Column3986","Column3987","Column3988","Column3989","Column3990","Column3991","Column3992","Column3993","Column3994","Column3995","Column3996","Column3997","Column3998","Column3999","Column4000","Column4001","Column4002","Column4003","Column4004","Column4005","Column4006","Column4007","Column4008","Column4009","Column4010","Column4011","Column4012","Column4013","Column4014","Column4015","Column4016","Column4017","Column4018","Column4019","Column4020","Column4021","Column4022","Column4023","Column4024","Column4025","Column4026","Column4027","Column4028","Column4029","Column4030","Column4031","Column4032","Column4033","Column4034","Column4035","Column4036","Column4037","Column4038","Column4039","Column4040","Column4041","Column4042","Column4043","Column4044","Column4045","Column4046","Column4047","Column4048","Column4049","Column4050","Column4051","Column4052","Column4053","Column4054","Column4055","Column4056","Column4057","Column4058","Column4059","Column4060","Column4061","Column4062","Column4063","Column4064","Column4065","Column4066","Column4067","Column4068","Column4069","Column4070","Column4071","Column4072","Column4073","Column4074","Column4075","Column4076","Column4077","Column4078","Column4079","Column4080","Column4081","Column4082","Column4083","Column4084","Column4085","Column4086","Column4087","Column4088","Column4089","Column4090","Column4091","Column4092","Column4093","Column4094","Column4095","Column4096","Column4097","Column4098","Column4099","Column4100","Column4101","Column4102","Column4103","Column4104","Column4105","Column4106","Column4107","Column4108","Column4109","Column4110","Column4111","Column4112","Column4113","Column4114","Column4115","Column4116","Column4117","Column4118","Column4119","Column4120","Column4121","Column4122","Column4123","Column4124","Column4125","Column4126","Column4127","Column4128","Column4129","Column4130","Column4131","Column4132","Column4133","Column4134","Column4135","Column4136","Column4137","Column4138","Column4139","Column4140","Column4141","Column4142","Column4143","Column4144","Column4145","Column4146","Column4147","Column4148","Column4149","Column4150","Column4151","Column4152","Column4153","Column4154","Column4155","Column4156","Column4157","Column4158","Column4159","Column4160","Column4161","Column4162","Column4163","Column4164","Column4165","Column4166","Column4167","Column4168","Column4169","Column4170","Column4171","Column4172","Column4173","Column4174","Column4175","Column4176","Column4177","Column4178","Column4179","Column4180","Column4181","Column4182","Column4183","Column4184","Column4185","Column4186","Column4187","Column4188","Column4189","Column4190","Column4191","Column4192","Column4193","Column4194","Column4195","Column4196","Column4197","Column4198","Column4199","Column4200","Column4201","Column4202","Column4203","Column4204","Column4205","Column4206","Column4207","Column4208","Column4209","Column4210","Column4211","Column4212","Column4213","Column4214","Column4215","Column4216","Column4217","Column4218","Column4219","Column4220","Column4221","Column4222","Column4223","Column4224","Column4225","Column4226","Column4227","Column4228","Column4229","Column4230","Column4231","Column4232","Column4233","Column4234","Column4235","Column4236","Column4237","Column4238","Column4239","Column4240","Column4241","Column4242","Column4243","Column4244","Column4245","Column4246","Column4247","Column4248","Column4249","Column4250","Column4251","Column4252","Column4253","Column4254","Column4255","Column4256","Column4257","Column4258","Column4259","Column4260","Column4261","Column4262","Column4263","Column4264","Column4265","Column4266","Column4267","Column4268","Column4269","Column4270","Column4271","Column4272","Column4273","Column4274","Column4275","Column4276","Column4277","Column4278","Column4279","Column4280","Column4281","Column4282","Column4283","Column4284","Column4285","Column4286","Column4287","Column4288","Column4289","Column4290","Column4291","Column4292","Column4293","Column4294","Column4295","Column4296","Column4297","Column4298","Column4299","Column4300","Column4301","Column4302","Column4303","Column4304","Column4305","Column4306","Column4307","Column4308","Column4309","Column4310","Column4311","Column4312","Column4313","Column4314","Column4315","Column4316","Column4317","Column4318","Column4319","Column4320","Column4321","Column4322","Column4323","Column4324","Column4325","Column4326","Column4327","Column4328","Column4329","Column4330","Column4331","Column4332","Column4333","Column4334","Column4335","Column4336","Column4337","Column4338","Column4339","Column4340","Column4341","Column4342","Column4343","Column4344","Column4345","Column4346","Column4347","Column4348","Column4349","Column4350","Column4351","Column4352","Column4353","Column4354","Column4355","Column4356","Column4357","Column4358","Column4359","Column4360","Column4361","Column4362","Column4363","Column4364","Column4365","Column4366","Column4367","Column4368","Column4369","Column4370","Column4371","Column4372","Column4373","Column4374","Column4375","Column4376","Column4377","Column4378","Column4379","Column4380","Column4381","Column4382","Column4383","Column4384","Column4385","Column4386","Column4387","Column4388","Column4389","Column4390","Column4391","Column4392","Column4393","Column4394","Column4395","Column4396","Column4397","Column4398","Column4399","Column4400","Column4401","Column4402","Column4403","Column4404","Column4405","Column4406","Column4407","Column4408","Column4409","Column4410","Column4411","Column4412","Column4413","Column4414","Column4415","Column4416","Column4417","Column4418","Column4419","Column4420","Column4421","Column4422","Column4423","Column4424","Column4425","Column4426","Column4427","Column4428","Column4429","Column4430","Column4431","Column4432","Column4433","Column4434","Column4435","Column4436","Column4437","Column4438","Column4439","Column4440","Column4441","Column4442","Column4443","Column4444","Column4445","Column4446","Column4447","Column4448","Column4449","Column4450","Column4451","Column4452","Column4453","Column4454","Column4455","Column4456","Column4457","Column4458","Column4459","Column4460","Column4461","Column4462","Column4463","Column4464","Column4465","Column4466","Column4467","Column4468","Column4469","Column4470","Column4471","Column4472","Column4473","Column4474","Column4475","Column4476","Column4477","Column4478","Column4479","Column4480","Column4481","Column4482","Column4483","Column4484","Column4485","Column4486","Column4487","Column4488","Column4489","Column4490","Column4491","Column4492","Column4493","Column4494","Column4495","Column4496","Column4497","Column4498","Column4499","Column4500","Column4501","Column4502","Column4503","Column4504","Column4505","Column4506","Column4507","Column4508","Column4509","Column4510","Column4511","Column4512","Column4513","Column4514","Column4515","Column4516","Column4517","Column4518","Column4519","Column4520","Column4521","Column4522","Column4523","Column4524","Column4525","Column4526","Column4527","Column4528","Column4529","Column4530","Column4531","Column4532","Column4533","Column4534","Column4535","Column4536","Column4537","Column4538","Column4539","Column4540","Column4541","Column4542","Column4543","Column4544","Column4545","Column4546","Column4547","Column4548","Column4549","Column4550","Column4551","Column4552","Column4553","Column4554","Column4555","Column4556","Column4557","Column4558","Column4559","Column4560","Column4561","Column4562","Column4563","Column4564","Column4565","Column4566","Column4567","Column4568","Column4569","Column4570","Column4571","Column4572","Column4573","Column4574","Column4575","Column4576","Column4577","Column4578","Column4579","Column4580","Column4581","Column4582","Column4583","Column4584","Column4585","Column4586","Column4587","Column4588","Column4589","Column4590","Column4591","Column4592","Column4593","Column4594","Column4595","Column4596","Column4597","Column4598","Column4599","Column4600","Column4601","Column4602","Column4603","Column4604","Column4605","Column4606","Column4607","Column4608","Column4609","Column4610","Column4611","Column4612","Column4613","Column4614","Column4615","Column4616","Column4617","Column4618","Column4619","Column4620","Column4621","Column4622","Column4623","Column4624","Column4625","Column4626","Column4627","Column4628","Column4629","Column4630","Column4631","Column4632","Column4633","Column4634","Column4635","Column4636","Column4637","Column4638","Column4639","Column4640","Column4641","Column4642","Column4643","Column4644","Column4645","Column4646","Column4647","Column4648","Column4649","Column4650","Column4651","Column4652","Column4653","Column4654","Column4655","Column4656","Column4657","Column4658","Column4659","Column4660","Column4661","Column4662","Column4663","Column4664","Column4665","Column4666","Column4667","Column4668","Column4669","Column4670","Column4671","Column4672","Column4673","Column4674","Column4675","Column4676","Column4677","Column4678","Column4679","Column4680","Column4681","Column4682","Column4683","Column4684","Column4685","Column4686","Column4687","Column4688","Column4689","Column4690","Column4691","Column4692","Column4693","Column4694","Column4695","Column4696","Column4697","Column4698","Column4699","Column4700","Column4701","Column4702","Column4703","Column4704","Column4705","Column4706","Column4707","Column4708","Column4709","Column4710","Column4711","Column4712","Column4713","Column4714","Column4715","Column4716","Column4717","Column4718","Column4719","Column4720","Column4721","Column4722","Column4723","Column4724","Column4725","Column4726","Column4727","Column4728","Column4729","Column4730","Column4731","Column4732","Column4733","Column4734","Column4735","Column4736","Column4737","Column4738","Column4739","Column4740","Column4741","Column4742","Column4743","Column4744","Column4745","Column4746","Column4747","Column4748","Column4749","Column4750","Column4751","Column4752","Column4753","Column4754","Column4755","Column4756","Column4757","Column4758","Column4759","Column4760","Column4761","Column4762","Column4763","Column4764","Column4765","Column4766","Column4767","Column4768","Column4769","Column4770","Column4771","Column4772","Column4773","Column4774","Column4775","Column4776","Column4777","Column4778","Column4779","Column4780","Column4781","Column4782","Column4783","Column4784","Column4785","Column4786","Column4787","Column4788","Column4789","Column4790","Column4791","Column4792","Column4793","Column4794","Column4795","Column4796","Column4797","Column4798","Column4799","Column4800","Column4801","Column4802","Column4803","Column4804","Column4805","Column4806","Column4807","Column4808","Column4809","Column4810","Column4811","Column4812","Column4813","Column4814","Column4815","Column4816","Column4817","Column4818","Column4819","Column4820","Column4821","Column4822","Column4823","Column4824","Column4825","Column4826","Column4827","Column4828","Column4829","Column4830","Column4831","Column4832","Column4833","Column4834","Column4835","Column4836","Column4837","Column4838","Column4839","Column4840","Column4841","Column4842","Column4843","Column4844","Column4845","Column4846","Column4847","Column4848","Column4849","Column4850","Column4851","Column4852","Column4853","Column4854","Column4855","Column4856","Column4857","Column4858","Column4859","Column4860","Column4861","Column4862","Column4863","Column4864","Column4865","Column4866","Column4867","Column4868","Column4869","Column4870","Column4871","Column4872","Column4873","Column4874","Column4875","Column4876","Column4877","Column4878","Column4879","Column4880","Column4881","Column4882","Column4883","Column4884","Column4885","Column4886","Column4887","Column4888","Column4889","Column4890","Column4891","Column4892","Column4893","Column4894","Column4895","Column4896","Column4897","Column4898","Column4899","Column4900","Column4901","Column4902","Column4903","Column4904","Column4905","Column4906","Column4907","Column4908","Column4909","Column4910","Column4911","Column4912","Column4913","Column4914","Column4915","Column4916","Column4917","Column4918","Column4919","Column4920","Column4921","Column4922","Column4923","Column4924","Column4925","Column4926","Column4927","Column4928","Column4929","Column4930","Column4931","Column4932","Column4933","Column4934","Column4935","Column4936","Column4937","Column4938","Column4939","Column4940","Column4941","Column4942","Column4943","Column4944","Column4945","Column4946","Column4947","Column4948","Column4949","Column4950","Column4951","Column4952","Column4953","Column4954","Column4955","Column4956","Column4957","Column4958","Column4959","Column4960","Column4961","Column4962","Column4963","Column4964","Column4965","Column4966","Column4967","Column4968","Column4969","Column4970","Column4971","Column4972","Column4973","Column4974","Column4975","Column4976","Column4977","Column4978","Column4979","Column4980","Column4981","Column4982","Column4983","Column4984","Column4985","Column4986","Column4987","Column4988","Column4989","Column4990","Column4991","Column4992","Column4993","Column4994","Column4995","Column4996","Column4997","Column4998","Column4999","Column5000","Column5001","Column5002","Column5003","Column5004","Column5005","Column5006","Column5007","Column5008","Column5009","Column5010","Column5011","Column5012","Column5013","Column5014","Column5015","Column5016","Column5017","Column5018","Column5019","Column5020","Column5021","Column5022","Column5023","Column5024","Column5025","Column5026","Column5027","Column5028","Column5029","Column5030","Column5031","Column5032","Column5033","Column5034","Column5035","Column5036","Column5037","Column5038","Column5039","Column5040","Column5041","Column5042","Column5043","Column5044","Column5045","Column5046","Column5047","Column5048","Column5049","Column5050","Column5051","Column5052","Column5053","Column5054","Column5055","Column5056","Column5057","Column5058","Column5059","Column5060","Column5061","Column5062","Column5063","Column5064","Column5065","Column5066","Column5067","Column5068","Column5069","Column5070","Column5071","Column5072","Column5073","Column5074","Column5075","Column5076","Column5077","Column5078","Column5079","Column5080","Column5081","Column5082","Column5083","Column5084","Column5085","Column5086","Column5087","Column5088","Column5089","Column5090","Column5091","Column5092","Column5093","Column5094","Column5095","Column5096","Column5097","Column5098","Column5099","Column5100","Column5101","Column5102","Column5103","Column5104","Column5105","Column5106","Column5107","Column5108","Column5109","Column5110","Column5111","Column5112","Column5113","Column5114","Column5115","Column5116","Column5117","Column5118","Column5119","Column5120","Column5121","Column5122","Column5123","Column5124","Column5125","Column5126","Column5127","Column5128","Column5129","Column5130","Column5131","Column5132","Column5133","Column5134","Column5135","Column5136","Column5137","Column5138","Column5139","Column5140","Column5141","Column5142","Column5143","Column5144","Column5145","Column5146","Column5147","Column5148","Column5149","Column5150","Column5151","Column5152","Column5153","Column5154","Column5155","Column5156","Column5157","Column5158","Column5159","Column5160","Column5161","Column5162","Column5163","Column5164","Column5165","Column5166","Column5167","Column5168","Column5169","Column5170","Column5171","Column5172","Column5173","Column5174","Column5175","Column5176","Column5177","Column5178","Column5179","Column5180","Column5181","Column5182","Column5183","Column5184","Column5185","Column5186","Column5187","Column5188","Column5189","Column5190","Column5191","Column5192","Column5193","Column5194","Column5195","Column5196","Column5197","Column5198","Column5199","Column5200","Column5201","Column5202","Column5203","Column5204","Column5205","Column5206","Column5207","Column5208","Column5209","Column5210","Column5211","Column5212","Column5213","Column5214","Column5215","Column5216","Column5217","Column5218","Column5219","Column5220","Column5221","Column5222","Column5223","Column5224","Column5225","Column5226","Column5227","Column5228","Column5229","Column5230","Column5231","Column5232","Column5233","Column5234","Column5235","Column5236","Column5237","Column5238","Column5239","Column5240","Column5241","Column5242","Column5243","Column5244","Column5245","Column5246","Column5247","Column5248","Column5249","Column5250","Column5251","Column5252","Column5253","Column5254","Column5255","Column5256","Column5257","Column5258","Column5259","Column5260","Column5261","Column5262","Column5263","Column5264","Column5265","Column5266","Column5267","Column5268","Column5269","Column5270","Column5271","Column5272","Column5273","Column5274","Column5275","Column5276","Column5277","Column5278","Column5279","Column5280","Column5281","Column5282","Column5283","Column5284","Column5285","Column5286","Column5287","Column5288","Column5289","Column5290","Column5291","Column5292","Column5293","Column5294","Column5295","Column5296","Column5297","Column5298","Column5299","Column5300","Column5301","Column5302","Column5303","Column5304","Column5305","Column5306","Column5307","Column5308","Column5309","Column5310","Column5311","Column5312","Column5313","Column5314","Column5315","Column5316","Column5317","Column5318","Column5319","Column5320","Column5321","Column5322","Column5323","Column5324","Column5325","Column5326","Column5327","Column5328","Column5329","Column5330","Column5331","Column5332","Column5333","Column5334","Column5335","Column5336","Column5337","Column5338","Column5339","Column5340","Column5341","Column5342","Column5343","Column5344","Column5345","Column5346","Column5347","Column5348","Column5349","Column5350","Column5351","Column5352","Column5353","Column5354","Column5355","Column5356","Column5357","Column5358","Column5359","Column5360","Column5361","Column5362","Column5363","Column5364","Column5365","Column5366","Column5367","Column5368","Column5369","Column5370","Column5371","Column5372","Column5373","Column5374","Column5375","Column5376","Column5377","Column5378","Column5379","Column5380","Column5381","Column5382","Column5383","Column5384","Column5385","Column5386","Column5387","Column5388","Column5389","Column5390","Column5391","Column5392","Column5393","Column5394","Column5395","Column5396","Column5397","Column5398","Column5399","Column5400","Column5401","Column5402","Column5403","Column5404","Column5405","Column5406","Column5407","Column5408","Column5409","Column5410","Column5411","Column5412","Column5413","Column5414","Column5415","Column5416","Column5417","Column5418","Column5419","Column5420","Column5421","Column5422","Column5423","Column5424","Column5425","Column5426","Column5427","Column5428","Column5429","Column5430","Column5431","Column5432","Column5433","Column5434","Column5435","Column5436","Column5437","Column5438","Column5439","Column5440","Column5441","Column5442","Column5443","Column5444","Column5445","Column5446","Column5447","Column5448","Column5449","Column5450","Column5451","Column5452","Column5453","Column5454","Column5455","Column5456","Column5457","Column5458","Column5459","Column5460","Column5461","Column5462","Column5463","Column5464","Column5465","Column5466","Column5467","Column5468","Column5469","Column5470","Column5471","Column5472","Column5473","Column5474","Column5475","Column5476","Column5477","Column5478","Column5479","Column5480","Column5481","Column5482","Column5483","Column5484","Column5485","Column5486","Column5487","Column5488","Column5489","Column5490","Column5491","Column5492","Column5493","Column5494","Column5495","Column5496","Column5497","Column5498","Column5499","Column5500","Column5501","Column5502","Column5503","Column5504","Column5505","Column5506","Column5507","Column5508","Column5509","Column5510","Column5511","Column5512","Column5513","Column5514","Column5515","Column5516","Column5517","Column5518","Column5519","Column5520","Column5521","Column5522","Column5523","Column5524","Column5525","Column5526","Column5527","Column5528","Column5529","Column5530","Column5531","Column5532","Column5533","Column5534","Column5535","Column5536","Column5537","Column5538","Column5539","Column5540","Column5541","Column5542","Column5543","Column5544","Column5545","Column5546","Column5547","Column5548","Column5549","Column5550","Column5551","Column5552","Column5553","Column5554","Column5555","Column5556","Column5557","Column5558","Column5559","Column5560","Column5561","Column5562","Column5563","Column5564","Column5565","Column5566","Column5567","Column5568","Column5569","Column5570","Column5571","Column5572","Column5573","Column5574","Column5575","Column5576","Column5577","Column5578","Column5579","Column5580","Column5581","Column5582","Column5583","Column5584","Column5585","Column5586","Column5587","Column5588","Column5589","Column5590","Column5591","Column5592","Column5593","Column5594","Column5595","Column5596","Column5597","Column5598","Column5599","Column5600","Column5601","Column5602","Column5603","Column5604","Column5605","Column5606","Column5607","Column5608","Column5609","Column5610","Column5611","Column5612","Column5613","Column5614","Column5615","Column5616","Column5617","Column5618","Column5619","Column5620","Column5621","Column5622","Column5623","Column5624","Column5625","Column5626","Column5627","Column5628","Column5629","Column5630","Column5631","Column5632","Column5633","Column5634","Column5635","Column5636","Column5637","Column5638","Column5639","Column5640","Column5641","Column5642","Column5643","Column5644","Column5645","Column5646","Column5647","Column5648","Column5649","Column5650","Column5651","Column5652","Column5653","Column5654","Column5655","Column5656","Column5657","Column5658","Column5659","Column5660","Column5661","Column5662","Column5663","Column5664","Column5665","Column5666","Column5667","Column5668","Column5669","Column5670","Column5671","Column5672","Column5673","Column5674","Column5675","Column5676","Column5677","Column5678","Column5679","Column5680","Column5681","Column5682","Column5683","Column5684","Column5685","Column5686","Column5687","Column5688","Column5689","Column5690","Column5691","Column5692","Column5693","Column5694","Column5695","Column5696","Column5697","Column5698","Column5699","Column5700","Column5701","Column5702","Column5703","Column5704","Column5705","Column5706","Column5707","Column5708","Column5709","Column5710","Column5711","Column5712","Column5713","Column5714","Column5715","Column5716","Column5717","Column5718","Column5719","Column5720","Column5721","Column5722","Column5723","Column5724","Column5725","Column5726","Column5727","Column5728","Column5729","Column5730","Column5731","Column5732","Column5733","Column5734","Column5735","Column5736","Column5737","Column5738","Column5739","Column5740","Column5741","Column5742","Column5743","Column5744","Column5745","Column5746","Column5747","Column5748","Column5749","Column5750","Column5751","Column5752","Column5753","Column5754","Column5755","Column5756","Column5757","Column5758","Column5759","Column5760","Column5761","Column5762","Column5763","Column5764","Column5765","Column5766","Column5767","Column5768","Column5769","Column5770","Column5771","Column5772","Column5773","Column5774","Column5775","Column5776","Column5777","Column5778","Column5779","Column5780","Column5781","Column5782","Column5783","Column5784","Column5785","Column5786","Column5787","Column5788","Column5789","Column5790","Column5791","Column5792","Column5793","Column5794","Column5795","Column5796","Column5797","Column5798","Column5799","Column5800","Column5801","Column5802","Column5803","Column5804","Column5805","Column5806","Column5807","Column5808","Column5809","Column5810","Column5811","Column5812","Column5813","Column5814","Column5815","Column5816","Column5817","Column5818","Column5819","Column5820","Column5821","Column5822","Column5823","Column5824","Column5825","Column5826","Column5827","Column5828","Column5829","Column5830","Column5831","Column5832","Column5833","Column5834","Column5835","Column5836","Column5837","Column5838","Column5839","Column5840","Column5841","Column5842","Column5843","Column5844","Column5845","Column5846","Column5847","Column5848","Column5849","Column5850","Column5851","Column5852","Column5853","Column5854","Column5855","Column5856","Column5857","Column5858","Column5859","Column5860","Column5861","Column5862","Column5863","Column5864","Column5865","Column5866","Column5867","Column5868","Column5869","Column5870","Column5871","Column5872","Column5873","Column5874","Column5875","Column5876","Column5877","Column5878","Column5879","Column5880","Column5881","Column5882","Column5883","Column5884","Column5885","Column5886","Column5887","Column5888","Column5889","Column5890","Column5891","Column5892","Column5893","Column5894","Column5895","Column5896","Column5897","Column5898","Column5899","Column5900","Column5901","Column5902","Column5903","Column5904","Column5905","Column5906","Column5907","Column5908","Column5909","Column5910","Column5911","Column5912","Column5913","Column5914","Column5915","Column5916","Column5917","Column5918","Column5919","Column5920","Column5921","Column5922","Column5923","Column5924","Column5925","Column5926","Column5927","Column5928","Column5929","Column5930","Column5931","Column5932","Column5933","Column5934","Column5935","Column5936","Column5937","Column5938","Column5939","Column5940","Column5941","Column5942","Column5943","Column5944","Column5945","Column5946","Column5947","Column5948","Column5949","Column5950","Column5951","Column5952","Column5953","Column5954","Column5955","Column5956","Column5957","Column5958","Column5959","Column5960","Column5961","Column5962","Column5963","Column5964","Column5965","Column5966","Column5967","Column5968","Column5969","Column5970","Column5971","Column5972","Column5973","Column5974","Column5975","Column5976","Column5977","Column5978","Column5979","Column5980","Column5981","Column5982","Column5983","Column5984","Column5985","Column5986","Column5987","Column5988","Column5989","Column5990","Column5991","Column5992","Column5993","Column5994","Column5995","Column5996","Column5997","Column5998","Column5999","Column6000","Column6001","Column6002","Column6003","Column6004","Column6005","Column6006","Column6007","Column6008","Column6009","Column6010","Column6011","Column6012","Column6013","Column6014","Column6015","Column6016","Column6017","Column6018","Column6019","Column6020","Column6021","Column6022","Column6023","Column6024","Column6025","Column6026","Column6027","Column6028","Column6029","Column6030","Column6031","Column6032","Column6033","Column6034","Column6035","Column6036","Column6037","Column6038","Column6039","Column6040","Column6041","Column6042","Column6043","Column6044","Column6045","Column6046","Column6047","Column6048","Column6049","Column6050","Column6051","Column6052","Column6053","Column6054","Column6055","Column6056","Column6057","Column6058","Column6059","Column6060","Column6061","Column6062","Column6063","Column6064","Column6065","Column6066","Column6067","Column6068","Column6069","Column6070","Column6071","Column6072","Column6073","Column6074","Column6075","Column6076","Column6077","Column6078","Column6079","Column6080","Column6081","Column6082","Column6083","Column6084","Column6085","Column6086","Column6087","Column6088","Column6089","Column6090","Column6091","Column6092","Column6093","Column6094","Column6095","Column6096","Column6097","Column6098","Column6099","Column6100","Column6101","Column6102","Column6103","Column6104","Column6105","Column6106","Column6107","Column6108","Column6109","Column6110","Column6111","Column6112","Column6113","Column6114","Column6115","Column6116","Column6117","Column6118","Column6119","Column6120","Column6121","Column6122","Column6123","Column6124","Column6125","Column6126","Column6127","Column6128","Column6129","Column6130","Column6131","Column6132","Column6133","Column6134","Column6135","Column6136","Column6137","Column6138","Column6139","Column6140","Column6141","Column6142","Column6143","Column6144","Column6145","Column6146","Column6147","Column6148","Column6149","Column6150","Column6151","Column6152","Column6153","Column6154","Column6155","Column6156","Column6157","Column6158","Column6159","Column6160","Column6161","Column6162","Column6163","Column6164","Column6165","Column6166","Column6167","Column6168","Column6169","Column6170","Column6171","Column6172","Column6173","Column6174","Column6175","Column6176","Column6177","Column6178","Column6179","Column6180","Column6181","Column6182","Column6183","Column6184","Column6185","Column6186","Column6187","Column6188","Column6189","Column6190","Column6191","Column6192","Column6193","Column6194","Column6195","Column6196","Column6197","Column6198","Column6199","Column6200","Column6201","Column6202","Column6203","Column6204","Column6205","Column6206","Column6207","Column6208","Column6209","Column6210","Column6211","Column6212","Column6213","Column6214","Column6215","Column6216","Column6217","Column6218","Column6219","Column6220","Column6221","Column6222","Column6223","Column6224","Column6225","Column6226","Column6227","Column6228","Column6229","Column6230","Column6231","Column6232","Column6233","Column6234","Column6235","Column6236","Column6237","Column6238","Column6239","Column6240","Column6241","Column6242","Column6243","Column6244","Column6245","Column6246","Column6247","Column6248","Column6249","Column6250","Column6251","Column6252","Column6253","Column6254","Column6255","Column6256","Column6257","Column6258","Column6259","Column6260","Column6261","Column6262","Column6263","Column6264","Column6265","Column6266","Column6267","Column6268","Column6269","Column6270","Column6271","Column6272","Column6273","Column6274","Column6275","Column6276","Column6277","Column6278","Column6279","Column6280","Column6281","Column6282","Column6283","Column6284","Column6285","Column6286","Column6287","Column6288","Column6289","Column6290","Column6291","Column6292","Column6293","Column6294","Column6295","Column6296","Column6297","Column6298","Column6299","Column6300","Column6301","Column6302","Column6303","Column6304","Column6305","Column6306","Column6307","Column6308","Column6309","Column6310","Column6311","Column6312","Column6313","Column6314","Column6315","Column6316","Column6317","Column6318","Column6319","Column6320","Column6321","Column6322","Column6323","Column6324","Column6325","Column6326","Column6327","Column6328","Column6329","Column6330","Column6331","Column6332","Column6333","Column6334","Column6335","Column6336","Column6337","Column6338","Column6339","Column6340","Column6341","Column6342","Column6343","Column6344","Column6345","Column6346","Column6347","Column6348","Column6349","Column6350","Column6351","Column6352","Column6353","Column6354","Column6355","Column6356","Column6357","Column6358","Column6359","Column6360","Column6361","Column6362","Column6363","Column6364","Column6365","Column6366","Column6367","Column6368","Column6369","Column6370","Column6371","Column6372","Column6373","Column6374","Column6375","Column6376","Column6377","Column6378","Column6379","Column6380","Column6381","Column6382","Column6383","Column6384","Column6385","Column6386","Column6387","Column6388","Column6389","Column6390","Column6391","Column6392","Column6393","Column6394","Column6395","Column6396","Column6397","Column6398","Column6399","Column6400","Column6401","Column6402","Column6403","Column6404","Column6405","Column6406","Column6407","Column6408","Column6409","Column6410","Column6411","Column6412","Column6413","Column6414","Column6415","Column6416","Column6417","Column6418","Column6419","Column6420","Column6421","Column6422","Column6423","Column6424","Column6425","Column6426","Column6427","Column6428","Column6429","Column6430","Column6431","Column6432","Column6433","Column6434","Column6435","Column6436","Column6437","Column6438","Column6439","Column6440","Column6441","Column6442","Column6443","Column6444","Column6445","Column6446","Column6447","Column6448","Column6449","Column6450","Column6451","Column6452","Column6453","Column6454","Column6455","Column6456","Column6457","Column6458","Column6459","Column6460","Column6461","Column6462","Column6463","Column6464","Column6465","Column6466","Column6467","Column6468","Column6469","Column6470","Column6471","Column6472","Column6473","Column6474","Column6475","Column6476","Column6477","Column6478","Column6479","Column6480","Column6481","Column6482","Column6483","Column6484","Column6485","Column6486","Column6487","Column6488","Column6489","Column6490","Column6491","Column6492","Column6493","Column6494","Column6495","Column6496","Column6497","Column6498","Column6499","Column6500","Column6501","Column6502","Column6503","Column6504","Column6505","Column6506","Column6507","Column6508","Column6509","Column6510","Column6511","Column6512","Column6513","Column6514","Column6515","Column6516","Column6517","Column6518","Column6519","Column6520","Column6521","Column6522","Column6523","Column6524","Column6525","Column6526","Column6527","Column6528","Column6529","Column6530","Column6531","Column6532","Column6533","Column6534","Column6535","Column6536","Column6537","Column6538","Column6539","Column6540","Column6541","Column6542","Column6543","Column6544","Column6545","Column6546","Column6547","Column6548","Column6549","Column6550","Column6551","Column6552","Column6553","Column6554","Column6555","Column6556","Column6557","Column6558","Column6559","Column6560","Column6561","Column6562","Column6563","Column6564","Column6565","Column6566","Column6567","Column6568","Column6569","Column6570","Column6571","Column6572","Column6573","Column6574","Column6575","Column6576","Column6577","Column6578","Column6579","Column6580","Column6581","Column6582","Column6583","Column6584","Column6585","Column6586","Column6587","Column6588","Column6589","Column6590","Column6591","Column6592","Column6593","Column6594","Column6595","Column6596","Column6597","Column6598","Column6599","Column6600","Column6601","Column6602","Column6603","Column6604","Column6605","Column6606","Column6607","Column6608","Column6609","Column6610","Column6611","Column6612","Column6613","Column6614","Column6615","Column6616","Column6617","Column6618","Column6619","Column6620","Column6621","Column6622","Column6623","Column6624","Column6625","Column6626","Column6627","Column6628","Column6629","Column6630","Column6631","Column6632","Column6633","Column6634","Column6635","Column6636","Column6637","Column6638","Column6639","Column6640","Column6641","Column6642","Column6643","Column6644","Column6645","Column6646","Column6647","Column6648","Column6649","Column6650","Column6651","Column6652","Column6653","Column6654","Column6655","Column6656","Column6657","Column6658","Column6659","Column6660","Column6661","Column6662","Column6663","Column6664","Column6665","Column6666","Column6667","Column6668","Column6669","Column6670","Column6671","Column6672","Column6673","Column6674","Column6675","Column6676","Column6677","Column6678","Column6679","Column6680","Column6681","Column6682","Column6683","Column6684","Column6685","Column6686","Column6687","Column6688","Column6689","Column6690","Column6691","Column6692","Column6693","Column6694","Column6695","Column6696","Column6697","Column6698","Column6699","Column6700","Column6701","Column6702","Column6703","Column6704","Column6705","Column6706","Column6707","Column6708","Column6709","Column6710","Column6711","Column6712","Column6713","Column6714","Column6715","Column6716","Column6717","Column6718","Column6719","Column6720","Column6721","Column6722","Column6723","Column6724","Column6725","Column6726","Column6727","Column6728","Column6729","Column6730","Column6731","Column6732","Column6733","Column6734","Column6735","Column6736","Column6737","Column6738","Column6739","Column6740","Column6741","Column6742","Column6743","Column6744","Column6745","Column6746","Column6747","Column6748","Column6749","Column6750","Column6751","Column6752","Column6753","Column6754","Column6755","Column6756","Column6757","Column6758","Column6759","Column6760","Column6761","Column6762","Column6763","Column6764","Column6765","Column6766","Column6767","Column6768","Column6769","Column6770","Column6771","Column6772","Column6773","Column6774","Column6775","Column6776","Column6777","Column6778","Column6779","Column6780","Column6781","Column6782","Column6783","Column6784","Column6785","Column6786","Column6787","Column6788","Column6789","Column6790","Column6791","Column6792","Column6793","Column6794","Column6795","Column6796","Column6797","Column6798","Column6799","Column6800","Column6801","Column6802","Column6803","Column6804","Column6805","Column6806","Column6807","Column6808","Column6809","Column6810","Column6811","Column6812","Column6813","Column6814","Column6815","Column6816","Column6817","Column6818","Column6819","Column6820","Column6821","Column6822","Column6823","Column6824","Column6825","Column6826","Column6827","Column6828","Column6829","Column6830","Column6831","Column6832","Column6833","Column6834","Column6835","Column6836","Column6837","Column6838","Column6839","Column6840","Column6841","Column6842","Column6843","Column6844","Column6845","Column6846","Column6847","Column6848","Column6849","Column6850","Column6851","Column6852","Column6853","Column6854","Column6855","Column6856","Column6857","Column6858","Column6859","Column6860","Column6861","Column6862","Column6863","Column6864","Column6865","Column6866","Column6867","Column6868","Column6869","Column6870","Column6871","Column6872","Column6873","Column6874","Column6875","Column6876","Column6877","Column6878","Column6879","Column6880","Column6881","Column6882","Column6883","Column6884","Column6885","Column6886","Column6887","Column6888","Column6889","Column6890","Column6891","Column6892","Column6893","Column6894","Column6895","Column6896","Column6897","Column6898","Column6899","Column6900","Column6901","Column6902","Column6903","Column6904","Column6905","Column6906","Column6907","Column6908","Column6909","Column6910","Column6911","Column6912","Column6913","Column6914","Column6915","Column6916","Column6917","Column6918","Column6919","Column6920","Column6921","Column6922","Column6923","Column6924","Column6925","Column6926","Column6927","Column6928","Column6929","Column6930","Column6931","Column6932","Column6933","Column6934","Column6935","Column6936","Column6937","Column6938","Column6939","Column6940","Column6941","Column6942","Column6943","Column6944","Column6945","Column6946","Column6947","Column6948","Column6949","Column6950","Column6951","Column6952","Column6953","Column6954","Column6955","Column6956","Column6957","Column6958","Column6959","Column6960","Column6961","Column6962","Column6963","Column6964","Column6965","Column6966","Column6967","Column6968","Column6969","Column6970","Column6971","Column6972","Column6973","Column6974","Column6975","Column6976","Column6977","Column6978","Column6979","Column6980","Column6981","Column6982","Column6983","Column6984","Column6985","Column6986","Column6987","Column6988","Column6989","Column6990","Column6991","Column6992","Column6993","Column6994","Column6995","Column6996","Column6997","Column6998","Column6999","Column7000","Column7001","Column7002","Column7003","Column7004","Column7005","Column7006","Column7007","Column7008","Column7009","Column7010","Column7011","Column7012","Column7013","Column7014","Column7015","Column7016","Column7017","Column7018","Column7019","Column7020","Column7021","Column7022","Column7023","Column7024","Column7025","Column7026","Column7027","Column7028","Column7029","Column7030","Column7031","Column7032","Column7033","Column7034","Column7035","Column7036","Column7037","Column7038","Column7039","Column7040","Column7041","Column7042","Column7043","Column7044","Column7045","Column7046","Column7047","Column7048","Column7049","Column7050","Column7051","Column7052","Column7053","Column7054","Column7055","Column7056","Column7057","Column7058","Column7059","Column7060","Column7061","Column7062","Column7063","Column7064","Column7065","Column7066","Column7067","Column7068","Column7069","Column7070","Column7071","Column7072","Column7073","Column7074","Column7075","Column7076","Column7077","Column7078","Column7079","Column7080","Column7081","Column7082","Column7083","Column7084","Column7085","Column7086","Column7087","Column7088","Column7089","Column7090","Column7091","Column7092","Column7093","Column7094","Column7095","Column7096","Column7097","Column7098","Column7099","Column7100","Column7101","Column7102","Column7103","Column7104","Column7105","Column7106","Column7107","Column7108","Column7109","Column7110","Column7111","Column7112","Column7113","Column7114","Column7115","Column7116","Column7117","Column7118","Column7119","Column7120","Column7121","Column7122","Column7123","Column7124","Column7125","Column7126","Column7127","Column7128","Column7129","Column7130","Column7131","Column7132","Column7133","Column7134","Column7135","Column7136","Column7137","Column7138","Column7139","Column7140","Column7141","Column7142","Column7143","Column7144","Column7145","Column7146","Column7147","Column7148","Column7149","Column7150","Column7151","Column7152","Column7153","Column7154","Column7155","Column7156","Column7157","Column7158","Column7159","Column7160","Column7161","Column7162","Column7163","Column7164","Column7165","Column7166","Column7167","Column7168","Column7169","Column7170","Column7171","Column7172","Column7173","Column7174","Column7175","Column7176","Column7177","Column7178","Column7179","Column7180","Column7181","Column7182","Column7183","Column7184","Column7185","Column7186","Column7187","Column7188","Column7189","Column7190","Column7191","Column7192","Column7193","Column7194","Column7195","Column7196","Column7197","Column7198","Column7199","Column7200","Column7201","Column7202","Column7203","Column7204","Column7205","Column7206","Column7207","Column7208","Column7209","Column7210","Column7211","Column7212","Column7213","Column7214","Column7215","Column7216","Column7217","Column7218","Column7219","Column7220","Column7221","Column7222","Column7223","Column7224","Column7225","Column7226","Column7227","Column7228","Column7229","Column7230","Column7231","Column7232","Column7233","Column7234","Column7235","Column7236","Column7237","Column7238","Column7239","Column7240","Column7241","Column7242","Column7243","Column7244","Column7245","Column7246","Column7247","Column7248","Column7249","Column7250","Column7251","Column7252","Column7253","Column7254","Column7255","Column7256","Column7257","Column7258","Column7259","Column7260","Column7261","Column7262","Column7263","Column7264","Column7265","Column7266","Column7267","Column7268","Column7269","Column7270","Column7271","Column7272","Column7273","Column7274","Column7275","Column7276","Column7277","Column7278","Column7279","Column7280","Column7281","Column7282","Column7283","Column7284","Column7285","Column7286","Column7287","Column7288","Column7289","Column7290","Column7291","Column7292","Column7293","Column7294","Column7295","Column7296","Column7297","Column7298","Column7299","Column7300","Column7301","Column7302","Column7303","Column7304","Column7305","Column7306","Column7307","Column7308","Column7309","Column7310","Column7311","Column7312","Column7313","Column7314","Column7315","Column7316","Column7317","Column7318","Column7319","Column7320","Column7321","Column7322","Column7323","Column7324","Column7325","Column7326","Column7327","Column7328","Column7329","Column7330","Column7331","Column7332","Column7333","Column7334","Column7335","Column7336","Column7337","Column7338","Column7339","Column7340","Column7341","Column7342","Column7343","Column7344","Column7345","Column7346","Column7347","Column7348","Column7349","Column7350","Column7351","Column7352","Column7353","Column7354","Column7355","Column7356","Column7357","Column7358","Column7359","Column7360","Column7361","Column7362","Column7363","Column7364","Column7365","Column7366","Column7367","Column7368","Column7369","Column7370","Column7371","Column7372","Column7373","Column7374","Column7375","Column7376","Column7377","Column7378","Column7379","Column7380","Column7381","Column7382","Column7383","Column7384","Column7385","Column7386","Column7387","Column7388","Column7389","Column7390","Column7391","Column7392","Column7393","Column7394","Column7395","Column7396","Column7397","Column7398","Column7399","Column7400","Column7401","Column7402","Column7403","Column7404","Column7405","Column7406","Column7407","Column7408","Column7409","Column7410","Column7411","Column7412","Column7413","Column7414","Column7415","Column7416","Column7417","Column7418","Column7419","Column7420","Column7421","Column7422","Column7423","Column7424","Column7425","Column7426","Column7427","Column7428","Column7429","Column7430","Column7431","Column7432","Column7433","Column7434","Column7435","Column7436","Column7437","Column7438","Column7439","Column7440","Column7441","Column7442","Column7443","Column7444","Column7445","Column7446","Column7447","Column7448","Column7449","Column7450","Column7451","Column7452","Column7453","Column7454","Column7455","Column7456","Column7457","Column7458","Column7459","Column7460","Column7461","Column7462","Column7463","Column7464","Column7465","Column7466","Column7467","Column7468","Column7469","Column7470","Column7471","Column7472","Column7473","Column7474","Column7475","Column7476","Column7477","Column7478","Column7479","Column7480","Column7481","Column7482","Column7483","Column7484","Column7485","Column7486","Column7487","Column7488","Column7489","Column7490","Column7491","Column7492","Column7493","Column7494","Column7495","Column7496","Column7497","Column7498","Column7499","Column7500","Column7501","Column7502","Column7503","Column7504","Column7505","Column7506","Column7507","Column7508","Column7509","Column7510","Column7511","Column7512","Column7513","Column7514","Column7515","Column7516","Column7517","Column7518","Column7519","Column7520","Column7521","Column7522","Column7523","Column7524","Column7525","Column7526","Column7527","Column7528","Column7529","Column7530","Column7531","Column7532","Column7533","Column7534","Column7535","Column7536","Column7537","Column7538","Column7539","Column7540","Column7541","Column7542","Column7543","Column7544","Column7545","Column7546","Column7547","Column7548","Column7549","Column7550","Column7551","Column7552","Column7553","Column7554","Column7555","Column7556","Column7557","Column7558","Column7559","Column7560","Column7561","Column7562","Column7563","Column7564","Column7565","Column7566","Column7567","Column7568","Column7569","Column7570","Column7571","Column7572","Column7573","Column7574","Column7575","Column7576","Column7577","Column7578","Column7579","Column7580","Column7581","Column7582","Column7583","Column7584","Column7585","Column7586","Column7587","Column7588","Column7589","Column7590","Column7591","Column7592","Column7593","Column7594","Column7595","Column7596","Column7597","Column7598","Column7599","Column7600","Column7601","Column7602","Column7603","Column7604","Column7605","Column7606","Column7607","Column7608","Column7609","Column7610","Column7611","Column7612","Column7613","Column7614","Column7615","Column7616","Column7617","Column7618","Column7619","Column7620","Column7621","Column7622","Column7623","Column7624","Column7625","Column7626","Column7627","Column7628","Column7629","Column7630","Column7631","Column7632","Column7633","Column7634","Column7635","Column7636","Column7637","Column7638","Column7639","Column7640","Column7641","Column7642","Column7643","Column7644","Column7645","Column7646","Column7647","Column7648","Column7649","Column7650","Column7651","Column7652","Column7653","Column7654","Column7655","Column7656","Column7657","Column7658","Column7659","Column7660","Column7661","Column7662","Column7663","Column7664","Column7665","Column7666","Column7667","Column7668","Column7669","Column7670","Column7671","Column7672","Column7673","Column7674","Column7675","Column7676","Column7677","Column7678","Column7679","Column7680","Column7681","Column7682","Column7683","Column7684","Column7685","Column7686","Column7687","Column7688","Column7689","Column7690","Column7691","Column7692","Column7693","Column7694","Column7695","Column7696","Column7697","Column7698","Column7699","Column7700","Column7701","Column7702","Column7703","Column7704","Column7705","Column7706","Column7707","Column7708","Column7709","Column7710","Column7711","Column7712","Column7713","Column7714","Column7715","Column7716","Column7717","Column7718","Column7719","Column7720","Column7721","Column7722","Column7723","Column7724","Column7725","Column7726","Column7727","Column7728","Column7729","Column7730","Column7731","Column7732","Column7733","Column7734","Column7735","Column7736","Column7737","Column7738","Column7739","Column7740","Column7741","Column7742","Column7743","Column7744","Column7745","Column7746","Column7747","Column7748","Column7749","Column7750","Column7751","Column7752","Column7753","Column7754","Column7755","Column7756","Column7757","Column7758","Column7759","Column7760","Column7761","Column7762","Column7763","Column7764","Column7765","Column7766","Column7767","Column7768","Column7769","Column7770","Column7771","Column7772","Column7773","Column7774","Column7775","Column7776","Column7777","Column7778","Column7779","Column7780","Column7781","Column7782","Column7783","Column7784","Column7785","Column7786","Column7787","Column7788","Column7789","Column7790","Column7791","Column7792","Column7793","Column7794","Column7795","Column7796","Column7797","Column7798","Column7799","Column7800","Column7801","Column7802","Column7803","Column7804","Column7805","Column7806","Column7807","Column7808","Column7809","Column7810","Column7811","Column7812","Column7813","Column7814","Column7815","Column7816","Column7817","Column7818","Column7819","Column7820","Column7821","Column7822","Column7823","Column7824","Column7825","Column7826","Column7827","Column7828","Column7829","Column7830","Column7831","Column7832","Column7833","Column7834","Column7835","Column7836","Column7837","Column7838","Column7839","Column7840","Column7841","Column7842","Column7843","Column7844","Column7845","Column7846","Column7847","Column7848","Column7849","Column7850","Column7851","Column7852","Column7853","Column7854","Column7855","Column7856","Column7857","Column7858","Column7859","Column7860","Column7861","Column7862","Column7863","Column7864","Column7865","Column7866","Column7867","Column7868","Column7869","Column7870","Column7871","Column7872","Column7873","Column7874","Column7875","Column7876","Column7877","Column7878","Column7879","Column7880","Column7881","Column7882","Column7883","Column7884","Column7885","Column7886","Column7887","Column7888","Column7889","Column7890","Column7891","Column7892","Column7893","Column7894","Column7895","Column7896","Column7897","Column7898","Column7899","Column7900","Column7901","Column7902","Column7903","Column7904","Column7905","Column7906","Column7907","Column7908","Column7909","Column7910","Column7911","Column7912","Column7913","Column7914","Column7915","Column7916","Column7917","Column7918","Column7919","Column7920","Column7921","Column7922","Column7923","Column7924","Column7925","Column7926","Column7927","Column7928","Column7929","Column7930","Column7931","Column7932","Column7933","Column7934","Column7935","Column7936","Column7937","Column7938","Column7939","Column7940","Column7941","Column7942","Column7943","Column7944","Column7945","Column7946","Column7947","Column7948","Column7949","Column7950","Column7951","Column7952","Column7953","Column7954","Column7955","Column7956","Column7957","Column7958","Column7959","Column7960","Column7961","Column7962","Column7963","Column7964","Column7965","Column7966","Column7967","Column7968","Column7969","Column7970","Column7971","Column7972","Column7973","Column7974","Column7975","Column7976","Column7977","Column7978","Column7979","Column7980","Column7981","Column7982","Column7983","Column7984","Column7985","Column7986","Column7987","Column7988","Column7989","Column7990","Column7991","Column7992","Column7993","Column7994","Column7995","Column7996","Column7997","Column7998","Column7999","Column8000","Column8001","Column8002","Column8003","Column8004","Column8005","Column8006","Column8007","Column8008","Column8009","Column8010","Column8011","Column8012","Column8013","Column8014","Column8015","Column8016","Column8017","Column8018","Column8019","Column8020","Column8021","Column8022","Column8023","Column8024","Column8025","Column8026","Column8027","Column8028","Column8029","Column8030","Column8031","Column8032","Column8033","Column8034","Column8035","Column8036","Column8037","Column8038","Column8039","Column8040","Column8041","Column8042","Column8043","Column8044","Column8045","Column8046","Column8047","Column8048","Column8049","Column8050","Column8051","Column8052","Column8053","Column8054","Column8055","Column8056","Column8057","Column8058","Column8059","Column8060","Column8061","Column8062","Column8063","Column8064","Column8065","Column8066","Column8067","Column8068","Column8069","Column8070","Column8071","Column8072","Column8073","Column8074","Column8075","Column8076","Column8077","Column8078","Column8079","Column8080","Column8081","Column8082","Column8083","Column8084","Column8085","Column8086","Column8087","Column8088","Column8089","Column8090","Column8091","Column8092","Column8093","Column8094","Column8095","Column8096","Column8097","Column8098","Column8099","Column8100","Column8101","Column8102","Column8103","Column8104","Column8105","Column8106","Column8107","Column8108","Column8109","Column8110","Column8111","Column8112","Column8113","Column8114","Column8115","Column8116","Column8117","Column8118","Column8119","Column8120","Column8121","Column8122","Column8123","Column8124","Column8125","Column8126","Column8127","Column8128","Column8129","Column8130","Column8131","Column8132","Column8133","Column8134","Column8135","Column8136","Column8137","Column8138","Column8139","Column8140","Column8141","Column8142","Column8143","Column8144","Column8145","Column8146","Column8147","Column8148","Column8149","Column8150","Column8151","Column8152","Column8153","Column8154","Column8155","Column8156","Column8157","Column8158","Column8159","Column8160","Column8161","Column8162","Column8163","Column8164","Column8165","Column8166","Column8167","Column8168","Column8169","Column8170","Column8171","Column8172","Column8173","Column8174","Column8175","Column8176","Column8177","Column8178","Column8179","Column8180","Column8181","Column8182","Column8183","Column8184","Column8185","Column8186","Column8187","Column8188","Column8189","Column8190","Column8191","Column8192","Column8193","Column8194","Column8195","Column8196","Column8197","Column8198","Column8199","Column8200","Column8201","Column8202","Column8203","Column8204","Column8205","Column8206","Column8207","Column8208","Column8209","Column8210","Column8211","Column8212","Column8213","Column8214","Column8215","Column8216","Column8217","Column8218","Column8219","Column8220","Column8221","Column8222","Column8223","Column8224","Column8225","Column8226","Column8227","Column8228","Column8229","Column8230","Column8231","Column8232","Column8233","Column8234","Column8235","Column8236","Column8237","Column8238","Column8239","Column8240","Column8241","Column8242","Column8243","Column8244","Column8245","Column8246","Column8247","Column8248","Column8249","Column8250","Column8251","Column8252","Column8253","Column8254","Column8255","Column8256","Column8257","Column8258","Column8259","Column8260","Column8261","Column8262","Column8263","Column8264","Column8265","Column8266","Column8267","Column8268","Column8269","Column8270","Column8271","Column8272","Column8273","Column8274","Column8275","Column8276","Column8277","Column8278","Column8279","Column8280","Column8281","Column8282","Column8283","Column8284","Column8285","Column8286","Column8287","Column8288","Column8289","Column8290","Column8291","Column8292","Column8293","Column8294","Column8295","Column8296","Column8297","Column8298","Column8299","Column8300","Column8301","Column8302","Column8303","Column8304","Column8305","Column8306","Column8307","Column8308","Column8309","Column8310","Column8311","Column8312","Column8313","Column8314","Column8315","Column8316","Column8317","Column8318","Column8319","Column8320","Column8321","Column8322","Column8323","Column8324","Column8325","Column8326","Column8327","Column8328","Column8329","Column8330","Column8331","Column8332","Column8333","Column8334","Column8335","Column8336","Column8337","Column8338","Column8339","Column8340","Column8341","Column8342","Column8343","Column8344","Column8345","Column8346","Column8347","Column8348","Column8349","Column8350","Column8351","Column8352","Column8353","Column8354","Column8355","Column8356","Column8357","Column8358","Column8359","Column8360","Column8361","Column8362","Column8363","Column8364","Column8365","Column8366","Column8367","Column8368","Column8369","Column8370","Column8371","Column8372","Column8373","Column8374","Column8375","Column8376","Column8377","Column8378","Column8379","Column8380","Column8381","Column8382","Column8383","Column8384","Column8385","Column8386","Column8387","Column8388","Column8389","Column8390","Column8391","Column8392","Column8393","Column8394","Column8395","Column8396","Column8397","Column8398","Column8399","Column8400","Column8401","Column8402","Column8403","Column8404","Column8405","Column8406","Column8407","Column8408","Column8409","Column8410","Column8411","Column8412","Column8413","Column8414","Column8415","Column8416","Column8417","Column8418","Column8419","Column8420","Column8421","Column8422","Column8423","Column8424","Column8425","Column8426","Column8427","Column8428","Column8429","Column8430","Column8431","Column8432","Column8433","Column8434","Column8435","Column8436","Column8437","Column8438","Column8439","Column8440","Column8441","Column8442","Column8443","Column8444","Column8445","Column8446","Column8447","Column8448","Column8449","Column8450","Column8451","Column8452","Column8453","Column8454","Column8455","Column8456","Column8457","Column8458","Column8459","Column8460","Column8461","Column8462","Column8463","Column8464","Column8465","Column8466","Column8467","Column8468","Column8469","Column8470","Column8471","Column8472","Column8473","Column8474","Column8475","Column8476","Column8477","Column8478","Column8479","Column8480","Column8481","Column8482","Column8483","Column8484","Column8485","Column8486","Column8487","Column8488","Column8489","Column8490","Column8491","Column8492","Column8493","Column8494","Column8495","Column8496","Column8497","Column8498","Column8499","Column8500","Column8501","Column8502","Column8503","Column8504","Column8505","Column8506","Column8507","Column8508","Column8509","Column8510","Column8511","Column8512","Column8513","Column8514","Column8515","Column8516","Column8517","Column8518","Column8519","Column8520","Column8521","Column8522","Column8523","Column8524","Column8525","Column8526","Column8527","Column8528","Column8529","Column8530","Column8531","Column8532","Column8533","Column8534","Column8535","Column8536","Column8537","Column8538","Column8539","Column8540","Column8541","Column8542","Column8543","Column8544","Column8545","Column8546","Column8547","Column8548","Column8549","Column8550","Column8551","Column8552","Column8553","Column8554","Column8555","Column8556","Column8557","Column8558","Column8559","Column8560","Column8561","Column8562","Column8563","Column8564","Column8565","Column8566","Column8567","Column8568","Column8569","Column8570","Column8571","Column8572","Column8573","Column8574","Column8575","Column8576","Column8577","Column8578","Column8579","Column8580","Column8581","Column8582","Column8583","Column8584","Column8585","Column8586","Column8587","Column8588","Column8589","Column8590","Column8591","Column8592","Column8593","Column8594","Column8595","Column8596","Column8597","Column8598","Column8599","Column8600","Column8601","Column8602","Column8603","Column8604","Column8605","Column8606","Column8607","Column8608","Column8609","Column8610","Column8611","Column8612","Column8613","Column8614","Column8615","Column8616","Column8617","Column8618","Column8619","Column8620","Column8621","Column8622","Column8623","Column8624","Column8625","Column8626","Column8627","Column8628","Column8629","Column8630","Column8631","Column8632","Column8633","Column8634","Column8635","Column8636","Column8637","Column8638","Column8639","Column8640","Column8641","Column8642","Column8643","Column8644","Column8645","Column8646","Column8647","Column8648","Column8649","Column8650","Column8651","Column8652","Column8653","Column8654","Column8655","Column8656","Column8657","Column8658","Column8659","Column8660","Column8661","Column8662","Column8663","Column8664","Column8665","Column8666","Column8667","Column8668","Column8669","Column8670","Column8671","Column8672","Column8673","Column8674","Column8675","Column8676","Column8677","Column8678","Column8679","Column8680","Column8681","Column8682","Column8683","Column8684","Column8685","Column8686","Column8687","Column8688","Column8689","Column8690","Column8691","Column8692","Column8693","Column8694","Column8695","Column8696","Column8697","Column8698","Column8699","Column8700","Column8701","Column8702","Column8703","Column8704","Column8705","Column8706","Column8707","Column8708","Column8709","Column8710","Column8711","Column8712","Column8713","Column8714","Column8715","Column8716","Column8717","Column8718","Column8719","Column8720","Column8721","Column8722","Column8723","Column8724","Column8725","Column8726","Column8727","Column8728","Column8729","Column8730","Column8731","Column8732","Column8733","Column8734","Column8735","Column8736","Column8737","Column8738","Column8739","Column8740","Column8741","Column8742","Column8743","Column8744","Column8745","Column8746","Column8747","Column8748","Column8749","Column8750","Column8751","Column8752","Column8753","Column8754","Column8755","Column8756","Column8757","Column8758","Column8759","Column8760","Column8761","Column8762","Column8763","Column8764","Column8765","Column8766","Column8767","Column8768","Column8769","Column8770","Column8771","Column8772","Column8773","Column8774","Column8775","Column8776","Column8777","Column8778","Column8779","Column8780","Column8781","Column8782","Column8783","Column8784","Column8785","Column8786","Column8787","Column8788","Column8789","Column8790","Column8791","Column8792","Column8793","Column8794","Column8795","Column8796","Column8797","Column8798","Column8799","Column8800","Column8801","Column8802","Column8803","Column8804","Column8805","Column8806","Column8807","Column8808","Column8809","Column8810","Column8811","Column8812","Column8813","Column8814","Column8815","Column8816","Column8817","Column8818","Column8819","Column8820","Column8821","Column8822","Column8823","Column8824","Column8825","Column8826","Column8827","Column8828","Column8829","Column8830","Column8831","Column8832","Column8833","Column8834","Column8835","Column8836","Column8837","Column8838","Column8839","Column8840","Column8841","Column8842","Column8843","Column8844","Column8845","Column8846","Column8847","Column8848","Column8849","Column8850","Column8851","Column8852","Column8853","Column8854","Column8855","Column8856","Column8857","Column8858","Column8859","Column8860","Column8861","Column8862","Column8863","Column8864","Column8865","Column8866","Column8867","Column8868","Column8869","Column8870","Column8871","Column8872","Column8873","Column8874","Column8875","Column8876","Column8877","Column8878","Column8879","Column8880","Column8881","Column8882","Column8883","Column8884","Column8885","Column8886","Column8887","Column8888","Column8889","Column8890","Column8891","Column8892","Column8893","Column8894","Column8895","Column8896","Column8897","Column8898","Column8899","Column8900","Column8901","Column8902","Column8903","Column8904","Column8905","Column8906","Column8907","Column8908","Column8909","Column8910","Column8911","Column8912","Column8913","Column8914","Column8915","Column8916","Column8917","Column8918","Column8919","Column8920","Column8921","Column8922","Column8923","Column8924","Column8925","Column8926","Column8927","Column8928","Column8929","Column8930","Column8931","Column8932","Column8933","Column8934","Column8935","Column8936","Column8937","Column8938","Column8939","Column8940","Column8941","Column8942","Column8943","Column8944","Column8945","Column8946","Column8947","Column8948","Column8949","Column8950","Column8951","Column8952","Column8953","Column8954","Column8955","Column8956","Column8957","Column8958","Column8959","Column8960","Column8961","Column8962","Column8963","Column8964","Column8965","Column8966","Column8967","Column8968","Column8969","Column8970","Column8971","Column8972","Column8973","Column8974","Column8975","Column8976","Column8977","Column8978","Column8979","Column8980","Column8981","Column8982","Column8983","Column8984","Column8985","Column8986","Column8987","Column8988","Column8989","Column8990","Column8991","Column8992","Column8993","Column8994","Column8995","Column8996","Column8997","Column8998","Column8999","Column9000","Column9001","Column9002","Column9003","Column9004","Column9005","Column9006","Column9007","Column9008","Column9009","Column9010","Column9011","Column9012","Column9013","Column9014","Column9015","Column9016","Column9017","Column9018","Column9019","Column9020","Column9021","Column9022","Column9023","Column9024","Column9025","Column9026","Column9027","Column9028","Column9029","Column9030","Column9031","Column9032","Column9033","Column9034","Column9035","Column9036","Column9037","Column9038","Column9039","Column9040","Column9041","Column9042","Column9043","Column9044","Column9045","Column9046","Column9047","Column9048","Column9049","Column9050","Column9051","Column9052","Column9053","Column9054","Column9055","Column9056","Column9057","Column9058","Column9059","Column9060","Column9061","Column9062","Column9063","Column9064","Column9065","Column9066","Column9067","Column9068","Column9069","Column9070","Column9071","Column9072","Column9073","Column9074","Column9075","Column9076","Column9077","Column9078","Column9079","Column9080","Column9081","Column9082","Column9083","Column9084","Column9085","Column9086","Column9087","Column9088","Column9089","Column9090","Column9091","Column9092","Column9093","Column9094","Column9095","Column9096","Column9097","Column9098","Column9099","Column9100","Column9101","Column9102","Column9103","Column9104","Column9105","Column9106","Column9107","Column9108","Column9109","Column9110","Column9111","Column9112","Column9113","Column9114","Column9115","Column9116","Column9117","Column9118","Column9119","Column9120","Column9121","Column9122","Column9123","Column9124","Column9125","Column9126","Column9127","Column9128","Column9129","Column9130","Column9131","Column9132","Column9133","Column9134","Column9135","Column9136","Column9137","Column9138","Column9139","Column9140","Column9141","Column9142","Column9143","Column9144","Column9145","Column9146","Column9147","Column9148","Column9149","Column9150","Column9151","Column9152","Column9153","Column9154","Column9155","Column9156","Column9157","Column9158","Column9159","Column9160","Column9161","Column9162","Column9163","Column9164","Column9165","Column9166","Column9167","Column9168","Column9169","Column9170","Column9171","Column9172","Column9173","Column9174","Column9175","Column9176","Column9177","Column9178","Column9179","Column9180","Column9181","Column9182","Column9183","Column9184","Column9185","Column9186","Column9187","Column9188","Column9189","Column9190","Column9191","Column9192","Column9193","Column9194","Column9195","Column9196","Column9197","Column9198","Column9199","Column9200","Column9201","Column9202","Column9203","Column9204","Column9205","Column9206","Column9207","Column9208","Column9209","Column9210","Column9211","Column9212","Column9213","Column9214","Column9215","Column9216","Column9217","Column9218","Column9219","Column9220","Column9221","Column9222","Column9223","Column9224","Column9225","Column9226","Column9227","Column9228","Column9229","Column9230","Column9231","Column9232","Column9233","Column9234","Column9235","Column9236","Column9237","Column9238","Column9239","Column9240","Column9241","Column9242","Column9243","Column9244","Column9245","Column9246","Column9247","Column9248","Column9249","Column9250","Column9251","Column9252","Column9253","Column9254","Column9255","Column9256","Column9257","Column9258","Column9259","Column9260","Column9261","Column9262","Column9263","Column9264","Column9265","Column9266","Column9267","Column9268","Column9269","Column9270","Column9271","Column9272","Column9273","Column9274","Column9275","Column9276","Column9277","Column9278","Column9279","Column9280","Column9281","Column9282","Column9283","Column9284","Column9285","Column9286","Column9287","Column9288","Column9289","Column9290","Column9291","Column9292","Column9293","Column9294","Column9295","Column9296","Column9297","Column9298","Column9299","Column9300","Column9301","Column9302","Column9303","Column9304","Column9305","Column9306","Column9307","Column9308","Column9309","Column9310","Column9311","Column9312","Column9313","Column9314","Column9315","Column9316","Column9317","Column9318","Column9319","Column9320","Column9321","Column9322","Column9323","Column9324","Column9325","Column9326","Column9327","Column9328","Column9329","Column9330","Column9331","Column9332","Column9333","Column9334","Column9335","Column9336","Column9337","Column9338","Column9339","Column9340","Column9341","Column9342","Column9343","Column9344","Column9345","Column9346","Column9347","Column9348","Column9349","Column9350","Column9351","Column9352","Column9353","Column9354","Column9355","Column9356","Column9357","Column9358","Column9359","Column9360","Column9361","Column9362","Column9363","Column9364","Column9365","Column9366","Column9367","Column9368","Column9369","Column9370","Column9371","Column9372","Column9373","Column9374","Column9375","Column9376","Column9377","Column9378","Column9379","Column9380","Column9381","Column9382","Column9383","Column9384","Column9385","Column9386","Column9387","Column9388","Column9389","Column9390","Column9391","Column9392","Column9393","Column9394","Column9395","Column9396","Column9397","Column9398","Column9399","Column9400","Column9401","Column9402","Column9403","Column9404","Column9405","Column9406","Column9407","Column9408","Column9409","Column9410","Column9411","Column9412","Column9413","Column9414","Column9415","Column9416","Column9417","Column9418","Column9419","Column9420","Column9421","Column9422","Column9423","Column9424","Column9425","Column9426","Column9427","Column9428","Column9429","Column9430","Column9431","Column9432","Column9433","Column9434","Column9435","Column9436","Column9437","Column9438","Column9439","Column9440","Column9441","Column9442","Column9443","Column9444","Column9445","Column9446","Column9447","Column9448","Column9449","Column9450","Column9451","Column9452","Column9453","Column9454","Column9455","Column9456","Column9457","Column9458","Column9459","Column9460","Column9461","Column9462","Column9463","Column9464","Column9465","Column9466","Column9467","Column9468","Column9469","Column9470","Column9471","Column9472","Column9473","Column9474","Column9475","Column9476","Column9477","Column9478","Column9479","Column9480","Column9481","Column9482","Column9483","Column9484","Column9485","Column9486","Column9487","Column9488","Column9489","Column9490","Column9491","Column9492","Column9493","Column9494","Column9495","Column9496","Column9497","Column9498","Column9499","Column9500","Column9501","Column9502","Column9503","Column9504","Column9505","Column9506","Column9507","Column9508","Column9509","Column9510","Column9511","Column9512","Column9513","Column9514","Column9515","Column9516","Column9517","Column9518","Column9519","Column9520","Column9521","Column9522","Column9523","Column9524","Column9525","Column9526","Column9527","Column9528","Column9529","Column9530","Column9531","Column9532","Column9533","Column9534","Column9535","Column9536","Column9537","Column9538","Column9539","Column9540","Column9541","Column9542","Column9543","Column9544","Column9545","Column9546","Column9547","Column9548","Column9549","Column9550","Column9551","Column9552","Column9553","Column9554","Column9555","Column9556","Column9557","Column9558","Column9559","Column9560","Column9561","Column9562","Column9563","Column9564","Column9565","Column9566","Column9567","Column9568","Column9569","Column9570","Column9571","Column9572","Column9573","Column9574","Column9575","Column9576","Column9577","Column9578","Column9579","Column9580","Column9581","Column9582","Column9583","Column9584","Column9585","Column9586","Column9587","Column9588","Column9589","Column9590","Column9591","Column9592","Column9593","Column9594","Column9595","Column9596","Column9597","Column9598","Column9599","Column9600","Column9601","Column9602","Column9603","Column9604","Column9605","Column9606","Column9607","Column9608","Column9609","Column9610","Column9611","Column9612","Column9613","Column9614","Column9615","Column9616","Column9617","Column9618","Column9619","Column9620","Column9621","Column9622","Column9623","Column9624","Column9625","Column9626","Column9627","Column9628","Column9629","Column9630","Column9631","Column9632","Column9633","Column9634","Column9635","Column9636","Column9637","Column9638","Column9639","Column9640","Column9641","Column9642","Column9643","Column9644","Column9645","Column9646","Column9647","Column9648","Column9649","Column9650","Column9651","Column9652","Column9653","Column9654","Column9655","Column9656","Column9657","Column9658","Column9659","Column9660","Column9661","Column9662","Column9663","Column9664","Column9665","Column9666","Column9667","Column9668","Column9669","Column9670","Column9671","Column9672","Column9673","Column9674","Column9675","Column9676","Column9677","Column9678","Column9679","Column9680","Column9681","Column9682","Column9683","Column9684","Column9685","Column9686","Column9687","Column9688","Column9689","Column9690","Column9691","Column9692","Column9693","Column9694","Column9695","Column9696","Column9697","Column9698","Column9699","Column9700","Column9701","Column9702","Column9703","Column9704","Column9705","Column9706","Column9707","Column9708","Column9709","Column9710","Column9711","Column9712","Column9713","Column9714","Column9715","Column9716","Column9717","Column9718","Column9719","Column9720","Column9721","Column9722","Column9723","Column9724","Column9725","Column9726","Column9727","Column9728","Column9729","Column9730","Column9731","Column9732","Column9733","Column9734","Column9735","Column9736","Column9737","Column9738","Column9739","Column9740","Column9741","Column9742","Column9743","Column9744","Column9745","Column9746","Column9747","Column9748","Column9749","Column9750","Column9751","Column9752","Column9753","Column9754","Column9755","Column9756","Column9757","Column9758","Column9759","Column9760","Column9761","Column9762","Column9763","Column9764","Column9765","Column9766","Column9767","Column9768","Column9769","Column9770","Column9771","Column9772","Column9773","Column9774","Column9775","Column9776","Column9777","Column9778","Column9779","Column9780","Column9781","Column9782","Column9783","Column9784","Column9785","Column9786","Column9787","Column9788","Column9789","Column9790","Column9791","Column9792","Column9793","Column9794","Column9795","Column9796","Column9797","Column9798","Column9799","Column9800","Column9801","Column9802","Column9803","Column9804","Column9805","Column9806","Column9807","Column9808","Column9809","Column9810","Column9811","Column9812","Column9813","Column9814","Column9815","Column9816","Column9817","Column9818","Column9819","Column9820","Column9821","Column9822","Column9823","Column9824","Column9825","Column9826","Column9827","Column9828","Column9829","Column9830","Column9831","Column9832","Column9833","Column9834","Column9835","Column9836","Column9837","Column9838","Column9839","Column9840","Column9841","Column9842","Column9843","Column9844","Column9845","Column9846","Column9847","Column9848","Column9849","Column9850","Column9851","Column9852","Column9853","Column9854","Column9855","Column9856","Column9857","Column9858","Column9859","Column9860","Column9861","Column9862","Column9863","Column9864","Column9865","Column9866","Column9867","Column9868","Column9869","Column9870","Column9871","Column9872","Column9873","Column9874","Column9875","Column9876","Column9877","Column9878","Column9879","Column9880","Column9881","Column9882","Column9883","Column9884","Column9885","Column9886","Column9887","Column9888","Column9889","Column9890","Column9891","Column9892","Column9893","Column9894","Column9895","Column9896","Column9897","Column9898","Column9899","Column9900","Column9901","Column9902","Column9903","Column9904","Column9905","Column9906","Column9907","Column9908","Column9909","Column9910","Column9911","Column9912","Column9913","Column9914","Column9915","Column9916","Column9917","Column9918","Column9919","Column9920","Column9921","Column9922","Column9923","Column9924","Column9925","Column9926","Column9927","Column9928","Column9929","Column9930","Column9931","Column9932","Column9933","Column9934","Column9935","Column9936","Column9937","Column9938","Column9939","Column9940","Column9941","Column9942","Column9943","Column9944","Column9945","Column9946","Column9947","Column9948","Column9949","Column9950","Column9951","Column9952","Column9953","Column9954","Column9955","Column9956","Column9957","Column9958","Column9959","Column9960","Column9961","Column9962","Column9963","Column9964","Column9965","Column9966","Column9967","Column9968","Column9969","Column9970","Column9971","Column9972","Column9973","Column9974","Column9975","Column9976","Column9977","Column9978","Column9979","Column9980","Column9981","Column9982","Column9983","Column9984","Column9985","Column9986","Column9987","Column9988","Column9989","Column9990","Column9991","Column9992","Column9993","Column9994","Column9995","Column9996","Column9997","Column9998","Column9999","Column10000","Column10001","Column10002","Column10003","Column10004","Column10005","Column10006","Column10007","Column10008","Column10009","Column10010","Column10011","Column10012","Column10013","Column10014","Column10015","Column10016","Column10017","Column10018","Column10019","Column10020","Column10021","Column10022","Column10023","Column10024","Column10025","Column10026","Column10027","Column10028","Column10029","Column10030","Column10031","Column10032","Column10033","Column10034","Column10035","Column10036","Column10037","Column10038","Column10039","Column10040","Column10041","Column10042","Column10043","Column10044","Column10045","Column10046","Column10047","Column10048","Column10049","Column10050","Column10051","Column10052","Column10053","Column10054","Column10055","Column10056","Column10057","Column10058","Column10059","Column10060","Column10061","Column10062","Column10063","Column10064","Column10065","Column10066","Column10067","Column10068","Column10069","Column10070","Column10071","Column10072","Column10073","Column10074","Column10075","Column10076","Column10077","Column10078","Column10079","Column10080","Column10081","Column10082","Column10083","Column10084","Column10085","Column10086","Column10087","Column10088","Column10089","Column10090","Column10091","Column10092","Column10093","Column10094","Column10095","Column10096","Column10097","Column10098","Column10099","Column10100","Column10101","Column10102","Column10103","Column10104","Column10105","Column10106","Column10107","Column10108","Column10109","Column10110","Column10111","Column10112","Column10113","Column10114","Column10115","Column10116","Column10117","Column10118","Column10119","Column10120","Column10121","Column10122","Column10123","Column10124","Column10125","Column10126","Column10127","Column10128","Column10129","Column10130","Column10131","Column10132","Column10133","Column10134","Column10135","Column10136","Column10137","Column10138","Column10139","Column10140","Column10141","Column10142","Column10143","Column10144","Column10145","Column10146","Column10147","Column10148","Column10149","Column10150","Column10151","Column10152","Column10153","Column10154","Column10155","Column10156","Column10157","Column10158","Column10159","Column10160","Column10161","Column10162","Column10163","Column10164","Column10165","Column10166","Column10167","Column10168","Column10169","Column10170","Column10171","Column10172","Column10173","Column10174","Column10175","Column10176","Column10177","Column10178","Column10179","Column10180","Column10181","Column10182","Column10183","Column10184","Column10185","Column10186","Column10187","Column10188","Column10189","Column10190","Column10191","Column10192","Column10193","Column10194","Column10195","Column10196","Column10197","Column10198","Column10199","Column10200","Column10201","Column10202","Column10203","Column10204","Column10205","Column10206","Column10207","Column10208","Column10209","Column10210","Column10211","Column10212","Column10213","Column10214","Column10215","Column10216","Column10217","Column10218","Column10219","Column10220","Column10221","Column10222","Column10223","Column10224","Column10225","Column10226","Column10227","Column10228","Column10229","Column10230","Column10231","Column10232","Column10233","Column10234","Column10235","Column10236","Column10237","Column10238","Column10239","Column10240","Column10241","Column10242","Column10243","Column10244","Column10245","Column10246","Column10247","Column10248","Column10249","Column10250","Column10251","Column10252","Column10253","Column10254","Column10255","Column10256","Column10257","Column10258","Column10259","Column10260","Column10261","Column10262","Column10263","Column10264","Column10265","Column10266","Column10267","Column10268","Column10269","Column10270","Column10271","Column10272","Column10273","Column10274","Column10275","Column10276","Column10277","Column10278","Column10279","Column10280","Column10281","Column10282","Column10283","Column10284","Column10285","Column10286","Column10287","Column10288","Column10289","Column10290","Column10291","Column10292","Column10293","Column10294","Column10295","Column10296","Column10297","Column10298","Column10299","Column10300","Column10301","Column10302","Column10303","Column10304","Column10305","Column10306","Column10307","Column10308","Column10309","Column10310","Column10311","Column10312","Column10313","Column10314","Column10315","Column10316","Column10317","Column10318","Column10319","Column10320","Column10321","Column10322","Column10323","Column10324","Column10325","Column10326","Column10327","Column10328","Column10329","Column10330","Column10331","Column10332","Column10333","Column10334","Column10335","Column10336","Column10337","Column10338","Column10339","Column10340","Column10341","Column10342","Column10343","Column10344","Column10345","Column10346","Column10347","Column10348","Column10349","Column10350","Column10351","Column10352","Column10353","Column10354","Column10355","Column10356","Column10357","Column10358","Column10359","Column10360","Column10361","Column10362","Column10363","Column10364","Column10365","Column10366","Column10367","Column10368","Column10369","Column10370","Column10371","Column10372","Column10373","Column10374","Column10375","Column10376","Column10377","Column10378","Column10379","Column10380","Column10381","Column10382","Column10383","Column10384","Column10385","Column10386","Column10387","Column10388","Column10389","Column10390","Column10391","Column10392","Column10393","Column10394","Column10395","Column10396","Column10397","Column10398","Column10399","Column10400","Column10401","Column10402","Column10403","Column10404","Column10405","Column10406","Column10407","Column10408","Column10409","Column10410","Column10411","Column10412","Column10413","Column10414","Column10415","Column10416","Column10417","Column10418","Column10419","Column10420","Column10421","Column10422","Column10423","Column10424","Column10425","Column10426","Column10427","Column10428","Column10429","Column10430","Column10431","Column10432","Column10433","Column10434","Column10435","Column10436","Column10437","Column10438","Column10439","Column10440","Column10441","Column10442","Column10443","Column10444","Column10445","Column10446","Column10447","Column10448","Column10449","Column10450","Column10451","Column10452","Column10453","Column10454","Column10455","Column10456","Column10457","Column10458","Column10459","Column10460","Column10461","Column10462","Column10463","Column10464","Column10465","Column10466","Column10467","Column10468","Column10469","Column10470","Column10471","Column10472","Column10473","Column10474","Column10475","Column10476","Column10477","Column10478","Column10479","Column10480","Column10481","Column10482","Column10483","Column10484","Column10485","Column10486","Column10487","Column10488","Column10489","Column10490","Column10491","Column10492","Column10493","Column10494","Column10495","Column10496","Column10497","Column10498","Column10499","Column10500","Column10501","Column10502","Column10503","Column10504","Column10505","Column10506","Column10507","Column10508","Column10509","Column10510","Column10511","Column10512","Column10513","Column10514","Column10515","Column10516","Column10517","Column10518","Column10519","Column10520","Column10521","Column10522","Column10523","Column10524","Column10525","Column10526","Column10527","Column10528","Column10529","Column10530","Column10531","Column10532","Column10533","Column10534","Column10535","Column10536","Column10537","Column10538","Column10539","Column10540","Column10541","Column10542","Column10543","Column10544","Column10545","Column10546","Column10547","Column10548","Column10549","Column10550","Column10551","Column10552","Column10553","Column10554","Column10555","Column10556","Column10557","Column10558","Column10559","Column10560","Column10561","Column10562","Column10563","Column10564","Column10565","Column10566","Column10567","Column10568","Column10569","Column10570","Column10571","Column10572","Column10573","Column10574","Column10575","Column10576","Column10577","Column10578","Column10579","Column10580","Column10581","Column10582","Column10583","Column10584","Column10585","Column10586","Column10587","Column10588","Column10589","Column10590","Column10591","Column10592","Column10593","Column10594","Column10595","Column10596","Column10597","Column10598","Column10599","Column10600","Column10601","Column10602","Column10603","Column10604","Column10605","Column10606","Column10607","Column10608","Column10609","Column10610","Column10611","Column10612","Column10613","Column10614","Column10615","Column10616","Column10617","Column10618","Column10619","Column10620","Column10621","Column10622","Column10623","Column10624","Column10625","Column10626","Column10627","Column10628","Column10629","Column10630","Column10631","Column10632","Column10633","Column10634","Column10635","Column10636","Column10637","Column10638","Column10639","Column10640","Column10641","Column10642","Column10643","Column10644","Column10645","Column10646","Column10647","Column10648","Column10649","Column10650","Column10651","Column10652","Column10653","Column10654","Column10655","Column10656","Column10657","Column10658","Column10659","Column10660","Column10661","Column10662","Column10663","Column10664","Column10665","Column10666","Column10667","Column10668","Column10669","Column10670","Column10671","Column10672","Column10673","Column10674","Column10675","Column10676","Column10677","Column10678","Column10679","Column10680","Column10681","Column10682","Column10683","Column10684","Column10685","Column10686","Column10687","Column10688","Column10689","Column10690","Column10691","Column10692","Column10693","Column10694","Column10695","Column10696","Column10697","Column10698","Column10699","Column10700","Column10701","Column10702","Column10703","Column10704","Column10705","Column10706","Column10707","Column10708","Column10709","Column10710","Column10711","Column10712","Column10713","Column10714","Column10715","Column10716","Column10717","Column10718","Column10719","Column10720","Column10721","Column10722","Column10723","Column10724","Column10725","Column10726","Column10727","Column10728","Column10729","Column10730","Column10731","Column10732","Column10733","Column10734","Column10735","Column10736","Column10737","Column10738","Column10739","Column10740","Column10741","Column10742","Column10743","Column10744","Column10745","Column10746","Column10747","Column10748","Column10749","Column10750","Column10751","Column10752","Column10753","Column10754","Column10755","Column10756","Column10757","Column10758","Column10759","Column10760","Column10761","Column10762","Column10763","Column10764","Column10765","Column10766","Column10767","Column10768","Column10769","Column10770","Column10771","Column10772","Column10773","Column10774","Column10775","Column10776","Column10777","Column10778","Column10779","Column10780","Column10781","Column10782","Column10783","Column10784","Column10785","Column10786","Column10787","Column10788","Column10789","Column10790","Column10791","Column10792","Column10793","Column10794","Column10795","Column10796","Column10797","Column10798","Column10799","Column10800","Column10801","Column10802","Column10803","Column10804","Column10805","Column10806","Column10807","Column10808","Column10809","Column10810","Column10811","Column10812","Column10813","Column10814","Column10815","Column10816","Column10817","Column10818","Column10819","Column10820","Column10821","Column10822","Column10823","Column10824","Column10825","Column10826","Column10827","Column10828","Column10829","Column10830","Column10831","Column10832","Column10833","Column10834","Column10835","Column10836","Column10837","Column10838","Column10839","Column10840","Column10841","Column10842","Column10843","Column10844","Column10845","Column10846","Column10847","Column10848","Column10849","Column10850","Column10851","Column10852","Column10853","Column10854","Column10855","Column10856","Column10857","Column10858","Column10859","Column10860","Column10861","Column10862","Column10863","Column10864","Column10865","Column10866","Column10867","Column10868","Column10869","Column10870","Column10871","Column10872","Column10873","Column10874","Column10875","Column10876","Column10877","Column10878","Column10879","Column10880","Column10881","Column10882","Column10883","Column10884","Column10885","Column10886","Column10887","Column10888","Column10889","Column10890","Column10891","Column10892","Column10893","Column10894","Column10895","Column10896","Column10897","Column10898","Column10899","Column10900","Column10901","Column10902","Column10903","Column10904","Column10905","Column10906","Column10907","Column10908","Column10909","Column10910","Column10911","Column10912","Column10913","Column10914","Column10915","Column10916","Column10917","Column10918","Column10919","Column10920","Column10921","Column10922","Column10923","Column10924","Column10925","Column10926","Column10927","Column10928","Column10929","Column10930","Column10931","Column10932","Column10933","Column10934","Column10935","Column10936","Column10937","Column10938","Column10939","Column10940","Column10941","Column10942","Column10943","Column10944","Column10945","Column10946","Column10947","Column10948","Column10949","Column10950","Column10951","Column10952","Column10953","Column10954","Column10955","Column10956","Column10957","Column10958","Column10959","Column10960","Column10961","Column10962","Column10963","Column10964","Column10965","Column10966","Column10967","Column10968","Column10969","Column10970","Column10971","Column10972","Column10973","Column10974","Column10975","Column10976","Column10977","Column10978","Column10979","Column10980","Column10981","Column10982","Column10983","Column10984","Column10985","Column10986","Column10987","Column10988","Column10989","Column10990","Column10991","Column10992","Column10993","Column10994","Column10995","Column10996","Column10997","Column10998","Column10999","Column11000","Column11001","Column11002","Column11003","Column11004","Column11005","Column11006","Column11007","Column11008","Column11009","Column11010","Column11011","Column11012","Column11013","Column11014","Column11015","Column11016","Column11017","Column11018","Column11019","Column11020","Column11021","Column11022","Column11023","Column11024","Column11025","Column11026","Column11027","Column11028","Column11029","Column11030","Column11031","Column11032","Column11033","Column11034","Column11035","Column11036","Column11037","Column11038","Column11039","Column11040","Column11041","Column11042","Column11043","Column11044","Column11045","Column11046","Column11047","Column11048","Column11049","Column11050","Column11051","Column11052","Column11053","Column11054","Column11055","Column11056","Column11057","Column11058","Column11059","Column11060","Column11061","Column11062","Column11063","Column11064","Column11065","Column11066","Column11067","Column11068","Column11069","Column11070","Column11071","Column11072","Column11073","Column11074","Column11075","Column11076","Column11077","Column11078","Column11079","Column11080","Column11081","Column11082","Column11083","Column11084","Column11085","Column11086","Column11087","Column11088","Column11089","Column11090","Column11091","Column11092","Column11093","Column11094","Column11095","Column11096","Column11097","Column11098","Column11099","Column11100","Column11101","Column11102","Column11103","Column11104","Column11105","Column11106","Column11107","Column11108","Column11109","Column11110","Column11111","Column11112","Column11113","Column11114","Column11115","Column11116","Column11117","Column11118","Column11119","Column11120","Column11121","Column11122","Column11123","Column11124","Column11125","Column11126","Column11127","Column11128","Column11129","Column11130","Column11131","Column11132","Column11133","Column11134","Column11135","Column11136","Column11137","Column11138","Column11139","Column11140","Column11141","Column11142","Column11143","Column11144","Column11145","Column11146","Column11147","Column11148","Column11149","Column11150","Column11151","Column11152","Column11153","Column11154","Column11155","Column11156","Column11157","Column11158","Column11159","Column11160","Column11161","Column11162","Column11163","Column11164","Column11165","Column11166","Column11167","Column11168","Column11169","Column11170","Column11171","Column11172","Column11173","Column11174","Column11175","Column11176","Column11177","Column11178","Column11179","Column11180","Column11181","Column11182","Column11183","Column11184","Column11185","Column11186","Column11187","Column11188","Column11189","Column11190","Column11191","Column11192","Column11193","Column11194","Column11195","Column11196","Column11197","Column11198","Column11199","Column11200","Column11201","Column11202","Column11203","Column11204","Column11205","Column11206","Column11207","Column11208","Column11209","Column11210","Column11211","Column11212","Column11213","Column11214","Column11215","Column11216","Column11217","Column11218","Column11219","Column11220","Column11221","Column11222","Column11223","Column11224","Column11225","Column11226","Column11227","Column11228","Column11229","Column11230","Column11231","Column11232","Column11233","Column11234","Column11235","Column11236","Column11237","Column11238","Column11239","Column11240","Column11241","Column11242","Column11243","Column11244","Column11245","Column11246","Column11247","Column11248","Column11249","Column11250","Column11251","Column11252","Column11253","Column11254","Column11255","Column11256","Column11257","Column11258","Column11259","Column11260","Column11261","Column11262","Column11263","Column11264","Column11265","Column11266","Column11267","Column11268","Column11269","Column11270","Column11271","Column11272","Column11273","Column11274","Column11275","Column11276","Column11277","Column11278","Column11279","Column11280","Column11281","Column11282","Column11283","Column11284","Column11285","Column11286","Column11287","Column11288","Column11289","Column11290","Column11291","Column11292","Column11293","Column11294","Column11295","Column11296","Column11297","Column11298","Column11299","Column11300","Column11301","Column11302","Column11303","Column11304","Column11305","Column11306","Column11307","Column11308","Column11309","Column11310","Column11311","Column11312","Column11313","Column11314","Column11315","Column11316","Column11317","Column11318","Column11319","Column11320","Column11321","Column11322","Column11323","Column11324","Column11325","Column11326","Column11327","Column11328","Column11329","Column11330","Column11331","Column11332","Column11333","Column11334","Column11335","Column11336","Column11337","Column11338","Column11339","Column11340","Column11341","Column11342","Column11343","Column11344","Column11345","Column11346","Column11347","Column11348","Column11349","Column11350","Column11351","Column11352","Column11353","Column11354","Column11355","Column11356","Column11357","Column11358","Column11359","Column11360","Column11361","Column11362","Column11363","Column11364","Column11365","Column11366","Column11367","Column11368","Column11369","Column11370","Column11371","Column11372","Column11373","Column11374","Column11375","Column11376","Column11377","Column11378","Column11379","Column11380","Column11381","Column11382","Column11383","Column11384","Column11385","Column11386","Column11387","Column11388","Column11389","Column11390","Column11391","Column11392","Column11393","Column11394","Column11395","Column11396","Column11397","Column11398","Column11399","Column11400","Column11401","Column11402","Column11403","Column11404","Column11405","Column11406","Column11407","Column11408","Column11409","Column11410","Column11411","Column11412","Column11413","Column11414","Column11415","Column11416","Column11417","Column11418","Column11419","Column11420","Column11421","Column11422","Column11423","Column11424","Column11425","Column11426","Column11427","Column11428","Column11429","Column11430","Column11431","Column11432","Column11433","Column11434","Column11435","Column11436","Column11437","Column11438","Column11439","Column11440","Column11441","Column11442","Column11443","Column11444","Column11445","Column11446","Column11447","Column11448","Column11449","Column11450","Column11451","Column11452","Column11453","Column11454","Column11455","Column11456","Column11457","Column11458","Column11459","Column11460","Column11461","Column11462","Column11463","Column11464","Column11465","Column11466","Column11467","Column11468","Column11469","Column11470","Column11471","Column11472","Column11473","Column11474","Column11475","Column11476","Column11477","Column11478","Column11479","Column11480","Column11481","Column11482","Column11483","Column11484","Column11485","Column11486","Column11487","Column11488","Column11489","Column11490","Column11491","Column11492","Column11493","Column11494","Column11495","Column11496","Column11497","Column11498","Column11499","Column11500","Column11501","Column11502","Column11503","Column11504","Column11505","Column11506","Column11507","Column11508","Column11509","Column11510","Column11511","Column11512","Column11513","Column11514","Column11515","Column11516","Column11517","Column11518","Column11519","Column11520","Column11521","Column11522","Column11523","Column11524","Column11525","Column11526","Column11527","Column11528","Column11529","Column11530","Column11531","Column11532","Column11533","Column11534","Column11535","Column11536","Column11537","Column11538","Column11539","Column11540","Column11541","Column11542","Column11543","Column11544","Column11545","Column11546","Column11547","Column11548","Column11549","Column11550","Column11551","Column11552","Column11553","Column11554","Column11555","Column11556","Column11557","Column11558","Column11559","Column11560","Column11561","Column11562","Column11563","Column11564","Column11565","Column11566","Column11567","Column11568","Column11569","Column11570","Column11571","Column11572","Column11573","Column11574","Column11575","Column11576","Column11577","Column11578","Column11579","Column11580","Column11581","Column11582","Column11583","Column11584","Column11585","Column11586","Column11587","Column11588","Column11589","Column11590","Column11591","Column11592","Column11593","Column11594","Column11595","Column11596","Column11597","Column11598","Column11599","Column11600","Column11601","Column11602","Column11603","Column11604","Column11605","Column11606","Column11607","Column11608","Column11609","Column11610","Column11611","Column11612","Column11613","Column11614","Column11615","Column11616","Column11617","Column11618","Column11619","Column11620","Column11621","Column11622","Column11623","Column11624","Column11625","Column11626","Column11627","Column11628","Column11629","Column11630","Column11631","Column11632","Column11633","Column11634","Column11635","Column11636","Column11637","Column11638","Column11639","Column11640","Column11641","Column11642","Column11643","Column11644","Column11645","Column11646","Column11647","Column11648","Column11649","Column11650","Column11651","Column11652","Column11653","Column11654","Column11655","Column11656","Column11657","Column11658","Column11659","Column11660","Column11661","Column11662","Column11663","Column11664","Column11665","Column11666","Column11667","Column11668","Column11669","Column11670","Column11671","Column11672","Column11673","Column11674","Column11675","Column11676","Column11677","Column11678","Column11679","Column11680","Column11681","Column11682","Column11683","Column11684","Column11685","Column11686","Column11687","Column11688","Column11689","Column11690","Column11691","Column11692","Column11693","Column11694","Column11695","Column11696","Column11697","Column11698","Column11699","Column11700","Column11701","Column11702","Column11703","Column11704","Column11705","Column11706","Column11707","Column11708","Column11709","Column11710","Column11711","Column11712","Column11713","Column11714","Column11715","Column11716","Column11717","Column11718","Column11719","Column11720","Column11721","Column11722","Column11723","Column11724","Column11725","Column11726","Column11727","Column11728","Column11729","Column11730","Column11731","Column11732","Column11733","Column11734","Column11735","Column11736","Column11737","Column11738","Column11739","Column11740","Column11741","Column11742","Column11743","Column11744","Column11745","Column11746","Column11747","Column11748","Column11749","Column11750","Column11751","Column11752","Column11753","Column11754","Column11755","Column11756","Column11757","Column11758","Column11759","Column11760","Column11761","Column11762","Column11763","Column11764","Column11765","Column11766","Column11767","Column11768","Column11769","Column11770","Column11771","Column11772","Column11773","Column11774","Column11775","Column11776","Column11777","Column11778","Column11779","Column11780","Column11781","Column11782","Column11783","Column11784","Column11785","Column11786","Column11787","Column11788","Column11789","Column11790","Column11791","Column11792","Column11793","Column11794","Column11795","Column11796","Column11797","Column11798","Column11799","Column11800","Column11801","Column11802","Column11803","Column11804","Column11805","Column11806","Column11807","Column11808","Column11809","Column11810","Column11811","Column11812","Column11813","Column11814","Column11815","Column11816","Column11817","Column11818","Column11819","Column11820","Column11821","Column11822","Column11823","Column11824","Column11825","Column11826","Column11827","Column11828","Column11829","Column11830","Column11831","Column11832","Column11833","Column11834","Column11835","Column11836","Column11837","Column11838","Column11839","Column11840","Column11841","Column11842","Column11843","Column11844","Column11845","Column11846","Column11847","Column11848","Column11849","Column11850","Column11851","Column11852","Column11853","Column11854","Column11855","Column11856","Column11857","Column11858","Column11859","Column11860","Column11861","Column11862","Column11863","Column11864","Column11865","Column11866","Column11867","Column11868","Column11869","Column11870","Column11871","Column11872","Column11873","Column11874","Column11875","Column11876","Column11877","Column11878","Column11879","Column11880","Column11881","Column11882","Column11883","Column11884","Column11885","Column11886","Column11887","Column11888","Column11889","Column11890","Column11891","Column11892","Column11893","Column11894","Column11895","Column11896","Column11897","Column11898","Column11899","Column11900","Column11901","Column11902","Column11903","Column11904","Column11905","Column11906","Column11907","Column11908","Column11909","Column11910","Column11911","Column11912","Column11913","Column11914","Column11915","Column11916","Column11917","Column11918","Column11919","Column11920","Column11921","Column11922","Column11923","Column11924","Column11925","Column11926","Column11927","Column11928","Column11929","Column11930","Column11931","Column11932","Column11933","Column11934","Column11935","Column11936","Column11937","Column11938","Column11939","Column11940","Column11941","Column11942","Column11943","Column11944","Column11945","Column11946","Column11947","Column11948","Column11949","Column11950","Column11951","Column11952","Column11953","Column11954","Column11955","Column11956","Column11957","Column11958","Column11959","Column11960","Column11961","Column11962","Column11963","Column11964","Column11965","Column11966","Column11967","Column11968","Column11969","Column11970","Column11971","Column11972","Column11973","Column11974","Column11975","Column11976","Column11977","Column11978","Column11979","Column11980","Column11981","Column11982","Column11983","Column11984","Column11985","Column11986","Column11987","Column11988","Column11989","Column11990","Column11991","Column11992","Column11993","Column11994","Column11995","Column11996","Column11997","Column11998","Column11999","Column12000","Column12001","Column12002","Column12003","Column12004","Column12005","Column12006","Column12007","Column12008","Column12009","Column12010","Column12011","Column12012","Column12013","Column12014","Column12015","Column12016","Column12017","Column12018","Column12019","Column12020","Column12021","Column12022","Column12023","Column12024","Column12025","Column12026","Column12027","Column12028","Column12029","Column12030","Column12031","Column12032","Column12033","Column12034","Column12035","Column12036","Column12037","Column12038","Column12039","Column12040","Column12041","Column12042","Column12043","Column12044","Column12045","Column12046","Column12047","Column12048","Column12049","Column12050","Column12051","Column12052","Column12053","Column12054","Column12055","Column12056","Column12057","Column12058","Column12059","Column12060","Column12061","Column12062","Column12063","Column12064","Column12065","Column12066","Column12067","Column12068","Column12069","Column12070","Column12071","Column12072","Column12073","Column12074","Column12075","Column12076","Column12077","Column12078","Column12079","Column12080","Column12081","Column12082","Column12083","Column12084","Column12085","Column12086","Column12087","Column12088","Column12089","Column12090","Column12091","Column12092","Column12093","Column12094","Column12095","Column12096","Column12097","Column12098","Column12099","Column12100","Column12101","Column12102","Column12103","Column12104","Column12105","Column12106","Column12107","Column12108","Column12109","Column12110","Column12111","Column12112","Column12113","Column12114","Column12115","Column12116","Column12117","Column12118","Column12119","Column12120","Column12121","Column12122","Column12123","Column12124","Column12125","Column12126","Column12127","Column12128","Column12129","Column12130","Column12131","Column12132","Column12133","Column12134","Column12135","Column12136","Column12137","Column12138","Column12139","Column12140","Column12141","Column12142","Column12143","Column12144","Column12145","Column12146","Column12147","Column12148","Column12149","Column12150","Column12151","Column12152","Column12153","Column12154","Column12155","Column12156","Column12157","Column12158","Column12159","Column12160","Column12161","Column12162","Column12163","Column12164","Column12165","Column12166","Column12167","Column12168","Column12169","Column12170","Column12171","Column12172","Column12173","Column12174","Column12175","Column12176","Column12177","Column12178","Column12179","Column12180","Column12181","Column12182","Column12183","Column12184","Column12185","Column12186","Column12187","Column12188","Column12189","Column12190","Column12191","Column12192","Column12193","Column12194","Column12195","Column12196","Column12197","Column12198","Column12199","Column12200","Column12201","Column12202","Column12203","Column12204","Column12205","Column12206","Column12207","Column12208","Column12209","Column12210","Column12211","Column12212","Column12213","Column12214","Column12215","Column12216","Column12217","Column12218","Column12219","Column12220","Column12221","Column12222","Column12223","Column12224","Column12225","Column12226","Column12227","Column12228","Column12229","Column12230","Column12231","Column12232","Column12233","Column12234","Column12235","Column12236","Column12237","Column12238","Column12239","Column12240","Column12241","Column12242","Column12243","Column12244","Column12245","Column12246","Column12247","Column12248","Column12249","Column12250","Column12251","Column12252","Column12253","Column12254","Column12255","Column12256","Column12257","Column12258","Column12259","Column12260","Column12261","Column12262","Column12263","Column12264","Column12265","Column12266","Column12267","Column12268","Column12269","Column12270","Column12271","Column12272","Column12273","Column12274","Column12275","Column12276","Column12277","Column12278","Column12279","Column12280","Column12281","Column12282","Column12283","Column12284","Column12285","Column12286","Column12287","Column12288","Column12289","Column12290","Column12291","Column12292","Column12293","Column12294","Column12295","Column12296","Column12297","Column12298","Column12299","Column12300","Column12301","Column12302","Column12303","Column12304","Column12305","Column12306","Column12307","Column12308","Column12309","Column12310","Column12311","Column12312","Column12313","Column12314","Column12315","Column12316","Column12317","Column12318","Column12319","Column12320","Column12321","Column12322","Column12323","Column12324","Column12325","Column12326","Column12327","Column12328","Column12329","Column12330","Column12331","Column12332","Column12333","Column12334","Column12335","Column12336","Column12337","Column12338","Column12339","Column12340","Column12341","Column12342","Column12343","Column12344","Column12345","Column12346","Column12347","Column12348","Column12349","Column12350","Column12351","Column12352","Column12353","Column12354","Column12355","Column12356","Column12357","Column12358","Column12359","Column12360","Column12361","Column12362","Column12363","Column12364","Column12365","Column12366","Column12367","Column12368","Column12369","Column12370","Column12371","Column12372","Column12373","Column12374","Column12375","Column12376","Column12377","Column12378","Column12379","Column12380","Column12381","Column12382","Column12383","Column12384","Column12385","Column12386","Column12387","Column12388","Column12389","Column12390","Column12391","Column12392","Column12393","Column12394","Column12395","Column12396","Column12397","Column12398","Column12399","Column12400","Column12401","Column12402","Column12403","Column12404","Column12405","Column12406","Column12407","Column12408","Column12409","Column12410","Column12411","Column12412","Column12413","Column12414","Column12415","Column12416","Column12417","Column12418","Column12419","Column12420","Column12421","Column12422","Column12423","Column12424","Column12425","Column12426","Column12427","Column12428","Column12429","Column12430","Column12431","Column12432","Column12433","Column12434","Column12435","Column12436","Column12437","Column12438","Column12439","Column12440","Column12441","Column12442","Column12443","Column12444","Column12445","Column12446","Column12447","Column12448","Column12449","Column12450","Column12451","Column12452","Column12453","Column12454","Column12455","Column12456","Column12457","Column12458","Column12459","Column12460","Column12461","Column12462","Column12463","Column12464","Column12465","Column12466","Column12467","Column12468","Column12469","Column12470","Column12471","Column12472","Column12473","Column12474","Column12475","Column12476","Column12477","Column12478","Column12479","Column12480","Column12481","Column12482","Column12483","Column12484","Column12485","Column12486","Column12487","Column12488","Column12489","Column12490","Column12491","Column12492","Column12493","Column12494","Column12495","Column12496","Column12497","Column12498","Column12499","Column12500","Column12501","Column12502","Column12503","Column12504","Column12505","Column12506","Column12507","Column12508","Column12509","Column12510","Column12511","Column12512","Column12513","Column12514","Column12515","Column12516","Column12517","Column12518","Column12519","Column12520","Column12521","Column12522","Column12523","Column12524","Column12525","Column12526","Column12527","Column12528","Column12529","Column12530","Column12531","Column12532","Column12533","Column12534","Column12535","Column12536","Column12537","Column12538","Column12539","Column12540","Column12541","Column12542","Column12543","Column12544","Column12545","Column12546","Column12547","Column12548","Column12549","Column12550","Column12551","Column12552","Column12553","Column12554","Column12555","Column12556","Column12557","Column12558","Column12559","Column12560","Column12561","Column12562","Column12563","Column12564","Column12565","Column12566","Column12567","Column12568","Column12569","Column12570","Column12571","Column12572","Column12573","Column12574","Column12575","Column12576","Column12577","Column12578","Column12579","Column12580","Column12581","Column12582","Column12583","Column12584","Column12585","Column12586","Column12587","Column12588","Column12589","Column12590","Column12591","Column12592","Column12593","Column12594","Column12595","Column12596","Column12597","Column12598","Column12599","Column12600","Column12601","Column12602","Column12603","Column12604","Column12605","Column12606","Column12607","Column12608","Column12609","Column12610","Column12611","Column12612","Column12613","Column12614","Column12615","Column12616","Column12617","Column12618","Column12619","Column12620","Column12621","Column12622","Column12623","Column12624","Column12625","Column12626","Column12627","Column12628","Column12629","Column12630","Column12631","Column12632","Column12633","Column12634","Column12635","Column12636","Column12637","Column12638","Column12639","Column12640","Column12641","Column12642","Column12643","Column12644","Column12645","Column12646","Column12647","Column12648","Column12649","Column12650","Column12651","Column12652","Column12653","Column12654","Column12655","Column12656","Column12657","Column12658","Column12659","Column12660","Column12661","Column12662","Column12663","Column12664","Column12665","Column12666","Column12667","Column12668","Column12669","Column12670","Column12671","Column12672","Column12673","Column12674","Column12675","Column12676","Column12677","Column12678","Column12679","Column12680","Column12681","Column12682","Column12683","Column12684","Column12685","Column12686","Column12687","Column12688","Column12689","Column12690","Column12691","Column12692","Column12693","Column12694","Column12695","Column12696","Column12697","Column12698","Column12699","Column12700","Column12701","Column12702","Column12703","Column12704","Column12705","Column12706","Column12707","Column12708","Column12709","Column12710","Column12711","Column12712","Column12713","Column12714","Column12715","Column12716","Column12717","Column12718","Column12719","Column12720","Column12721","Column12722","Column12723","Column12724","Column12725","Column12726","Column12727","Column12728","Column12729","Column12730","Column12731","Column12732","Column12733","Column12734","Column12735","Column12736","Column12737","Column12738","Column12739","Column12740","Column12741","Column12742","Column12743","Column12744","Column12745","Column12746","Column12747","Column12748","Column12749","Column12750","Column12751","Column12752","Column12753","Column12754","Column12755","Column12756","Column12757","Column12758","Column12759","Column12760","Column12761","Column12762","Column12763","Column12764","Column12765","Column12766","Column12767","Column12768","Column12769","Column12770","Column12771","Column12772","Column12773","Column12774","Column12775","Column12776","Column12777","Column12778","Column12779","Column12780","Column12781","Column12782","Column12783","Column12784","Column12785","Column12786","Column12787","Column12788","Column12789","Column12790","Column12791","Column12792","Column12793","Column12794","Column12795","Column12796","Column12797","Column12798","Column12799","Column12800","Column12801","Column12802","Column12803","Column12804","Column12805","Column12806","Column12807","Column12808","Column12809","Column12810","Column12811","Column12812","Column12813","Column12814","Column12815","Column12816","Column12817","Column12818","Column12819","Column12820","Column12821","Column12822","Column12823","Column12824","Column12825","Column12826","Column12827","Column12828","Column12829","Column12830","Column12831","Column12832","Column12833","Column12834","Column12835","Column12836","Column12837","Column12838","Column12839","Column12840","Column12841","Column12842","Column12843","Column12844","Column12845","Column12846","Column12847","Column12848","Column12849","Column12850","Column12851","Column12852","Column12853","Column12854","Column12855","Column12856","Column12857","Column12858","Column12859","Column12860","Column12861","Column12862","Column12863","Column12864","Column12865","Column12866","Column12867","Column12868","Column12869","Column12870","Column12871","Column12872","Column12873","Column12874","Column12875","Column12876","Column12877","Column12878","Column12879","Column12880","Column12881","Column12882","Column12883","Column12884","Column12885","Column12886","Column12887","Column12888","Column12889","Column12890","Column12891","Column12892","Column12893","Column12894","Column12895","Column12896","Column12897","Column12898","Column12899","Column12900","Column12901","Column12902","Column12903","Column12904","Column12905","Column12906","Column12907","Column12908","Column12909","Column12910","Column12911","Column12912","Column12913","Column12914","Column12915","Column12916","Column12917","Column12918","Column12919","Column12920","Column12921","Column12922","Column12923","Column12924","Column12925","Column12926","Column12927","Column12928","Column12929","Column12930","Column12931","Column12932","Column12933","Column12934","Column12935","Column12936","Column12937","Column12938","Column12939","Column12940","Column12941","Column12942","Column12943","Column12944","Column12945","Column12946","Column12947","Column12948","Column12949","Column12950","Column12951","Column12952","Column12953","Column12954","Column12955","Column12956","Column12957","Column12958","Column12959","Column12960","Column12961","Column12962","Column12963","Column12964","Column12965","Column12966","Column12967","Column12968","Column12969","Column12970","Column12971","Column12972","Column12973","Column12974","Column12975","Column12976","Column12977","Column12978","Column12979","Column12980","Column12981","Column12982","Column12983","Column12984","Column12985","Column12986","Column12987","Column12988","Column12989","Column12990","Column12991","Column12992","Column12993","Column12994","Column12995","Column12996","Column12997","Column12998","Column12999","Column13000","Column13001","Column13002","Column13003","Column13004","Column13005","Column13006","Column13007","Column13008","Column13009","Column13010","Column13011","Column13012","Column13013","Column13014","Column13015","Column13016","Column13017","Column13018","Column13019","Column13020","Column13021","Column13022","Column13023","Column13024","Column13025","Column13026","Column13027","Column13028","Column13029","Column13030","Column13031","Column13032","Column13033","Column13034","Column13035","Column13036","Column13037","Column13038","Column13039","Column13040","Column13041","Column13042","Column13043","Column13044","Column13045","Column13046","Column13047","Column13048","Column13049","Column13050","Column13051","Column13052","Column13053","Column13054","Column13055","Column13056","Column13057","Column13058","Column13059","Column13060","Column13061","Column13062","Column13063","Column13064","Column13065","Column13066","Column13067","Column13068","Column13069","Column13070","Column13071","Column13072","Column13073","Column13074","Column13075","Column13076","Column13077","Column13078","Column13079","Column13080","Column13081","Column13082","Column13083","Column13084","Column13085","Column13086","Column13087","Column13088","Column13089","Column13090","Column13091","Column13092","Column13093","Column13094","Column13095","Column13096","Column13097","Column13098","Column13099","Column13100","Column13101","Column13102","Column13103","Column13104","Column13105","Column13106","Column13107","Column13108","Column13109","Column13110","Column13111","Column13112","Column13113","Column13114","Column13115","Column13116","Column13117","Column13118","Column13119","Column13120","Column13121","Column13122","Column13123","Column13124","Column13125","Column13126","Column13127","Column13128","Column13129","Column13130","Column13131","Column13132","Column13133","Column13134","Column13135","Column13136","Column13137","Column13138","Column13139","Column13140","Column13141","Column13142","Column13143","Column13144","Column13145","Column13146","Column13147","Column13148","Column13149","Column13150","Column13151","Column13152","Column13153","Column13154","Column13155","Column13156","Column13157","Column13158","Column13159","Column13160","Column13161","Column13162","Column13163","Column13164","Column13165","Column13166","Column13167","Column13168","Column13169","Column13170","Column13171","Column13172","Column13173","Column13174","Column13175","Column13176","Column13177","Column13178","Column13179","Column13180","Column13181","Column13182","Column13183","Column13184","Column13185","Column13186","Column13187","Column13188","Column13189","Column13190","Column13191","Column13192","Column13193","Column13194","Column13195","Column13196","Column13197","Column13198","Column13199","Column13200","Column13201","Column13202","Column13203","Column13204","Column13205","Column13206","Column13207","Column13208","Column13209","Column13210","Column13211","Column13212","Column13213","Column13214","Column13215","Column13216","Column13217","Column13218","Column13219","Column13220","Column13221","Column13222","Column13223","Column13224","Column13225","Column13226","Column13227","Column13228","Column13229","Column13230","Column13231","Column13232","Column13233","Column13234","Column13235","Column13236","Column13237","Column13238","Column13239","Column13240","Column13241","Column13242","Column13243","Column13244","Column13245","Column13246","Column13247","Column13248","Column13249","Column13250","Column13251","Column13252","Column13253","Column13254","Column13255","Column13256","Column13257","Column13258","Column13259","Column13260","Column13261","Column13262","Column13263","Column13264","Column13265","Column13266","Column13267","Column13268","Column13269","Column13270","Column13271","Column13272","Column13273","Column13274","Column13275","Column13276","Column13277","Column13278","Column13279","Column13280","Column13281","Column13282","Column13283","Column13284","Column13285","Column13286","Column13287","Column13288","Column13289","Column13290","Column13291","Column13292","Column13293","Column13294","Column13295","Column13296","Column13297","Column13298","Column13299","Column13300","Column13301","Column13302","Column13303","Column13304","Column13305","Column13306","Column13307","Column13308","Column13309","Column13310","Column13311","Column13312","Column13313","Column13314","Column13315","Column13316","Column13317","Column13318","Column13319","Column13320","Column13321","Column13322","Column13323","Column13324","Column13325","Column13326","Column13327","Column13328","Column13329","Column13330","Column13331","Column13332","Column13333","Column13334","Column13335","Column13336","Column13337","Column13338","Column13339","Column13340","Column13341","Column13342","Column13343","Column13344","Column13345","Column13346","Column13347","Column13348","Column13349","Column13350","Column13351","Column13352","Column13353","Column13354","Column13355","Column13356","Column13357","Column13358","Column13359","Column13360","Column13361","Column13362","Column13363","Column13364","Column13365","Column13366","Column13367","Column13368","Column13369","Column13370","Column13371","Column13372","Column13373","Column13374","Column13375","Column13376","Column13377","Column13378","Column13379","Column13380","Column13381","Column13382","Column13383","Column13384","Column13385","Column13386","Column13387","Column13388","Column13389","Column13390","Column13391","Column13392","Column13393","Column13394","Column13395","Column13396","Column13397","Column13398","Column13399","Column13400","Column13401","Column13402","Column13403","Column13404","Column13405","Column13406","Column13407","Column13408","Column13409","Column13410","Column13411","Column13412","Column13413","Column13414","Column13415","Column13416","Column13417","Column13418","Column13419","Column13420","Column13421","Column13422","Column13423","Column13424","Column13425","Column13426","Column13427","Column13428","Column13429","Column13430","Column13431","Column13432","Column13433","Column13434","Column13435","Column13436","Column13437","Column13438","Column13439","Column13440","Column13441","Column13442","Column13443","Column13444","Column13445","Column13446","Column13447","Column13448","Column13449","Column13450","Column13451","Column13452","Column13453","Column13454","Column13455","Column13456","Column13457","Column13458","Column13459","Column13460","Column13461","Column13462","Column13463","Column13464","Column13465","Column13466","Column13467","Column13468","Column13469","Column13470","Column13471","Column13472","Column13473","Column13474","Column13475","Column13476","Column13477","Column13478","Column13479","Column13480","Column13481","Column13482","Column13483","Column13484","Column13485","Column13486","Column13487","Column13488","Column13489","Column13490","Column13491","Column13492","Column13493","Column13494","Column13495","Column13496","Column13497","Column13498","Column13499","Column13500","Column13501","Column13502","Column13503","Column13504","Column13505","Column13506","Column13507","Column13508","Column13509","Column13510","Column13511","Column13512","Column13513","Column13514","Column13515","Column13516","Column13517","Column13518","Column13519","Column13520","Column13521","Column13522","Column13523","Column13524","Column13525","Column13526","Column13527","Column13528","Column13529","Column13530","Column13531","Column13532","Column13533","Column13534","Column13535","Column13536","Column13537","Column13538","Column13539","Column13540","Column13541","Column13542","Column13543","Column13544","Column13545","Column13546","Column13547","Column13548","Column13549","Column13550","Column13551","Column13552","Column13553","Column13554","Column13555","Column13556","Column13557","Column13558","Column13559","Column13560","Column13561","Column13562","Column13563","Column13564","Column13565","Column13566","Column13567","Column13568","Column13569","Column13570","Column13571","Column13572","Column13573","Column13574","Column13575","Column13576","Column13577","Column13578","Column13579","Column13580","Column13581","Column13582","Column13583","Column13584","Column13585","Column13586","Column13587","Column13588","Column13589","Column13590","Column13591","Column13592","Column13593","Column13594","Column13595","Column13596","Column13597","Column13598","Column13599","Column13600","Column13601","Column13602","Column13603","Column13604","Column13605","Column13606","Column13607","Column13608","Column13609","Column13610","Column13611","Column13612","Column13613","Column13614","Column13615","Column13616","Column13617","Column13618","Column13619","Column13620","Column13621","Column13622","Column13623","Column13624","Column13625","Column13626","Column13627","Column13628","Column13629","Column13630","Column13631","Column13632","Column13633","Column13634","Column13635","Column13636","Column13637","Column13638","Column13639","Column13640","Column13641","Column13642","Column13643","Column13644","Column13645","Column13646","Column13647","Column13648","Column13649","Column13650","Column13651","Column13652","Column13653","Column13654","Column13655","Column13656","Column13657","Column13658","Column13659","Column13660","Column13661","Column13662","Column13663","Column13664","Column13665","Column13666","Column13667","Column13668","Column13669","Column13670","Column13671","Column13672","Column13673","Column13674","Column13675","Column13676","Column13677","Column13678","Column13679","Column13680","Column13681","Column13682","Column13683","Column13684","Column13685","Column13686","Column13687","Column13688","Column13689","Column13690","Column13691","Column13692","Column13693","Column13694","Column13695","Column13696","Column13697","Column13698","Column13699","Column13700","Column13701","Column13702","Column13703","Column13704","Column13705","Column13706","Column13707","Column13708","Column13709","Column13710","Column13711","Column13712","Column13713","Column13714","Column13715","Column13716","Column13717","Column13718","Column13719","Column13720","Column13721","Column13722","Column13723","Column13724","Column13725","Column13726","Column13727","Column13728","Column13729","Column13730","Column13731","Column13732","Column13733","Column13734","Column13735","Column13736","Column13737","Column13738","Column13739","Column13740","Column13741","Column13742","Column13743","Column13744","Column13745","Column13746","Column13747","Column13748","Column13749","Column13750","Column13751","Column13752","Column13753","Column13754","Column13755","Column13756","Column13757","Column13758","Column13759","Column13760","Column13761","Column13762","Column13763","Column13764","Column13765","Column13766","Column13767","Column13768","Column13769","Column13770","Column13771","Column13772","Column13773","Column13774","Column13775","Column13776","Column13777","Column13778","Column13779","Column13780","Column13781","Column13782","Column13783","Column13784","Column13785","Column13786","Column13787","Column13788","Column13789","Column13790","Column13791","Column13792","Column13793","Column13794","Column13795","Column13796","Column13797","Column13798","Column13799","Column13800","Column13801","Column13802","Column13803","Column13804","Column13805","Column13806","Column13807","Column13808","Column13809","Column13810","Column13811","Column13812","Column13813","Column13814","Column13815","Column13816","Column13817","Column13818","Column13819","Column13820","Column13821","Column13822","Column13823","Column13824","Column13825","Column13826","Column13827","Column13828","Column13829","Column13830","Column13831","Column13832","Column13833","Column13834","Column13835","Column13836","Column13837","Column13838","Column13839","Column13840","Column13841","Column13842","Column13843","Column13844","Column13845","Column13846","Column13847","Column13848","Column13849","Column13850","Column13851","Column13852","Column13853","Column13854","Column13855","Column13856","Column13857","Column13858","Column13859","Column13860","Column13861","Column13862","Column13863","Column13864","Column13865","Column13866","Column13867","Column13868","Column13869","Column13870","Column13871","Column13872","Column13873","Column13874","Column13875","Column13876","Column13877","Column13878","Column13879","Column13880","Column13881","Column13882","Column13883","Column13884","Column13885","Column13886","Column13887","Column13888","Column13889","Column13890","Column13891","Column13892","Column13893","Column13894","Column13895","Column13896","Column13897","Column13898","Column13899","Column13900","Column13901","Column13902","Column13903","Column13904","Column13905","Column13906","Column13907","Column13908","Column13909","Column13910","Column13911","Column13912","Column13913","Column13914","Column13915","Column13916","Column13917","Column13918","Column13919","Column13920","Column13921","Column13922","Column13923","Column13924","Column13925","Column13926","Column13927","Column13928","Column13929","Column13930","Column13931","Column13932","Column13933","Column13934","Column13935","Column13936","Column13937","Column13938","Column13939","Column13940","Column13941","Column13942","Column13943","Column13944","Column13945","Column13946","Column13947","Column13948","Column13949","Column13950","Column13951","Column13952","Column13953","Column13954","Column13955","Column13956","Column13957","Column13958","Column13959","Column13960","Column13961","Column13962","Column13963","Column13964","Column13965","Column13966","Column13967","Column13968","Column13969","Column13970","Column13971","Column13972","Column13973","Column13974","Column13975","Column13976","Column13977","Column13978","Column13979","Column13980","Column13981","Column13982","Column13983","Column13984","Column13985","Column13986","Column13987","Column13988","Column13989","Column13990","Column13991","Column13992","Column13993","Column13994","Column13995","Column13996","Column13997","Column13998","Column13999","Column14000","Column14001","Column14002","Column14003","Column14004","Column14005","Column14006","Column14007","Column14008","Column14009","Column14010","Column14011","Column14012","Column14013","Column14014","Column14015","Column14016","Column14017","Column14018","Column14019","Column14020","Column14021","Column14022","Column14023","Column14024","Column14025","Column14026","Column14027","Column14028","Column14029","Column14030","Column14031","Column14032","Column14033","Column14034","Column14035","Column14036","Column14037","Column14038","Column14039","Column14040","Column14041","Column14042","Column14043","Column14044","Column14045","Column14046","Column14047","Column14048","Column14049","Column14050","Column14051","Column14052","Column14053","Column14054","Column14055","Column14056","Column14057","Column14058","Column14059","Column14060","Column14061","Column14062","Column14063","Column14064","Column14065","Column14066","Column14067","Column14068","Column14069","Column14070","Column14071","Column14072","Column14073","Column14074","Column14075","Column14076","Column14077","Column14078","Column14079","Column14080","Column14081","Column14082","Column14083","Column14084","Column14085","Column14086","Column14087","Column14088","Column14089","Column14090","Column14091","Column14092","Column14093","Column14094","Column14095","Column14096","Column14097","Column14098","Column14099","Column14100","Column14101","Column14102","Column14103","Column14104","Column14105","Column14106","Column14107","Column14108","Column14109","Column14110","Column14111","Column14112","Column14113","Column14114","Column14115","Column14116","Column14117","Column14118","Column14119","Column14120","Column14121","Column14122","Column14123","Column14124","Column14125","Column14126","Column14127","Column14128","Column14129","Column14130","Column14131","Column14132","Column14133","Column14134","Column14135","Column14136","Column14137","Column14138","Column14139","Column14140","Column14141","Column14142","Column14143","Column14144","Column14145","Column14146","Column14147","Column14148","Column14149","Column14150","Column14151","Column14152","Column14153","Column14154","Column14155","Column14156","Column14157","Column14158","Column14159","Column14160","Column14161","Column14162","Column14163","Column14164","Column14165","Column14166","Column14167","Column14168","Column14169","Column14170","Column14171","Column14172","Column14173","Column14174","Column14175","Column14176","Column14177","Column14178","Column14179","Column14180","Column14181","Column14182","Column14183","Column14184","Column14185","Column14186","Column14187","Column14188","Column14189","Column14190","Column14191","Column14192","Column14193","Column14194","Column14195","Column14196","Column14197","Column14198","Column14199","Column14200","Column14201","Column14202","Column14203","Column14204","Column14205","Column14206","Column14207","Column14208","Column14209","Column14210","Column14211","Column14212","Column14213","Column14214","Column14215","Column14216","Column14217","Column14218","Column14219","Column14220","Column14221","Column14222","Column14223","Column14224","Column14225","Column14226","Column14227","Column14228","Column14229","Column14230","Column14231","Column14232","Column14233","Column14234","Column14235","Column14236","Column14237","Column14238","Column14239","Column14240","Column14241","Column14242","Column14243","Column14244","Column14245","Column14246","Column14247","Column14248","Column14249","Column14250","Column14251","Column14252","Column14253","Column14254","Column14255","Column14256","Column14257","Column14258","Column14259","Column14260","Column14261","Column14262","Column14263","Column14264","Column14265","Column14266","Column14267","Column14268","Column14269","Column14270","Column14271","Column14272","Column14273","Column14274","Column14275","Column14276","Column14277","Column14278","Column14279","Column14280","Column14281","Column14282","Column14283","Column14284","Column14285","Column14286","Column14287","Column14288","Column14289","Column14290","Column14291","Column14292","Column14293","Column14294","Column14295","Column14296","Column14297","Column14298","Column14299","Column14300","Column14301","Column14302","Column14303","Column14304","Column14305","Column14306","Column14307","Column14308","Column14309","Column14310","Column14311","Column14312","Column14313","Column14314","Column14315","Column14316","Column14317","Column14318","Column14319","Column14320","Column14321","Column14322","Column14323","Column14324","Column14325","Column14326","Column14327","Column14328","Column14329","Column14330","Column14331","Column14332","Column14333","Column14334","Column14335","Column14336","Column14337","Column14338","Column14339","Column14340","Column14341","Column14342","Column14343","Column14344","Column14345","Column14346","Column14347","Column14348","Column14349","Column14350","Column14351","Column14352","Column14353","Column14354","Column14355","Column14356","Column14357","Column14358","Column14359","Column14360","Column14361","Column14362","Column14363","Column14364","Column14365","Column14366","Column14367","Column14368","Column14369","Column14370","Column14371","Column14372","Column14373","Column14374","Column14375","Column14376","Column14377","Column14378","Column14379","Column14380","Column14381","Column14382","Column14383","Column14384","Column14385","Column14386","Column14387","Column14388","Column14389","Column14390","Column14391","Column14392","Column14393","Column14394","Column14395","Column14396","Column14397","Column14398","Column14399","Column14400","Column14401","Column14402","Column14403","Column14404","Column14405","Column14406","Column14407","Column14408","Column14409","Column14410","Column14411","Column14412","Column14413","Column14414","Column14415","Column14416","Column14417","Column14418","Column14419","Column14420","Column14421","Column14422","Column14423","Column14424","Column14425","Column14426","Column14427","Column14428","Column14429","Column14430","Column14431","Column14432","Column14433","Column14434","Column14435","Column14436","Column14437","Column14438","Column14439","Column14440","Column14441","Column14442","Column14443","Column14444","Column14445","Column14446","Column14447","Column14448","Column14449","Column14450","Column14451","Column14452","Column14453","Column14454","Column14455","Column14456","Column14457","Column14458","Column14459","Column14460","Column14461","Column14462","Column14463","Column14464","Column14465","Column14466","Column14467","Column14468","Column14469","Column14470","Column14471","Column14472","Column14473","Column14474","Column14475","Column14476","Column14477","Column14478","Column14479","Column14480","Column14481","Column14482","Column14483","Column14484","Column14485","Column14486","Column14487","Column14488","Column14489","Column14490","Column14491","Column14492","Column14493","Column14494","Column14495","Column14496","Column14497","Column14498","Column14499","Column14500","Column14501","Column14502","Column14503","Column14504","Column14505","Column14506","Column14507","Column14508","Column14509","Column14510","Column14511","Column14512","Column14513","Column14514","Column14515","Column14516","Column14517","Column14518","Column14519","Column14520","Column14521","Column14522","Column14523","Column14524","Column14525","Column14526","Column14527","Column14528","Column14529","Column14530","Column14531","Column14532","Column14533","Column14534","Column14535","Column14536","Column14537","Column14538","Column14539","Column14540","Column14541","Column14542","Column14543","Column14544","Column14545","Column14546","Column14547","Column14548","Column14549","Column14550","Column14551","Column14552","Column14553","Column14554","Column14555","Column14556","Column14557","Column14558","Column14559","Column14560","Column14561","Column14562","Column14563","Column14564","Column14565","Column14566","Column14567","Column14568","Column14569","Column14570","Column14571","Column14572","Column14573","Column14574","Column14575","Column14576","Column14577","Column14578","Column14579","Column14580","Column14581","Column14582","Column14583","Column14584","Column14585","Column14586","Column14587","Column14588","Column14589","Column14590","Column14591","Column14592","Column14593","Column14594","Column14595","Column14596","Column14597","Column14598","Column14599","Column14600","Column14601","Column14602","Column14603","Column14604","Column14605","Column14606","Column14607","Column14608","Column14609","Column14610","Column14611","Column14612","Column14613","Column14614","Column14615","Column14616","Column14617","Column14618","Column14619","Column14620","Column14621","Column14622","Column14623","Column14624","Column14625","Column14626","Column14627","Column14628","Column14629","Column14630","Column14631","Column14632","Column14633","Column14634","Column14635","Column14636","Column14637","Column14638","Column14639","Column14640","Column14641","Column14642","Column14643","Column14644","Column14645","Column14646","Column14647","Column14648","Column14649","Column14650","Column14651","Column14652","Column14653","Column14654","Column14655","Column14656","Column14657","Column14658","Column14659","Column14660","Column14661","Column14662","Column14663","Column14664","Column14665","Column14666","Column14667","Column14668","Column14669","Column14670","Column14671","Column14672","Column14673","Column14674","Column14675","Column14676","Column14677","Column14678","Column14679","Column14680","Column14681","Column14682","Column14683","Column14684","Column14685","Column14686","Column14687","Column14688","Column14689","Column14690","Column14691","Column14692","Column14693","Column14694","Column14695","Column14696","Column14697","Column14698","Column14699","Column14700","Column14701","Column14702","Column14703","Column14704","Column14705","Column14706","Column14707","Column14708","Column14709","Column14710","Column14711","Column14712","Column14713","Column14714","Column14715","Column14716","Column14717","Column14718","Column14719","Column14720","Column14721","Column14722","Column14723","Column14724","Column14725","Column14726","Column14727","Column14728","Column14729","Column14730","Column14731","Column14732","Column14733","Column14734","Column14735","Column14736","Column14737","Column14738","Column14739","Column14740","Column14741","Column14742","Column14743","Column14744","Column14745","Column14746","Column14747","Column14748","Column14749","Column14750","Column14751","Column14752","Column14753","Column14754","Column14755","Column14756","Column14757","Column14758","Column14759","Column14760","Column14761","Column14762","Column14763","Column14764","Column14765","Column14766","Column14767","Column14768","Column14769","Column14770","Column14771","Column14772","Column14773","Column14774","Column14775","Column14776","Column14777","Column14778","Column14779","Column14780","Column14781","Column14782","Column14783","Column14784","Column14785","Column14786","Column14787","Column14788","Column14789","Column14790","Column14791","Column14792","Column14793","Column14794","Column14795","Column14796","Column14797","Column14798","Column14799","Column14800","Column14801","Column14802","Column14803","Column14804","Column14805","Column14806","Column14807","Column14808","Column14809","Column14810","Column14811","Column14812","Column14813","Column14814","Column14815","Column14816","Column14817","Column14818","Column14819","Column14820","Column14821","Column14822","Column14823","Column14824","Column14825","Column14826","Column14827","Column14828","Column14829","Column14830","Column14831","Column14832","Column14833","Column14834","Column14835","Column14836","Column14837","Column14838","Column14839","Column14840","Column14841","Column14842","Column14843","Column14844","Column14845","Column14846","Column14847","Column14848","Column14849","Column14850","Column14851","Column14852","Column14853","Column14854","Column14855","Column14856","Column14857","Column14858","Column14859","Column14860","Column14861","Column14862","Column14863","Column14864","Column14865","Column14866","Column14867","Column14868","Column14869","Column14870","Column14871","Column14872","Column14873","Column14874","Column14875","Column14876","Column14877","Column14878","Column14879","Column14880","Column14881","Column14882","Column14883","Column14884","Column14885","Column14886","Column14887","Column14888","Column14889","Column14890","Column14891","Column14892","Column14893","Column14894","Column14895","Column14896","Column14897","Column14898","Column14899","Column14900","Column14901","Column14902","Column14903","Column14904","Column14905","Column14906","Column14907","Column14908","Column14909","Column14910","Column14911","Column14912","Column14913","Column14914","Column14915","Column14916","Column14917","Column14918","Column14919","Column14920","Column14921","Column14922","Column14923","Column14924","Column14925","Column14926","Column14927","Column14928","Column14929","Column14930","Column14931","Column14932","Column14933","Column14934","Column14935","Column14936","Column14937","Column14938","Column14939","Column14940","Column14941","Column14942","Column14943","Column14944","Column14945","Column14946","Column14947","Column14948","Column14949","Column14950","Column14951","Column14952","Column14953","Column14954","Column14955","Column14956","Column14957","Column14958","Column14959","Column14960","Column14961","Column14962","Column14963","Column14964","Column14965","Column14966","Column14967","Column14968","Column14969","Column14970","Column14971","Column14972","Column14973","Column14974","Column14975","Column14976","Column14977","Column14978","Column14979","Column14980","Column14981","Column14982","Column14983","Column14984","Column14985","Column14986","Column14987","Column14988","Column14989","Column14990","Column14991","Column14992","Column14993","Column14994","Column14995","Column14996","Column14997","Column14998","Column14999","Column15000","Column15001","Column15002","Column15003","Column15004","Column15005","Column15006","Column15007","Column15008","Column15009","Column15010","Column15011","Column15012","Column15013","Column15014","Column15015","Column15016","Column15017","Column15018","Column15019","Column15020","Column15021","Column15022","Column15023","Column15024","Column15025","Column15026","Column15027","Column15028","Column15029","Column15030","Column15031","Column15032","Column15033","Column15034","Column15035","Column15036","Column15037","Column15038","Column15039","Column15040","Column15041","Column15042","Column15043","Column15044","Column15045","Column15046","Column15047","Column15048","Column15049","Column15050","Column15051","Column15052","Column15053","Column15054","Column15055","Column15056","Column15057","Column15058","Column15059","Column15060","Column15061","Column15062","Column15063","Column15064","Column15065","Column15066","Column15067","Column15068","Column15069","Column15070","Column15071","Column15072","Column15073","Column15074","Column15075","Column15076","Column15077","Column15078","Column15079","Column15080","Column15081","Column15082","Column15083","Column15084","Column15085","Column15086","Column15087","Column15088","Column15089","Column15090","Column15091","Column15092","Column15093","Column15094","Column15095","Column15096","Column15097","Column15098","Column15099","Column15100","Column15101","Column15102","Column15103","Column15104","Column15105","Column15106","Column15107","Column15108","Column15109","Column15110","Column15111","Column15112","Column15113","Column15114","Column15115","Column15116","Column15117","Column15118","Column15119","Column15120","Column15121","Column15122","Column15123","Column15124","Column15125","Column15126","Column15127","Column15128","Column15129","Column15130","Column15131","Column15132","Column15133","Column15134","Column15135","Column15136","Column15137","Column15138","Column15139","Column15140","Column15141","Column15142","Column15143","Column15144","Column15145","Column15146","Column15147","Column15148","Column15149","Column15150","Column15151","Column15152","Column15153","Column15154","Column15155","Column15156","Column15157","Column15158","Column15159","Column15160","Column15161","Column15162","Column15163","Column15164","Column15165","Column15166","Column15167","Column15168","Column15169","Column15170","Column15171","Column15172","Column15173","Column15174","Column15175","Column15176","Column15177","Column15178","Column15179","Column15180","Column15181","Column15182","Column15183","Column15184","Column15185","Column15186","Column15187","Column15188","Column15189","Column15190","Column15191","Column15192","Column15193","Column15194","Column15195","Column15196","Column15197","Column15198","Column15199","Column15200","Column15201","Column15202","Column15203","Column15204","Column15205","Column15206","Column15207","Column15208","Column15209","Column15210","Column15211","Column15212","Column15213","Column15214","Column15215","Column15216","Column15217","Column15218","Column15219","Column15220","Column15221","Column15222","Column15223","Column15224","Column15225","Column15226","Column15227","Column15228","Column15229","Column15230","Column15231","Column15232","Column15233","Column15234","Column15235","Column15236","Column15237","Column15238","Column15239","Column15240","Column15241","Column15242","Column15243","Column15244","Column15245","Column15246","Column15247","Column15248","Column15249","Column15250","Column15251","Column15252","Column15253","Column15254","Column15255","Column15256","Column15257","Column15258","Column15259","Column15260","Column15261","Column15262","Column15263","Column15264","Column15265","Column15266","Column15267","Column15268","Column15269","Column15270","Column15271","Column15272","Column15273","Column15274","Column15275","Column15276","Column15277","Column15278","Column15279","Column15280","Column15281","Column15282","Column15283","Column15284","Column15285","Column15286","Column15287","Column15288","Column15289","Column15290","Column15291","Column15292","Column15293","Column15294","Column15295","Column15296","Column15297","Column15298","Column15299","Column15300","Column15301","Column15302","Column15303","Column15304","Column15305","Column15306","Column15307","Column15308","Column15309","Column15310","Column15311","Column15312","Column15313","Column15314","Column15315","Column15316","Column15317","Column15318","Column15319","Column15320","Column15321","Column15322","Column15323","Column15324","Column15325","Column15326","Column15327","Column15328","Column15329","Column15330","Column15331","Column15332","Column15333","Column15334","Column15335","Column15336","Column15337","Column15338","Column15339","Column15340","Column15341","Column15342","Column15343","Column15344","Column15345","Column15346","Column15347","Column15348","Column15349","Column15350","Column15351","Column15352","Column15353","Column15354","Column15355","Column15356","Column15357","Column15358","Column15359","Column15360","Column15361","Column15362","Column15363","Column15364","Column15365","Column15366","Column15367","Column15368","Column15369","Column15370","Column15371","Column15372","Column15373","Column15374","Column15375","Column15376","Column15377","Column15378","Column15379","Column15380","Column15381","Column15382","Column15383","Column15384","Column15385","Column15386","Column15387","Column15388","Column15389","Column15390","Column15391","Column15392","Column15393","Column15394","Column15395","Column15396","Column15397","Column15398","Column15399","Column15400","Column15401","Column15402","Column15403","Column15404","Column15405","Column15406","Column15407","Column15408","Column15409","Column15410","Column15411","Column15412","Column15413","Column15414","Column15415","Column15416","Column15417","Column15418","Column15419","Column15420","Column15421","Column15422","Column15423","Column15424","Column15425","Column15426","Column15427","Column15428","Column15429","Column15430","Column15431","Column15432","Column15433","Column15434","Column15435","Column15436","Column15437","Column15438","Column15439","Column15440","Column15441","Column15442","Column15443","Column15444","Column15445","Column15446","Column15447","Column15448","Column15449","Column15450","Column15451","Column15452","Column15453","Column15454","Column15455","Column15456","Column15457","Column15458","Column15459","Column15460","Column15461","Column15462","Column15463","Column15464","Column15465","Column15466","Column15467","Column15468","Column15469","Column15470","Column15471","Column15472","Column15473","Column15474","Column15475","Column15476","Column15477","Column15478","Column15479","Column15480","Column15481","Column15482","Column15483","Column15484","Column15485","Column15486","Column15487","Column15488","Column15489","Column15490","Column15491","Column15492","Column15493","Column15494","Column15495","Column15496","Column15497","Column15498","Column15499","Column15500","Column15501","Column15502","Column15503","Column15504","Column15505","Column15506","Column15507","Column15508","Column15509","Column15510","Column15511","Column15512","Column15513","Column15514","Column15515","Column15516","Column15517","Column15518","Column15519","Column15520","Column15521","Column15522","Column15523","Column15524","Column15525","Column15526","Column15527","Column15528","Column15529","Column15530","Column15531","Column15532","Column15533","Column15534","Column15535","Column15536","Column15537","Column15538","Column15539","Column15540","Column15541","Column15542","Column15543","Column15544","Column15545","Column15546","Column15547","Column15548","Column15549","Column15550","Column15551","Column15552","Column15553","Column15554","Column15555","Column15556","Column15557","Column15558","Column15559","Column15560","Column15561","Column15562","Column15563","Column15564","Column15565","Column15566","Column15567","Column15568","Column15569","Column15570","Column15571","Column15572","Column15573","Column15574","Column15575","Column15576","Column15577","Column15578","Column15579","Column15580","Column15581","Column15582","Column15583","Column15584","Column15585","Column15586","Column15587","Column15588","Column15589","Column15590","Column15591","Column15592","Column15593","Column15594","Column15595","Column15596","Column15597","Column15598","Column15599","Column15600","Column15601","Column15602","Column15603","Column15604","Column15605","Column15606","Column15607","Column15608","Column15609","Column15610","Column15611","Column15612","Column15613","Column15614","Column15615","Column15616","Column15617","Column15618","Column15619","Column15620","Column15621","Column15622","Column15623","Column15624","Column15625","Column15626","Column15627","Column15628","Column15629","Column15630","Column15631","Column15632","Column15633","Column15634","Column15635","Column15636","Column15637","Column15638","Column15639","Column15640","Column15641","Column15642","Column15643","Column15644","Column15645","Column15646","Column15647","Column15648","Column15649","Column15650","Column15651","Column15652","Column15653","Column15654","Column15655","Column15656","Column15657","Column15658","Column15659","Column15660","Column15661","Column15662","Column15663","Column15664","Column15665","Column15666","Column15667","Column15668","Column15669","Column15670","Column15671","Column15672","Column15673","Column15674","Column15675","Column15676","Column15677","Column15678","Column15679","Column15680","Column15681","Column15682","Column15683","Column15684","Column15685","Column15686","Column15687","Column15688","Column15689","Column15690","Column15691","Column15692","Column15693","Column15694","Column15695","Column15696","Column15697","Column15698","Column15699","Column15700","Column15701","Column15702","Column15703","Column15704","Column15705","Column15706","Column15707","Column15708","Column15709","Column15710","Column15711","Column15712","Column15713","Column15714","Column15715","Column15716","Column15717","Column15718","Column15719","Column15720","Column15721","Column15722","Column15723","Column15724","Column15725","Column15726","Column15727","Column15728","Column15729","Column15730","Column15731","Column15732","Column15733","Column15734","Column15735","Column15736","Column15737","Column15738","Column15739","Column15740","Column15741","Column15742","Column15743","Column15744","Column15745","Column15746","Column15747","Column15748","Column15749","Column15750","Column15751","Column15752","Column15753","Column15754","Column15755","Column15756","Column15757","Column15758","Column15759","Column15760","Column15761","Column15762","Column15763","Column15764","Column15765","Column15766","Column15767","Column15768","Column15769","Column15770","Column15771","Column15772","Column15773","Column15774","Column15775","Column15776","Column15777","Column15778","Column15779","Column15780","Column15781","Column15782","Column15783","Column15784","Column15785","Column15786","Column15787","Column15788","Column15789","Column15790","Column15791","Column15792","Column15793","Column15794","Column15795","Column15796","Column15797","Column15798","Column15799","Column15800","Column15801","Column15802","Column15803","Column15804","Column15805","Column15806","Column15807","Column15808","Column15809","Column15810","Column15811","Column15812","Column15813","Column15814","Column15815","Column15816","Column15817","Column15818","Column15819","Column15820","Column15821","Column15822","Column15823","Column15824","Column15825","Column15826","Column15827","Column15828","Column15829","Column15830","Column15831","Column15832","Column15833","Column15834","Column15835","Column15836","Column15837","Column15838","Column15839","Column15840","Column15841","Column15842","Column15843","Column15844","Column15845","Column15846","Column15847","Column15848","Column15849","Column15850","Column15851","Column15852","Column15853","Column15854","Column15855","Column15856","Column15857","Column15858","Column15859","Column15860","Column15861","Column15862","Column15863","Column15864","Column15865","Column15866","Column15867","Column15868","Column15869","Column15870","Column15871","Column15872","Column15873","Column15874","Column15875","Column15876","Column15877","Column15878","Column15879","Column15880","Column15881","Column15882","Column15883","Column15884","Column15885","Column15886","Column15887","Column15888","Column15889","Column15890","Column15891","Column15892","Column15893","Column15894","Column15895","Column15896","Column15897","Column15898","Column15899","Column15900","Column15901","Column15902","Column15903","Column15904","Column15905","Column15906","Column15907","Column15908","Column15909","Column15910","Column15911","Column15912","Column15913","Column15914","Column15915","Column15916","Column15917","Column15918","Column15919","Column15920","Column15921","Column15922","Column15923","Column15924","Column15925","Column15926","Column15927","Column15928","Column15929","Column15930","Column15931","Column15932","Column15933","Column15934","Column15935","Column15936","Column15937","Column15938","Column15939","Column15940","Column15941","Column15942","Column15943","Column15944","Column15945","Column15946","Column15947","Column15948","Column15949","Column15950","Column15951","Column15952","Column15953","Column15954","Column15955","Column15956","Column15957","Column15958","Column15959","Column15960","Column15961","Column15962","Column15963","Column15964","Column15965","Column15966","Column15967","Column15968","Column15969","Column15970","Column15971","Column15972","Column15973","Column15974","Column15975","Column15976","Column15977","Column15978","Column15979","Column15980","Column15981","Column15982","Column15983","Column15984","Column15985","Column15986","Column15987","Column15988","Column15989","Column15990","Column15991","Column15992","Column15993","Column15994","Column15995","Column15996","Column15997","Column15998","Column15999","Column16000","Column16001","Column16002","Column16003","Column16004","Column16005","Column16006","Column16007","Column16008","Column16009","Column16010","Column16011","Column16012","Column16013","Column16014","Column16015","Column16016","Column16017","Column16018","Column16019","Column16020","Column16021","Column16022","Column16023","Column16024","Column16025","Column16026","Column16027","Column16028","Column16029","Column16030","Column16031","Column16032","Column16033","Column16034","Column16035","Column16036","Column16037","Column16038","Column16039","Column16040","Column16041","Column16042","Column16043","Column16044","Column16045","Column16046","Column16047","Column16048","Column16049","Column16050","Column16051","Column16052","Column16053","Column16054","Column16055","Column16056","Column16057","Column16058","Column16059","Column16060","Column16061","Column16062","Column16063","Column16064","Column16065","Column16066","Column16067","Column16068","Column16069","Column16070","Column16071","Column16072","Column16073","Column16074","Column16075","Column16076","Column16077","Column16078","Column16079","Column16080","Column16081","Column16082","Column16083","Column16084","Column16085","Column16086","Column16087","Column16088","Column16089","Column16090","Column16091","Column16092","Column16093","Column16094","Column16095","Column16096","Column16097","Column16098","Column16099","Column16100","Column16101","Column16102","Column16103","Column16104","Column16105","Column16106","Column16107","Column16108","Column16109","Column16110","Column16111","Column16112","Column16113","Column16114","Column16115","Column16116","Column16117","Column16118","Column16119","Column16120","Column16121","Column16122","Column16123","Column16124","Column16125","Column16126","Column16127","Column16128","Column16129","Column16130","Column16131","Column16132","Column16133","Column16134","Column16135","Column16136","Column16137","Column16138","Column16139","Column16140","Column16141","Column16142","Column16143","Column16144","Column16145","Column16146","Column16147","Column16148","Column16149","Column16150","Column16151","Column16152","Column16153","Column16154","Column16155","Column16156","Column16157","Column16158","Column16159","Column16160","Column16161","Column16162","Column16163","Column16164","Column16165","Column16166","Column16167","Column16168","Column16169","Column16170","Column16171","Column16172","Column16173","Column16174","Column16175","Column16176","Column16177","Column16178","Column16179","Column16180","Column16181","Column16182","Column16183","Column16184","Column16185","Column16186","Column16187","Column16188","Column16189","Column16190","Column16191","Column16192","Column16193","Column16194","Column16195","Column16196","Column16197","Column16198","Column16199","Column16200","Column16201","Column16202","Column16203","Column16204","Column16205","Column16206","Column16207","Column16208","Column16209","Column16210","Column16211","Column16212","Column16213","Column16214","Column16215","Column16216","Column16217","Column16218","Column16219","Column16220","Column16221","Column16222","Column16223","Column16224","Column16225","Column16226","Column16227","Column16228","Column16229","Column16230","Column16231","Column16232","Column16233","Column16234","Column16235","Column16236","Column16237","Column16238","Column16239","Column16240","Column16241","Column16242","Column16243","Column16244","Column16245","Column16246","Column16247","Column16248","Column16249","Column16250","Column16251","Column16252","Column16253","Column16254","Column16255","Column16256","Column16257","Column16258","Column16259","Column16260","Column16261","Column16262","Column16263","Column16264","Column16265","Column16266","Column16267","Column16268","Column16269","Column16270","Column16271","Column16272","Column16273","Column16274","Column16275","Column16276","Column16277","Column16278","Column16279","Column16280","Column16281","Column16282","Column16283","Column16284","Column16285","Column16286","Column16287","Column16288","Column16289","Column16290","Column16291","Column16292","Column16293","Column16294","Column16295","Column16296","Column16297","Column16298","Column16299","Column16300","Column16301","Column16302","Column16303","Column16304","Column16305","Column16306","Column16307","Column16308","Column16309","Column16310","Column16311","Column16312","Column16313","Column16314","Column16315","Column16316","Column16317","Column16318","Column16319","Column16320","Column16321","Column16322","Column16323","Column16324","Column16325","Column16326","Column16327","Column16328","Column16329","Column16330","Column16331","Column16332","Column16333","Column16334","Column16335","Column16336","Column16337","Column16338","Column16339","Column16340","Column16341","Column16342","Column16343","Column16344","Column16345","Column16346","Column16347","Column16348","Column16349","Column16350","Column16351","Column16352","Column16353","Column16354","Column16355","Column16356","Column16357","Column16358","Column16359","Column16360","Column16361","Column16362","Column16363","Column16364","Column16365","Column16366","Column16367","Column16368","Column16369","Column16370","Column16371","Column16372","Column16373","Column16374","Column16375","Column16376","Column16377","Column16378","Column16379","Column16380","Column16381","Column16382"]
["\nAccess Clearing:\nHazard trees and overhead Hazards.Felling operations-mechanical and fallers. Slower operational tempo, cumulative fatigue, and boredom."]
["Aerial Ignition","~ Follow Aerial Ignition Plan and the RMA for aerial ignition."]
["Air Operations","~ Follow \" Aviation Watch-Out Situations\" on page 44, IRPG.\n~ Don't plan on air resources for medical transport or resupply.\n~ Ensure positive communication with all air resources."]
["Air Operations/ Line Support","Follow \"Avaition Watch Out Situations\" pg 44, IRPG\nEnsure positive communications with all air resources\nStay clear of all retardent and bucket drops\nAllow 2 minutes prior to re-entry into drop zone\nAll divisions monitor Air to Ground communications\nDon't plan on air resources for medical transport or resupply\nAir attack is not to take place of a lookout.\nKeep personnel 2 1/2 times the affected tree height from drop zone.\nSheriff patrol to keep boat traffic out of Fire Aviation scoop area."]
["ATV/UTV use","~ Ensure equipment is inspected and safe to use.\n~ Restrict UTV's to max width of 50\" on ATV trails due to width and severe out sloped conditions.\n~ Ensure operator is trained and certified to operate.\n~ Ensure operator has proper PPE according to the Redbook and/or RMA.\n~ Question if it is mission critical."]
["Bees, Ticks, Mosquitoes","~ Canvas crew members for those with known allergic reactions to stings.\n~ Ensure crew members have medication pens if needed.\n~ Perform daily self inspection.\n~ Use repellent as necessary.\n~ Advanced Life Support,  multi-dose epi and airway protection.\n~ Keep affected area clean and bandaged.\n~ Be extra careful when eating and/or drinking to avoid stings to mouth and throat."]
["Blasting Operations","~ Follow Lead Blaster's directions.\n~ Post lookouts and/ or fireline guard to prevent accident entry by non-associated personnel..\n~ Remove all personnel a minimum of 1000 feet prior to blasting.\n~ Do not operate machinery within 50 feet of explosives.\n~ Do not fight \"Blasting Fires\".  Assume they may detonate.  Allow to burn themselves out.\n~ Always face the blast, watching for flying debris.\n~ Watch for other trees and snags that might fall.\n~ Division and adjacent Divisions will be notified on Command channel by radio prior to blast.\n"]
["Camp","Camp","Camp","Camp","Camp","Camp","Camp","Camp","Camp","Camp","Camp","Camp","Camp","Camp","Camp","Camp","Camp","Camp","Camp","Camp","Camp","Camp","Camp","Camp","Camp","Camp","Camp","Camp","Camp","Camp","Camp","Camp","Camp","Camp","Camp","Camp","Camp","Camp","Camp","Camp","Camp","Camp","Camp","Camp","Camp","Camp","Camp","Camp","Camp","Camp","Camp","Camp","Camp","Camp","Camp","Camp","Camp","Camp","Camp","Camp","Camp","Camp","Camp","Camp","Camp","Camp","Camp","Camp","Camp","Camp","Camp","Camp","Camp","Camp","Camp","Camp","Camp","Camp","Camp","Camp","Camp","Camp","Camp","Camp","Camp","Camp","Camp","Camp","Camp","Camp","Camp","Camp","Camp","Camp","Camp","Camp","Camp","Camp","Camp","Camp","Camp","Camp","Camp","Camp","Camp","Camp","Camp","Camp","Camp","Camp","Camp","Camp","Camp","Camp","Camp","Camp","Camp","Camp","Camp","Camp","Camp","Camp","Camp","Camp","Camp","Camp","Camp","Camp","Camp","Camp","Camp","Camp","Camp","Camp","Camp","Camp","Camp","Camp","Camp","Camp","Camp","Camp","Camp","Camp","Camp","Camp","Camp","Camp","Camp","Camp","Camp","Camp","Camp","Camp","Camp","Camp","Camp","Camp","Camp","Camp","Camp","Camp","Camp","Camp","Camp","Camp","Camp","Camp","Camp","Camp","Camp","Camp","Camp","Camp","Camp","Camp","Camp","Camp","Camp","Camp","Camp","Camp","Camp","Camp","Camp","Camp","Camp","Camp","Camp","Camp","Camp","Camp","Camp","Camp","Camp","Camp","Camp","Camp","Camp","Camp","Camp","Camp","Camp","Camp","Camp","Camp","Camp","Camp","Camp","Camp","Camp","Camp","Camp","Camp","Camp","Camp","Camp","Camp","Camp","Camp","Camp","Camp","Camp","Camp","Camp","Camp","Camp","Camp","Camp","Camp","Camp","Camp","Camp","Camp","Camp","Camp","Camp","Camp","Camp","Camp","Camp","Camp","Camp","Camp","Camp","Camp","Camp","Camp","Camp","Camp","Camp","Camp","Camp","Camp","Camp","Camp","Camp","Camp","Camp","Camp","Camp","Camp","Camp","Camp","Camp","Camp","Camp","Camp","Camp","Camp","Camp","Camp","Camp","Camp","Camp","Camp","Camp","Camp","Camp","Camp","Camp","Camp","Camp","Camp","Camp","Camp","Camp","Camp","Camp","Camp","Camp","Camp","Camp","Camp","Camp","Camp","Camp","Camp","Camp","Camp","Camp","Camp","Camp","Camp","Camp","Camp","Camp","Camp","Camp","Camp","Camp","Camp","Camp","Camp","Camp","Camp","Camp","Camp","Camp","Camp","Camp","Camp","Camp","Camp","Camp","Camp","Camp","Camp","Camp","Camp","Camp","Camp","Camp","Camp","Camp","Camp","Camp","Camp","Camp","Camp","Camp","Camp","Camp","Camp","Camp","Camp","Camp","Camp","Camp","Camp","Camp","Camp","Camp","Camp","Camp","Camp","Camp","Camp","Camp","Camp","Camp","Camp","Camp","Camp","Camp","Camp","Camp","Camp","Camp","Camp","Camp","Camp","Camp","Camp","Camp","Camp","Camp","Camp","Camp","Camp","Camp","Camp","Camp","Camp","Camp","Camp","Camp","Camp","Camp","Camp","Camp","Camp","Camp","Camp","Camp","Camp","Camp","Camp","Camp","Camp","Camp","Camp","Camp","Camp","Camp","Camp","Camp","Camp","Camp","Camp","Camp","Camp","Camp","Camp","Camp","Camp","Camp","Camp","Camp","Camp","Camp","Camp","Camp","Camp","Camp","Camp","Camp","Camp","Camp","Camp","Camp","Camp","Camp","Camp","Camp","Camp","Camp","Camp","Camp","Camp","Camp","Camp","Camp","Camp","Camp","Camp","Camp","Camp","Camp","Camp","Camp","Camp","Camp","Camp","Camp","Camp","Camp","Camp","Camp","Camp","Camp","Camp","Camp","Camp","Camp","Camp","Camp","Camp","Camp","Camp","Camp","Camp","Camp","Camp","Camp","Camp","Camp","Camp","Camp","Camp","Camp","Camp","Camp","Camp","Camp","Camp","Camp","Camp","Camp","Camp","Camp","Camp","Camp","Camp","Camp","Camp","Camp","Camp","Camp","Camp","Camp","Camp","Camp","Camp","Camp","Camp","Camp","Camp","Camp","Camp","Camp","Camp","Camp","Camp","Camp","Camp","Camp","Camp","Camp","Camp","Camp","Camp","Camp","Camp","Camp","Camp","Camp","Camp","Camp","Camp","Camp","Camp","Camp","Camp","Camp","Camp","Camp","Camp","Camp","Camp","Camp","Camp","Camp","Camp","Camp","Camp","Camp","Camp","Camp","Camp","Camp","Camp","Camp","Camp","Camp","Camp","Camp","Camp","Camp","Camp","Camp","Camp","Camp","Camp","Camp","Camp","Camp","Camp","Camp","Camp","Camp","Camp","Camp","Camp","Camp","Camp","Camp","Camp","Camp","Camp","Camp","Camp","Camp","Camp","Camp","Camp","Camp","Camp","Camp","Camp","Camp","Camp","Camp","Camp","Camp","Camp","Camp","Camp","Camp","Camp","Camp","Camp","Camp","Camp","Camp","Camp","Camp","Camp","Camp","Camp","Camp","Camp","Camp","Camp","Camp","Camp","Camp","Camp","Camp","Camp","Camp","Camp","Camp","Camp","Camp","Camp","Camp","Camp","Camp","Camp","Camp","Camp","Camp","Camp","Camp","Camp","Camp","Camp","Camp","Camp","Camp","Camp","Camp","Camp","Camp","Camp","Camp","Camp","Camp","Camp","Camp","Camp","Camp","Camp","Camp","Camp","Camp","Camp","Camp","Camp","Camp","Camp","Camp","Camp","Camp","Camp","Camp","Camp","Camp","Camp","Camp","Camp","Camp","Camp","Camp","Camp","Camp","Camp","Camp","Camp","Camp","Camp","Camp","Camp","Camp","Camp","Camp","Camp","Camp","Camp","Camp","Camp","Camp","Camp","Camp","Camp","Camp","Camp","Camp","Camp","Camp","Camp","Camp","Camp","Camp","Camp","Camp","Camp","Camp","Camp","Camp","Camp","Camp","Camp","Camp","Camp","Camp","Camp","Camp","Camp","Camp","Camp","Camp","Camp","Camp","Camp","Camp","Camp","Camp","Camp","Camp","Camp","Camp","Camp","Camp","Camp","Camp","Camp","Camp","Camp","Camp","Camp","Camp","Camp","Camp","Camp","Camp","Camp","Camp","Camp","Camp","Camp","Camp","Camp","Camp","Camp","Camp","Camp","Camp","Camp","Camp","Camp","Camp","Camp","Camp","Camp","Camp","Camp","Camp","Camp","Camp","Camp","Camp","Camp","Camp","Camp","Camp","Camp","Camp","Camp","Camp","Camp","Camp","Camp","Camp","Camp","Camp","Camp","Camp","Camp","Camp","Camp","Camp","Camp","Camp","Camp","Camp","Camp","Camp","Camp","Camp","Camp","Camp","Camp","Camp","Camp","Camp","Camp","Camp","Camp","Camp","Camp","Camp","Camp","Camp","Camp","Camp","Camp","Camp","Camp","Camp","Camp","Camp","Camp","Camp","Camp","Camp","Camp","Camp","Camp","Camp","Camp","Camp","Camp","Camp","Camp","Camp","Camp","Camp","Camp","Camp","Camp","Camp","Camp","Camp","Camp","Camp","Camp","Camp","Camp","Camp","Camp","Camp","Camp","Camp","Camp","Camp","Camp","Camp","Camp","Camp","Camp","Camp","Camp","Camp","Camp","Camp","Camp","Camp","Camp","Camp","Camp","Camp","Camp","Camp","Camp","Camp","Camp","Camp","Camp","Camp","Camp","Camp","Camp","Camp","Camp","Camp","Camp","Camp","Camp","Camp","Camp","Camp","Camp","Camp","Camp","Camp","Camp","Camp","Camp","Camp","Camp","Camp","Camp","Camp","Camp","Camp","Camp","Camp","Camp","Camp","Camp","Camp","Camp","Camp","Camp","Camp","Camp","Camp","Camp","Camp","Camp","Camp","Camp","Camp","Camp","Camp","Camp","Camp","Camp","Camp","Camp","Camp","Camp","Camp","Camp","Camp","Camp","Camp","Camp","Camp","Camp","Camp","Camp","Camp","Camp","Camp","Camp","Camp","Camp","Camp","Camp","Camp","Camp","Camp","Camp","Camp","Camp","Camp","Camp","Camp","Camp","Camp","Camp","Camp","Camp","Camp","Camp","Camp","Camp","Camp","Camp","Camp","Camp","Camp","Camp","Camp","Camp","Camp","Camp","Camp","Camp","Camp","Camp","Camp","Camp","Camp","Camp","Camp","Camp","Camp","Camp","Camp","Camp","Camp","Camp","Camp","Camp","Camp","Camp","Camp","Camp","Camp","Camp","Camp","Camp","Camp","Camp","Camp","Camp","Camp","Camp","Camp","Camp","Camp","Camp","Camp","Camp","Camp","Camp","Camp","Camp","Camp","Camp","Camp","Camp","Camp","Camp","Camp","Camp","Camp","Camp","Camp","Camp","Camp","Camp","Camp","Camp","Camp","Camp","Camp","Camp","Camp","Camp","Camp","Camp","Camp","Camp","Camp","Camp","Camp","Camp","Camp","Camp","Camp","Camp","Camp","Camp","Camp","Camp","Camp","Camp","Camp","Camp","Camp","Camp","Camp","Camp","Camp","Camp","Camp","Camp","Camp","Camp","Camp","Camp","Camp","Camp","Camp","Camp","Camp","Camp","Camp","Camp","Camp","Camp","Camp","Camp","Camp","Camp","Camp","Camp","Camp","Camp","Camp","Camp","Camp","Camp","Camp","Camp","Camp","Camp","Camp","Camp","Camp","Camp","Camp","Camp","Camp","Camp","Camp","Camp","Camp","Camp","Camp","Camp","Camp","Camp","Camp","Camp","Camp","Camp","Camp","Camp","Camp","Camp","Camp","Camp","Camp","Camp","Camp","Camp","Camp","Camp","Camp","Camp","Camp","Camp","Camp","Camp","Camp","Camp","Camp","Camp","Camp","Camp","Camp","Camp","Camp","Camp","Camp","Camp","Camp","Camp","Camp","Camp","Camp","Camp","Camp","Camp","Camp","Camp","Camp","Camp","Camp","Camp","Camp","Camp","Camp","Camp","Camp","Camp","Camp","Camp","Camp","Camp","Camp","Camp","Camp","Camp","Camp","Camp","Camp","Camp","Camp","Camp","Camp","Camp","Camp","Camp","Camp","Camp","Camp","Camp","Camp","Camp","Camp","Camp","Camp","Camp","Camp","Camp","Camp","Camp","Camp","Camp","Camp","Camp","Camp","Camp","Camp","Camp","Camp","Camp","Camp","Camp","Camp","Camp","Camp","Camp","Camp","Camp","Camp","Camp","Camp","Camp","Camp","Camp","Camp","Camp","Camp","Camp","Camp","Camp","Camp","Camp","Camp","Camp","Camp","Camp","Camp","Camp","Camp","Camp","Camp","Camp","Camp","Camp","Camp","Camp","Camp","Camp","Camp","Camp","Camp","Camp","Camp","Camp","Camp","Camp","Camp","Camp","Camp","Camp","Camp","Camp","Camp","Camp","Camp","Camp","Camp","Camp","Camp","Camp","Camp","Camp","Camp","Camp","Camp","Camp","Camp","Camp","Camp","Camp","Camp","Camp","Camp","Camp","Camp","Camp","Camp","Camp","Camp","Camp","Camp","Camp","Camp","Camp","Camp","Camp","Camp","Camp","Camp","Camp","Camp","Camp","Camp","Camp","Camp","Camp","Camp","Camp","Camp","Camp","Camp","Camp","Camp","Camp","Camp","Camp","Camp","Camp","Camp","Camp","Camp","Camp","Camp","Camp","Camp","Camp","Camp","Camp","Camp","Camp","Camp","Camp","Camp","Camp","Camp","Camp","Camp","Camp","Camp","Camp","Camp","Camp","Camp","Camp","Camp","Camp","Camp","Camp","Camp","Camp","Camp","Camp","Camp","Camp","Camp","Camp","Camp","Camp","Camp","Camp","Camp","Camp","Camp","Camp","Camp","Camp","Camp","Camp","Camp","Camp","Camp","Camp","Camp","Camp","Camp","Camp","Camp","Camp","Camp","Camp","Camp","Camp","Camp","Camp","Camp","Camp","Camp","Camp","Camp","Camp","Camp","Camp","Camp","Camp","Camp","Camp","Camp","Camp","Camp","Camp","Camp","Camp","Camp","Camp","Camp","Camp","Camp","Camp","Camp","Camp","Camp","Camp","Camp","Camp","Camp","Camp","Camp","Camp","Camp","Camp","Camp","Camp","Camp","Camp","Camp","Camp","Camp","Camp","Camp","Camp","Camp","Camp","Camp","Camp","Camp","Camp","Camp","Camp","Camp","Camp","Camp","Camp","Camp","Camp","Camp","Camp","Camp","Camp","Camp","Camp","Camp","Camp","Camp","Camp","Camp","Camp","Camp","Camp","Camp","Camp","Camp","Camp","Camp","Camp","Camp","Camp","Camp","Camp","Camp","Camp","Camp","Camp","Camp","Camp","Camp","Camp","Camp","Camp","Camp","Camp","Camp","Camp","Camp","Camp","Camp","Camp","Camp","Camp","Camp","Camp","Camp","Camp","Camp","Camp","Camp","Camp","Camp","Camp","Camp","Camp","Camp","Camp","Camp","Camp","Camp","Camp","Camp","Camp","Camp","Camp","Camp","Camp","Camp","Camp","Camp","Camp","Camp","Camp","Camp","Camp","Camp","Camp","Camp","Camp","Camp","Camp","Camp","Camp","Camp","Camp","Camp","Camp","Camp","Camp","Camp","Camp","Camp","Camp","Camp","Camp","Camp","Camp","Camp","Camp","Camp","Camp","Camp","Camp","Camp","Camp","Camp","Camp","Camp","Camp","Camp","Camp","Camp","Camp","Camp","Camp","Camp","Camp","Camp","Camp","Camp","Camp","Camp","Camp","Camp","Camp","Camp","Camp","Camp","Camp","Camp","Camp","Camp","Camp","Camp","Camp","Camp","Camp","Camp","Camp","Camp","Camp","Camp","Camp","Camp","Camp","Camp","Camp","Camp","Camp","Camp","Camp","Camp","Camp","Camp","Camp","Camp","Camp","Camp","Camp","Camp","Camp","Camp","Camp","Camp","Camp","Camp","Camp","Camp","Camp","Camp","Camp","Camp","Camp","Camp","Camp","Camp","Camp","Camp","Camp","Camp","Camp","Camp","Camp","Camp","Camp","Camp","Camp","Camp","Camp","Camp","Camp","Camp","Camp","Camp","Camp","Camp","Camp","Camp","Camp","Camp","Camp","Camp","Camp","Camp","Camp","Camp","Camp","Camp","Camp","Camp","Camp","Camp","Camp","Camp","Camp","Camp","Camp","Camp","Camp","Camp","Camp","Camp","Camp","Camp","Camp","Camp","Camp","Camp","Camp","Camp","Camp","Camp","Camp","Camp","Camp","Camp","Camp","Camp","Camp","Camp","Camp","Camp","Camp","Camp","Camp","Camp","Camp","Camp","Camp","Camp","Camp","Camp","Camp","Camp","Camp","Camp","Camp","Camp","Camp","Camp","Camp","Camp","Camp","Camp","Camp","Camp","Camp","Camp","Camp","Camp","Camp","Camp","Camp","Camp","Camp","Camp","Camp","Camp","Camp","Camp","Camp","Camp","Camp","Camp","Camp","Camp","Camp","Camp","Camp","Camp","Camp","Camp","Camp","Camp","Camp","Camp","Camp","Camp","Camp","Camp","Camp","Camp","Camp","Camp","Camp","Camp","Camp","Camp","Camp","Camp","Camp","Camp","Camp","Camp","Camp","Camp","Camp","Camp","Camp","Camp","Camp","Camp","Camp","Camp","Camp","Camp","Camp","Camp","Camp","Camp","Camp","Camp","Camp","Camp","Camp","Camp","Camp","Camp","Camp","Camp","Camp","Camp","Camp","Camp","Camp","Camp","Camp","Camp","Camp","Camp","Camp","Camp","Camp","Camp","Camp","Camp","Camp","Camp","Camp","Camp","Camp","Camp","Camp","Camp","Camp","Camp","Camp","Camp","Camp","Camp","Camp","Camp","Camp","Camp","Camp","Camp","Camp","Camp","Camp","Camp","Camp","Camp","Camp","Camp","Camp","Camp","Camp","Camp","Camp","Camp","Camp","Camp","Camp","Camp","Camp","Camp","Camp","Camp","Camp","Camp","Camp","Camp","Camp","Camp","Camp","Camp","Camp","Camp","Camp","Camp","Camp","Camp","Camp","Camp","Camp","Camp","Camp","Camp","Camp","Camp","Camp","Camp","Camp","Camp","Camp","Camp","Camp","Camp","Camp","Camp","Camp","Camp","Camp","Camp","Camp","Camp","Camp","Camp","Camp","Camp","Camp","Camp","Camp","Camp","Camp","Camp","Camp","Camp","Camp","Camp","Camp","Camp","Camp","Camp","Camp","Camp","Camp","Camp","Camp","Camp","Camp","Camp","Camp","Camp","Camp","Camp","Camp","Camp","Camp","Camp","Camp","Camp","Camp","Camp","Camp","Camp","Camp","Camp","Camp","Camp","Camp","Camp","Camp","Camp","Camp","Camp","Camp","Camp","Camp","Camp","Camp","Camp","Camp","Camp","Camp","Camp","Camp","Camp","Camp","Camp","Camp","Camp","Camp","Camp","Camp","Camp","Camp","Camp","Camp","Camp","Camp","Camp","Camp","Camp","Camp","Camp","Camp","Camp","Camp","Camp","Camp","Camp","Camp","Camp","Camp","Camp","Camp","Camp","Camp","Camp","Camp","Camp","Camp","Camp","Camp","Camp","Camp","Camp","Camp","Camp","Camp","Camp","Camp","Camp","Camp","Camp","Camp","Camp","Camp","Camp","Camp","Camp","Camp","Camp","Camp","Camp","Camp","Camp","Camp","Camp","Camp","Camp","Camp","Camp","Camp","Camp","Camp","Camp","Camp","Camp","Camp","Camp","Camp","Camp","Camp","Camp","Camp","Camp","Camp","Camp","Camp","Camp","Camp","Camp","Camp","Camp","Camp","Camp","Camp","Camp","Camp","Camp","Camp","Camp","Camp","Camp","Camp","Camp","Camp","Camp","Camp","Camp","Camp","Camp","Camp","Camp","Camp","Camp","Camp","Camp","Camp","Camp","Camp","Camp","Camp","Camp","Camp","Camp","Camp","Camp","Camp","Camp","Camp","Camp","Camp","Camp","Camp","Camp","Camp","Camp","Camp","Camp","Camp","Camp","Camp","Camp","Camp","Camp","Camp","Camp","Camp","Camp","Camp","Camp","Camp","Camp","Camp","Camp","Camp","Camp","Camp","Camp","Camp","Camp","Camp","Camp","Camp","Camp","Camp","Camp","Camp","Camp","Camp","Camp","Camp","Camp","Camp","Camp","Camp","Camp","Camp","Camp","Camp","Camp","Camp","Camp","Camp","Camp","Camp","Camp","Camp","Camp","Camp","Camp","Camp","Camp","Camp","Camp","Camp","Camp","Camp","Camp","Camp","Camp","Camp","Camp","Camp","Camp","Camp","Camp","Camp","Camp","Camp","Camp","Camp","Camp","Camp","Camp","Camp","Camp","Camp","Camp","Camp","Camp","Camp","Camp","Camp","Camp","Camp","Camp","Camp","Camp","Camp","Camp","Camp","Camp","Camp","Camp","Camp","Camp","Camp","Camp","Camp","Camp","Camp","Camp","Camp","Camp","Camp","Camp","Camp","Camp","Camp","Camp","Camp","Camp","Camp","Camp","Camp","Camp","Camp","Camp","Camp","Camp","Camp","Camp","Camp","Camp","Camp","Camp","Camp","Camp","Camp","Camp","Camp","Camp","Camp","Camp","Camp","Camp","Camp","Camp","Camp","Camp","Camp","Camp","Camp","Camp","Camp","Camp","Camp","Camp","Camp","Camp","Camp","Camp","Camp","Camp","Camp","Camp","Camp","Camp","Camp","Camp","Camp","Camp","Camp","Camp","Camp","Camp","Camp","Camp","Camp","Camp","Camp","Camp","Camp","Camp","Camp","Camp","Camp","Camp","Camp","Camp","Camp","Camp","Camp","Camp","Camp","Camp","Camp","Camp","Camp","Camp","Camp","Camp","Camp","Camp","Camp","Camp","Camp","Camp","Camp","Camp","Camp","Camp","Camp","Camp","Camp","Camp","Camp","Camp","Camp","Camp","Camp","Camp","Camp","Camp","Camp","Camp","Camp","Camp","Camp","Camp","Camp","Camp","Camp","Camp","Camp","Camp","Camp","Camp","Camp","Camp","Camp","Camp","Camp","Camp","Camp","Camp","Camp","Camp","Camp","Camp","Camp","Camp","Camp","Camp","Camp","Camp","Camp","Camp","Camp","Camp","Camp","Camp","Camp","Camp","Camp","Camp","Camp","Camp","Camp","Camp","Camp","Camp","Camp","Camp","Camp","Camp","Camp","Camp","Camp","Camp","Camp","Camp","Camp","Camp","Camp","Camp","Camp","Camp","Camp","Camp","Camp","Camp","Camp","Camp","Camp","Camp","Camp","Camp","Camp","Camp","Camp","Camp","Camp","Camp","Camp","Camp","Camp","Camp","Camp","Camp","Camp","Camp","Camp","Camp","Camp","Camp","Camp","Camp","Camp","Camp","Camp","Camp","Camp","Camp","Camp","Camp","Camp","Camp","Camp","Camp","Camp","Camp","Camp","Camp","Camp","Camp","Camp","Camp","Camp","Camp","Camp","Camp","Camp","Camp","Camp","Camp","Camp","Camp","Camp","Camp","Camp","Camp","Camp","Camp","Camp","Camp","Camp","Camp","Camp","Camp","Camp","Camp","Camp","Camp","Camp","Camp","Camp","Camp","Camp","Camp","Camp","Camp","Camp","Camp","Camp","Camp","Camp","Camp","Camp","Camp","Camp","Camp","Camp","Camp","Camp","Camp","Camp","Camp","Camp","Camp","Camp","Camp","Camp","Camp","Camp","Camp","Camp","Camp","Camp","Camp","Camp","Camp","Camp","Camp","Camp","Camp","Camp","Camp","Camp","Camp","Camp","Camp","Camp","Camp","Camp","Camp","Camp","Camp","Camp","Camp","Camp","Camp","Camp","Camp","Camp","Camp","Camp","Camp","Camp","Camp","Camp","Camp","Camp","Camp","Camp","Camp","Camp","Camp","Camp","Camp","Camp","Camp","Camp","Camp","Camp","Camp","Camp","Camp","Camp","Camp","Camp","Camp","Camp","Camp","Camp","Camp","Camp","Camp","Camp","Camp","Camp","Camp","Camp","Camp","Camp","Camp","Camp","Camp","Camp","Camp","Camp","Camp","Camp","Camp","Camp","Camp","Camp","Camp","Camp","Camp","Camp","Camp","Camp","Camp","Camp","Camp","Camp","Camp","Camp","Camp","Camp","Camp","Camp","Camp","Camp","Camp","Camp","Camp","Camp","Camp","Camp","Camp","Camp","Camp","Camp","Camp","Camp","Camp","Camp","Camp","Camp","Camp","Camp","Camp","Camp","Camp","Camp","Camp","Camp","Camp","Camp","Camp","Camp","Camp","Camp","Camp","Camp","Camp","Camp","Camp","Camp","Camp","Camp","Camp","Camp","Camp","Camp","Camp","Camp","Camp","Camp","Camp","Camp","Camp","Camp","Camp","Camp","Camp","Camp","Camp","Camp","Camp","Camp","Camp","Camp","Camp","Camp","Camp","Camp","Camp","Camp","Camp","Camp","Camp","Camp","Camp","Camp","Camp","Camp","Camp","Camp","Camp","Camp","Camp","Camp","Camp","Camp","Camp","Camp","Camp","Camp","Camp","Camp","Camp","Camp","Camp","Camp","Camp","Camp","Camp","Camp","Camp","Camp","Camp","Camp","Camp","Camp","Camp","Camp","Camp","Camp","Camp","Camp","Camp","Camp","Camp","Camp","Camp","Camp","Camp","Camp","Camp","Camp","Camp","Camp","Camp","Camp","Camp","Camp","Camp","Camp","Camp","Camp","Camp","Camp","Camp","Camp","Camp","Camp","Camp","Camp","Camp","Camp","Camp","Camp","Camp","Camp","Camp","Camp","Camp","Camp","Camp","Camp","Camp","Camp","Camp","Camp","Camp","Camp","Camp","Camp","Camp","Camp","Camp","Camp","Camp","Camp","Camp","Camp","Camp","Camp","Camp","Camp","Camp","Camp","Camp","Camp","Camp","Camp","Camp","Camp","Camp","Camp","Camp","Camp","Camp","Camp","Camp","Camp","Camp","Camp","Camp","Camp","Camp","Camp","Camp","Camp","Camp","Camp","Camp","Camp","Camp","Camp","Camp","Camp","Camp","Camp","Camp","Camp","Camp","Camp","Camp","Camp","Camp","Camp","Camp","Camp","Camp","Camp","Camp","Camp","Camp","Camp","Camp","Camp","Camp","Camp","Camp","Camp","Camp","Camp","Camp","Camp","Camp","Camp","Camp","Camp","Camp","Camp","Camp","Camp","Camp","Camp","Camp","Camp","Camp","Camp","Camp","Camp","Camp","Camp","Camp","Camp","Camp","Camp","Camp","Camp","Camp","Camp","Camp","Camp","Camp","Camp","Camp","Camp","Camp","Camp","Camp","Camp","Camp","Camp","Camp","Camp","Camp","Camp","Camp","Camp","Camp","Camp","Camp","Camp","Camp","Camp","Camp","Camp","Camp","Camp","Camp","Camp","Camp","Camp","Camp","Camp","Camp","Camp","Camp","Camp","Camp","Camp","Camp","Camp","Camp","Camp","Camp","Camp","Camp","Camp","Camp","Camp","Camp","Camp","Camp","Camp","Camp","Camp","Camp","Camp","Camp","Camp","Camp","Camp","Camp","Camp","Camp","Camp","Camp","Camp","Camp","Camp","Camp","Camp","Camp","Camp","Camp","Camp","Camp","Camp","Camp","Camp","Camp","Camp","Camp","Camp","Camp","Camp","Camp","Camp","Camp","Camp","Camp","Camp","Camp","Camp","Camp","Camp","Camp","Camp","Camp","Camp","Camp","Camp","Camp","Camp","Camp","Camp","Camp","Camp","Camp","Camp","Camp","Camp","Camp","Camp","Camp","Camp","Camp","Camp","Camp","Camp","Camp","Camp","Camp","Camp","Camp","Camp","Camp","Camp","Camp","Camp","Camp","Camp","Camp","Camp","Camp","Camp","Camp","Camp","Camp","Camp","Camp","Camp","Camp","Camp","Camp","Camp","Camp","Camp","Camp","Camp","Camp","Camp","Camp","Camp","Camp","Camp","Camp","Camp","Camp","Camp","Camp","Camp","Camp","Camp","Camp","Camp","Camp","Camp","Camp","Camp","Camp","Camp","Camp","Camp","Camp","Camp","Camp","Camp","Camp","Camp","Camp","Camp","Camp","Camp","Camp","Camp","Camp","Camp","Camp","Camp","Camp","Camp","Camp","Camp","Camp","Camp","Camp","Camp","Camp","Camp","Camp","Camp","Camp","Camp","Camp","Camp","Camp","Camp","Camp","Camp","Camp","Camp","Camp","Camp","Camp","Camp","Camp","Camp","Camp","Camp","Camp","Camp","Camp","Camp","Camp","Camp","Camp","Camp","Camp","Camp","Camp","Camp","Camp","Camp","Camp","Camp","Camp","Camp","Camp","Camp","Camp","Camp","Camp","Camp","Camp","Camp","Camp","Camp","Camp","Camp","Camp","Camp","Camp","Camp","Camp","Camp","Camp","Camp","Camp","Camp","Camp","Camp","Camp","Camp","Camp","Camp","Camp","Camp","Camp","Camp","Camp","Camp","Camp","Camp","Camp","Camp","Camp","Camp","Camp","Camp","Camp","Camp","Camp","Camp","Camp","Camp","Camp","Camp","Camp","Camp","Camp","Camp","Camp","Camp","Camp","Camp","Camp","Camp","Camp","Camp","Camp","Camp","Camp","Camp","Camp","Camp","Camp","Camp","Camp","Camp","Camp","Camp","Camp","Camp","Camp","Camp","Camp","Camp","Camp","Camp","Camp","Camp","Camp","Camp","Camp","Camp","Camp","Camp","Camp","Camp","Camp","Camp","Camp","Camp","Camp","Camp","Camp","Camp","Camp","Camp","Camp","Camp","Camp","Camp","Camp","Camp","Camp","Camp","Camp","Camp","Camp","Camp","Camp","Camp","Camp","Camp","Camp","Camp","Camp","Camp","Camp","Camp","Camp","Camp","Camp","Camp","Camp","Camp","Camp","Camp","Camp","Camp","Camp","Camp","Camp","Camp","Camp","Camp","Camp","Camp","Camp","Camp","Camp","Camp","Camp","Camp","Camp","Camp","Camp","Camp","Camp","Camp","Camp","Camp","Camp","Camp","Camp","Camp","Camp","Camp","Camp","Camp","Camp","Camp","Camp","Camp","Camp","Camp","Camp","Camp","Camp","Camp","Camp","Camp","Camp","Camp","Camp","Camp","Camp","Camp","Camp","Camp","Camp","Camp","Camp","Camp","Camp","Camp","Camp","Camp","Camp","Camp","Camp","Camp","Camp","Camp","Camp","Camp","Camp","Camp","Camp","Camp","Camp","Camp","Camp","Camp","Camp","Camp","Camp","Camp","Camp","Camp","Camp","Camp","Camp","Camp","Camp","Camp","Camp","Camp","Camp","Camp","Camp","Camp","Camp","Camp","Camp","Camp","Camp","Camp","Camp","Camp","Camp","Camp","Camp","Camp","Camp","Camp","Camp","Camp","Camp","Camp","Camp","Camp","Camp","Camp","Camp","Camp","Camp","Camp","Camp","Camp","Camp","Camp","Camp","Camp","Camp","Camp","Camp","Camp","Camp","Camp","Camp","Camp","Camp","Camp","Camp","Camp","Camp","Camp","Camp","Camp","Camp","Camp","Camp","Camp","Camp","Camp","Camp","Camp","Camp","Camp","Camp","Camp","Camp","Camp","Camp","Camp","Camp","Camp","Camp","Camp","Camp","Camp","Camp","Camp","Camp","Camp","Camp","Camp","Camp","Camp","Camp","Camp","Camp","Camp","Camp","Camp","Camp","Camp","Camp","Camp","Camp","Camp","Camp","Camp","Camp","Camp","Camp","Camp","Camp","Camp","Camp","Camp","Camp","Camp","Camp","Camp","Camp","Camp","Camp","Camp","Camp","Camp","Camp","Camp","Camp","Camp","Camp","Camp","Camp","Camp","Camp","Camp","Camp","Camp","Camp","Camp","Camp","Camp","Camp","Camp","Camp","Camp","Camp","Camp","Camp","Camp","Camp","Camp","Camp","Camp","Camp","Camp","Camp","Camp","Camp","Camp","Camp","Camp","Camp","Camp","Camp","Camp","Camp","Camp","Camp","Camp","Camp","Camp","Camp","Camp","Camp","Camp","Camp","Camp","Camp","Camp","Camp","Camp","Camp","Camp","Camp","Camp","Camp","Camp","Camp","Camp","Camp","Camp","Camp","Camp","Camp","Camp","Camp","Camp","Camp","Camp","Camp","Camp","Camp","Camp","Camp","Camp","Camp","Camp","Camp","Camp","Camp","Camp","Camp","Camp","Camp","Camp","Camp","Camp","Camp","Camp","Camp","Camp","Camp","Camp","Camp","Camp","Camp","Camp","Camp","Camp","Camp","Camp","Camp","Camp","Camp","Camp","Camp","Camp","Camp","Camp","Camp","Camp","Camp","Camp","Camp","Camp","Camp","Camp","Camp","Camp","Camp","Camp","Camp","Camp","Camp","Camp","Camp","Camp","Camp","Camp","Camp","Camp","Camp","Camp","Camp","Camp","Camp","Camp","Camp","Camp","Camp","Camp","Camp","Camp","Camp","Camp","Camp","Camp","Camp","Camp","Camp","Camp","Camp","Camp","Camp","Camp","Camp","Camp","Camp","Camp","Camp","Camp","Camp","Camp","Camp","Camp","Camp","Camp","Camp","Camp","Camp","Camp","Camp","Camp","Camp","Camp","Camp","Camp","Camp","Camp","Camp","Camp","Camp","Camp","Camp","Camp","Camp","Camp","Camp","Camp","Camp","Camp","Camp","Camp","Camp","Camp","Camp","Camp","Camp","Camp","Camp","Camp","Camp","Camp","Camp","Camp","Camp","Camp","Camp","Camp","Camp","Camp","Camp","Camp","Camp","Camp","Camp","Camp","Camp","Camp","Camp","Camp","Camp","Camp","Camp","Camp","Camp","Camp","Camp","Camp","Camp","Camp","Camp","Camp","Camp","Camp","Camp","Camp","Camp","Camp","Camp","Camp","Camp","Camp","Camp","Camp","Camp","Camp","Camp","Camp","Camp","Camp","Camp","Camp","Camp","Camp","Camp","Camp","Camp","Camp","Camp","Camp","Camp","Camp","Camp","Camp","Camp","Camp","Camp","Camp","Camp","Camp","Camp","Camp","Camp","Camp","Camp","Camp","Camp","Camp","Camp","Camp","Camp","Camp","Camp","Camp","Camp","Camp","Camp","Camp","Camp","Camp","Camp","Camp","Camp","Camp","Camp","Camp","Camp","Camp","Camp","Camp","Camp","Camp","Camp","Camp","Camp","Camp","Camp","Camp","Camp","Camp","Camp","Camp","Camp","Camp","Camp","Camp","Camp","Camp","Camp","Camp","Camp","Camp","Camp","Camp","Camp","Camp","Camp","Camp","Camp","Camp","Camp","Camp","Camp","Camp","Camp","Camp","Camp","Camp","Camp","Camp","Camp","Camp","Camp","Camp","Camp","Camp","Camp","Camp","Camp","Camp","Camp","Camp","Camp","Camp","Camp","Camp","Camp","Camp","Camp","Camp","Camp","Camp","Camp","Camp","Camp","Camp","Camp","Camp","Camp","Camp","Camp","Camp","Camp","Camp","Camp","Camp","Camp","Camp","Camp","Camp","Camp","Camp","Camp","Camp","Camp","Camp","Camp","Camp","Camp","Camp","Camp","Camp","Camp","Camp","Camp","Camp","Camp","Camp","Camp","Camp","Camp","Camp","Camp","Camp","Camp","Camp","Camp","Camp","Camp","Camp","Camp","Camp","Camp","Camp","Camp","Camp","Camp","Camp","Camp","Camp","Camp","Camp","Camp","Camp","Camp","Camp","Camp","Camp","Camp","Camp","Camp","Camp","Camp","Camp","Camp","Camp","Camp","Camp","Camp","Camp","Camp","Camp","Camp","Camp","Camp","Camp","Camp","Camp","Camp","Camp","Camp","Camp","Camp","Camp","Camp","Camp","Camp","Camp","Camp","Camp","Camp","Camp","Camp","Camp","Camp","Camp","Camp","Camp","Camp","Camp","Camp","Camp","Camp","Camp","Camp","Camp","Camp","Camp","Camp","Camp","Camp","Camp","Camp","Camp","Camp","Camp","Camp","Camp","Camp","Camp","Camp","Camp","Camp","Camp","Camp","Camp","Camp","Camp","Camp","Camp","Camp","Camp","Camp","Camp","Camp","Camp","Camp","Camp","Camp","Camp","Camp","Camp","Camp","Camp","Camp","Camp","Camp","Camp","Camp","Camp","Camp","Camp","Camp","Camp","Camp","Camp","Camp","Camp","Camp","Camp","Camp","Camp","Camp","Camp","Camp","Camp","Camp","Camp","Camp","Camp","Camp","Camp","Camp","Camp","Camp","Camp","Camp","Camp","Camp","Camp","Camp","Camp","Camp","Camp","Camp","Camp","Camp","Camp","Camp","Camp","Camp","Camp","Camp","Camp","Camp","Camp","Camp","Camp","Camp","Camp","Camp","Camp","Camp","Camp","Camp","Camp","Camp","Camp","Camp","Camp","Camp","Camp","Camp","Camp","Camp","Camp","Camp","Camp","Camp","Camp","Camp","Camp","Camp","Camp","Camp","Camp","Camp","Camp","Camp","Camp","Camp","Camp","Camp","Camp","Camp","Camp","Camp","Camp","Camp","Camp","Camp","Camp","Camp","Camp","Camp","Camp","Camp","Camp","Camp","Camp","Camp","Camp","Camp","Camp","Camp","Camp","Camp","Camp","Camp","Camp","Camp","Camp","Camp","Camp","Camp","Camp","Camp","Camp","Camp","Camp","Camp","Camp","Camp","Camp","Camp","Camp","Camp","Camp","Camp","Camp","Camp","Camp","Camp","Camp","Camp","Camp","Camp","Camp","Camp","Camp","Camp","Camp","Camp","Camp","Camp","Camp","Camp","Camp","Camp","Camp","Camp","Camp","Camp","Camp","Camp","Camp","Camp","Camp","Camp","Camp","Camp","Camp","Camp","Camp","Camp","Camp","Camp","Camp","Camp","Camp","Camp","Camp","Camp","Camp","Camp","Camp","Camp","Camp","Camp","Camp","Camp","Camp","Camp","Camp","Camp","Camp","Camp","Camp","Camp","Camp","Camp","Camp","Camp","Camp","Camp","Camp","Camp","Camp","Camp","Camp","Camp","Camp","Camp","Camp","Camp","Camp","Camp","Camp","Camp","Camp","Camp","Camp","Camp","Camp","Camp","Camp","Camp","Camp","Camp","Camp","Camp","Camp","Camp","Camp","Camp","Camp","Camp","Camp","Camp","Camp","Camp","Camp","Camp","Camp","Camp","Camp","Camp","Camp","Camp","Camp","Camp","Camp","Camp","Camp","Camp","Camp","Camp","Camp","Camp","Camp","Camp","Camp","Camp","Camp","Camp","Camp","Camp","Camp","Camp","Camp","Camp","Camp","Camp","Camp","Camp","Camp","Camp","Camp","Camp","Camp","Camp","Camp","Camp","Camp","Camp","Camp","Camp","Camp","Camp","Camp","Camp","Camp","Camp","Camp","Camp","Camp","Camp","Camp","Camp","Camp","Camp","Camp","Camp","Camp","Camp","Camp","Camp","Camp","Camp","Camp","Camp","Camp","Camp","Camp","Camp","Camp","Camp","Camp","Camp","Camp","Camp","Camp","Camp","Camp","Camp","Camp","Camp","Camp","Camp","Camp","Camp","Camp","Camp","Camp","Camp","Camp","Camp","Camp","Camp","Camp","Camp","Camp","Camp","Camp","Camp","Camp","Camp","Camp","Camp","Camp","Camp","Camp","Camp","Camp","Camp","Camp","Camp","Camp","Camp","Camp","Camp","Camp","Camp","Camp","Camp","Camp","Camp","Camp","Camp","Camp","Camp","Camp","Camp","Camp","Camp","Camp","Camp","Camp","Camp","Camp","Camp","Camp","Camp","Camp","Camp","Camp","Camp","Camp","Camp","Camp","Camp","Camp","Camp","Camp","Camp","Camp","Camp","Camp","Camp","Camp","Camp","Camp","Camp","Camp","Camp","Camp","Camp","Camp","Camp","Camp","Camp","Camp","Camp","Camp","Camp","Camp","Camp","Camp","Camp","Camp","Camp","Camp","Camp","Camp","Camp","Camp","Camp","Camp","Camp","Camp","Camp","Camp","Camp","Camp","Camp","Camp","Camp","Camp","Camp","Camp","Camp","Camp","Camp","Camp","Camp","Camp","Camp","Camp","Camp","Camp","Camp","Camp","Camp","Camp","Camp","Camp","Camp","Camp","Camp","Camp","Camp","Camp","Camp","Camp","Camp","Camp","Camp","Camp","Camp","Camp","Camp","Camp","Camp","Camp","Camp","Camp","Camp","Camp","Camp","Camp","Camp","Camp","Camp","Camp","Camp","Camp","Camp","Camp","Camp","Camp","Camp","Camp","Camp","Camp","Camp","Camp","Camp","Camp","Camp","Camp","Camp","Camp","Camp","Camp","Camp","Camp","Camp","Camp","Camp","Camp","Camp","Camp","Camp","Camp","Camp","Camp","Camp","Camp","Camp","Camp","Camp","Camp","Camp","Camp","Camp","Camp","Camp","Camp","Camp","Camp","Camp","Camp","Camp","Camp","Camp","Camp","Camp","Camp","Camp","Camp","Camp","Camp","Camp","Camp","Camp","Camp","Camp","Camp","Camp","Camp","Camp","Camp","Camp","Camp","Camp","Camp","Camp","Camp","Camp","Camp","Camp","Camp","Camp","Camp","Camp","Camp","Camp","Camp","Camp","Camp","Camp","Camp","Camp","Camp","Camp","Camp","Camp","Camp","Camp","Camp","Camp","Camp","Camp","Camp","Camp","Camp","Camp","Camp","Camp","Camp","Camp","Camp","Camp","Camp","Camp","Camp","Camp","Camp","Camp","Camp","Camp","Camp","Camp","Camp","Camp","Camp","Camp","Camp","Camp","Camp","Camp","Camp","Camp","Camp","Camp","Camp","Camp","Camp","Camp","Camp","Camp","Camp","Camp","Camp","Camp","Camp","Camp","Camp","Camp","Camp","Camp","Camp","Camp","Camp","Camp","Camp","Camp","Camp","Camp","Camp","Camp","Camp","Camp","Camp","Camp","Camp","Camp","Camp","Camp","Camp","Camp","Camp","Camp","Camp","Camp","Camp","Camp","Camp","Camp","Camp","Camp","Camp","Camp","Camp","Camp","Camp","Camp","Camp","Camp","Camp","Camp","Camp","Camp","Camp","Camp","Camp","Camp","Camp","Camp","Camp","Camp","Camp","Camp","Camp","Camp","Camp","Camp","Camp","Camp","Camp","Camp","Camp","Camp","Camp","Camp","Camp","Camp","Camp","Camp","Camp","Camp","Camp","Camp","Camp","Camp","Camp","Camp","Camp","Camp","Camp","Camp","Camp","Camp","Camp","Camp","Camp","Camp","Camp","Camp","Camp","Camp","Camp","Camp","Camp","Camp","Camp","Camp","Camp","Camp","Camp","Camp","Camp","Camp","Camp","Camp","Camp","Camp","Camp","Camp","Camp","Camp","Camp","Camp","Camp","Camp","Camp","Camp","Camp","Camp","Camp","Camp","Camp","Camp","Camp","Camp","Camp","Camp","Camp","Camp","Camp","Camp","Camp","Camp","Camp","Camp","Camp","Camp","Camp","Camp","Camp","Camp","Camp","Camp","Camp","Camp","Camp","Camp","Camp","Camp","Camp","Camp","Camp","Camp","Camp","Camp","Camp","Camp","Camp","Camp","Camp","Camp","Camp","Camp","Camp","Camp","Camp","Camp","Camp","Camp","Camp","Camp","Camp","Camp","Camp","Camp","Camp","Camp","Camp","Camp","Camp","Camp","Camp","Camp","Camp","Camp","Camp","Camp","Camp","Camp","Camp","Camp","Camp","Camp","Camp","Camp","Camp","Camp","Camp","Camp","Camp","Camp","Camp","Camp","Camp","Camp","Camp","Camp","Camp","Camp","Camp","Camp","Camp","Camp","Camp","Camp","Camp","Camp","Camp","Camp","Camp","Camp","Camp","Camp","Camp","Camp","Camp","Camp","Camp","Camp","Camp","Camp","Camp","Camp","Camp","Camp","Camp","Camp","Camp","Camp","Camp","Camp","Camp","Camp","Camp","Camp","Camp","Camp","Camp","Camp","Camp","Camp","Camp","Camp","Camp","Camp","Camp","Camp","Camp","Camp","Camp","Camp","Camp","Camp","Camp","Camp","Camp","Camp","Camp","Camp","Camp","Camp","Camp","Camp","Camp","Camp","Camp","Camp","Camp","Camp","Camp","Camp","Camp","Camp","Camp","Camp","Camp","Camp","Camp","Camp","Camp","Camp","Camp","Camp","Camp","Camp","Camp","Camp","Camp","Camp","Camp","Camp","Camp","Camp","Camp","Camp","Camp","Camp","Camp","Camp","Camp","Camp","Camp","Camp","Camp","Camp","Camp","Camp","Camp","Camp","Camp","Camp","Camp","Camp","Camp","Camp","Camp","Camp","Camp","Camp","Camp","Camp","Camp","Camp","Camp","Camp","Camp","Camp","Camp","Camp","Camp","Camp","Camp","Camp","Camp","Camp","Camp","Camp","Camp","Camp","Camp","Camp","Camp","Camp","Camp","Camp","Camp","Camp","Camp","Camp","Camp","Camp","Camp","Camp","Camp","Camp","Camp","Camp","Camp","Camp","Camp","Camp","Camp","Camp","Camp","Camp","Camp","Camp","Camp","Camp","Camp","Camp","Camp","Camp","Camp","Camp","Camp","Camp","Camp","Camp","Camp","Camp","Camp","Camp","Camp","Camp","Camp","Camp","Camp","Camp","Camp","Camp","Camp","Camp","Camp","Camp","Camp","Camp","Camp","Camp","Camp","Camp","Camp","Camp","Camp","Camp","Camp","Camp","Camp","Camp","Camp","Camp","Camp","Camp","Camp","Camp","Camp","Camp","Camp","Camp","Camp","Camp","Camp","Camp","Camp","Camp","Camp","Camp","Camp","Camp","Camp","Camp","Camp","Camp","Camp","Camp","Camp","Camp","Camp","Camp","Camp","Camp","Camp","Camp","Camp","Camp","Camp","Camp","Camp","Camp","Camp","Camp","Camp","Camp","Camp","Camp","Camp","Camp","Camp","Camp","Camp","Camp","Camp","Camp","Camp","Camp","Camp","Camp","Camp","Camp","Camp","Camp","Camp","Camp","Camp","Camp","Camp","Camp","Camp","Camp","Camp","Camp","Camp","Camp","Camp","Camp","Camp","Camp","Camp","Camp","Camp","Camp","Camp","Camp","Camp","Camp","Camp","Camp","Camp","Camp","Camp","Camp","Camp","Camp","Camp","Camp","Camp","Camp","Camp","Camp","Camp","Camp","Camp","Camp","Camp","Camp","Camp","Camp","Camp","Camp","Camp","Camp","Camp","Camp","Camp","Camp","Camp","Camp","Camp","Camp","Camp","Camp","Camp","Camp","Camp","Camp","Camp","Camp","Camp","Camp","Camp","Camp","Camp","Camp","Camp","Camp","Camp","Camp","Camp","Camp","Camp","Camp","Camp","Camp","Camp","Camp","Camp","Camp","Camp","Camp","Camp","Camp","Camp","Camp","Camp","Camp","Camp","Camp","Camp","Camp","Camp","Camp","Camp","Camp","Camp","Camp","Camp","Camp","Camp","Camp","Camp","Camp","Camp","Camp","Camp","Camp","Camp","Camp","Camp","Camp","Camp","Camp","Camp","Camp","Camp","Camp","Camp","Camp","Camp","Camp","Camp","Camp","Camp","Camp","Camp","Camp","Camp","Camp","Camp","Camp","Camp","Camp","Camp","Camp","Camp","Camp","Camp","Camp","Camp","Camp","Camp","Camp","Camp","Camp","Camp","Camp","Camp","Camp","Camp","Camp","Camp","Camp","Camp","Camp","Camp","Camp","Camp","Camp","Camp","Camp","Camp","Camp","Camp","Camp","Camp","Camp","Camp","Camp","Camp","Camp","Camp","Camp","Camp","Camp","Camp","Camp","Camp","Camp","Camp","Camp","Camp","Camp","Camp","Camp","Camp","Camp","Camp","Camp","Camp","Camp","Camp","Camp","Camp","Camp","Camp","Camp","Camp","Camp","Camp","Camp","Camp","Camp","Camp","Camp","Camp","Camp","Camp","Camp","Camp","Camp","Camp","Camp","Camp","Camp","Camp","Camp","Camp","Camp","Camp","Camp","Camp","Camp","Camp","Camp","Camp","Camp","Camp","Camp","Camp","Camp","Camp","Camp","Camp","Camp","Camp","Camp","Camp","Camp","Camp","Camp","Camp","Camp","Camp","Camp","Camp","Camp","Camp","Camp","Camp","Camp","Camp","Camp","Camp","Camp","Camp","Camp","Camp","Camp","Camp","Camp","Camp","Camp","Camp","Camp","Camp","Camp","Camp","Camp","Camp","Camp","Camp","Camp","Camp","Camp","Camp","Camp","Camp","Camp","Camp","Camp","Camp","Camp","Camp","Camp","Camp","Camp","Camp","Camp","Camp","Camp","Camp","Camp","Camp","Camp","Camp","Camp","Camp","Camp","Camp","Camp","Camp","Camp","Camp","Camp","Camp","Camp","Camp","Camp","Camp","Camp","Camp","Camp","Camp","Camp","Camp","Camp","Camp","Camp","Camp","Camp","Camp","Camp","Camp","Camp","Camp","Camp","Camp","Camp","Camp","Camp","Camp","Camp","Camp","Camp","Camp","Camp","Camp","Camp","Camp","Camp","Camp","Camp","Camp","Camp","Camp","Camp","Camp","Camp","Camp","Camp","Camp","Camp","Camp","Camp","Camp","Camp","Camp","Camp","Camp","Camp","Camp","Camp","Camp","Camp","Camp","Camp","Camp","Camp","Camp","Camp","Camp","Camp","Camp","Camp","Camp","Camp","Camp","Camp","Camp","Camp","Camp","Camp","Camp","Camp","Camp","Camp","Camp","Camp","Camp","Camp","Camp","Camp","Camp","Camp","Camp","Camp","Camp","Camp","Camp","Camp","Camp","Camp","Camp","Camp","Camp","Camp","Camp","Camp","Camp","Camp","Camp","Camp","Camp","Camp","Camp","Camp","Camp","Camp","Camp","Camp","Camp","Camp","Camp","Camp","Camp","Camp","Camp","Camp","Camp","Camp","Camp","Camp","Camp","Camp","Camp","Camp","Camp","Camp","Camp","Camp","Camp","Camp","Camp","Camp","Camp","Camp","Camp","Camp","Camp","Camp","Camp","Camp","Camp","Camp","Camp","Camp","Camp","Camp","Camp","Camp","Camp","Camp","Camp","Camp","Camp","Camp","Camp","Camp","Camp","Camp","Camp","Camp","Camp","Camp","Camp","Camp","Camp","Camp","Camp","Camp","Camp","Camp","Camp","Camp","Camp","Camp","Camp","Camp","Camp","Camp","Camp","Camp","Camp","Camp","Camp","Camp","Camp","Camp","Camp","Camp","Camp","Camp","Camp","Camp","Camp","Camp","Camp","Camp","Camp","Camp","Camp","Camp","Camp","Camp","Camp","Camp","Camp","Camp","Camp","Camp","Camp","Camp","Camp","Camp","Camp","Camp","Camp","Camp","Camp","Camp","Camp","Camp","Camp","Camp","Camp","Camp","Camp","Camp","Camp","Camp","Camp","Camp","Camp","Camp","Camp","Camp","Camp","Camp","Camp","Camp","Camp","Camp","Camp","Camp","Camp","Camp","Camp","Camp","Camp","Camp","Camp","Camp","Camp","Camp","Camp","Camp","Camp","Camp","Camp","Camp","Camp","Camp","Camp","Camp","Camp","Camp","Camp","Camp","Camp","Camp","Camp","Camp","Camp","Camp","Camp","Camp","Camp","Camp","Camp","Camp","Camp","Camp","Camp","Camp","Camp","Camp","Camp","Camp","Camp","Camp","Camp","Camp","Camp","Camp","Camp","Camp","Camp","Camp","Camp","Camp","Camp","Camp","Camp","Camp","Camp","Camp","Camp","Camp","Camp","Camp","Camp","Camp","Camp","Camp","Camp","Camp","Camp","Camp","Camp","Camp","Camp","Camp","Camp","Camp","Camp","Camp","Camp","Camp","Camp","Camp","Camp","Camp","Camp","Camp","Camp","Camp","Camp","Camp","Camp","Camp","Camp","Camp","Camp","Camp","Camp","Camp","Camp","Camp","Camp","Camp","Camp","Camp","Camp","Camp","Camp","Camp","Camp","Camp","Camp","Camp","Camp","Camp","Camp","Camp","Camp","Camp","Camp","Camp","Camp","Camp","Camp","Camp","Camp","Camp","Camp","Camp","Camp","Camp","Camp","Camp","Camp","Camp","Camp","Camp","Camp","Camp","Camp","Camp","Camp","Camp","Camp","Camp","Camp","Camp","Camp","Camp","Camp","Camp","Camp","Camp","Camp","Camp","Camp","Camp","Camp","Camp","Camp","Camp","Camp","Camp","Camp","Camp","Camp","Camp","Camp","Camp","Camp","Camp","Camp","Camp","Camp","Camp","Camp","Camp","Camp","Camp","Camp","Camp","Camp","Camp","Camp","Camp","Camp","Camp","Camp","Camp","Camp","Camp","Camp","Camp","Camp","Camp","Camp","Camp","Camp","Camp","Camp","Camp","Camp","Camp","Camp","Camp","Camp","Camp","Camp","Camp","Camp","Camp","Camp","Camp","Camp","Camp","Camp","Camp","Camp","Camp","Camp","Camp","Camp","Camp","Camp","Camp","Camp","Camp","Camp","Camp","Camp","Camp","Camp","Camp","Camp","Camp","Camp","Camp","Camp","Camp","Camp","Camp","Camp","Camp","Camp","Camp","Camp","Camp","Camp","Camp","Camp","Camp","Camp","Camp","Camp","Camp","Camp","Camp","Camp","Camp","Camp","Camp","Camp","Camp","Camp","Camp","Camp","Camp","Camp","Camp","Camp","Camp","Camp","Camp","Camp","Camp","Camp","Camp","Camp","Camp","Camp","Camp","Camp","Camp","Camp","Camp","Camp","Camp","Camp","Camp","Camp","Camp","Camp","Camp","Camp","Camp","Camp","Camp","Camp","Camp","Camp","Camp","Camp","Camp","Camp","Camp","Camp","Camp","Camp","Camp","Camp","Camp","Camp","Camp","Camp","Camp","Camp","Camp","Camp","Camp","Camp","Camp","Camp","Camp","Camp","Camp","Camp","Camp","Camp","Camp","Camp","Camp","Camp","Camp","Camp","Camp","Camp","Camp","Camp","Camp","Camp","Camp","Camp","Camp","Camp","Camp","Camp","Camp","Camp","Camp","Camp","Camp","Camp","Camp","Camp","Camp","Camp","Camp","Camp","Camp","Camp","Camp","Camp","Camp","Camp","Camp","Camp","Camp","Camp","Camp","Camp","Camp","Camp","Camp","Camp","Camp","Camp","Camp","Camp","Camp","Camp","Camp","Camp","Camp","Camp","Camp","Camp","Camp","Camp","Camp","Camp","Camp","Camp","Camp","Camp","Camp","Camp","Camp","Camp","Camp","Camp","Camp","Camp","Camp","Camp","Camp","Camp","Camp","Camp","Camp","Camp","Camp","Camp","Camp","Camp","Camp","Camp","Camp","Camp","Camp","Camp","Camp","Camp","Camp","Camp","Camp","Camp","Camp","Camp","Camp","Camp","Camp","Camp","Camp","Camp","Camp","Camp","Camp","Camp","Camp","Camp","Camp","Camp","Camp","Camp","Camp","Camp","Camp","Camp","Camp","Camp","Camp","Camp","Camp","Camp","Camp","Camp","Camp","Camp","Camp","Camp","Camp","Camp","Camp","Camp","Camp","Camp","Camp","Camp","Camp","Camp","Camp","Camp","Camp","Camp","Camp","Camp","Camp","Camp","Camp","Camp","Camp","Camp","Camp","Camp","Camp","Camp","Camp","Camp","Camp","Camp","Camp","Camp","Camp","Camp","Camp","Camp","Camp","Camp","Camp","Camp","Camp","Camp","Camp","Camp","Camp","Camp","Camp","Camp","Camp","Camp","Camp","Camp","Camp","Camp","Camp","Camp","Camp","Camp","Camp","Camp","Camp","Camp","Camp","Camp","Camp","Camp","Camp","Camp","Camp","Camp","Camp","Camp","Camp","Camp","Camp","Camp","Camp","Camp","Camp","Camp","Camp","Camp","Camp","Camp","Camp","Camp","Camp","Camp","Camp","Camp","Camp","Camp","Camp","Camp","Camp","Camp","Camp","Camp","Camp","Camp","Camp","Camp","Camp","Camp","Camp","Camp","Camp","Camp","Camp","Camp","Camp","Camp","Camp","Camp","Camp","Camp","Camp","Camp","Camp","Camp","Camp","Camp","Camp","Camp","Camp","Camp","Camp","Camp","Camp","Camp","Camp","Camp","Camp","Camp","Camp","Camp","Camp","Camp","Camp","Camp","Camp","Camp","Camp","Camp","Camp","Camp","Camp","Camp","Camp","Camp","Camp","Camp","Camp","Camp","Camp","Camp","Camp","Camp","Camp","Camp","Camp","Camp","Camp","Camp","Camp","Camp","Camp","Camp","Camp","Camp","Camp","Camp","Camp","Camp","Camp","Camp","Camp","Camp","Camp","Camp","Camp","Camp","Camp","Camp","Camp","Camp","Camp","Camp","Camp","Camp","Camp","Camp","Camp","Camp","Camp","Camp","Camp","Camp","Camp","Camp","Camp","Camp","Camp","Camp","Camp","Camp","Camp","Camp","Camp","Camp","Camp","Camp","Camp","Camp","Camp","Camp","Camp","Camp","Camp","Camp","Camp","Camp","Camp","Camp","Camp","Camp","Camp","Camp","Camp","Camp","Camp","Camp","Camp","Camp","Camp","Camp","Camp","Camp","Camp","Camp","Camp","Camp","Camp","Camp","Camp","Camp","Camp","Camp","Camp","Camp","Camp","Camp","Camp","Camp","Camp","Camp","Camp","Camp","Camp","Camp","Camp","Camp","Camp","Camp","Camp","Camp","Camp","Camp","Camp","Camp","Camp","Camp","Camp","Camp","Camp","Camp","Camp","Camp","Camp","Camp","Camp","Camp","Camp","Camp","Camp","Camp","Camp","Camp","Camp","Camp","Camp","Camp","Camp","Camp","Camp","Camp","Camp","Camp","Camp","Camp","Camp","Camp","Camp","Camp","Camp","Camp","Camp","Camp","Camp","Camp","Camp","Camp","Camp","Camp","Camp","Camp","Camp","Camp","Camp","Camp","Camp","Camp","Camp","Camp","Camp","Camp","Camp","Camp","Camp","Camp","Camp","Camp","Camp","Camp","Camp","Camp","Camp","Camp","Camp","Camp","Camp","Camp","Camp","Camp","Camp","Camp","Camp","Camp","Camp","Camp","Camp","Camp","Camp","Camp","Camp","Camp","Camp","Camp","Camp","Camp","Camp","Camp","Camp","Camp","Camp","Camp","Camp","Camp","Camp","Camp","Camp","Camp","Camp","Camp","Camp","Camp","Camp","Camp","Camp","Camp","Camp","Camp","Camp","Camp","Camp","Camp","Camp","Camp","Camp","Camp","Camp","Camp","Camp","Camp","Camp","Camp","Camp","Camp","Camp","Camp","Camp","Camp","Camp","Camp","Camp","Camp","Camp","Camp","Camp","Camp","Camp","Camp","Camp","Camp","Camp","Camp","Camp","Camp","Camp","Camp","Camp","Camp","Camp","Camp","Camp","Camp","Camp","Camp","Camp","Camp","Camp","Camp","Camp","Camp","Camp","Camp","Camp","Camp","Camp","Camp","Camp","Camp","Camp","Camp","Camp","Camp","Camp","Camp","Camp","Camp","Camp","Camp","Camp","Camp","Camp","Camp","Camp","Camp","Camp","Camp","Camp","Camp","Camp","Camp","Camp","Camp","Camp","Camp","Camp","Camp","Camp","Camp","Camp","Camp","Camp","Camp","Camp","Camp","Camp","Camp","Camp","Camp","Camp","Camp","Camp","Camp","Camp","Camp","Camp","Camp","Camp","Camp","Camp","Camp","Camp","Camp","Camp","Camp","Camp","Camp","Camp","Camp","Camp","Camp","Camp","Camp","Camp","Camp","Camp","Camp","Camp","Camp","Camp","Camp","Camp","Camp","Camp","Camp","Camp","Camp","Camp","Camp","Camp","Camp","Camp","Camp","Camp","Camp","Camp","Camp","Camp","Camp","Camp","Camp","Camp","Camp","Camp","Camp","Camp","Camp","Camp","Camp","Camp","Camp","Camp","Camp","Camp","Camp","Camp","Camp","Camp","Camp","Camp","Camp","Camp","Camp","Camp","Camp","Camp","Camp","Camp","Camp","Camp","Camp","Camp","Camp","Camp","Camp","Camp","Camp","Camp","Camp","Camp","Camp","Camp","Camp","Camp","Camp","Camp","Camp","Camp","Camp","Camp","Camp","Camp","Camp","Camp","Camp","Camp","Camp","Camp","Camp","Camp","Camp","Camp","Camp","Camp","Camp","Camp","Camp","Camp","Camp","Camp","Camp","Camp","Camp","Camp","Camp","Camp","Camp","Camp","Camp","Camp","Camp","Camp","Camp","Camp","Camp","Camp","Camp","Camp","Camp","Camp","Camp","Camp","Camp","Camp","Camp","Camp","Camp","Camp","Camp","Camp","Camp","Camp","Camp","Camp","Camp","Camp","Camp","Camp","Camp","Camp","Camp","Camp","Camp","Camp","Camp","Camp","Camp","Camp","Camp","Camp","Camp","Camp","Camp","Camp","Camp","Camp","Camp","Camp","Camp","Camp","Camp","Camp","Camp","Camp","Camp","Camp","Camp","Camp","Camp","Camp","Camp","Camp","Camp","Camp","Camp","Camp","Camp","Camp","Camp","Camp","Camp","Camp","Camp","Camp","Camp","Camp","Camp","Camp","Camp","Camp","Camp","Camp","Camp","Camp","Camp","Camp","Camp","Camp","Camp","Camp","Camp","Camp","Camp","Camp","Camp","Camp","Camp","Camp","Camp","Camp","Camp","Camp","Camp","Camp","Camp","Camp","Camp","Camp","Camp","Camp","Camp","Camp","Camp","Camp","Camp","Camp","Camp","Camp","Camp","Camp","Camp","Camp","Camp","Camp","Camp","Camp","Camp","Camp","Camp","Camp","Camp","Camp","Camp","Camp","Camp","Camp","Camp","Camp","Camp","Camp","Camp","Camp","Camp","Camp","Camp","Camp","Camp","Camp","Camp","Camp","Camp","Camp","Camp","Camp","Camp","Camp","Camp","Camp","Camp","Camp","Camp","Camp","Camp","Camp","Camp","Camp","Camp","Camp","Camp","Camp","Camp","Camp","Camp","Camp","Camp","Camp","Camp","Camp","Camp","Camp","Camp","Camp","Camp","Camp","Camp","Camp","Camp","Camp","Camp","Camp","Camp","Camp","Camp","Camp","Camp","Camp","Camp","Camp","Camp","Camp","Camp","Camp","Camp","Camp","Camp","Camp","Camp","Camp","Camp","Camp","Camp","Camp","Camp","Camp","Camp","Camp","Camp","Camp","Camp","Camp","Camp","Camp","Camp","Camp","Camp","Camp","Camp","Camp","Camp","Camp","Camp","Camp","Camp","Camp","Camp","Camp","Camp","Camp","Camp","Camp","Camp","Camp","Camp","Camp","Camp","Camp","Camp","Camp","Camp","Camp","Camp","Camp","Camp","Camp","Camp","Camp","Camp","Camp","Camp","Camp","Camp","Camp","Camp","Camp","Camp","Camp","Camp","Camp","Camp","Camp","Camp","Camp","Camp","Camp","Camp","Camp","Camp","Camp","Camp","Camp","Camp","Camp","Camp","Camp","Camp","Camp","Camp","Camp","Camp","Camp","Camp","Camp","Camp","Camp","Camp","Camp","Camp","Camp","Camp","Camp","Camp","Camp","Camp","Camp","Camp","Camp","Camp","Camp","Camp","Camp","Camp","Camp","Camp","Camp","Camp","Camp","Camp","Camp","Camp","Camp","Camp","Camp","Camp","Camp","Camp","Camp","Camp","Camp","Camp","Camp","Camp","Camp","Camp","Camp","Camp","Camp","Camp","Camp","Camp","Camp","Camp","Camp","Camp","Camp","Camp","Camp","Camp","Camp","Camp","Camp","Camp","Camp","Camp","Camp","Camp","Camp","Camp","Camp","Camp","Camp","Camp","Camp","Camp","Camp","Camp","Camp","Camp","Camp","Camp","Camp","Camp","Camp","Camp","Camp","Camp","Camp","Camp","Camp","Camp","Camp","Camp","Camp","Camp","Camp","Camp","Camp","Camp","Camp","Camp","Camp","Camp","Camp","Camp","Camp","Camp","Camp","Camp","Camp","Camp","Camp","Camp","Camp","Camp","Camp","Camp","Camp","Camp","Camp","Camp","Camp","Camp","Camp","Camp","Camp","Camp","Camp","Camp","Camp","Camp","Camp","Camp","Camp","Camp","Camp","Camp","Camp","Camp","Camp","Camp","Camp","Camp","Camp","Camp","Camp","Camp","Camp","Camp","Camp","Camp","Camp","Camp","Camp","Camp","Camp","Camp","Camp","Camp","Camp","Camp","Camp","Camp","Camp","Camp","Camp","Camp","Camp","Camp","Camp","Camp","Camp","Camp","Camp","Camp","Camp","Camp","Camp","Camp","Camp","Camp","Camp","Camp","Camp","Camp","Camp","Camp","Camp","Camp","Camp","Camp","Camp","Camp","Camp","Camp","Camp","Camp","Camp","Camp","Camp","Camp","Camp","Camp","Camp","Camp","Camp","Camp","Camp","Camp","Camp","Camp","Camp","Camp","Camp","Camp","Camp","Camp","Camp","Camp","Camp","Camp","Camp","Camp","Camp","Camp","Camp","Camp","Camp","Camp","Camp","Camp","Camp","Camp","Camp","Camp","Camp","Camp","Camp","Camp","Camp","Camp","Camp","Camp","Camp","Camp","Camp","Camp","Camp","Camp","Camp","Camp","Camp","Camp","Camp","Camp","Camp","Camp","Camp","Camp","Camp","Camp","Camp","Camp","Camp","Camp","Camp","Camp","Camp","Camp","Camp","Camp","Camp","Camp","Camp","Camp","Camp","Camp","Camp","Camp","Camp","Camp","Camp","Camp","Camp","Camp","Camp","Camp","Camp","Camp","Camp","Camp","Camp","Camp","Camp","Camp","Camp","Camp","Camp","Camp","Camp","Camp","Camp","Camp","Camp","Camp","Camp","Camp","Camp","Camp","Camp","Camp","Camp","Camp","Camp","Camp","Camp","Camp","Camp","Camp","Camp","Camp","Camp","Camp","Camp","Camp","Camp","Camp","Camp","Camp","Camp","Camp","Camp","Camp","Camp","Camp","Camp","Camp","Camp","Camp","Camp","Camp","Camp","Camp","Camp","Camp","Camp","Camp","Camp","Camp","Camp","Camp","Camp","Camp","Camp","Camp","Camp","Camp","Camp","Camp","Camp","Camp","Camp","Camp","Camp","Camp","Camp","Camp","Camp","Camp","Camp","Camp","Camp","Camp","Camp","Camp","Camp","Camp","Camp","Camp","Camp","Camp","Camp","Camp","Camp","Camp","Camp","Camp","Camp","Camp","Camp","Camp","Camp","Camp","Camp","Camp","Camp","Camp","Camp","Camp","Camp","Camp","Camp","Camp","Camp","Camp","Camp","Camp","Camp","Camp","Camp","Camp","Camp","Camp","Camp","Camp","Camp","Camp","Camp","Camp","Camp","Camp","Camp","Camp","Camp","Camp","Camp","Camp","Camp","Camp","Camp","Camp","Camp","Camp","Camp","Camp","Camp","Camp","Camp","Camp","Camp","Camp","Camp","Camp","Camp","Camp","Camp","Camp","Camp","Camp","Camp","Camp","Camp","Camp","Camp","Camp","Camp","Camp","Camp","Camp","Camp","Camp","Camp","Camp","Camp","Camp","Camp","Camp","Camp","Camp","Camp","Camp","Camp","Camp","Camp","Camp","Camp","Camp","Camp","Camp","Camp","Camp","Camp","Camp","Camp","Camp","Camp","Camp","Camp","Camp","Camp","Camp","Camp","Camp","Camp","Camp","Camp","Camp","Camp","Camp","Camp","Camp","Camp","Camp","Camp","Camp","Camp","Camp","Camp","Camp","Camp","Camp","Camp","Camp","Camp","Camp","Camp","Camp","Camp","Camp","Camp","Camp","Camp","Camp","Camp","Camp","Camp","Camp","Camp","Camp","Camp","Camp","Camp","Camp","Camp","Camp","Camp","Camp","Camp","Camp","Camp","Camp","Camp","Camp","Camp","Camp","Camp","Camp","Camp","Camp","Camp","Camp","Camp","Camp","Camp","Camp","Camp","Camp","Camp","Camp","Camp","Camp","Camp","Camp","Camp","Camp","Camp","Camp","Camp","Camp","Camp","Camp","Camp","Camp","Camp","Camp","Camp","Camp","Camp","Camp","Camp","Camp","Camp","Camp","Camp","Camp","Camp","Camp","Camp","Camp","Camp","Camp","Camp","Camp","Camp","Camp","Camp","Camp","Camp","Camp","Camp","Camp","Camp","Camp","Camp","Camp","Camp","Camp","Camp","Camp","Camp","Camp","Camp","Camp","Camp","Camp","Camp","Camp","Camp","Camp","Camp","Camp","Camp","Camp","Camp","Camp","Camp","Camp","Camp","Camp","Camp","Camp","Camp","Camp","Camp","Camp","Camp","Camp","Camp","Camp","Camp","Camp","Camp","Camp","Camp","Camp","Camp","Camp","Camp","Camp","Camp","Camp","Camp","Camp","Camp","Camp","Camp","Camp","Camp","Camp","Camp","Camp","Camp","Camp","Camp","Camp","Camp","Camp","Camp","Camp","Camp","Camp","Camp","Camp","Camp","Camp","Camp","Camp","Camp","Camp","Camp","Camp","Camp","Camp","Camp","Camp","Camp","Camp","Camp","Camp","Camp","Camp","Camp","Camp","Camp","Camp","Camp","Camp","Camp","Camp","Camp","Camp","Camp","Camp","Camp","Camp","Camp","Camp","Camp","Camp","Camp","Camp","Camp","Camp","Camp","Camp","Camp","Camp","Camp","Camp","Camp","Camp","Camp","Camp","Camp","Camp","Camp","Camp","Camp","Camp","Camp","Camp","Camp","Camp","Camp","Camp","Camp","Camp","Camp","Camp","Camp","Camp","Camp","Camp","Camp","Camp","Camp","Camp","Camp","Camp","Camp","Camp","Camp","Camp","Camp","Camp","Camp","Camp","Camp","Camp","Camp","Camp","Camp","Camp","Camp","Camp","Camp","Camp","Camp","Camp","Camp","Camp","Camp","Camp","Camp","Camp","Camp","Camp","Camp","Camp","Camp","Camp","Camp","Camp","Camp","Camp","Camp","Camp","Camp","Camp","Camp","Camp","Camp","Camp","Camp","Camp","Camp","Camp","Camp","Camp","Camp","Camp","Camp","Camp","Camp","Camp","Camp","Camp","Camp","Camp","Camp","Camp","Camp","Camp","Camp","Camp","Camp","Camp","Camp","Camp","Camp","Camp","Camp","Camp","Camp","Camp","Camp","Camp","Camp","Camp","Camp","Camp","Camp","Camp","Camp","Camp","Camp","Camp","Camp","Camp","Camp","Camp","Camp","Camp","Camp","Camp","Camp","Camp","Camp","Camp","Camp","Camp","Camp","Camp","Camp","Camp","Camp","Camp","Camp","Camp","Camp","Camp","Camp","Camp","Camp","Camp","Camp","Camp","Camp","Camp","Camp","Camp","Camp","Camp","Camp","Camp","Camp","Camp","Camp","Camp","Camp","Camp","Camp","Camp","Camp","Camp","Camp","Camp","Camp","Camp","Camp","Camp","Camp","Camp","Camp","Camp","Camp","Camp","Camp","Camp","Camp","Camp","Camp","Camp","Camp","Camp","Camp","Camp","Camp","Camp","Camp","Camp","Camp","Camp","Camp","Camp","Camp","Camp","Camp","Camp","Camp","Camp","Camp","Camp","Camp","Camp","Camp","Camp","Camp","Camp","Camp","Camp","Camp","Camp","Camp","Camp","Camp","Camp","Camp","Camp","Camp","Camp","Camp","Camp","Camp","Camp","Camp","Camp","Camp","Camp","Camp","Camp","Camp","Camp","Camp","Camp","Camp","Camp","Camp","Camp","Camp","Camp","Camp","Camp","Camp","Camp","Camp","Camp","Camp","Camp","Camp","Camp","Camp","Camp","Camp","Camp","Camp","Camp","Camp","Camp","Camp","Camp","Camp","Camp","Camp","Camp","Camp","Camp","Camp","Camp","Camp","Camp","Camp","Camp","Camp","Camp","Camp","Camp","Camp","Camp","Camp","Camp","Camp","Camp","Camp","Camp","Camp","Camp","Camp","Camp","Camp","Camp","Camp","Camp","Camp","Camp","Camp","Camp","Camp","Camp","Camp","Camp","Camp","Camp","Camp","Camp","Camp","Camp","Camp","Camp","Camp","Camp","Camp","Camp","Camp","Camp","Camp","Camp","Camp","Camp","Camp","Camp","Camp","Camp","Camp","Camp","Camp","Camp","Camp","Camp","Camp","Camp","Camp","Camp","Camp","Camp","Camp","Camp","Camp","Camp","Camp","Camp","Camp","Camp","Camp","Camp","Camp","Camp","Camp","Camp","Camp","Camp","Camp","Camp","Camp","Camp","Camp","Camp","Camp","Camp","Camp","Camp","Camp","Camp","Camp","Camp","Camp","Camp","Camp","Camp","Camp","Camp","Camp","Camp","Camp","Camp","Camp","Camp","Camp","Camp","Camp","Camp","Camp","Camp","Camp","Camp","Camp","Camp","Camp","Camp","Camp","Camp","Camp","Camp","Camp","Camp","Camp","Camp","Camp","Camp","Camp","Camp","Camp","Camp","Camp","Camp","Camp","Camp","Camp","Camp","Camp","Camp","Camp","Camp","Camp","Camp","Camp","Camp","Camp","Camp","Camp","Camp","Camp","Camp","Camp","Camp","Camp","Camp","Camp","Camp","Camp","Camp","Camp","Camp","Camp","Camp","Camp","Camp","Camp","Camp","Camp","Camp","Camp","Camp","Camp","Camp","Camp","Camp","Camp","Camp","Camp","Camp","Camp","Camp","Camp","Camp","Camp","Camp","Camp","Camp","Camp","Camp","Camp","Camp","Camp","Camp","Camp","Camp","Camp","Camp","Camp","Camp","Camp","Camp","Camp","Camp","Camp","Camp","Camp","Camp","Camp","Camp","Camp","Camp","Camp","Camp","Camp","Camp","Camp","Camp","Camp","Camp","Camp","Camp","Camp","Camp","Camp","Camp","Camp","Camp","Camp","Camp","Camp","Camp","Camp","Camp","Camp","Camp","Camp","Camp","Camp","Camp","Camp","Camp","Camp","Camp","Camp","Camp","Camp","Camp","Camp","Camp","Camp","Camp","Camp","Camp","Camp","Camp","Camp","Camp","Camp","Camp","Camp","Camp","Camp","Camp","Camp","Camp","Camp","Camp","Camp","Camp","Camp","Camp","Camp","Camp","Camp","Camp","Camp","Camp","Camp","Camp","Camp","Camp","Camp","Camp","Camp","Camp","Camp","Camp","Camp","Camp","Camp","Camp","Camp","Camp","Camp","Camp","Camp","Camp","Camp","Camp","Camp","Camp","Camp","Camp","Camp","Camp","Camp","Camp","Camp","Camp","Camp","Camp","Camp","Camp","Camp","Camp","Camp","Camp","Camp","Camp","Camp","Camp","Camp","Camp","Camp","Camp","Camp","Camp","Camp","Camp","Camp","Camp","Camp","Camp","Camp","Camp","Camp","Camp","Camp","Camp","Camp","Camp","Camp","Camp","Camp","Camp","Camp","Camp","Camp","Camp","Camp","Camp","Camp","Camp","Camp","Camp","Camp","Camp","Camp","Camp","Camp","Camp","Camp","Camp","Camp","Camp","Camp","Camp","Camp","Camp","Camp","Camp","Camp","Camp","Camp","Camp","Camp","Camp","Camp","Camp","Camp","Camp","Camp","Camp","Camp","Camp","Camp","Camp","Camp","Camp","Camp","Camp","Camp","Camp","Camp","Camp","Camp","Camp","Camp","Camp","Camp","Camp","Camp","Camp","Camp","Camp","Camp","Camp","Camp","Camp","Camp","Camp","Camp","Camp","Camp","Camp","Camp","Camp","Camp","Camp","Camp","Camp","Camp","Camp","Camp","Camp","Camp","Camp","Camp","Camp","Camp","Camp","Camp","Camp","Camp","Camp","Camp","Camp","Camp","Camp","Camp","Camp","Camp","Camp","Camp","Camp","Camp","Camp","Camp","Camp","Camp","Camp","Camp","Camp","Camp","Camp","Camp","Camp","Camp","Camp","Camp","Camp","Camp","Camp","Camp","Camp","Camp","Camp","Camp","Camp","Camp","Camp","Camp","Camp","Camp","Camp","Camp","Camp","Camp","Camp","Camp","Camp","Camp","Camp","Camp","Camp","Camp","Camp","Camp","Camp","Camp","Camp","Camp","Camp","Camp","Camp","Camp","Camp","Camp","Camp","Camp","Camp","Camp","Camp","Camp","Camp","Camp","Camp","Camp","Camp","Camp","Camp","Camp","Camp","Camp","Camp","Camp","Camp","Camp","Camp","Camp","Camp","Camp","Camp","Camp","Camp","Camp","Camp","Camp","Camp","Camp","Camp","Camp","Camp","Camp","Camp","Camp","Camp","Camp","Camp","Camp","Camp","Camp","Camp","Camp","Camp","Camp","Camp","Camp","Camp","Camp","Camp","Camp","Camp","Camp","Camp","Camp","Camp","Camp","Camp","Camp","Camp","Camp","Camp","Camp","Camp","Camp","Camp","Camp","Camp","Camp","Camp","Camp","Camp","Camp","Camp","Camp","Camp","Camp","Camp","Camp","Camp","Camp","Camp","Camp","Camp","Camp","Camp","Camp","Camp","Camp","Camp","Camp","Camp","Camp","Camp","Camp","Camp","Camp","Camp","Camp","Camp","Camp","Camp","Camp","Camp","Camp","Camp","Camp","Camp","Camp","Camp","Camp","Camp","Camp","Camp","Camp","Camp","Camp","Camp","Camp","Camp","Camp","Camp","Camp","Camp","Camp","Camp","Camp","Camp","Camp","Camp","Camp","Camp","Camp","Camp","Camp","Camp","Camp","Camp","Camp","Camp","Camp","Camp","Camp","Camp","Camp","Camp","Camp","Camp","Camp","Camp","Camp","Camp","Camp","Camp","Camp","Camp","Camp","Camp","Camp","Camp","Camp","Camp","Camp","Camp","Camp","Camp","Camp","Camp","Camp","Camp","Camp","Camp","Camp","Camp","Camp","Camp","Camp","Camp","Camp","Camp","Camp","Camp","Camp","Camp","Camp","Camp","Camp","Camp","Camp","Camp","Camp","Camp","Camp","Camp","Camp","Camp","Camp","Camp","Camp","Camp","Camp","Camp","Camp","Camp","Camp","Camp","Camp","Camp","Camp","Camp","Camp","Camp","Camp","Camp","Camp","Camp","Camp","Camp","Camp","Camp","Camp","Camp","Camp","Camp","Camp","Camp","Camp","Camp","Camp","Camp","Camp","Camp","Camp","Camp","Camp","Camp","Camp","Camp","Camp","Camp","Camp","Camp","Camp","Camp","Camp","Camp","Camp","Camp","Camp","Camp","Camp","Camp","Camp","Camp","Camp","Camp","Camp","Camp","Camp","Camp","Camp","Camp","Camp","Camp","Camp","Camp","Camp","Camp","Camp","Camp","Camp","Camp","Camp","Camp","Camp","Camp","Camp","Camp","Camp","Camp","Camp","Camp","Camp","Camp","Camp","Camp","Camp","Camp","Camp","Camp","Camp","Camp","Camp","Camp","Camp","Camp","Camp","Camp","Camp","Camp","Camp","Camp","Camp","Camp","Camp","Camp","Camp","Camp","Camp","Camp","Camp","Camp","Camp","Camp","Camp","Camp","Camp","Camp","Camp","Camp","Camp","Camp","Camp","Camp","Camp","Camp","Camp","Camp","Camp","Camp","Camp","Camp","Camp","Camp","Camp","Camp","Camp","Camp","Camp","Camp","Camp","Camp","Camp","Camp","Camp","Camp","Camp","Camp","Camp","Camp","Camp","Camp","Camp","Camp","Camp","Camp","Camp","Camp","Camp","Camp","Camp","Camp","Camp","Camp","Camp","Camp","Camp","Camp","Camp","Camp","Camp","Camp","Camp","Camp","Camp","Camp","Camp","Camp","Camp","Camp","Camp","Camp","Camp","Camp","Camp","Camp","Camp","Camp","Camp","Camp","Camp","Camp","Camp","Camp","Camp","Camp","Camp","Camp","Camp","Camp","Camp","Camp","Camp","Camp","Camp","Camp","Camp","Camp","Camp","Camp","Camp","Camp","Camp","Camp","Camp","Camp","Camp","Camp","Camp","Camp","Camp","Camp","Camp","Camp","Camp","Camp","Camp","Camp","Camp","Camp","Camp","Camp","Camp","Camp","Camp","Camp","Camp","Camp","Camp","Camp","Camp","Camp","Camp","Camp","Camp","Camp","Camp","Camp","Camp","Camp","Camp","Camp","Camp","Camp","Camp","Camp","Camp","Camp","Camp","Camp","Camp","Camp","Camp","Camp","Camp","Camp","Camp","Camp","Camp","Camp","Camp","Camp","Camp","Camp","Camp","Camp","Camp","Camp","Camp","Camp","Camp","Camp","Camp","Camp","Camp","Camp","Camp","Camp","Camp","Camp","Camp","Camp","Camp","Camp","Camp","Camp","Camp","Camp","Camp","Camp","Camp","Camp","Camp","Camp","Camp","Camp","Camp","Camp","Camp","Camp","Camp","Camp","Camp","Camp","Camp","Camp","Camp","Camp","Camp","Camp","Camp","Camp","Camp","Camp","Camp","Camp","Camp","Camp","Camp","Camp","Camp","Camp","Camp","Camp","Camp","Camp","Camp","Camp","Camp","Camp","Camp","Camp","Camp","Camp","Camp","Camp","Camp","Camp","Camp","Camp","Camp","Camp","Camp","Camp","Camp","Camp","Camp","Camp","Camp","Camp","Camp","Camp","Camp","Camp","Camp","Camp","Camp","Camp","Camp","Camp","Camp","Camp","Camp","Camp","Camp","Camp","Camp","Camp","Camp","Camp","Camp","Camp","Camp","Camp","Camp","Camp","Camp","Camp","Camp","Camp","Camp","Camp","Camp","Camp","Camp","Camp","Camp","Camp","Camp","Camp","Camp","Camp","Camp","Camp","Camp","Camp","Camp","Camp","Camp","Camp","Camp","Camp","Camp","Camp","Camp","Camp","Camp","Camp","Camp","Camp","Camp","Camp","Camp","Camp","Camp","Camp","Camp","Camp","Camp","Camp","Camp","Camp","Camp","Camp","Camp","Camp","Camp","Camp","Camp","Camp","Camp","Camp","Camp","Camp","Camp","Camp","Camp","Camp","Camp","Camp","Camp","Camp","Camp","Camp","Camp","Camp","Camp","Camp","Camp","Camp","Camp","Camp","Camp","Camp","Camp","Camp","Camp","Camp","Camp","Camp","Camp","Camp","Camp","Camp","Camp","Camp","Camp","Camp","Camp","Camp","Camp","Camp","Camp","Camp","Camp","Camp","Camp","Camp","Camp","Camp","Camp","Camp","Camp","Camp","Camp","Camp","Camp","Camp","Camp","Camp","Camp","Camp","Camp","Camp","Camp","Camp","Camp","Camp","Camp","Camp","Camp","Camp","Camp","Camp","Camp","Camp","Camp","Camp","Camp","Camp","Camp","Camp","Camp","Camp","Camp","Camp","Camp","Camp","Camp","Camp","Camp","Camp","Camp","Camp","Camp","Camp","Camp","Camp","Camp","Camp","Camp","Camp","Camp","Camp","Camp","Camp","Camp","Camp","Camp","Camp","Camp","Camp","Camp","Camp","Camp","Camp","Camp","Camp","Camp","Camp","Camp","Camp","Camp","Camp","Camp","Camp","Camp","Camp","Camp","Camp","Camp","Camp","Camp","Camp","Camp","Camp","Camp","Camp","Camp","Camp","Camp","Camp","Camp","Camp","Camp","Camp","Camp","Camp","Camp","Camp","Camp","Camp","Camp","Camp","Camp","Camp","Camp","Camp","Camp","Camp","Camp","Camp","Camp","Camp","Camp","Camp","Camp","Camp","Camp","Camp","Camp","Camp","Camp","Camp","Camp","Camp","Camp","Camp","Camp","Camp","Camp","Camp","Camp","Camp","Camp","Camp","Camp","Camp","Camp","Camp","Camp","Camp","Camp","Camp","Camp","Camp","Camp","Camp","Camp","Camp","Camp","Camp","Camp","Camp","Camp","Camp","Camp","Camp","Camp","Camp","Camp","Camp","Camp","Camp","Camp","Camp","Camp","Camp","Camp","Camp","Camp","Camp","Camp","Camp","Camp","Camp","Camp","Camp","Camp","Camp","Camp","Camp","Camp","Camp","Camp","Camp","Camp","Camp","Camp","Camp","Camp","Camp","Camp","Camp","Camp","Camp","Camp","Camp","Camp","Camp","Camp","Camp","Camp","Camp","Camp","Camp","Camp","Camp","Camp","Camp","Camp","Camp","Camp","Camp","Camp","Camp","Camp","Camp","Camp","Camp","Camp","Camp","Camp","Camp","Camp","Camp","Camp","Camp","Camp","Camp","Camp","Camp","Camp","Camp","Camp","Camp","Camp","Camp","Camp","Camp","Camp","Camp","Camp","Camp","Camp","Camp","Camp","Camp","Camp","Camp","Camp","Camp","Camp","Camp","Camp","Camp","Camp","Camp","Camp","Camp","Camp","Camp","Camp","Camp","Camp","Camp","Camp","Camp","Camp","Camp","Camp","Camp","Camp","Camp","Camp","Camp","Camp","Camp","Camp","Camp","Camp","Camp","Camp","Camp","Camp","Camp","Camp","Camp","Camp","Camp","Camp","Camp","Camp","Camp","Camp","Camp","Camp","Camp","Camp","Camp","Camp","Camp","Camp","Camp","Camp","Camp","Camp","Camp","Camp","Camp","Camp","Camp","Camp","Camp","Camp","Camp","Camp","Camp","Camp","Camp","Camp","Camp","Camp","Camp","Camp","Camp","Camp","Camp","Camp","Camp","Camp","Camp","Camp","Camp","Camp","Camp","Camp","Camp","Camp","Camp","Camp","Camp","Camp","Camp","Camp","Camp","Camp","Camp","Camp","Camp","Camp","Camp","Camp","Camp","Camp","Camp","Camp","Camp","Camp","Camp","Camp","Camp","Camp","Camp","Camp","Camp","Camp","Camp","Camp","Camp","Camp","Camp","Camp","Camp","Camp","Camp","Camp","Camp","Camp","Camp","Camp","Camp","Camp","Camp","Camp","Camp","Camp","Camp","Camp","Camp","Camp","Camp","Camp","Camp","Camp","Camp","Camp","Camp","Camp","Camp","Camp","Camp","Camp","Camp","Camp","Camp","Camp","Camp","Camp","Camp","Camp","Camp","Camp","Camp","Camp","Camp","Camp","Camp","Camp","Camp","Camp","Camp","Camp","Camp","Camp","Camp","Camp","Camp","Camp","Camp","Camp","Camp","Camp","Camp","Camp","Camp","Camp","Camp","Camp","Camp","Camp","Camp","Camp","Camp","Camp","Camp","Camp","Camp","Camp","Camp","Camp","Camp","Camp","Camp","Camp","Camp","Camp","Camp","Camp","Camp","Camp","Camp","Camp","Camp","Camp","Camp","Camp","Camp","Camp","Camp","Camp","Camp","Camp","Camp","Camp","Camp","Camp","Camp","Camp","Camp","Camp","Camp","Camp","Camp","Camp","Camp","Camp","Camp","Camp","Camp","Camp","Camp","Camp","Camp","Camp","Camp","Camp","Camp","Camp","Camp","Camp","Camp","Camp","Camp","Camp","Camp","Camp","Camp","Camp","Camp","Camp","Camp","Camp","Camp","Camp","Camp","Camp","Camp","Camp","Camp","Camp","Camp","Camp","Camp","Camp","Camp","Camp","Camp","Camp","Camp","Camp","Camp","Camp","Camp","Camp","Camp","Camp","Camp","Camp","Camp","Camp","Camp","Camp","Camp","Camp","Camp","Camp","Camp","Camp","Camp","Camp","Camp","Camp","Camp","Camp","Camp","Camp","Camp","Camp","Camp","Camp","Camp","Camp","Camp","Camp","Camp","Camp","Camp","Camp","Camp","Camp","Camp","Camp","Camp","Camp","Camp","Camp","Camp","Camp","Camp","Camp","Camp","Camp","Camp","Camp","Camp","Camp","Camp","Camp","Camp","Camp","Camp","Camp","Camp","Camp","Camp","Camp","Camp","Camp","Camp","Camp","Camp","Camp","Camp","Camp","Camp","Camp","Camp","Camp","Camp","Camp","Camp","Camp","Camp","Camp","Camp","Camp","Camp","Camp","Camp","Camp","Camp","Camp","Camp","Camp","Camp","Camp","Camp","Camp","Camp","Camp","Camp","Camp","Camp","Camp","Camp","Camp","Camp","Camp","Camp","Camp","Camp","Camp","Camp","Camp","Camp","Camp","Camp","Camp","Camp","Camp","Camp","Camp","Camp","Camp","Camp","Camp","Camp","Camp","Camp","Camp","Camp","Camp","Camp","Camp","Camp","Camp","Camp","Camp","Camp","Camp","Camp","Camp","Camp","Camp","Camp","Camp","Camp","Camp","Camp","Camp","Camp","Camp","Camp","Camp","Camp","Camp","Camp","Camp","Camp","Camp","Camp","Camp","Camp","Camp","Camp","Camp","Camp","Camp","Camp","Camp","Camp","Camp","Camp","Camp","Camp","Camp","Camp","Camp","Camp","Camp","Camp","Camp","Camp","Camp","Camp","Camp","Camp","Camp","Camp","Camp","Camp","Camp","Camp","Camp","Camp","Camp","Camp","Camp","Camp","Camp","Camp","Camp","Camp","Camp","Camp","Camp","Camp","Camp","Camp","Camp","Camp","Camp","Camp","Camp","Camp","Camp","Camp","Camp","Camp","Camp","Camp","Camp","Camp","Camp","Camp","Camp","Camp","Camp","Camp","Camp","Camp","Camp","Camp","Camp","Camp","Camp","Camp","Camp","Camp","Camp","Camp","Camp","Camp","Camp","Camp","Camp","Camp","Camp","Camp","Camp","Camp","Camp","Camp","Camp","Camp","Camp","Camp","Camp","Camp","Camp","Camp","Camp","Camp","Camp","Camp","Camp","Camp","Camp","Camp","Camp","Camp","Camp","Camp","Camp","Camp","Camp","Camp","Camp","Camp","Camp","Camp","Camp","Camp","Camp","Camp","Camp","Camp","Camp","Camp","Camp","Camp","Camp","Camp","Camp","Camp","Camp","Camp","Camp","Camp","Camp","Camp","Camp","Camp","Camp","Camp","Camp","Camp","Camp","Camp","Camp","Camp","Camp","Camp","Camp","Camp","Camp","Camp","Camp","Camp","Camp","Camp","Camp","Camp","Camp","Camp","Camp","Camp","Camp","Camp","Camp","Camp","Camp","Camp","Camp","Camp","Camp","Camp","Camp","Camp","Camp","Camp","Camp","Camp","Camp","Camp","Camp","Camp","Camp","Camp","Camp","Camp","Camp","Camp","Camp","Camp","Camp","Camp","Camp","Camp","Camp","Camp","Camp","Camp","Camp","Camp","Camp","Camp","Camp","Camp","Camp","Camp","Camp","Camp","Camp","Camp","Camp","Camp","Camp","Camp","Camp","Camp","Camp","Camp","Camp","Camp","Camp","Camp","Camp","Camp","Camp","Camp","Camp","Camp","Camp","Camp","Camp","Camp","Camp","Camp","Camp","Camp","Camp","Camp","Camp","Camp","Camp","Camp","Camp","Camp","Camp","Camp","Camp","Camp","Camp","Camp","Camp","Camp","Camp","Camp","Camp","Camp","Camp","Camp","Camp","Camp","Camp","Camp","Camp","Camp","Camp","Camp","Camp","Camp","Camp","Camp","Camp","Camp","Camp","Camp","Camp","Camp","Camp","Camp","Camp","Camp","Camp","Camp","Camp","Camp","Camp","Camp","Camp","Camp","Camp","Camp","Camp","Camp","Camp","Camp","Camp","Camp","Camp","Camp","Camp","Camp","Camp","Camp","Camp","Camp","Camp","Camp","Camp","Camp","Camp","Camp","Camp","Camp","Camp","Camp","Camp","Camp","Camp","Camp","Camp","Camp","Camp","Camp","Camp","Camp","Camp","Camp","Camp","Camp","Camp","Camp","Camp","Camp","Camp","Camp","Camp","Camp","Camp","Camp","Camp","Camp","Camp","Camp","Camp","Camp","Camp","Camp","Camp","Camp","Camp","Camp","Camp","Camp","Camp","Camp","Camp","Camp","Camp","Camp","Camp","Camp","Camp","Camp","Camp","Camp","Camp","Camp","Camp","Camp","Camp","Camp","Camp","Camp","Camp","Camp","Camp","Camp","Camp","Camp","Camp","Camp","Camp","Camp","Camp","Camp","Camp","Camp","Camp","Camp","Camp","Camp","Camp","Camp","Camp","Camp","Camp","Camp","Camp","Camp","Camp","Camp","Camp","Camp","Camp","Camp","Camp","Camp","Camp","Camp","Camp","Camp","Camp","Camp","Camp","Camp","Camp","Camp","Camp","Camp","Camp","Camp","Camp","Camp","Camp","Camp","Camp","Camp","Camp","Camp","Camp","Camp","Camp","Camp","Camp","Camp","Camp","Camp","Camp","Camp","Camp","Camp","Camp","Camp","Camp","Camp","Camp","Camp","Camp","Camp","Camp","Camp","Camp","Camp","Camp","Camp","Camp","Camp","Camp","Camp","Camp","Camp","Camp","Camp","Camp","Camp","Camp","Camp","Camp","Camp","Camp","Camp","Camp","Camp","Camp","Camp","Camp","Camp","Camp","Camp","Camp","Camp","Camp","Camp","Camp","Camp","Camp","Camp","Camp","Camp","Camp","Camp","Camp","Camp","Camp","Camp","Camp","Camp","Camp","Camp","Camp","Camp","Camp","Camp","Camp","Camp","Camp","Camp","Camp","Camp","Camp","Camp","Camp","Camp","Camp","Camp","Camp","Camp","Camp","Camp","Camp","Camp","Camp","Camp","Camp","Camp","Camp","Camp","Camp","Camp","Camp","Camp","Camp","Camp","Camp","Camp","Camp","Camp","Camp","Camp","Camp","Camp","Camp","Camp","Camp","Camp","Camp","Camp","Camp","Camp","Camp","Camp","Camp","Camp","Camp","Camp","Camp","Camp","Camp","Camp","Camp","Camp","Camp","Camp","Camp","Camp","Camp","Camp","Camp","Camp","Camp","Camp","Camp","Camp","Camp","Camp","Camp","Camp","Camp","Camp","Camp","Camp","Camp","Camp","Camp","Camp","Camp","Camp","Camp","Camp","Camp","Camp","Camp","Camp","Camp","Camp","Camp","Camp","Camp","Camp","Camp","Camp","Camp","Camp","Camp","Camp","Camp","Camp","Camp","Camp","Camp","Camp","Camp","Camp","Camp","Camp","Camp","Camp","Camp","Camp","Camp","Camp","Camp","Camp","Camp","Camp","Camp","Camp","Camp","Camp","Camp","Camp","Camp","Camp","Camp","Camp","Camp","Camp","Camp","Camp","Camp","Camp","Camp","Camp","Camp","Camp","Camp","Camp","Camp","Camp","Camp","Camp","Camp","Camp","Camp","Camp","Camp","Camp","Camp","Camp","Camp","Camp","Camp","Camp","Camp","Camp","Camp","Camp","Camp","Camp","Camp","Camp","Camp","Camp","Camp","Camp","Camp","Camp","Camp","Camp","Camp","Camp","Camp","Camp","Camp","Camp","Camp","Camp","Camp","Camp","Camp","Camp","Camp","Camp","Camp","Camp","Camp","Camp","Camp","Camp","Camp","Camp","Camp","Camp","Camp","Camp","Camp","Camp","Camp","Camp","Camp","Camp","Camp","Camp","Camp","Camp","Camp","Camp","Camp","Camp","Camp","Camp","Camp","Camp","Camp","Camp","Camp","Camp","Camp","Camp","Camp","Camp","Camp","Camp","Camp","Camp","Camp","Camp","Camp","Camp","Camp","Camp","Camp","Camp","Camp","Camp","Camp","Camp","Camp","Camp","Camp","Camp","Camp","Camp","Camp","Camp","Camp","Camp","Camp","Camp","Camp","Camp","Camp","Camp","Camp","Camp","Camp","Camp","Camp","Camp","Camp","Camp","Camp","Camp","Camp","Camp","Camp","Camp","Camp","Camp","Camp","Camp","Camp","Camp","Camp","Camp","Camp","Camp","Camp","Camp","Camp","Camp","Camp","Camp","Camp","Camp","Camp","Camp","Camp","Camp","Camp","Camp","Camp","Camp","Camp","Camp","Camp","Camp","Camp","Camp","Camp","Camp","Camp","Camp","Camp","Camp","Camp","Camp","Camp","Camp","Camp","Camp","Camp","Camp","Camp","Camp","Camp","Camp","Camp","Camp","Camp","Camp","Camp","Camp","Camp","Camp","Camp","Camp","Camp","Camp","Camp","Camp","Camp","Camp","Camp","Camp","Camp","Camp","Camp","Camp","Camp","Camp","Camp","Camp","Camp","Camp","Camp","Camp","Camp","Camp","Camp","Camp","Camp","Camp","Camp","Camp","Camp","Camp","Camp","Camp","Camp","Camp","Camp","Camp","Camp","Camp","Camp","Camp","Camp","Camp","Camp","Camp","Camp","Camp","Camp","Camp","Camp","Camp","Camp","Camp","Camp","Camp","Camp","Camp","Camp","Camp","Camp","Camp","Camp","Camp","Camp","Camp","Camp","Camp","Camp","Camp","Camp","Camp","Camp","Camp","Camp","Camp","Camp","Camp","Camp","Camp","Camp","Camp","Camp","Camp","Camp","Camp","Camp","Camp","Camp","Camp","Camp","Camp","Camp","Camp","Camp","Camp","Camp","Camp","Camp","Camp","Camp","Camp","Camp","Camp","Camp","Camp","Camp","Camp","Camp","Camp","Camp","Camp","Camp","Camp","Camp","Camp","Camp","Camp","Camp","Camp","Camp","Camp","Camp","Camp","Camp","Camp","Camp","Camp","Camp","Camp","Camp","Camp","Camp","Camp","Camp","Camp","Camp","Camp","Camp","Camp","Camp","Camp","Camp","Camp","Camp","Camp","Camp","Camp","Camp","Camp","Camp","Camp","Camp","Camp","Camp","Camp","Camp","Camp","Camp","Camp","Camp","Camp","Camp","Camp","Camp","Camp","Camp","Camp","Camp","Camp","Camp","Camp","Camp","Camp","Camp","Camp","Camp","Camp","Camp","Camp","Camp","Camp","Camp","Camp","Camp","Camp","Camp","Camp","Camp","Camp","Camp","Camp","Camp","Camp","Camp","Camp","Camp","Camp","Camp","Camp","Camp","Camp","Camp","Camp","Camp","Camp","Camp","Camp","Camp","Camp","Camp","Camp","Camp","Camp","Camp","Camp","Camp","Camp","Camp","Camp","Camp","Camp","Camp","Camp","Camp","Camp","Camp","Camp","Camp","Camp","Camp","Camp","Camp","Camp","Camp","Camp","Camp","Camp","Camp","Camp","Camp","Camp","Camp","Camp","Camp","Camp","Camp","Camp","Camp","Camp","Camp","Camp","Camp","Camp","Camp","Camp","Camp","Camp","Camp","Camp","Camp","Camp","Camp","Camp","Camp","Camp","Camp","Camp","Camp","Camp","Camp","Camp","Camp","Camp","Camp","Camp","Camp","Camp","Camp","Camp","Camp","Camp","Camp","Camp","Camp","Camp","Camp","Camp","Camp","Camp","Camp","Camp","Camp","Camp","Camp","Camp","Camp","Camp","Camp","Camp","Camp","Camp","Camp","Camp","Camp","Camp","Camp","Camp","Camp","Camp","Camp","Camp","Camp","Camp","Camp","Camp","Camp","Camp","Camp","Camp","Camp","Camp","Camp","Camp","Camp","Camp","Camp","Camp","Camp","Camp","Camp","Camp","Camp","Camp","Camp","Camp","Camp","Camp","Camp","Camp","Camp","Camp","Camp","Camp","Camp","Camp","Camp","Camp","Camp","Camp","Camp","Camp","Camp","Camp","Camp","Camp","Camp","Camp","Camp","Camp","Camp","Camp","Camp","Camp","Camp","Camp","Camp","Camp","Camp","Camp","Camp","Camp","Camp","Camp","Camp","Camp","Camp","Camp","Camp","Camp","Camp","Camp","Camp","Camp","Camp","Camp","Camp","Camp","Camp","Camp","Camp","Camp","Camp","Camp","Camp","Camp","Camp","Camp","Camp","Camp","Camp","Camp","Camp","Camp","Camp","Camp","Camp","Camp","Camp","Camp","Camp","Camp","Camp","Camp","Camp","Camp","Camp","Camp","Camp","Camp","Camp","Camp","Camp","Camp","Camp","Camp","Camp","Camp","Camp","Camp","Camp","Camp","Camp","Camp","Camp","Camp","Camp","Camp","Camp","Camp","Camp","Camp","Camp","Camp","Camp","Camp","Camp","Camp","Camp","Camp","Camp","Camp","Camp","Camp","Camp","Camp","Camp","Camp","Camp","Camp","Camp","Camp","Camp","Camp","Camp","Camp","Camp","Camp","Camp","Camp","Camp","Camp","Camp","Camp","Camp","Camp","Camp","Camp","Camp","Camp","Camp","Camp","Camp","Camp","Camp","Camp","Camp","Camp","Camp","Camp","Camp","Camp","Camp","Camp","Camp","Camp","Camp","Camp","Camp","Camp","Camp","Camp","Camp","Camp","Camp","Camp","Camp","Camp","Camp","Camp","Camp","Camp","Camp","Camp","Camp","Camp","Camp","Camp","Camp","Camp","Camp","Camp","Camp","Camp","Camp","Camp","Camp","Camp","Camp","Camp","Camp","Camp","Camp","Camp","Camp","Camp","Camp","Camp","Camp","Camp","Camp","Camp","Camp","Camp","Camp","Camp","Camp","Camp","Camp","Camp","Camp","Camp","Camp","Camp","Camp","Camp","Camp","Camp","Camp","Camp","Camp","Camp","Camp","Camp","Camp","Camp","Camp","Camp","Camp","Camp","Camp","Camp","Camp","Camp","Camp","Camp","Camp","Camp","Camp","Camp","Camp","Camp","Camp","Camp","Camp","Camp","Camp","Camp","Camp","Camp","Camp","Camp","Camp","Camp","Camp","Camp","Camp","Camp","Camp","Camp","Camp","Camp","Camp","Camp","Camp","Camp","Camp","Camp","Camp","Camp","Camp","Camp","Camp","Camp","Camp","Camp","Camp","Camp","Camp","Camp","Camp","Camp","Camp","Camp","Camp","Camp","Camp","Camp","Camp","Camp","Camp","Camp","Camp","Camp","Camp","Camp","Camp","Camp","Camp","Camp","Camp","Camp","Camp","Camp","Camp","Camp","Camp","Camp","Camp","Camp","Camp","Camp","Camp","Camp","Camp","Camp","Camp","Camp","Camp","Camp","Camp","Camp","Camp","Camp","Camp","Camp","Camp","Camp","Camp","Camp","Camp","Camp","Camp","Camp","Camp","Camp","Camp","Camp","Camp","Camp","Camp","Camp","Camp","Camp","Camp","Camp","Camp","Camp","Camp","Camp","Camp","Camp","Camp","Camp","Camp","Camp","Camp","Camp","Camp","Camp","Camp","Camp","Camp","Camp","Camp","Camp","Camp","Camp","Camp","Camp","Camp","Camp","Camp","Camp","Camp","Camp","Camp","Camp","Camp","Camp","Camp","Camp","Camp","Camp","Camp","Camp","Camp","Camp","Camp","Camp","Camp","Camp","Camp","Camp","Camp","Camp","Camp","Camp","Camp","Camp","Camp","Camp","Camp","Camp","Camp","Camp","Camp","Camp","Camp","Camp","Camp","Camp","Camp","Camp","Camp","Camp","Camp","Camp","Camp","Camp","Camp","Camp","Camp","Camp","Camp","Camp","Camp","Camp","Camp","Camp","Camp","Camp","Camp","Camp","Camp","Camp","Camp","Camp","Camp","Camp","Camp","Camp","Camp","Camp","Camp","Camp","Camp","Camp","Camp","Camp","Camp","Camp","Camp","Camp","Camp","Camp","Camp","Camp","Camp","Camp","Camp","Camp","Camp","Camp","Camp","Camp","Camp","Camp","Camp","Camp","Camp","Camp","Camp","Camp","Camp","Camp","Camp","Camp","Camp","Camp","Camp","Camp","Camp","Camp","Camp","Camp","Camp","Camp","Camp","Camp","Camp","Camp","Camp","Camp","Camp","Camp","Camp","Camp","Camp","Camp","Camp","Camp","Camp","Camp","Camp","Camp","Camp","Camp","Camp","Camp","Camp","Camp","Camp","Camp","Camp","Camp","Camp","Camp","Camp","Camp","Camp","Camp","Camp","Camp","Camp","Camp","Camp","Camp","Camp","Camp","Camp","Camp","Camp","Camp","Camp","Camp","Camp","Camp","Camp","Camp","Camp","Camp","Camp","Camp","Camp","Camp","Camp","Camp","Camp","Camp","Camp","Camp","Camp","Camp","Camp","Camp","Camp","Camp","Camp","Camp","Camp","Camp","Camp","Camp","Camp","Camp","Camp","Camp","Camp","Camp","Camp","Camp","Camp","Camp","Camp","Camp","Camp","Camp","Camp","Camp","Camp","Camp","Camp","Camp","Camp","Camp","Camp","Camp","Camp","Camp","Camp","Camp","Camp","Camp","Camp","Camp","Camp","Camp","Camp","Camp","Camp","Camp","Camp","Camp","Camp","Camp","Camp","Camp","Camp","Camp","Camp","Camp","Camp","Camp","Camp","Camp","Camp","Camp","Camp","Camp","Camp","Camp","Camp","Camp","Camp","Camp","Camp","Camp","Camp","Camp","Camp","Camp","Camp","Camp","Camp","Camp","Camp","Camp","Camp","Camp","Camp","Camp","Camp","Camp","Camp","Camp","Camp","Camp","Camp","Camp","Camp","Camp","Camp","Camp","Camp","Camp","Camp","Camp","Camp","Camp","Camp","Camp","Camp","Camp","Camp","Camp","Camp","Camp","Camp","Camp","Camp","Camp","Camp","Camp","Camp","Camp","Camp","Camp","Camp","Camp","Camp","Camp","Camp","Camp","Camp","Camp","Camp","Camp","Camp","Camp","Camp","Camp","Camp","Camp","Camp","Camp","Camp","Camp","Camp","Camp","Camp","Camp","Camp","Camp","Camp","Camp","Camp","Camp","Camp","Camp","Camp","Camp","Camp","Camp","Camp","Camp","Camp","Camp","Camp","Camp","Camp","Camp","Camp","Camp","Camp","Camp","Camp","Camp","Camp","Camp","Camp","Camp","Camp","Camp","Camp","Camp","Camp","Camp","Camp","Camp","Camp","Camp","Camp","Camp","Camp","Camp","Camp","Camp","Camp","Camp","Camp","Camp","Camp","Camp","Camp","Camp","Camp","Camp","Camp","Camp","Camp","Camp","Camp","Camp","Camp","Camp","Camp","Camp","Camp","Camp","Camp","Camp","Camp","Camp","Camp","Camp","Camp","Camp","Camp","Camp","Camp","Camp","Camp","Camp","Camp","Camp","Camp","Camp","Camp","Camp","Camp","Camp","Camp","Camp","Camp","Camp","Camp","Camp","Camp","Camp","Camp","Camp","Camp","Camp","Camp","Camp","Camp","Camp","Camp","Camp","Camp","Camp","Camp","Camp","Camp","Camp","Camp","Camp","Camp","Camp","Camp","Camp","Camp","Camp","Camp","Camp","Camp","Camp","Camp","Camp","Camp","Camp","Camp","Camp","Camp","Camp","Camp","Camp","Camp","Camp","Camp","Camp","Camp","Camp","Camp","Camp","Camp","Camp","Camp","Camp","Camp","Camp","Camp","Camp","Camp","Camp","Camp","Camp","Camp","Camp","Camp","Camp","Camp","Camp","Camp","Camp","Camp","Camp","Camp","Camp","Camp","Camp","Camp","Camp","Camp","Camp","Camp","Camp","Camp","Camp","Camp","Camp","Camp","Camp","Camp","Camp","Camp","Camp","Camp","Camp","Camp","Camp","Camp","Camp","Camp","Camp","Camp","Camp","Camp","Camp","Camp","Camp","Camp","Camp","Camp","Camp","Camp","Camp","Camp","Camp","Camp","Camp","Camp","Camp","Camp","Camp","Camp","Camp","Camp","Camp","Camp","Camp","Camp","Camp","Camp","Camp","Camp","Camp","Camp","Camp","Camp","Camp","Camp","Camp","Camp","Camp","Camp","Camp","Camp","Camp","Camp","Camp","Camp","Camp","Camp","Camp","Camp","Camp","Camp","Camp","Camp","Camp","Camp","Camp","Camp","Camp","Camp","Camp","Camp","Camp","Camp","Camp","Camp","Camp","Camp","Camp","Camp","Camp","Camp","Camp","Camp","Camp","Camp","Camp","Camp","Camp","Camp","Camp","Camp","Camp","Camp","Camp","Camp","Camp","Camp","Camp","Camp","Camp","Camp","Camp","Camp","Camp","Camp","Camp","Camp","Camp","Camp","Camp","Camp","Camp","Camp","Camp","Camp","Camp","Camp","Camp","Camp","Camp","Camp","Camp","Camp","Camp","Camp","Camp","Camp","Camp","Camp","Camp","Camp","Camp","Camp","Camp","Camp","Camp","Camp","Camp","Camp","Camp","Camp","Camp","Camp","Camp","Camp","Camp","Camp","Camp","Camp","Camp","Camp","Camp","Camp","Camp","Camp","Camp","Camp","Camp","Camp","Camp","Camp","Camp","Camp","Camp","Camp","Camp","Camp","Camp","Camp","Camp","Camp","Camp","Camp","Camp","Camp","Camp","Camp","Camp","Camp","Camp","Camp","Camp","Camp","Camp","Camp","Camp","Camp","Camp","Camp","Camp","Camp","Camp","Camp","Camp","Camp","Camp","Camp","Camp","Camp","Camp","Camp","Camp","Camp","Camp","Camp","Camp","Camp","Camp","Camp","Camp","Camp","Camp","Camp","Camp","Camp","Camp","Camp","Camp","Camp","Camp","Camp","Camp","Camp","Camp","Camp","Camp","Camp","Camp","Camp","Camp","Camp","Camp","Camp","Camp","Camp","Camp","Camp","Camp","Camp","Camp","Camp","Camp","Camp","Camp","Camp","Camp","Camp","Camp","Camp","Camp","Camp","Camp","Camp","Camp","Camp","Camp","Camp","Camp","Camp","Camp","Camp","Camp","Camp","Camp","Camp","Camp","Camp","Camp","Camp","Camp","Camp","Camp","Camp","Camp","Camp","Camp","Camp","Camp","Camp","Camp","Camp","Camp","Camp","Camp","Camp","Camp","Camp","Camp","Camp","Camp","Camp","Camp","Camp","Camp","Camp","Camp","Camp","Camp","Camp","Camp","Camp","Camp","Camp","Camp","Camp","Camp","Camp","Camp","Camp","Camp","Camp","Camp","Camp","Camp","Camp","Camp","Camp","Camp","Camp","Camp","Camp","Camp","Camp","Camp","Camp","Camp","Camp","Camp","Camp","Camp","Camp","Camp","Camp","Camp","Camp","Camp","Camp","Camp","Camp","Camp","Camp","Camp","Camp","Camp","Camp","Camp","Camp","Camp","Camp","Camp","Camp","Camp","Camp","Camp","Camp","Camp","Camp","Camp","Camp","Camp","Camp","Camp","Camp","Camp","Camp","Camp","Camp","Camp","Camp","Camp","Camp","Camp","Camp","Camp","Camp","Camp","Camp","Camp","Camp","Camp","Camp","Camp","Camp","Camp","Camp","Camp","Camp","Camp","Camp","Camp","Camp","Camp","Camp","Camp","Camp","Camp","Camp","Camp","Camp","Camp","Camp","Camp","Camp","Camp","Camp","Camp","Camp","Camp","Camp","Camp","Camp","Camp","Camp","Camp","Camp","Camp","Camp","Camp","Camp","Camp","Camp","Camp","Camp","Camp","Camp","Camp","Camp","Camp","Camp","Camp","Camp","Camp","Camp","Camp","Camp","Camp","Camp","Camp","Camp","Camp","Camp","Camp","Camp","Camp","Camp","Camp","Camp","Camp","Camp","Camp","Camp","Camp","Camp","Camp","Camp","Camp","Camp","Camp","Camp","Camp","Camp","Camp","Camp","Camp","Camp","Camp","Camp","Camp","Camp","Camp","Camp","Camp","Camp","Camp","Camp","Camp","Camp","Camp","Camp","Camp","Camp","Camp","Camp","Camp","Camp","Camp","Camp","Camp","Camp","Camp","Camp","Camp","Camp","Camp","Camp","Camp","Camp","Camp","Camp","Camp","Camp","Camp","Camp","Camp","Camp","Camp","Camp","Camp","Camp","Camp","Camp","Camp","Camp","Camp","Camp","Camp","Camp","Camp","Camp","Camp","Camp","Camp","Camp","Camp","Camp","Camp","Camp","Camp","Camp","Camp","Camp","Camp","Camp","Camp","Camp","Camp","Camp","Camp","Camp","Camp","Camp","Camp","Camp","Camp","Camp","Camp","Camp","Camp","Camp","Camp","Camp","Camp","Camp","Camp","Camp","Camp","Camp","Camp","Camp","Camp","Camp","Camp","Camp","Camp","Camp","Camp","Camp","Camp","Camp","Camp","Camp","Camp","Camp","Camp","Camp","Camp","Camp","Camp","Camp","Camp","Camp","Camp","Camp","Camp","Camp","Camp","Camp","Camp","Camp","Camp","Camp","Camp","Camp","Camp","Camp","Camp","Camp","Camp","Camp","Camp","Camp","Camp","Camp","Camp","Camp","Camp","Camp","Camp","Camp","Camp","Camp","Camp","Camp","Camp","Camp","Camp","Camp","Camp","Camp","Camp","Camp","Camp","Camp","Camp","Camp","Camp","Camp","Camp","Camp","Camp","Camp","Camp","Camp","Camp","Camp","Camp","Camp","Camp","Camp","Camp","Camp","Camp","Camp","Camp","Camp","Camp","Camp","Camp","Camp","Camp","Camp","Camp","Camp","Camp","Camp","Camp","Camp","Camp","Camp","Camp","Camp","Camp","Camp","Camp","Camp","Camp","Camp","Camp","Camp","Camp","Camp","Camp","Camp","Camp","Camp","Camp","Camp","Camp","Camp","Camp","Camp","Camp","Camp","Camp","Camp","Camp","Camp","Camp","Camp","Camp","Camp","Camp","Camp","Camp","Camp","Camp","Camp","Camp","Camp","Camp","Camp","Camp","Camp","Camp","Camp","Camp","Camp","Camp","Camp","Camp","Camp","Camp","Camp","Camp","Camp","Camp","Camp","Camp","Camp","Camp","Camp","Camp","Camp","Camp","Camp","Camp","Camp","Camp","Camp","Camp","Camp","Camp","Camp","Camp","Camp","Camp","Camp","Camp","Camp","Camp","Camp","Camp","Camp","Camp","Camp","Camp","Camp","Camp","Camp","Camp","Camp","Camp","Camp","Camp","Camp","Camp","Camp","Camp","Camp","Camp","Camp","Camp","Camp","Camp","Camp","Camp","Camp","Camp","Camp","Camp","Camp","Camp","Camp","Camp","Camp","Camp","Camp","Camp","Camp","Camp","Camp","Camp","Camp","Camp","Camp","Camp","Camp","Camp","Camp","Camp","Camp","Camp","Camp","Camp","Camp","Camp","Camp","Camp","Camp","Camp","Camp","Camp","Camp","Camp","Camp","Camp","Camp","Camp","Camp","Camp","Camp","Camp","Camp","Camp","Camp","Camp","Camp","Camp","Camp","Camp","Camp","Camp","Camp","Camp","Camp","Camp","Camp","Camp","Camp","Camp","Camp","Camp","Camp","Camp","Camp","Camp","Camp","Camp","Camp","Camp","Camp","Camp","Camp","Camp","Camp","Camp","Camp","Camp","Camp","Camp","Camp","Camp","Camp","Camp","Camp","Camp","Camp","Camp","Camp","Camp","Camp","Camp","Camp","Camp","Camp","Camp","Camp","Camp","Camp","Camp","Camp","Camp","Camp","Camp","Camp","Camp","Camp","Camp","Camp","Camp","Camp","Camp","Camp","Camp","Camp","Camp","Camp","Camp","Camp","Camp","Camp","Camp","Camp","Camp","Camp","Camp","Camp","Camp","Camp","Camp","Camp","Camp","Camp","Camp","Camp","Camp","Camp","Camp","Camp","Camp","Camp","Camp","Camp","Camp","Camp","Camp","Camp","Camp","Camp","Camp","Camp","Camp","Camp","Camp","Camp","Camp","Camp","Camp","Camp","Camp","Camp","Camp","Camp","Camp","Camp","Camp","Camp","Camp","Camp","Camp","Camp","Camp","Camp","Camp","Camp","Camp","Camp","Camp","Camp","Camp","Camp","Camp","Camp","Camp","Camp","Camp","Camp","Camp","Camp","Camp","Camp","Camp","Camp","Camp","Camp","Camp","Camp","Camp","Camp","Camp","Camp","Camp","Camp","Camp","Camp","Camp","Camp","Camp","Camp","Camp","Camp","Camp","Camp","Camp","Camp","Camp","Camp","Camp","Camp","Camp","Camp","Camp","Camp","Camp","Camp","Camp","Camp","Camp","Camp","Camp","Camp","Camp","Camp","Camp","Camp","Camp","Camp","Camp","Camp","Camp","Camp","Camp","Camp","Camp","Camp","Camp","Camp","Camp","Camp","Camp","Camp","Camp","Camp","Camp","Camp","Camp","Camp","Camp","Camp","Camp","Camp","Camp","Camp","Camp","Camp","Camp","Camp","Camp","Camp","Camp","Camp","Camp","Camp","Camp","Camp","Camp","Camp","Camp","Camp","Camp","Camp","Camp","Camp","Camp","Camp","Camp","Camp","Camp","Camp","Camp","Camp","Camp","Camp","Camp","Camp","Camp","Camp","Camp","Camp","Camp","Camp","Camp","Camp","Camp","Camp","Camp","Camp","Camp","Camp","Camp","Camp","Camp","Camp","Camp","Camp","Camp","Camp","Camp","Camp","Camp","Camp","Camp","Camp","Camp","Camp","Camp","Camp","Camp","Camp","Camp","Camp","Camp","Camp","Camp","Camp","Camp","Camp","Camp","Camp","Camp","Camp","Camp","Camp","Camp","Camp","Camp","Camp","Camp","Camp","Camp","Camp","Camp","Camp","Camp","Camp","Camp","Camp","Camp","Camp","Camp","Camp","Camp","Camp","Camp","Camp","Camp","Camp","Camp","Camp","Camp","Camp","Camp","Camp","Camp","Camp","Camp","Camp","Camp","Camp","Camp","Camp","Camp","Camp","Camp","Camp","Camp","Camp","Camp","Camp","Camp","Camp","Camp","Camp","Camp","Camp","Camp","Camp","Camp","Camp","Camp","Camp","Camp","Camp","Camp","Camp","Camp","Camp","Camp","Camp","Camp","Camp","Camp","Camp","Camp","Camp","Camp","Camp","Camp","Camp","Camp","Camp","Camp","Camp","Camp","Camp","Camp","Camp","Camp","Camp","Camp","Camp","Camp","Camp","Camp","Camp","Camp","Camp","Camp","Camp","Camp","Camp","Camp","Camp","Camp","Camp","Camp","Camp","Camp","Camp","Camp","Camp","Camp","Camp","Camp","Camp","Camp","Camp","Camp","Camp","Camp","Camp","Camp","Camp","Camp","Camp","Camp","Camp","Camp","Camp","Camp","Camp","Camp","Camp","Camp","Camp","Camp","Camp","Camp","Camp","Camp","Camp","Camp","Camp","Camp","Camp","Camp","Camp","Camp","Camp","Camp","Camp","Camp","Camp","Camp","Camp","Camp","Camp","Camp","Camp","Camp","Camp","Camp","Camp","Camp","Camp","Camp","Camp","Camp","Camp","Camp","Camp","Camp","Camp","Camp","Camp","Camp","Camp","Camp","Camp","Camp","Camp","Camp","Camp","Camp","Camp","Camp","Camp","Camp","Camp","Camp","Camp","Camp","Camp","Camp","Camp","Camp","Camp","Camp","Camp","Camp","Camp","Camp","Camp","Camp","Camp","Camp","Camp","Camp","Camp","Camp","Camp","Camp","Camp","Camp","Camp","Camp","Camp","Camp","Camp","Camp","Camp","Camp","Camp","Camp","Camp","Camp","Camp","Camp","Camp","Camp","Camp","Camp","Camp","Camp","Camp","Camp","Camp","Camp","Camp","Camp","Camp","Camp","Camp","Camp","Camp","Camp","Camp","Camp","Camp","Camp","Camp","Camp","Camp","Camp","Camp","Camp","Camp","Camp","Camp","Camp","Camp","Camp","Camp","Camp","Camp","Camp","Camp","Camp","Camp","Camp","Camp","Camp","Camp","Camp","Camp","Camp","Camp","Camp","Camp","Camp","Camp","Camp","Camp","Camp","Camp","Camp","Camp","Camp","Camp","Camp","Camp","Camp","Camp","Camp","Camp","Camp","Camp","Camp","Camp","Camp","Camp","Camp","Camp","Camp","Camp","Camp","Camp","Camp","Camp","Camp","Camp","Camp","Camp","Camp","Camp","Camp","Camp","Camp","Camp","Camp","Camp","Camp","Camp","Camp","Camp","Camp","Camp","Camp","Camp","Camp","Camp","Camp","Camp","Camp","Camp","Camp","Camp","Camp","Camp","Camp","Camp","Camp","Camp","Camp","Camp","Camp","Camp","Camp","Camp","Camp","Camp","Camp","Camp","Camp","Camp","Camp","Camp","Camp","Camp","Camp","Camp","Camp","Camp","Camp","Camp","Camp","Camp","Camp","Camp","Camp","Camp","Camp","Camp","Camp","Camp","Camp","Camp","Camp","Camp","Camp","Camp","Camp","Camp","Camp","Camp","Camp","Camp","Camp","Camp","Camp","Camp","Camp","Camp","Camp","Camp","Camp","Camp","Camp","Camp","Camp","Camp","Camp","Camp","Camp","Camp","Camp","Camp","Camp","Camp","Camp","Camp","Camp","Camp","Camp","Camp","Camp","Camp","Camp","Camp","Camp","Camp","Camp","Camp","Camp","Camp","Camp","Camp","Camp","Camp","Camp","Camp","Camp","Camp","Camp","Camp","Camp","Camp","Camp","Camp","Camp","Camp","Camp","Camp","Camp","Camp","Camp","Camp","Camp","Camp","Camp","Camp","Camp","Camp","Camp","Camp","Camp","Camp","Camp","Camp","Camp","Camp","Camp","Camp","Camp","Camp","Camp","Camp","Camp","Camp","Camp","Camp","Camp","Camp","Camp","Camp","Camp","Camp","Camp","Camp","Camp","Camp","Camp","Camp","Camp","Camp","Camp","Camp","Camp","Camp","Camp","Camp","Camp","Camp","Camp","Camp","Camp","Camp","Camp","Camp","Camp","Camp","Camp","Camp","Camp","Camp","Camp","Camp","Camp","Camp","Camp","Camp","Camp","Camp","Camp","Camp","Camp","Camp","Camp","Camp","Camp","Camp","Camp","Camp","Camp","Camp","Camp","Camp","Camp","Camp","Camp","Camp","Camp","Camp","Camp","Camp","Camp","Camp","Camp","Camp","Camp","Camp","Camp","Camp","Camp","Camp","Camp","Camp","Camp","Camp","Camp","Camp","Camp","Camp","Camp","Camp","Camp","Camp","Camp","Camp","Camp","Camp","Camp","Camp","Camp","Camp","Camp","Camp","Camp","Camp","Camp","Camp","Camp","Camp","Camp","Camp","Camp","Camp","Camp","Camp","Camp","Camp","Camp","Camp","Camp","Camp","Camp","Camp","Camp","Camp","Camp","Camp","Camp","Camp","Camp","Camp","Camp","Camp","Camp","Camp","Camp","Camp","Camp","Camp","Camp","Camp","Camp","Camp","Camp","Camp","Camp","Camp","Camp","Camp","Camp","Camp","Camp","Camp","Camp","Camp","Camp","Camp","Camp","Camp","Camp","Camp","Camp","Camp","Camp","Camp","Camp","Camp","Camp","Camp","Camp","Camp","Camp","Camp","Camp","Camp","Camp","Camp","Camp","Camp","Camp","Camp","Camp","Camp","Camp","Camp","Camp","Camp","Camp","Camp","Camp","Camp","Camp","Camp","Camp","Camp","Camp","Camp","Camp","Camp","Camp","Camp","Camp","Camp","Camp","Camp","Camp","Camp","Camp","Camp","Camp","Camp","Camp","Camp","Camp","Camp","Camp","Camp","Camp","Camp","Camp","Camp","Camp","Camp","Camp","Camp","Camp","Camp","Camp","Camp","Camp","Camp","Camp","Camp","Camp","Camp","Camp","Camp","Camp","Camp","Camp","Camp","Camp","Camp","Camp","Camp","Camp","Camp","Camp","Camp","Camp","Camp","Camp","Camp","Camp","Camp","Camp","Camp","Camp","Camp","Camp","Camp","Camp","Camp","Camp","Camp","Camp","Camp","Camp","Camp","Camp","Camp","Camp","Camp","Camp","Camp","Camp","Camp","Camp","Camp","Camp","Camp","Camp","Camp","Camp","Camp","Camp","Camp","Camp","Camp","Camp","Camp","Camp","Camp","Camp","Camp","Camp","Camp","Camp","Camp","Camp","Camp","Camp","Camp","Camp","Camp","Camp","Camp","Camp","Camp","Camp","Camp","Camp","Camp","Camp","Camp","Camp","Camp","Camp","Camp","Camp","Camp","Camp","Camp","Camp","Camp","Camp","Camp","Camp","Camp","Camp","Camp","Camp","Camp","Camp","Camp","Camp","Camp","Camp","Camp","Camp","Camp","Camp","Camp","Camp","Camp","Camp","Camp","Camp","Camp","Camp","Camp","Camp","Camp","Camp","Camp","Camp","Camp","Camp","Camp","Camp","Camp","Camp","Camp","Camp","Camp","Camp","Camp","Camp","Camp","Camp","Camp","Camp","Camp","Camp","Camp","Camp","Camp","Camp","Camp","Camp","Camp","Camp","Camp","Camp","Camp","Camp","Camp","Camp","Camp","Camp","Camp","Camp","Camp","Camp","Camp","Camp","Camp","Camp","Camp","Camp","Camp","Camp","Camp","Camp","Camp","Camp","Camp","Camp","Camp","Camp","Camp","Camp","Camp","Camp","Camp","Camp","Camp","Camp","Camp","Camp","Camp","Camp","Camp","Camp","Camp","Camp","Camp","Camp","Camp","Camp","Camp","Camp","Camp","Camp","Camp","Camp","Camp","Camp","Camp","Camp","Camp","Camp","Camp","Camp","Camp","Camp","Camp","Camp","Camp","Camp","Camp","Camp","Camp","Camp","Camp","Camp","Camp","Camp","Camp","Camp","Camp","Camp","Camp","Camp","Camp","Camp","Camp","Camp","Camp","Camp","Camp","Camp","Camp","Camp","Camp","Camp","Camp","Camp","Camp","Camp","Camp","Camp","Camp","Camp","Camp","Camp","Camp","Camp","Camp","Camp","Camp","Camp","Camp","Camp","Camp","Camp","Camp","Camp","Camp","Camp","Camp","Camp","Camp","Camp","Camp","Camp","Camp","Camp","Camp","Camp","Camp","Camp","Camp","Camp","Camp","Camp","Camp","Camp","Camp","Camp","Camp","Camp","Camp","Camp","Camp","Camp","Camp","Camp","Camp","Camp","Camp","Camp","Camp","Camp","Camp","Camp","Camp","Camp","Camp","Camp","Camp","Camp","Camp","Camp","Camp","Camp","Camp","Camp","Camp","Camp","Camp","Camp","Camp","Camp","Camp","Camp","Camp","Camp","Camp","Camp","Camp","Camp","Camp","Camp","Camp","Camp","Camp","Camp","Camp","Camp","Camp","Camp","Camp","Camp","Camp","Camp","Camp","Camp","Camp","Camp","Camp","Camp","Camp","Camp","Camp","Camp","Camp","Camp","Camp","Camp","Camp","Camp","Camp","Camp","Camp","Camp","Camp","Camp","Camp","Camp","Camp","Camp","Camp","Camp","Camp","Camp","Camp","Camp","Camp","Camp","Camp","Camp","Camp","Camp","Camp","Camp","Camp","Camp","Camp","Camp","Camp","Camp","Camp","Camp","Camp","Camp","Camp","Camp","Camp","Camp","Camp","Camp","Camp","Camp","Camp","Camp","Camp","Camp","Camp","Camp","Camp","Camp","Camp","Camp","Camp","Camp","Camp","Camp","Camp","Camp","Camp","Camp","Camp","Camp","Camp","Camp","Camp","Camp","Camp","Camp","Camp","Camp","Camp","Camp","Camp","Camp","Camp","Camp","Camp","Camp","Camp","Camp","Camp","Camp","Camp","Camp","Camp","Camp","Camp","Camp","Camp","Camp","Camp","Camp","Camp","Camp","Camp","Camp","Camp","Camp","Camp","Camp","Camp","Camp","Camp","Camp","Camp","Camp","Camp","Camp","Camp","Camp","Camp","Camp","Camp","Camp","Camp","Camp","Camp","Camp","Camp","Camp","Camp","Camp","Camp","Camp","Camp","Camp","Camp","Camp","Camp","Camp","Camp","Camp","Camp","Camp","Camp","Camp","Camp","Camp","Camp","Camp","Camp","Camp","Camp","Camp","Camp","Camp","Camp","Camp","Camp","Camp","Camp","Camp","Camp","Camp","Camp","Camp","Camp","Camp","Camp","Camp","Camp","Camp","Camp","Camp","Camp","Camp","Camp","Camp","Camp","Camp","Camp","Camp","Camp","Camp","Camp","Camp","Camp","Camp","Camp","Camp","Camp","Camp","Camp","Camp","Camp","Camp","Camp","Camp","Camp","Camp","Camp","Camp","Camp","Camp","Camp","Camp","Camp","Camp","Camp","Camp","Camp","Camp","Camp","Camp","Camp","Camp","Camp","Camp","Camp","Camp","Camp","Camp","Camp","Camp","Camp","Camp","Camp","Camp","Camp","Camp","Camp","Camp","Camp","Camp","Camp","Camp","Camp","Camp","Camp","Camp","Camp","Camp","Camp","Camp","Camp","Camp","Camp","Camp","Camp","Camp","Camp","Camp","Camp","Camp","Camp","Camp","Camp","Camp","Camp","Camp","Camp","Camp","Camp","Camp","Camp","Camp","Camp","Camp","Camp","Camp","Camp","Camp","Camp","Camp","Camp","Camp","Camp","Camp","Camp","Camp","Camp","Camp","Camp","Camp","Camp","Camp","Camp","Camp","Camp","Camp","Camp","Camp","Camp","Camp","Camp","Camp","Camp","Camp","Camp","Camp","Camp","Camp","Camp","Camp","Camp","Camp","Camp","Camp","Camp","Camp","Camp","Camp","Camp","Camp","Camp","Camp","Camp","Camp","Camp","Camp","Camp","Camp","Camp","Camp","Camp","Camp","Camp","Camp","Camp","Camp","Camp","Camp","Camp","Camp","Camp","Camp","Camp","Camp","Camp","Camp","Camp","Camp","Camp","Camp","Camp","Camp","Camp","Camp","Camp","Camp","Camp","Camp","Camp","Camp","Camp","Camp","Camp","Camp","Camp","Camp","Camp","Camp","Camp","Camp","Camp","Camp","Camp","Camp","Camp","Camp","Camp","Camp","Camp","Camp","Camp","Camp","Camp","Camp","Camp","Camp","Camp","Camp","Camp","Camp","Camp","Camp","Camp","Camp","Camp","Camp","Camp","Camp","Camp","Camp","Camp","Camp","Camp","Camp","Camp","Camp","Camp","Camp","Camp","Camp","Camp","Camp","Camp","Camp","Camp","Camp","Camp","Camp","Camp","Camp","Camp","Camp","Camp","Camp","Camp","Camp","Camp","Camp","Camp","Camp","Camp","Camp","Camp","Camp","Camp","Camp","Camp","Camp","Camp","Camp","Camp","Camp","Camp","Camp","Camp","Camp","Camp","Camp","Camp","Camp","Camp","Camp","Camp","Camp","Camp","Camp","Camp","Camp","Camp","Camp","Camp","Camp","Camp","Camp","Camp","Camp","Camp","Camp","Camp","Camp","Camp","Camp","Camp","Camp","Camp","Camp","Camp","Camp","Camp","Camp","Camp","Camp","Camp","Camp","Camp","Camp","Camp","Camp","Camp","Camp","Camp","Camp","Camp","Camp","Camp","Camp","Camp","Camp","Camp","Camp","Camp","Camp","Camp","Camp","Camp","Camp","Camp","Camp","Camp","Camp","Camp","Camp","Camp","Camp","Camp","Camp","Camp","Camp","Camp","Camp","Camp","Camp","Camp","Camp","Camp","Camp","Camp","Camp","Camp","Camp","Camp","Camp","Camp","Camp","Camp","Camp","Camp","Camp","Camp","Camp","Camp","Camp","Camp","Camp","Camp","Camp","Camp","Camp","Camp","Camp","Camp","Camp","Camp","Camp","Camp","Camp","Camp","Camp","Camp","Camp","Camp","Camp","Camp","Camp","Camp","Camp","Camp","Camp","Camp","Camp","Camp","Camp","Camp","Camp","Camp","Camp","Camp","Camp","Camp","Camp","Camp","Camp","Camp","Camp","Camp","Camp","Camp","Camp","Camp","Camp","Camp","Camp","Camp","Camp","Camp","Camp","Camp","Camp","Camp","Camp","Camp","Camp","Camp","Camp","Camp","Camp","Camp","Camp","Camp","Camp","Camp","Camp","Camp","Camp","Camp","Camp","Camp","Camp","Camp","Camp","Camp","Camp","Camp","Camp","Camp","Camp","Camp","Camp","Camp","Camp","Camp","Camp","Camp","Camp","Camp","Camp","Camp","Camp","Camp","Camp","Camp","Camp","Camp","Camp","Camp","Camp","Camp","Camp","Camp","Camp","Camp","Camp","Camp","Camp","Camp","Camp","Camp","Camp","Camp","Camp","Camp","Camp","Camp","Camp","Camp","Camp","Camp","Camp","Camp","Camp","Camp","Camp","Camp","Camp","Camp","Camp","Camp","Camp","Camp","Camp","Camp","Camp","Camp","Camp","Camp","Camp","Camp","Camp","Camp","Camp","Camp","Camp","Camp","Camp","Camp","Camp","Camp","Camp","Camp","Camp","Camp","Camp","Camp","Camp","Camp","Camp","Camp","Camp","Camp","Camp","Camp","Camp","Camp","Camp","Camp","Camp","Camp","Camp","Camp","Camp","Camp","Camp","Camp","Camp","Camp","Camp","Camp","Camp","Camp","Camp","Camp","Camp","Camp","Camp","Camp","Camp","Camp","Camp","Camp","Camp","Camp","Camp","Camp","Camp","Camp","Camp","Camp","Camp","Camp","Camp","Camp","Camp","Camp","Camp","Camp","Camp","Camp","Camp","Camp","Camp","Camp","Camp","Camp","Camp","Camp","Camp","Camp","Camp","Camp","Camp","Camp","Camp","Camp","Camp","Camp","Camp","Camp","Camp","Camp","Camp","Camp","Camp","Camp","Camp","Camp","Camp","Camp","Camp","Camp","Camp","Camp","Camp","Camp","Camp","Camp","Camp","Camp","Camp","Camp","Camp","Camp","Camp","Camp","Camp","Camp","Camp","Camp","Camp","Camp","Camp","Camp","Camp","Camp","Camp","Camp","Camp","Camp","Camp","Camp","Camp","Camp","Camp","Camp","Camp","Camp","Camp","Camp","Camp","Camp","Camp","Camp","Camp","Camp","Camp","Camp","Camp","Camp","Camp","Camp","Camp","Camp","Camp","Camp","Camp","Camp","Camp","Camp","Camp","Camp","Camp","Camp","Camp","Camp","Camp","Camp","Camp","Camp","Camp","Camp","Camp","Camp","Camp","Camp","Camp","Camp","Camp","Camp","Camp","Camp","Camp","Camp","Camp","Camp","Camp","Camp","Camp","Camp","Camp","Camp","Camp","Camp","Camp","Camp","Camp","Camp","Camp","Camp","Camp","Camp","Camp","Camp","Camp","Camp","Camp","Camp","Camp","Camp","Camp","Camp","Camp","Camp","Camp","Camp","Camp","Camp","Camp","Camp","Camp","Camp","Camp","Camp","Camp","Camp","Camp","Camp","Camp","Camp","Camp","Camp","Camp","Camp","Camp","Camp","Camp","Camp","Camp","Camp","Camp","Camp","Camp","Camp","Camp","Camp","Camp","Camp","Camp","Camp","Camp","Camp","Camp","Camp","Camp","Camp","Camp","Camp","Camp","Camp","Camp","Camp","Camp","Camp","Camp","Camp","Camp","Camp","Camp","Camp","Camp","Camp","Camp","Camp","Camp","Camp","Camp","Camp","Camp","Camp","Camp","Camp","Camp","Camp","Camp","Camp","Camp","Camp","Camp","Camp","Camp","Camp","Camp","Camp","Camp","Camp","Camp","Camp","Camp","Camp","Camp","Camp","Camp","Camp","Camp","Camp","Camp","Camp","Camp","Camp","Camp","Camp","Camp","Camp","Camp","Camp","Camp","Camp","Camp","Camp","Camp","Camp","Camp","Camp","Camp","Camp","Camp","Camp","Camp","Camp","Camp","Camp","Camp","Camp","Camp","Camp","Camp","Camp","Camp","Camp","Camp","Camp","Camp","Camp","Camp","Camp","Camp","Camp","Camp","Camp","Camp","Camp","Camp","Camp","Camp","Camp","Camp","Camp","Camp","Camp","Camp","Camp","Camp","Camp","Camp","Camp","Camp","Camp","Camp","Camp","Camp","Camp","Camp","Camp","Camp","Camp","Camp","Camp","Camp","Camp","Camp","Camp","Camp","Camp","Camp","Camp","Camp","Camp","Camp","Camp","Camp","Camp","Camp","Camp","Camp","Camp","Camp","Camp","Camp","Camp","Camp","Camp","Camp","Camp","Camp","Camp","Camp","Camp","Camp","Camp","Camp","Camp","Camp","Camp","Camp","Camp","Camp","Camp","Camp","Camp","Camp","Camp","Camp","Camp","Camp","Camp","Camp","Camp","Camp","Camp","Camp","Camp","Camp","Camp","Camp","Camp","Camp","Camp","Camp","Camp","Camp","Camp","Camp","Camp","Camp","Camp","Camp","Camp","Camp","Camp","Camp","Camp","Camp","Camp","Camp","Camp","Camp","Camp","Camp","Camp","Camp","Camp","Camp","Camp","Camp","Camp","Camp","Camp","Camp","Camp","Camp","Camp","Camp","Camp","Camp","Camp","Camp","Camp","Camp","Camp","Camp","Camp","Camp","Camp","Camp","Camp","Camp","Camp","Camp","Camp","Camp","Camp","Camp","Camp","Camp","Camp","Camp","Camp","Camp","Camp","Camp","Camp","Camp","Camp","Camp","Camp","Camp","Camp","Camp","Camp","Camp","Camp","Camp","Camp","Camp","Camp","Camp","Camp","Camp","Camp","Camp","Camp","Camp","Camp","Camp","Camp","Camp","Camp","Camp","Camp","Camp","Camp","Camp","Camp","Camp","Camp","Camp","Camp","Camp","Camp","Camp","Camp","Camp","Camp","Camp","Camp","Camp","Camp","Camp","Camp","Camp","Camp","Camp","Camp","Camp","Camp","Camp","Camp","Camp","Camp","Camp","Camp","Camp","Camp","Camp","Camp","Camp","Camp","Camp","Camp","Camp","Camp","Camp","Camp","Camp","Camp","Camp","Camp","Camp","Camp","Camp","Camp","Camp","Camp","Camp","Camp","Camp","Camp","Camp","Camp","Camp","Camp","Camp","Camp","Camp","Camp","Camp","Camp","Camp","Camp","Camp","Camp","Camp","Camp","Camp","Camp","Camp","Camp","Camp","Camp","Camp","Camp","Camp","Camp","Camp","Camp","Camp","Camp","Camp","Camp","Camp","Camp","Camp","Camp","Camp","Camp","Camp","Camp","Camp","Camp","Camp","Camp","Camp","Camp","Camp","Camp","Camp","Camp","Camp","Camp","Camp","Camp","Camp","Camp","Camp","Camp","Camp","Camp","Camp","Camp","Camp","Camp","Camp","Camp","Camp","Camp","Camp","Camp","Camp","Camp","Camp","Camp","Camp","Camp","Camp","Camp","Camp","Camp","Camp","Camp","Camp","Camp","Camp","Camp","Camp","Camp","Camp","Camp","Camp","Camp","Camp","Camp","Camp","Camp","Camp","Camp","Camp","Camp","Camp","Camp","Camp","Camp","Camp","Camp","Camp","Camp","Camp","Camp","Camp","Camp","Camp","Camp","Camp","Camp","Camp","Camp","Camp","Camp","Camp","Camp","Camp","Camp","Camp","Camp","Camp","Camp","Camp","Camp","Camp","Camp","Camp","Camp","Camp","Camp","Camp","Camp","Camp","Camp","Camp","Camp","Camp","Camp","Camp","Camp","Camp","Camp","Camp","Camp","Camp","Camp","Camp","Camp","Camp","Camp","Camp","Camp","Camp","Camp","Camp","Camp","Camp","Camp","Camp","Camp","Camp","Camp","Camp","Camp","Camp","Camp","Camp","Camp","Camp","Camp","Camp","Camp","Camp","Camp","Camp","Camp","Camp","Camp","Camp","Camp","Camp","Camp","Camp","Camp","Camp","Camp","Camp","Camp","Camp","Camp","Camp","Camp","Camp","Camp","Camp","Camp","Camp","Camp","Camp","Camp","Camp","Camp","Camp","Camp","Camp","Camp","Camp","Camp","Camp","Camp","Camp","Camp","Camp","Camp","Camp","Camp","Camp","Camp","Camp","Camp","Camp","Camp","Camp","Camp","Camp","Camp","Camp","Camp","Camp","Camp","Camp","Camp","Camp","Camp","Camp","Camp","Camp","Camp","Camp","Camp","Camp","Camp","Camp","Camp","Camp","Camp","Camp","Camp","Camp","Camp","Camp","Camp","Camp","Camp","Camp","Camp","Camp","Camp","Camp","Camp","Camp","Camp","Camp","Camp","Camp","Camp","Camp","Camp","Camp","Camp","Camp","Camp","Camp","Camp","Camp","Camp","Camp","Camp","Camp","Camp","Camp","Camp","Camp","Camp","Camp","Camp","Camp","Camp","Camp","Camp","Camp","Camp","Camp","Camp","Camp","Camp","Camp","Camp","Camp","Camp","Camp","Camp","Camp","Camp","Camp","Camp","Camp","Camp","Camp","Camp","Camp","Camp","Camp","Camp","Camp","Camp","Camp","Camp","Camp","Camp","Camp","Camp","Camp","Camp","Camp","Camp","Camp","Camp","Camp","Camp","Camp","Camp","Camp","Camp","Camp","Camp","Camp","Camp","Camp","Camp","Camp","Camp","Camp","Camp","Camp","Camp","Camp","Camp","Camp","Camp","Camp","Camp","Camp","Camp","Camp","Camp","Camp","Camp","Camp","Camp","Camp","Camp","Camp","Camp","Camp","Camp","Camp","Camp","Camp","Camp","Camp","Camp","Camp","Camp","Camp","Camp","Camp","Camp","Camp","Camp","Camp","Camp","Camp","Camp","Camp","Camp","Camp","Camp","Camp","Camp","Camp","Camp","Camp","Camp","Camp","Camp","Camp","Camp","Camp","Camp","Camp","Camp","Camp","Camp","Camp","Camp","Camp","Camp","Camp","Camp","Camp","Camp","Camp","Camp","Camp","Camp","Camp","Camp","Camp","Camp","Camp","Camp","Camp","Camp","Camp","Camp","Camp","Camp","Camp","Camp","Camp","Camp","Camp","Camp","Camp","Camp","Camp","Camp","Camp","Camp","Camp","Camp","Camp","Camp","Camp","Camp","Camp","Camp","Camp","Camp","Camp","Camp","Camp","Camp","Camp","Camp","Camp","Camp","Camp","Camp","Camp","Camp","Camp","Camp","Camp","Camp","Camp","Camp","Camp","Camp","Camp","Camp","Camp","Camp","Camp","Camp","Camp","Camp","Camp","Camp","Camp","Camp","Camp","Camp","Camp","Camp","Camp","Camp","Camp","Camp","Camp","Camp","Camp","Camp","Camp","Camp","Camp","Camp","Camp","Camp","Camp","Camp","Camp","Camp","Camp","Camp","Camp","Camp","Camp","Camp","Camp","Camp","Camp","Camp","Camp","Camp","Camp","Camp","Camp","Camp","Camp","Camp","Camp","Camp","Camp","Camp","Camp","Camp","Camp","Camp","Camp","Camp","Camp","Camp","Camp","Camp","Camp","Camp","Camp","Camp","Camp","Camp","Camp","Camp","Camp","Camp","Camp","Camp","Camp","Camp","Camp","Camp","Camp","Camp","Camp","Camp","Camp","Camp","Camp","Camp","Camp","Camp","Camp","Camp","Camp","Camp","Camp","Camp","Camp","Camp","Camp","Camp","Camp","Camp","Camp","Camp","Camp","Camp","Camp","Camp","Camp","Camp","Camp","Camp","Camp","Camp","Camp","Camp","Camp","Camp","Camp","Camp","Camp","Camp","Camp","Camp","Camp","Camp","Camp","Camp","Camp","Camp","Camp","Camp","Camp","Camp","Camp","Camp","Camp","Camp","Camp","Camp","Camp","Camp","Camp","Camp","Camp","Camp","Camp","Camp","Camp","Camp","Camp","Camp","Camp","Camp","Camp","Camp","Camp","Camp","Camp","Camp","Camp","Camp","Camp","Camp","Camp","Camp","Camp","Camp","Camp","Camp","Camp","Camp","Camp","Camp","Camp","Camp","Camp","Camp","Camp","Camp","Camp","Camp","Camp","Camp","Camp","Camp","Camp","Camp","Camp","Camp","Camp","Camp","Camp","Camp","Camp","Camp","Camp","Camp","Camp","Camp","Camp","Camp","Camp","Camp","Camp","Camp","Camp","Camp","Camp","Camp","Camp","Camp","Camp","Camp","Camp","Camp","Camp","Camp","Camp","Camp","Camp","Camp","Camp","Camp","Camp","Camp","Camp","Camp","Camp","Camp","Camp","Camp","Camp","Camp","Camp","Camp","Camp","Camp","Camp","Camp","Camp","Camp","Camp","Camp","Camp","Camp","Camp","Camp","Camp","Camp","Camp","Camp","Camp","Camp","Camp","Camp","Camp","Camp","Camp","Camp","Camp","Camp","Camp","Camp","Camp","Camp","Camp","Camp","Camp","Camp","Camp","Camp","Camp","Camp","Camp","Camp","Camp","Camp","Camp","Camp","Camp","Camp","Camp","Camp","Camp","Camp","Camp","Camp","Camp","Camp","Camp","Camp","Camp","Camp","Camp","Camp","Camp","Camp","Camp","Camp","Camp","Camp","Camp","Camp","Camp","Camp","Camp","Camp","Camp","Camp","Camp","Camp","Camp","Camp","Camp","Camp","Camp","Camp","Camp","Camp","Camp","Camp","Camp","Camp","Camp","Camp","Camp","Camp","Camp","Camp","Camp","Camp","Camp","Camp","Camp","Camp","Camp","Camp","Camp","Camp","Camp","Camp","Camp","Camp","Camp","Camp","Camp","Camp","Camp","Camp","Camp","Camp","Camp","Camp","Camp","Camp","Camp","Camp","Camp","Camp","Camp","Camp","Camp","Camp","Camp","Camp","Camp","Camp","Camp","Camp","Camp","Camp","Camp","Camp","Camp","Camp","Camp","Camp","Camp","Camp","Camp","Camp","Camp","Camp","Camp","Camp","Camp","Camp","Camp","Camp","Camp","Camp","Camp","Camp","Camp","Camp","Camp","Camp","Camp","Camp","Camp","Camp","Camp","Camp","Camp","Camp","Camp","Camp","Camp","Camp","Camp","Camp","Camp","Camp","Camp","Camp","Camp","Camp","Camp","Camp","Camp","Camp","Camp","Camp","Camp","Camp","Camp","Camp","Camp","Camp","Camp","Camp","Camp","Camp","Camp","Camp","Camp","Camp","Camp","Camp","Camp","Camp","Camp","Camp","Camp","Camp","Camp","Camp","Camp","Camp","Camp","Camp","Camp","Camp","Camp","Camp","Camp","Camp","Camp","Camp","Camp","Camp","Camp","Camp","Camp","Camp","Camp","Camp","Camp","Camp","Camp","Camp","Camp","Camp","Camp","Camp","Camp","Camp","Camp","Camp","Camp","Camp","Camp","Camp","Camp","Camp","Camp","Camp","Camp","Camp","Camp","Camp","Camp","Camp","Camp","Camp","Camp","Camp","Camp","Camp","Camp","Camp","Camp","Camp","Camp","Camp","Camp","Camp","Camp","Camp","Camp","Camp","Camp","Camp","Camp","Camp","Camp","Camp","Camp","Camp","Camp","Camp","Camp","Camp","Camp","Camp","Camp","Camp","Camp","Camp","Camp","Camp","Camp","Camp","Camp","Camp","Camp","Camp","Camp","Camp","Camp","Camp","Camp","Camp","Camp","Camp","Camp","Camp","Camp","Camp","Camp","Camp","Camp","Camp","Camp","Camp","Camp","Camp","Camp","Camp","Camp","Camp","Camp","Camp","Camp","Camp","Camp","Camp","Camp","Camp","Camp","Camp","Camp","Camp","Camp","Camp","Camp","Camp","Camp","Camp","Camp","Camp","Camp","Camp","Camp","Camp","Camp","Camp","Camp","Camp","Camp"]
["Camp"]
["Chain Saw Operations","~ Follow “Hazard Tree Safety” guidelines, IRPG page 22\n~ Look up, Look down, Look around for hazard tree indicators.\n~ Only fell and buck trees within your expertise, and training.\n~ Follow “Procedural Felling Operations” on page 79 in IRPG.\n~ Do not fall trees during high wind events.\n~ Ensure proper use of all required PPE."]
["Chippers","Certified operator must be present when machine is in operation.\nWear all PPE when working near chipper (hearing protection, eye protection, etc.\nFollow manufacturer's guidelines for feeding debris into chipper\nAvoid flying debris from chipper exit chute\n"]
["Cold Weather","~ Carry extra clothing to prevent  hypothermia following shift.\n~ Dry out gear each night for next day.\n~ Watch footing on frozen ground.\n~ Maintain personal hydration.\n~ Monitor wind-chill and establish trigger points for disengagement."]
["Communications","~ Maintain communication with aviation resources, and suppression organization. \n~ Ensure all known frequencies and protocol for contacting adjacent resources and ICP communications\n~ Utilize the ICS 205.\n~ Utilize human repeaters when working in dead spots. \nFind the appropiate repeater channel that works best for your area\n"]
["Downhill Line Construction","~ Post lookouts (IRPG pg. 6)\n~ Follow downhill line construction guidelines (IRPG pg. 8)"]
["Driving & Traffic","~Traffic Warning Signs (fire traffic, ICP, etc.) placed at key intersections and areas of heavy traffic. \n~USE TAC 9 to alert oncoming traffic on single lane, and narrow roads with limited turnouts.\n~Add signage on narrow roads indicating  turnouts.\n~Practice “Defensive Driving” techniques traveling on all roads and city streets.\n~Restrict public access where appropriate.\n~ Use spotters when backing.\n~ Honk horn to alert personnel when backing.\n~ Keep clutter off dash and inside cab.\n~ Follow Driving LCES (Lights, Chock blocks, Emergency brake, Seat belts.)\n~ Always use headlights.\n~ Yield to pedestrians and bicycles.\n~ Observe posted speed limits. \n~ Use the 3 second rule for following distance when driving.\n~ Use chock blocks, turn wheels into hill.\n~ Avoid distractions (eating, cell phones, radio).\n~ Ensure that windshields are kept clean of dust and bugs."]
["Enviromental Hazards","Identify individuals with known allergic reactions.\nInsure individuals have medication pens if needed.\nKeep affected area clean and bandaged.\nUse caution when eating or drinking.\nSeek medical attentionif allergic reaction increases for bites, stings, and poison oak.\nAvoid hazards if encountered, espesialy rattlesnakes."]
["Extreme Fire Behavior","~Share weather observations with all personnel assigned to division.\nIMET and/or FBAN will notify line operations through communications all divisions of any approaching weather fronts or thunderstoms. Communications will require a roll call of all divisions to ensure receipt of warning.\nStandard Firefighting Order 1 and Thunderstorm Safety, IRPG, page 21\n~ Establish “Management Action Points” to re-evaluate to determine to stay engage or disengage..\n~ Use “Risk Management” process prior to engaging in  suppression actions, refer to page 1, IRPG."]
["Fatigue & Over Exertion","~ Drink 1 quart of water each hour during and after work.\n~ Rotate crews out of smoky areas.\n~ Set a reasonable work pace and allow adequate rest breaks while on the project.\n~ Stagger work crews start time to limit fatigue.\n~ Use buddy system to monitor personnel of heat related and fatigue issues.\n~ Follow work / rest guidelines."]
["Firefighter & Public Smoke Exposure ","~ Identify homes and structures with private parties remaining behind the evacuation.\n~ Identify personnel responsible for contacting private parties.\n~ Use warning lights and provide traffic control on roadways during smoky and night operations.\n~ Rotate crews out of smoky areas during firing and mop-up operations.\n~ Contact Communications when firing operations are initiated."]
["Fireline Hazards","~ Do not work directly above or below personnel during firing and mop-up operations.\n~ Watch for falling and rolling debris on steep slopes.\n~ Alert crew personnel of rolling debris by yelling to affected individuals.\n~ Position debris that could roll vertically on slope.\n~ Avoid stepping over debris that could roll by walking around object.\n~ Avoid radiant heat by wearing appropriate PPE correctly.\n~ Use correct tool for task assigned.\n~ Follow power line safety protocol as outlined on page 22 in IRPG.\n~ Flag and isolate all HAZMAT and alert all personnel working in Division.\n~ Follow WUI recommendations on pages 10-11 in IRPG."]
["Firing Operations & Devices","Only personnel trained in the use of each device will be authorized to use firing equipment.\nEnsure all personnel are aware of firing operation that may affect them.\nWear appropriate PPE.\nEnsure aerial/ground ignition plans have been adequately developed and personnel are briefed.\nEvaluate your situational awareness of topography, weather and fuels between 1400 and 1700 or the burning period for your incident.\nEnsure LCES is in place on all divisions prior to ignition.\nReceive spot weather forecast from FBAN or IMET prior to ignition."]
["Flash Flooding","~ Post lookouts, listen for weather updates by (IMET). \n~ Stay out of dry creek beds and gullies during rain/hail/lightning events.\n~ Avoid walking in areas with rock, and loose debris during storm events.\n~ Avoid walking is single file when coming off hillside.\n~ Establish RAWS trigger points on incident radio system for fireline leadership to remove resources prior to severe weather events. "]
["Hazard Trees","~ Follow “Hazard Tree Safety” guidelines, IRPG page 22.\n~  Post lookouts, or use a spotter in mop-up areas with personnel.\n~  Don’t park vehicles or take breaks in high concentrations of hazard trees.\n~  Establish trigger points for disengagement during high wind events.\n~ Remember that the hazard zone extends a minimum of 2 1/2 tree heights."]
["Hazard Trees/ Chainsaw Operations","Follow \"Hazard Tree Safety\" guidelines, IRPG pg 22\nLook Up, Look Down, Look Around\nFollow \"Procedural Felling Operations\" guidelines, IRPG pg 79\nOnly fell and buck trees within your training and qualifications\nDo not fall trees during high wind events\nHazard zone extends 2 1/2 times the tree height\nDon't take breaks or park vehicles  in high concentrations of hazard trees\nEstablish management action decision points (trigger) for high wind event\nUse required proper PPE at all times \n\n"]
["Heat Related Illness (HRI)& Dehydration"]
["Heavy Dead & Down Fuel Loading","~ Watch footing.\n~ Allow for additional time to reach safety zones.\n~ Post lookouts (IRPG pg. 6)."]
["Heavy Equipment Operations","~ Ensure communications are established with operators.\n~ Use hand signals if other communications are unavailable.\n~ Maintain a 50’-100’ exclusion area around equipment and increase it to 1 1/2 times tree height when in timber.  For Masticator operation, maintain a minimum 300 feet safety buffer.\n~ Use a spotter when backing.\n~ Avoid working below heavy equipment."]
["Helicopter Operations","~ Stay clear of all bucket drops when suppression actions are in place and allow 1 minute prior to re-entry.\n~ Monitor A-G communications.\n~ Follow aviation safety guidelines in IRPG and IHOG."]
["ICP Protection","~ Follow ICP safety plan."]
["Indirect Fireline","~ Post lookouts, identify escape routes and safety zones (IRPG pg. 6).\n~ Review \"Strategy/Indirect Attack\" (IRPG pg. 87)."]
["Initial Attack","Use IRPG for intial attack guideance\nFollow standard firefighting orders and 18 watchout situations, these are not to be broken\nEstablish LCES before engaging\n"]
["Injury & Medical Emergency","~ Assist injured employee appropriate medical care.\n~ Use EMT’s on Division for initial care.\n~ Follow medical protocol as outlined in ICS-206 & IRPG Pgs 99-108"]
["Lack of or Incorrect Use of PPE","~ Always wear appropriate PPE which includes:\n     o Eye Protection\n     o Hard Hat\n     o Gloves\n     o 8” Leather non-skid boots\n     o Always wear all nomex\n     o Fire Shelter\n     o Hearing protection when working around chainsaws and pumps\n~ Additional PPE as dictated by local conditions and environment."]
["Mid-slope Fireline","~ Ensure good anchor point.\n~ Base actions upon current and predicted fire behavior and weather.\n~ Post lookouts, identify escape routes and safety zones (IRPG pg. 6)."]
["Mines","~ Identify and avoid mining areas.\n~ Notify others of hazard."]
["Mop-up & Rehab","~ Maintain situational awareness during mopup just as intensely as during initial attack.\n~ Follow agency and Forest specific mop-up standards as outlined in IAP.\n~ Be vigilent for hidden pockets of trapped heat to avoid steam burns while wet mopping.\n~ Wear all fireline PPE.  \nUse proper lifting techniques when moving or lifting pumps and other heavy equipment\nUse 2 or more people lifting heavy pumps and other heavy equipment\nUse hand over hand techniques and multiple personel when pulling hose\nKnow your limits"]
["Night Operations","~ Maintain high visibility in work area and wear vest while in roadway. \n~ Use glow sticks to mark hazards.\n~ Ensure personnel have a personal light (headlamp).\n~ Watch for signs of fatigue.\n~ Take breaks away from areas of known hazard."]
["Personal Hygiene","~ Don’t share personal items such as water bottles communication devices and utensils.\n~ Wash hands before meals, and after use of rest room facilities.   "]
["Poisonous Plants","~ Identify and Avoid hazard areas. \n~ Launder clothing.\n~ Shower frequently."]
["Power Utilities","Notify all personnel of down electrical lines. \nPower Line Safety (IRPG pages 24, 25).\nAlways treat downed wires as energized.\nIdentify and avoid high tension transmission lines.\nIdentify and avoid high pressure natural gas lines.\n~ Identify and avoid damaged gas service near structures.\n~ Be aware of utility restoration in your work area."]
["Powerlines","\nPowerline Safety on pages 24 and 25 of IRPG\nGround tactics are normal when fire is more than 100 feet from powerlines\nHeavy smoke and flames can cause ground arcs\nWhen  working with heavy equipment near powerlines you spotter to ensure equipment doesn't touch lines\nNotify power company when working near lines and notify if lines are down\nKeep aerial resources away from power lines\n"]
["Pumps","~ Always wear appropriate hearing protection.\n~ Position personnel far enough away from pump to hear instructions on radio. \n~ Keep all fuel >4’ from creek and pump to reduce fire hazard and spill.\n~ Rotate personnel every hour to limit exposure to high decibels of sound from pump.\n~ Allow pumps to cool for 5 minutes prior to re-fueling to reduce fire hazard."]
["RCW Incert placement"]
["RCW Incert placement\nWorking from Ladders and elavated stands, chainsaw operations, overhead hazards, reptile and wildlife concerns, hazard trees and inclement weather hindering safe operations"]
["RCW Insert placement\nWorking from Ladders and elavated stands, chainsaw operations, overhead hazards, reptile and wildlife concerns, hazard trees and inclement weather hindering safe operations"]
["Severe Weather","~ Review and follow Thunderstorm Safety guidelines in IRPG page 21.\n~ Observe 30/30 Rule for lightning safety………page 21, IRPG.\n~ Establish “Trigger Points” to withdraw, and ensure all know rally site.\n~ Use “Risk Management” process to determine retreat criteria and actions.\n~ Carry rain gear and extra food and water if weather limits retreat to ICP."]
["Spike Camp","~ Keep a clean camp.\nMaintain proper hygene and work/rest ratio\n~ Ensure communications are in place.\n~ Review and observe \"Line Spike\" considerations (IRPG pg. 98)."]
["Steep Terrain & Rolling Debris","~ Maintain 8’-10’ spacing when working & walking.\n~ Don’t work above any personnel.\n~ Be on the lookout for rolling rocks, debris, or burning material.\n~ Evaluate necessity to send personnel in areas with limited access.\n~ Post lookouts (IRPG pg 6)."]
["Steep Terrain/Rolling Debris/Heavy Dead & Down Fuel Loading","~ Maintain 8’-10’ spacing when working & walking.\n~ Don’t work above any personnel.\n~ Be on the lookout for rolling rocks, debris, or burning material.\n~ Evaluate necessity to send personnel in areas with limited access.\n~ Post lookouts (IRPG pg 6).\nWatch footing\nTime Escape Routes to Safety Zone"]
["Structure Protection & HAZMAT","~  Review “Wildland Urban Interface” Watch outs, IRPG page 12.\n~  Use “Structure Assessment” checklist, IRPG pages 12-16.\n~  Follow “HAZMAT Incident Operations”  on pages 34-36 in IRPG."]
["Unburned Area/Reburn Potential","~ Monitor weather.\n~ Base actions upon observed and predicted fire behavior.\n~ LCES Checklist (IRPG pg. 6).\n~ Look Up, Down and Around (IRPG pg. 2-3)."]
["Unidentified Hazardous Waste and Unexploded Ordinance","~Avoid identified Hazmat and UXO areas\n~Use \"Unexploded Ordinance Safety\" guidelines IRPG Page 27\n~Deny entry to others.  Do not transmit on radio if in proximity\n~Map location of all UXO and Hazmat."]
["Uninformed on Strategy / Tactics / hazards","~ Provide a detailed briefing for all personnel assigned to the incident.\n~ Document briefings on unit log. \n~ Use Risk Management Process in evaluating all assignments. \n~ Explain leadership responsibilities and expectations from all personnel assigned to task.\n~ Determine hazards, and mitigation protocol to limit exposure. \n~ Develop and review 215a.\n~ Discuss expected fire behavior, and plans for retreat.\n~ Discuss weather, Escape Routes, Safety Zones.\n~ Discuss communication plan including all tactical, aerial, and command frequencies.\n~ Discuss Emergency Plan outlined in the ICS-206 Medical Plan."]
["Unplanned Public Interaction","~ Notify DIVS of any non-fire personnel in active suppression areas (fireline).\n~ All non-fire personnel will be escorted while on fireline.\n~ Post lookouts in areas with public to avoid conflicts with mission tasks.\n~ Ensure sufficient security to restrict access to exclusion area.\n~ Refer public inquiries to incident Information personnel."]
["Unplanned Public Interaction on the Fireline","Notify DIVS of any non-fire personnel on fireline.\nAll non-fire personnel will be escorted while on fireline.\nPost lookouts in populated areas to avoid conflicts with mission tasks.\nEsure sufficient security to restrict access to exclusion area.\nRefer public inquiries to incident Information personnel."]
["Vehicle Operations in Inclement Weather","~ Be alert for potential muddy and slick road surfaces.\n~ Avoid parking on soft shoulders along roads.\n~ Stay off secondary roads in wet conditions.\n~ Increase following distance on slick road surfaces.\n~ Send a scout to evaluate roads and work area prior to personnel engagement."]
["Wildlife & Livestock","~ Watch out for wildlife & livestock inside fire area and along roadways.\n~ Clean up all debris and trash during each operational period."]

{"sheet":"11_1 215a Hurricane Michael","index":8,"n_rows":5,"n_cols":3,"rows_kept":5,"cut":false,"hidden":false,"merged":[[0,0,0,2]]}
["Hurrican Michael   -   Thursday, November 1, 2018"]
["8. Location","9. Hazard","6.  Control or Abatement Action (Engineering, Administrative, PPE, Avoidance, Education, etc)"]
["All Areas","\nAccess Clearing and Field Operations:\nHazard trees and overhead Hazards.Felling/Bucking operations-mechanical and hand fallering. Heavy equipment operations on access routes to utilities, recreation sites and roadways, Operational tempo, cumulative fatigue, and Complacency. Other vehicle and Pedestrian traffic in and around travel routes and work locations. Additional hunting seasons opening, with increased poetential for public interactions. Possibility of Thunderstorms in the planned work areas and associated weather (Rain, Wind, Lightning) Soft muddy roads, downed trees and Utility lines or poles. Reptiles, insects, wildlife. Green trees and Snags falling during windy conditions ","Do not work near or around personnel during active felling and bucking operations \nAlert crew personnel of identified overhead hazards and or falling debris by allerting affected individuals.\nAvoid working in Heavy Equipment work zone.\nProvide and review JHA for chipper and chainsaw, operations\nProvide safety and operational briefings before each shift\nIdentify and notify known and identified hazards.\nPost lookouts in hazardous situations.\nStrong communication, clear leader's intent, and close supervision.\nSet work pace for sustained safe production.\nPractice good defencive driving skills, and plan for the unexspected \nGet a needed rest, proper diet and hydration, take breaks as needed to allow for muscle recharge. \nBrief resources on weather possibilities and communicate of approaching weather changes.\nReview Thunderstorm safety guidence. Plan Youe exit plan and route.\nMove personnel to Vehicles and Vehicles to Hard Surface roads or Work centers.\nIdentify hazards, Notify resources and Mitigate, for wildlife reptiles and insects follow same procedures plus do not handle.\n"]
["All Areas","Driving and Travel:\nLight and Heavy vehicles traveling on narrow roads Thunder storm and inclement weather forecast, heavy rains reducing visibility and pudling, Slick roadways and Hydroplaining concerns.  \nHeavy equipment woking in proximity with people and vehicle traffic.\nGreen trees and snags falling during windy conditions blocking roadways hindering travel capabilities\n","Maintain sufficient following distances between vehicles and pay extra attention in congested areas, near school and pedestrian zones.\nMake eye contact and confirm it's safe to approach the equipment while working with or around.\nUse spotters and flaggers to keep work area free of intrusion and to control traffic flow.\nUse flaggers and radio call-out system on heavily travelled roads if impacted by operations.\nPost lookouts in areas where padertian travels my intrude work areas\nMitigate hazard trees in travel area prior to starting general clearing work.\nUse caution when traveling native surface roads and stream crossing don't exceed equipment capabilities if in question check before you go.\nHave a spotter when backing when at all possible\nUse headlights and Turn signals at all times.\nCheck windshield whippers and safety devices before traveling to field work areas.\nRepiar deficient items as soon as possible.\nCertified drivers and operators at all times (licensed for equipement operating).\nSlow down travel during windy and rainy conditions, to be prepaired for changing road conditions.\n\n\n\n"]
["All Areas","RCW Insert placement\nWorking from Ladders and elavated stands, chainsaw operations, overhead hazards, reptile and wildlife concerns, hazard trees and inclement weather hindering safe operations","Follow agency policy for ladder use and working above ground\nCertified in chainsaw operations and trained in RCW insert processes\nPay attention for reptile and wildlife in work areas and mitigate if possible and don’t handle.\nStay current on observed and expected weather\nUse of proper PPE for climbing and chainsaw operations.\nMitigate known hazards effecting safe operations prior to completing project if possible.\n"]

{"sheet":"Hurricane Michael 11_1_18","index":9,"n_rows":10,"n_cols":10,"rows_kept":10,"cut":false,"hidden":false,"merged":[[3,0,3,3],[3,4,3,5],[3,6,3,9],[1,0,2,3],[1,4,1,5],[1,6,1,9],[2,4,2,5],[2,6,2,9],[4,0,4,3],[4,4,4,5],[4,6,4,9],[5,0,5,4],[5,6,5,9]]}
[]
["Incident Risk Assessment Worksheet",null,null,null,"1. Incident Name/Number",null,"2.  Location  "]
[null,null,null,null,"Hurrican Michael",null,"Tallahassee FL"]
["Identification of Hazards and Risk",null,null,null,"3.  Name and Title of Analyst",null,"4.  Date    "]
["Assessment",null,null,null,", Von Gruber SOF1  ",null,"2018-11-01"]
["5. Pre-Control",null,null,null,null,"6.  Control or Abatement Action (Engineering, Administrative, PPE, Avoidance, Education, etc)","7.  Post-Control"]
["8. Location","9. Mission and Hazards","10. Hazard Probability","11. Severity Code","12. RAC","Actions \n(double-click in cell then click alt + enter to add a line)","13. Hazard Probability","14. Severity Code","15. RAC","16. Acceptable (Yes/No)"]
["All Areas","\nAccess Clearing and Field Operations:\nHazard trees and overhead Hazards.Felling/Bucking operations-mechanical and hand fallering. Heavy equipment operations on access routes to utilities, recreation sites and roadways, Operational tempo, cumulative fatigue, and Complacency. Other vehicle and Pedestrian traffic in and around travel routes and work locations. Additional hunting seasons opening, with increased poetential for public interactions. Possibility of Thunderstorms in the planned work areas and associated weather (Rain, Wind, Lightning) Soft muddy roads, downed trees and Utility lines or poles. Reptiles, insects, wildlife. Green trees and Snags falling during windy conditions ","Likely B","Critical II",{"$f":"IFERROR(INDEX(formula!$B$3:$E$6,MATCH(C8,(formula!$A$3:$A$6),0),MATCH(D8,(formula!$B$2:$E$2),0)),\"No Data\")","v":"Serious"},"Do not work near or around personnel during active felling and bucking operations \nAlert crew personnel of identified overhead hazards and or falling debris by allerting affected individuals.\nAvoid working in Heavy Equipment work zone.\nProvide and review JHA for chipper and chainsaw, operations\nProvide safety and operational briefings before each shift\nIdentify and notify known and identified hazards.\nPost lookouts in hazardous situations.\nStrong communication, clear leader's intent, and close supervision.\nSet work pace for sustained safe production.\nPractice good defencive driving skills, and plan for the unexspected \nGet a needed rest, proper diet and hydration, take breaks as needed to allow for muscle recharge. \nBrief resources on weather possibilities and communicate of approaching weather changes.\nReview Thunderstorm safety guidence. Plan Youe exit plan and route.\nMove personnel to Vehicles and Vehicles to Hard Surface roads or Work centers.\nIdentify hazards, Notify resources and Mitigate, for wildlife reptiles and insects follow same procedures plus do not handle.\n","Occasional C","Critical II",{"$f":"IFERROR(INDEX(formula!$B$3:$E$6,MATCH(G8,(formula!$A$3:$A$6),0),MATCH(H8,(formula!$B$2:$E$2),0)),\"No Data\")","v":"Moderate"},"Yes"]
["All Areas","Driving and Travel:\nLight and Heavy vehicles traveling on narrow roads Thunder storm and inclement weather forecast, heavy rains reducing visibility and pudling, Slick roadways and Hydroplaining concerns.  \nHeavy equipment woking in proximity with people and vehicle traffic.\nGreen trees and snags falling during windy conditions blocking roadways hindering travel capabilities\n","Likely B","Critical II",{"$f":"IFERROR(INDEX(formula!$B$3:$E$6,MATCH(C9,(formula!$A$3:$A$6),0),MATCH(D9,(formula!$B$2:$E$2),0)),\"No Data\")","v":"Serious"},"Maintain sufficient following distances between vehicles and pay extra attention in congested areas, near school and pedestrian zones.\nMake eye contact and confirm it's safe to approach the equipment while working with or around.\nUse spotters and flaggers to keep work area free of intrusion and to control traffic flow.\nUse flaggers and radio call-out system on heavily travelled roads if impacted by operations.\nPost lookouts in areas where padertian travels my intrude work areas\nMitigate hazard trees in travel area prior to starting general clearing work.\nUse caution when traveling native surface roads and stream crossing don't exceed equipment capabilities if in question check before you go.\nHave a spotter when backing when at all possible\nUse headlights and Turn signals at all times.\nCheck windshield whippers and safety devices before traveling to field work areas.\nRepiar deficient items as soon as possible.\nCertified drivers and operators at all times (licensed for equipement operating).\nSlow down travel during windy and rainy conditions, to be prepaired for changing road conditions.\n\n\n\n","Occasional C","Critical II",{"$f":"IFERROR(INDEX(formula!$B$3:$E$6,MATCH(G9,(formula!$A$3:$A$6),0),MATCH(H9,(formula!$B$2:$E$2),0)),\"No Data\")","v":"Moderate"},"Yes"]
["All Areas","RCW Insert placement\nWorking from Ladders and elavated stands, chainsaw operations, overhead hazards, reptile and wildlife concerns, hazard trees and inclement weather hindering safe operations","Likely B","Critical II",{"$f":"IFERROR(INDEX(formula!$B$3:$E$6,MATCH(C10,(formula!$A$3:$A$6),0),MATCH(D10,(formula!$B$2:$E$2),0)),\"No Data\")","v":"Serious"},"Follow agency policy for ladder use and working above ground\nCertified in chainsaw operations and trained in RCW insert processes\nPay attention for reptile and wildlife in work areas and mitigate if possible and don’t handle.\nStay current on observed and expected weather\nUse of proper PPE for climbing and chainsaw operations.\nMitigate known hazards effecting safe operations prior to completing project if possible.\n","Rarely D","Critical II",{"$f":"IFERROR(INDEX(formula!$B$3:$E$6,MATCH(G10,(formula!$A$3:$A$6),0),MATCH(H10,(formula!$B$2:$E$2),0)),\"No Data\")","v":"Minor"},"Yes"]

{"sheet":"Wild Fire Hazard Library","index":10,"n_rows":49,"n_cols":2,"rows_kept":49,"cut":false,"hidden":true,"merged":[]}
["Wild Fire Hazard","Mitigation or Abatement Action(Engineering, Administrative, PPE, Avoidance, Education, etc.)"]
["Aerial Ignition","~ Follow Aerial Ignition Plan and the RMA for aerial ignition."]
["Air Operations","~ Follow \" Aviation Watch-Out Situations\" on page 44, IRPG.\n~ Don't plan on air resources for medical transport or resupply.\n~\n~ Ensure positive communication with all air resources."]
["ATV/UTV use","~ Ensure equipment is inspected and safe to use.\n~ Restrict UTV's to max width of 50\" on ATV trails due to width and severe out sloped conditions.\n~ Ensure operator is trained and certified to operate.\n~ Ensure operator has proper PPE according to the Redbook and/or RMA.\n~ Question if it is mission critical."]
["Bees, Ticks, Mosquitoes","~ Canvas crew members for those with known allergic reactions to stings.\n~ Ensure crew members have medication pens if needed.\n~ Perform daily self inspection.\n~ Use repellent as necessary.\n~ Advanced Life Support,  multi-dose epi and airway protection.\n~ Keep affected area clean and bandaged.\n~ Be extra careful when eating and/or drinking to avoid stings to mouth and throat."]
["Blasting Operations","~ Follow Lead Blaster's directions.\n~ Post lookouts and/ or fireline guard to prevent accident entry by non-associated personnel..\n~ Remove all personnel a minimum of 1000 feet prior to blasting.\n~ Do not operate machinery within 50 feet of explosives.\n~ Do not fight \"Blasting Fires\".  Assume they may detonate.  Allow to burn themselves out.\n~ Always face the blast, watching for flying debris.\n~ Watch for other trees and snags that might fall.\n~ Division and adjacent Divisions will be notified on Command channel by radio prior to blast.\n"]
["Camp"]
["Chain Saw Operations","~ Follow “Hazard Tree Safety” guidelines, IRPG page 22\n~ Look up, Look down, Look around for hazard tree indicators.\n~ Only fell and buck trees within your expertise, and training.\n~ Follow “Procedural Felling Operations” on page 79 in IRPG.\n~ Do not fall trees during high wind events.\n~ Ensure proper use of all required PPE."]
["Cold Weather","~ Carry extra clothing to prevent  hypothermia following shift.\n~ Dry out gear each night for next day.\n~ Watch footing on frozen ground.\n~ Maintain personal hydration.\n~ Monitor wind-chill and establish trigger points for disengagement."]
["Communications","~ Maintain communication with aviation resources, and suppression organization. \n~ Ensure all known frequencies and protocol for contacting adjacent resources and ICP communications\n~ Utilize the ICS 205.\n~ Utilize human repeaters when working in dead spots. \nFind the appropiate repeater channel that works best for your area\n"]
["Downhill Line Construction","~ Post lookouts (IRPG pg. 6)\n~ Follow downhill line construction guidelines (IRPG pg. 8)"]
["Driving & Traffic","~Traffic Warning Signs (fire traffic, ICP, etc.) placed at key intersections and areas of heavy traffic. \n~USE TAC 9 to alert oncoming traffic on single lane, and narrow roads with limited turnouts.\n~Add signage on narrow roads indicating  turnouts.\n~Practice “Defensive Driving” techniques traveling on all roads and city streets.\n~Restrict public access where appropriate.\n~ Use spotters when backing.\n~ Honk horn to alert personnel when backing.\n~ Keep clutter off dash and inside cab.\n~ Follow Driving LCES (Lights, Chock blocks, Emergency brake, Seat belts.)\n~ Always use headlights.\n~ Yield to pedestrians and bicycles.\n~ Observe posted speed limits. \n~ Use the 3 second rule for following distance when driving.\n~ Use chock blocks, turn wheels into hill.\n~ Avoid distractions (eating, cell phones, radio).\n~ Ensure that windshields are kept clean of dust and bugs."]
["Enviromental Hazards"]
["Extreme Fire Behavior","~Share weather observations with all personnel assigned to division.\nIMET and/or FBAN will notify line operations through communications all divisions of any approaching weather fronts or thunderstoms. Communications will require a roll call of all divisions to ensure receipt of warning.\nStandard Firefighting Order 1 and Thunderstorm Safety, IRPG, page 21\n~ Establish “Management Action Points” to re-evaluate to determine to stay engage or disengage..\n~ Use “Risk Management” process prior to engaging in  suppression actions, refer to page 1, IRPG."]
["Fatigue & Over Exertion","~ Drink 1 quart of water each hour during and after work.\n~ Rotate crews out of smoky areas.\n~ Set a reasonable work pace and allow adequate rest breaks while on the project.\n~ Stagger work crews start time to limit fatigue.\n~ Use buddy system to monitor personnel of heat related and fatigue issues.\n~ Follow work / rest guidelines."]
["Firefighter & Public Smoke Exposure ","~ Identify homes and structures with private parties remaining behind the evacuation.\n~ Identify personnel responsible for contacting private parties.\n~ Use warning lights and provide traffic control on roadways during smoky and night operations.\n~ Rotate crews out of smoky areas during firing and mop-up operations.\n~ Contact Communications when firing operations are initiated."]
["Fireline Hazards","~ Do not work directly above or below personnel during firing and mop-up operations.\n~ Watch for falling and rolling debris on steep slopes.\n~ Alert crew personnel of rolling debris by yelling to affected individuals.\n~ Position debris that could roll vertically on slope.\n~ Avoid stepping over debris that could roll by walking around object.\n~ Avoid radiant heat by wearing appropriate PPE correctly.\n~ Use correct tool for task assigned.\n~ Follow power line safety protocol as outlined on page 22 in IRPG.\n~ Flag and isolate all HAZMAT and alert all personnel working in Division.\n~ Follow WUI recommendations on pages 10-11 in IRPG."]
["Firing Operations & Devices","Only personnel trained in the use of each device will be authorized to use firing equipment.\nEnsure all personnel are aware of firing operation that may affect them.\nWear appropriate PPE.\nEnsure aerial/ground ignition plans have been adequately developed and personnel are briefed.\nEvaluate your situational awareness of topography, weather and fuels between 1400 and 1700 or the burning period for your incident.\nEnsure LCES is in place on all divisions prior to ignition.\nReceive spot weather forecast from FBAN or IMET prior to ignition."]
["Flash Flooding","~ Post lookouts, listen for weather updates by (IMET). \n~ Stay out of dry creek beds and gullies during rain/hail/lightning events.\n~ Avoid walking in areas with rock, and loose debris during storm events.\n~ Avoid walking is single file when coming off hillside.\n~ Establish RAWS trigger points on incident radio system for fireline leadership to remove resources prior to severe weather events. "]
["Hazard Trees","~ Follow “Hazard Tree Safety” guidelines, IRPG page 22.\n~  Post lookouts, or use a spotter in mop-up areas with personnel.\n~  Don’t park vehicles or take breaks in high concentrations of hazard trees.\n~  Establish trigger points for disengagement during high wind events.\n~ Remember that the hazard zone extends a minimum of 2 1/2 tree heights."]
["Hazard Trees/ Chainsaw Operations","Follow \"Hazard Tree Safety\" guidelines, IRPG pg 22"]
["Heat Related Illness (HRI)& Dehydration"]
["Heavy Dead & Down Fuel Loading","~ Watch footing.\n~ Allow for additional time to reach safety zones.\n~ Post lookouts (IRPG pg. 6)."]
["Heavy Equipment Operations","~ Ensure communications are established with operators.\n~ Use hand signals if other communications are unavailable.\n~ Maintain a 50’-100’ exclusion area around equipment and increase it to 1 1/2 times tree height when in timber.  For Masticator operation, maintain a minimum 300 feet safety buffer.\n~ Use a spotter when backing.\n~ Avoid working below heavy equipment."]
["Helicopter Operations","~ Stay clear of all bucket drops when suppression actions are in place and allow 1 minute prior to re-entry.\n~ Monitor A-G communications.\n~ Follow aviation safety guidelines in IRPG and IHOG."]
["ICP Protection","~ Follow ICP safety plan."]
["Indirect Fireline","~ Post lookouts, identify escape routes and safety zones (IRPG pg. 6).\n~ Review \"Strategy/Indirect Attack\" (IRPG pg. 87)."]
["Initial Attack","Use IRPG for intial attack guideance\nFollow standard firefighting orders and 18 watchout situations, these are not to be broken\nEstablish LCES before engaging\n"]
["Injury & Medical Emergency","~ Assist injured employee appropriate medical care.\n~ Use EMT’s on Division for initial care.\n~ Follow medical protocol as outlined in ICS-206 & IRPG Pgs 99-108"]
["Lack of or Incorrect Use of PPE","~ Always wear appropriate PPE which includes:\n     o Eye Protection\n     o Hard Hat\n     o Gloves\n     o 8” Leather non-skid boots\n     o Always wear all nomex\n     o Fire Shelter\n     o Hearing protection when working around chainsaws and pumps\n~ Additional PPE as dictated by local conditions and environment."]
["Mid-slope Fireline","~ Ensure good anchor point.\n~ Base actions upon current and predicted fire behavior and weather.\n~ Post lookouts, identify escape routes and safety zones (IRPG pg. 6)."]
["Mines","~ Identify and avoid mining areas.\n~ Notify others of hazard."]
["Mop-up & Rehab","~ Maintain situational awareness during mopup just as intensely as during initial attack.\n~ Follow agency and Forest specific mop-up standards as outlined in IAP.\n~ Be vigilent for hidden pockets of trapped heat to avoid steam burns while wet mopping.\n~ Wear all fireline PPE.  \nUse proper lifting techniques when moving or lifting pumps and other heavy equipment\nUse 2 or more people lifting heavy pumps and other heavy equipment\nUse hand over hand techniques and multiple personel when pulling hose\nKnow your limits"]
["Night Operations","~ Maintain high visibility in work area and wear vest while in roadway. \n~ Use glow sticks to mark hazards.\n~ Ensure personnel have a personal light (headlamp).\n~ Watch for signs of fatigue.\n~ Take breaks away from areas of known hazard."]
["Personal Hygiene","~ Don’t share personal items such as water bottles communication devices and utensils.\n~ Wash hands before meals, and after use of rest room facilities.   "]
["Poisonous Plants","~ Identify and Avoid hazard areas. \n~ Launder clothing.\n~ Shower frequently."]
["Power Utilities","~ Notify all personnel of down electrical lines.\n~ Refer to the IRPG page 24 for Power Line Safety.\n~ Always treat downed wires as energized.\n~ Identify and avoid high tension transmission lines.\n~ Identify and avoid high pressure natural gas lines.\n~ Identify and avoid damaged gas service near structures.\n~ Be aware of utility restoration in your work area."]
["Pumps","~ Always wear appropriate hearing protection.\n~ Position personnel far enough away from pump to hear instructions on radio. \n~ Keep all fuel >4’ from creek and pump to reduce fire hazard and spill.\n~ Rotate personnel every hour to limit exposure to high decibels of sound from pump.\n~ Allow pumps to cool for 5 minutes prior to re-fueling to reduce fire hazard."]
["Severe Weather","~ Review and follow Thunderstorm Safety guidelines in IRPG page 21.\n~ Observe 30/30 Rule for lightning safety………page 21, IRPG.\n~ Establish “Trigger Points” to withdraw, and ensure all know rally site.\n~ Use “Risk Management” process to determine retreat criteria and actions.\n~ Carry rain gear and extra food and water if weather limits retreat to ICP."]
["Spike Camp","~ Keep a clean camp.\nMaintain proper hygene and work/rest ratio\n~ Ensure communications are in place.\n~ Review and observe \"Line Spike\" considerations (IRPG pg. 98)."]
["Steep Terrain & Rolling Debris","~ Maintain 8’-10’ spacing when working & walking.\n~ Don’t work above any personnel.\n~ Be on the lookout for rolling rocks, debris, or burning material.\n~ Evaluate necessity to send personnel in areas with limited access.\n~ Post lookouts (IRPG pg 6)."]
["Steep Terrain/Rolling Debris/Heavy Dead & Down Fuel Loading","~ Maintain 8’-10’ spacing when working & walking.\n~ Don’t work above any personnel.\n~ Be on the lookout for rolling rocks, debris, or burning material.\n~ Evaluate necessity to send personnel in areas with limited access.\n~ Post lookouts (IRPG pg 6).\nWatch footing\nTime Escape Routes to Safety Zone"]
["Structure Protection & HAZMAT","~  Review “Wildland Urban Interface” Watch outs, IRPG page 12.\n~  Use “Structure Assessment” checklist, IRPG pages 12-16.\n~  Follow “HAZMAT Incident Operations”  on pages 34-36 in IRPG."]
["Unburned Area/Reburn Potential","~ Monitor weather.\n~ Base actions upon observed and predicted fire behavior.\n~ LCES Checklist (IRPG pg. 6).\n~ Look Up, Down and Around (IRPG pg. 2-3)."]
["Unidentified Hazardous Waste and Unexploded Ordinance","~Avoid identified Hazmat and UXO areas\n~Use \"Unexploded Ordinance Safety\" guidelines IRPG Page 27\n~Deny entry to others.  Do not transmit on radio if in proximity\n~Map location of all UXO and Hazmat."]
["Uninformed on Strategy / Tactics / hazards","~ Provide a detailed briefing for all personnel assigned to the incident.\n~ Document briefings on unit log. \n~ Use Risk Management Process in evaluating all assignments. \n~ Explain leadership responsibilities and expectations from all personnel assigned to task.\n~ Determine hazards, and mitigation protocol to limit exposure. \n~ Develop and review 215a.\n~ Discuss expected fire behavior, and plans for retreat.\n~ Discuss weather, Escape Routes, Safety Zones.\n~ Discuss communication plan including all tactical, aerial, and command frequencies.\n~ Discuss Emergency Plan outlined in the ICS-206 Medical Plan."]
["Unplanned Public Interaction","~ Notify DIVS of any non-fire personnel in active suppression areas (fireline).\n~ All non-fire personnel will be escorted while on fireline.\n~ Post lookouts in areas with public to avoid conflicts with mission tasks.\n~ Ensure sufficient security to restrict access to exclusion area.\n~ Refer public inquiries to incident Information personnel."]
["Vehicle Operations in Inclement Weather","~ Be alert for potential muddy and slick road surfaces.\n~ Avoid parking on soft shoulders along roads.\n~ Stay off secondary roads in wet conditions.\n~ Increase following distance on slick road surfaces.\n~ Send a scout to evaluate roads and work area prior to personnel engagement."]
["Wildlife & Livestock","~ Watch out for wildlife & livestock inside fire area and along roadways.\n~ Clean up all debris and trash during each operational period."]

{"sheet":"Flood Hazard Library","index":11,"n_rows":29,"n_cols":2,"rows_kept":29,"cut":false,"hidden":true,"merged":[]}
["Flood Hazard","Mitigation or Abatement Action(Engineering, Administrative, PPE, Avoidance, Education, etc.)"]
["Air Operations","~ Always wear appropriate PPE which includes:\n     o Eye Protection\n     o Hard Hat\n     o Gloves\n     o 8” Leather non-skid boots\n     o Hearing protection when working around chainsaws and pumps\n~ Additional PPE as dictated by local conditions and environment"]
["ATV/UTV use","~Ensure equipment is inspected and safe to use.\n~Ensure operator is trained and certified to operate.\n~Ensure operator has proper PPE.\n~Question if it is mission critical."]
["Bees, Ticks, Mosquitoes","~ Be aware of crew members with  sting allergies.\n~ Ensure crew members have medication pens if needed.\n~ Perform daily self inspection\n~ Use repellent as necessary\n~ Advanced Life Support,  multi-dose epi and airway protection.\n~ Keep affected area clean and bandaged.\n~ Be extra careful when eating and/or drinking to avoid stings to mouth and throat."]
["Chain Saw Operations","~  Follow “Hazard Tree Safety” guidelines, IRPG pages 22\n~  Look up, down around for hazard tree indicators\n~  Only fell and buck trees within your expertise, and training\n~  Follow “Procedural Felling Operations” on page 79 in IRPG\n~  Do not fall trees during high wind events"]
["Cold Weather","~  Carry extra clothing to prevent  hypothermia following shift\n~  Dry out gear each night for next day\n~  Watch footing on frozen ground\n~  Maintain personal hydration\n~  Monitor Wind-chill and establish trigger points for disengagement"]
["Communications","~ Maintain communication with aviation resources, and suppression organization. \n~ Ensure all know frequency and protocol for contacting resources\n~ Utilize the ICS 205"]
["Driving & Traffic","~ Practice “Defensive Driving” techniques traveling on all roads and city streets.\n~ Use spotters when backing.\n~ Honk horn to alert personnel when backing.\n~ Keep clutter off dash and inside cab.\n~ Follow Driving LCES (Lights, Chock blocks, Emergency brake, Seat belts.\n~ Always use headlights.\n~ Yield to pedestrians and bicycles.\n~ Observe posted speed limits. \n~ Use the 3 second rule for following distance when driving.\n~ Use chock blocks, turn wheels into hill.\n~ Avoid distractions (eating, cell phones, radio).\n~ Ensure that windshields are kept clean of dust and bugs."]
["Fatigue & Overexertion","~ Drink 1 quart of water each hour during and after work\n~ Rotate crews out of smoky areas\n~ Set a reasonable work pace and allow adequate rest breaks while on the project\n~ Stagger work crews start time to limit fatigue\n~ Use buddy system to monitor personnel of heat related and fatigue issues\n~ Follow work / rest guidelines"]
["Flash Flooding","~Post lookouts, listen for weather updates by (IMET) \n~Stay out of dry creek beds and gullies during rain/hail/lightning events\n~Avoid walking in areas with rock, and loose debris during storm events\n~Avoid walking is single file when coming off hillside\n~Establish RAWS trigger points on incident radio system for fireline leadership to remove resources prior to severe weather events "]
["Hazard Trees","~ Follow “Hazard Tree Safety” guidelines, IRPG pages 22\n~  Post lookouts, or use a spotter in mop-up areas with personnel \n~  Don’t park vehicles or take breaks in high concentrations of hazard trees\n~  Establish trigger points for disengagement during high wind events"]
["Heat Related Illness (HRI)& Dehydration","~ Drink Fluids throughout operational period (6-8 qts/shift). \n~ Maintain water/electrolyte ratio of 3 to 1.\n~ Carry extra water on line and cache water at drop points.\n~Take Frequent breaks, minimum of 10 minutes every hour.\n~Allow out of area resources time to acclimatize before expecting peak performance.\n~ Recognize symptoms of HEAT RELATED ILLNESS which include.\n    o Lack of energy\n    o Headaches, dizziness \n    o Lack of  rest\n    o No hunger, poor eating habits\n    o Hot skin, and lack of sweating"]
["Heavy Equipment Operations","~ Ensure communications are established with operators\n~ Use hand signals if other communications are unavailable\n~ Maintain a 50’-100’ exclusion area around equipment\n~ Use a spotter when backing"]
["Helicopter Operations","~ Stay clear of all bucket drops when suppression actions are in place and allow 1 minute prior to re-entry\n~ Monitor A-G communications\n~ Follow aviation safety guidelines in IRPG"]
["ICP Protection","~ Follow ICP safety plan"]
["Injury & Medical Emergency","~ Assist injured employee appropriate medical care\n~ Use EMT’s on Division for initial care\n~ Follow medical protocol as outlined in ICS-206 & IRPG Pg 99-108"]
["Night Operations","~ Maintain high visibility in work area and wear vest while in roadway. \n~ Use glow sticks to mark hazards.\n~ Ensure personnel have a personal light (headlamp)\n~ Watch for signs of fatigue\n~ Take breaks away from areas of known hazard"]
["Personal Hygiene","~ Don’t share personal items such as water bottles communication devices and utensils\n~ Wash hands before meals, and after use of rest room facilities   "]
["Poisonous Plants","~ Identify and Avoid hazard areas \n~ Launder clothing\n~ Shower frequently"]
["Power Utilities","~• Notify all personnel of down electrical lines.\n~• Refer to the IRPG pages 24 for Power Line Safety\n~• Always treat downed wires as energized\n~• Identify and avoid high tension transmission lines.\n~• Identify and avoid high pressure natural gas lines\n~• Identify and avoid damaged gas service near structures\n~• Be aware of utility restoration in your work area"]
["PPE","~ Always wear appropriate PPE which includes:\n     o Eye Protection\n     o Hard Hat\n     o Gloves\n     o 8” Leather non-skid boots\n     o Hearing protection when working around chainsaws and pumps\n~ Additional PPE as dictated by local conditions and environment"]
["Pumps","~ Always wear appropriate hearing protection\n~ Position personnel far enough away from pump to hear instructions on radio \n~ Keep all fuel >4’ from creek and pump to reduce fire hazard and spill\n~ Rotate personnel every hour to limit exposure to high decibels of sound from pump\n~ Allow pumps to cool for 5 minutes prior to fueling to reduce fire hazard"]
["Severe Weather","~ Review and follow Thunderstorm Safety guidelines in IRPG page 21\n~ Observe 30/30 Rule for lightning safety………page 21, IRPG\n~ Establish “Trigger Points” to withdraw, and ensure all know rally site\n~ Use “Risk Management” process to determine retreat criteria and actions\n~ Carry rain gear and extra food and water if weather limits retreat to ICP"]
["Steep Terrain & Rolling Debris","~  Maintain 8’-10’ spacing when working & walking\n~  Don’t work above any personnel\n~  Evaluate necessity to send personnel in areas with limited access"]
["Unidentified Hazardous Waste and Unexploded Ordinance","~Avoid identified Hazmat and UXO areas\n~Use \"Unexploded Ordinance Safety\" guidelines IRPG Page 27\n~Deny entry to others.  Do not transmit on radio if in proximity\n~Map location of all UXO and Hazmat."]
["Uninformed on Strategy / Tactics / hazards","~ Provide a detailed briefing for all personnel assigned to the Incident\n~ Document briefings on unit log \n~ Use Risk Management Process in evaluating all assignments \n~ Explain leadership responsibilities and expectations from all personnel assigned to task\n~ Determine hazards, and mitigation protocol to limit exposure. \n~ Develop and review 215a\n~ Discuss expected fire behavior, and plans for retreat\n~ Discuss weather, Escape Routes, Safety Zones\n~ Discuss communication plan including all tactical, aerial, and command frequencies\n~ Discuss Emergency Plan outlined in the ICS-206 Medical Plan and IRPG Pg 99-108"]
["Unplanned Public Interaction","~ Be alert to non-fire personnel in areas with suppression personnel\n~ Escort non-fire personnel into exclusion area when entry is required\n~ Post lookouts to in areas with public to avoid conflicts with mission tasks.\n~ Ensure sufficient security to restrict access to exclusion area."]
["Vehicle Operations in Inclement Weather","~ Be alert for potential muddy and slick road surfaces\n~ Avoid parking on soft shoulders along roads\n~ Stay off secondary roads in wet conditions\n~ Increase following distance on slick road surfaces\n~ Send a scout to evaluate roads and work area prior to personnel engagement"]
["Wildlife & Livestock","~ Watch out for wildlife & livestock inside fire area and along roadways.\n~ Clean up all debris and trash during each operational period"]

{"sheet":"Severe Weather Hazard Library","index":12,"n_rows":30,"n_cols":2,"rows_kept":30,"cut":false,"hidden":true,"merged":[]}
["Severe Weather Hazard","Mitigation or Abatement Action(Engineering, Administrative, PPE, Avoidance, Education, etc.)"]
["Air Operations","~ Always wear appropriate PPE which includes:\n     o Eye Protection\n     o Hard Hat\n     o Gloves\n     o 8” Leather non-skid boots\n     o Hearing protection when working around chainsaws and pumps\n~ Additional PPE as dictated by local conditions and environment"]
["ATV/UTV use","~Ensure equipment is inspected and safe to use.\n~Ensure operator is trained and certified to operate.\n~Ensure operator has proper PPE.\n~Question if it is mission critical."]
["Bees, Ticks, Mosquitoes","~ Be aware of crew members with  sting allergies.\n~ Ensure crew members have medication pens if needed.\n~ Perform daily self inspection\n~ Use repellent as necessary\n~ Advanced Life Support,  multi-dose epi and airway protection.\n~ Keep affected area clean and bandaged.\n~ Be extra careful when eating and/or drinking to avoid stings to mouth and throat."]
["Chain Saw Operations","~  Follow “Hazard Tree Safety” guidelines, IRPG pages 22\n~  Look up, down around for hazard tree indicators\n~  Only fell and buck trees within your expertise, and training\n~  Follow “Procedural Felling Operations” on page 79 in IRPG\n~  Do not fall trees during high wind events"]
["Cold Weather","~  Carry extra clothing to prevent  hypothermia following shift\n~  Dry out gear each night for next day\n~  Watch footing on frozen ground\n~  Maintain personal hydration\n~  Monitor Wind-chill and establish trigger points for disengagement"]
["Communications","~ Maintain communication with aviation resources, and suppression organization. \n~ Ensure all know frequency and protocol for contacting resources\n~ Utilize the ICS 205"]
["Driving & Traffic","~ Practice “Defensive Driving” techniques traveling on all roads and city streets.\n~ Use spotters when backing.\n~ Honk horn to alert personnel when backing.\n~ Keep clutter off dash and inside cab.\n~ Follow Driving LCES (Lights, Chock blocks, Emergency brake, Seat belts.\n~ Always use headlights.\n~ Yield to pedestrians and bicycles.\n~ Observe posted speed limits. \n~ Use the 3 second rule for following distance when driving.\n~ Use chock blocks, turn wheels into hill.\n~ Avoid distractions (eating, cell phones, radio).\n~ Ensure that windshields are kept clean of dust and bugs."]
["Fatigue & Overexertion","~ Drink 1 quart of water each hour during and after work\n~ Rotate crews out of smoky areas\n~ Set a reasonable work pace and allow adequate rest breaks while on the project\n~ Stagger work crews start time to limit fatigue\n~ Use buddy system to monitor personnel of heat related and fatigue issues\n~ Follow work / rest guidelines"]
["Flash Flooding","~Post lookouts, listen for weather updates by (IMET) \n~Stay out of dry creek beds and gullies during rain/hail/lightning events\n~Avoid walking in areas with rock, and loose debris during storm events\n~Avoid walking is single file when coming off hillside\n~Establish RAWS trigger points on incident radio system for fireline leadership to remove resources prior to severe weather events "]
["Hazard Trees","~ Follow “Hazard Tree Safety” guidelines, IRPG pages 22\n~  Post lookouts, or use a spotter in mop-up areas with personnel \n~  Don’t park vehicles or take breaks in high concentrations of hazard trees\n~  Establish trigger points for disengagement during high wind events"]
["Heat Related Illness (HRI)& Dehydration","~ Drink Fluids throughout operational period (6-8 qts/shift). \n~ Maintain water/electrolyte ratio of 3 to 1.\n~ Carry extra water on line and cache water at drop points.\n~Take Frequent breaks, minimum of 10 minutes every hour.\n~Allow out of area resources time to acclimatize before expecting peak performance.\n~ Recognize symptoms of HEAT RELATED ILLNESS which include.\n    o Lack of energy\n    o Headaches, dizziness \n    o Lack of  rest\n    o No hunger, poor eating habits\n    o Hot skin, and lack of sweating"]
["Heavy Equipment Operations","~ Ensure communications are established with operators\n~ Use hand signals if other communications are unavailable\n~ Maintain a 50’-100’ exclusion area around equipment\n~ Use a spotter when backing"]
["Helicopter Operations","~ Stay clear of all bucket drops when suppression actions are in place and allow 1 minute prior to re-entry\n~ Monitor A-G communications\n~ Follow aviation safety guidelines in IRPG"]
["ICP Protection","~ Follow ICP safety plan"]
["Injury & Medical Emergency","~ Assist injured employee appropriate medical care\n~ Use EMT’s on Division for initial care\n~ Follow medical protocol as outlined in ICS-206 & IRPG Pg 99-108"]
["Mop-up& Rehab","~ Do not work above or below personnel during rehab/mop-up operations\n~ Alert crew personnel of rolling debris by yelling to affected individuals\n~ Position debris that could roll vertically on slope\n~ Wear eye protection  "]
["Night Operations","~ Maintain high visibility in work area and wear vest while in roadway. \n~ Use glow sticks to mark hazards.\n~ Ensure personnel have a personal light (headlamp)\n~ Watch for signs of fatigue\n~ Take breaks away from areas of known hazard"]
["Personal Hygiene","~ Don’t share personal items such as water bottles communication devices and utensils\n~ Wash hands before meals, and after use of rest room facilities   "]
["Poisonous Plants","~ Identify and Avoid hazard areas \n~ Launder clothing\n~ Shower frequently"]
["Power Utilities","~• Notify all personnel of down electrical lines.\n~• Refer to the IRPG pages 24 for Power Line Safety\n~• Always treat downed wires as energized\n~• Identify and avoid high tension transmission lines.\n~• Identify and avoid high pressure natural gas lines\n~• Identify and avoid damaged gas service near structures\n~• Be aware of utility restoration in your work area"]
["PPE","~ Always wear appropriate PPE which includes:\n     o Eye Protection\n     o Hard Hat\n     o Gloves\n     o 8” Leather non-skid boots\n     o Hearing protection when working around chainsaws and pumps\n~ Additional PPE as dictated by local conditions and environment"]
["Pumps","~ Always wear appropriate hearing protection\n~ Position personnel far enough away from pump to hear instructions on radio \n~ Keep all fuel >4’ from creek and pump to reduce fire hazard and spill\n~ Rotate personnel every hour to limit exposure to high decibels of sound from pump\n~ Allow pumps to cool for 5 minutes prior to fueling to reduce fire hazard"]
["Severe Weather","~ Review and follow Thunderstorm Safety guidelines in IRPG page 21\n~ Observe 30/30 Rule for lightning safety………page 21, IRPG\n~ Establish “Trigger Points” to withdraw, and ensure all know rally site\n~ Use “Risk Management” process to determine retreat criteria and actions\n~ Carry rain gear and extra food and water if weather limits retreat to ICP"]
["Steep Terrain & Rolling Debris","~  Maintain 8’-10’ spacing when working & walking\n~  Don’t work above any personnel\n~  Evaluate necessity to send personnel in areas with limited access"]
["Unidentified Hazardous Waste and Unexploded Ordinance","~Avoid identified Hazmat and UXO areas\n~Use \"Unexploded Ordinance Safety\" guidelines IRPG Page 27\n~Deny entry to others.  Do not transmit on radio if in proximity\n~Map location of all UXO and Hazmat."]
["Uninformed on Strategy / Tactics / hazards","~ Provide a detailed briefing for all personnel assigned to the Incident\n~ Document briefings on unit log \n~ Use Risk Management Process in evaluating all assignments \n~ Explain leadership responsibilities and expectations from all personnel assigned to task\n~ Determine hazards, and mitigation protocol to limit exposure. \n~ Develop and review 215a\n~ Discuss expected fire behavior, and plans for retreat\n~ Discuss weather, Escape Routes, Safety Zones\n~ Discuss communication plan including all tactical, aerial, and command frequencies\n~ Discuss Emergency Plan outlined in the ICS-206 Medical Plan and IRPG Pg 99-108"]
["Unplanned Public Interaction","~ Be alert to non-fire personnel in areas with suppression personnel\n~ Escort non-fire personnel into exclusion area when entry is required\n~ Post lookouts to in areas with public to avoid conflicts with mission tasks.\n~ Ensure sufficient security to restrict access to exclusion area."]
["Vehicle Operations in Inclement Weather","~ Be alert for potential muddy and slick road surfaces\n~ Avoid parking on soft shoulders along roads\n~ Stay off secondary roads in wet conditions\n~ Increase following distance on slick road surfaces\n~ Send a scout to evaluate roads and work area prior to personnel engagement"]
["Wildlife & Livestock","~ Watch out for wildlife & livestock inside fire area and along roadways.\n~ Clean up all debris and trash during each operational period"]

{"sheet":"Earthquake Hazard Library","index":13,"n_rows":29,"n_cols":2,"rows_kept":29,"cut":false,"hidden":true,"merged":[]}
["Earthquake Hazard","Mitigation or Abatement Action(Engineering, Administrative, PPE, Avoidance, Education, etc.)"]
["Air Operations","~ Always wear appropriate PPE which includes:\n     o Eye Protection\n     o Hard Hat\n     o Gloves\n     o 8” Leather non-skid boots\n     o Hearing protection when working around chainsaws and pumps\n~ Additional PPE as dictated by local conditions and environment"]
["ATV/UTV use","~Ensure equipment is inspected and safe to use.\n~Ensure operator is trained and certified to operate.\n~Ensure operator has proper PPE.\n~Question if it is mission critical."]
["Bees, Ticks, Mosquitoes","~ Be aware of crew members with  sting allergies.\n~ Ensure crew members have medication pens if needed.\n~ Perform daily self inspection\n~ Use repellent as necessary\n~ Advanced Life Support,  multi-dose epi and airway protection.\n~ Keep affected area clean and bandaged.\n~ Be extra careful when eating and/or drinking to avoid stings to mouth and throat."]
["Chain Saw Operations","~  Follow “Hazard Tree Safety” guidelines, IRPG pages 22\n~  Look up, down around for hazard tree indicators\n~  Only fell and buck trees within your expertise, and training\n~  Follow “Procedural Felling Operations” on page 79 in IRPG\n~  Do not fall trees during high wind events"]
["Cold Weather","~  Carry extra clothing to prevent  hypothermia following shift\n~  Dry out gear each night for next day\n~  Watch footing on frozen ground\n~  Maintain personal hydration\n~  Monitor Wind-chill and establish trigger points for disengagement"]
["Communications","~ Maintain communication with aviation resources, and suppression organization. \n~ Ensure all know frequency and protocol for contacting resources\n~ Utilize the ICS 205"]
["Driving & Traffic","~ Practice “Defensive Driving” techniques traveling on all roads and city streets.\n~ Use spotters when backing.\n~ Honk horn to alert personnel when backing.\n~ Keep clutter off dash and inside cab.\n~ Follow Driving LCES (Lights, Chock blocks, Emergency brake, Seat belts.\n~ Always use headlights.\n~ Yield to pedestrians and bicycles.\n~ Observe posted speed limits. \n~ Use the 3 second rule for following distance when driving.\n~ Use chock blocks, turn wheels into hill.\n~ Avoid distractions (eating, cell phones, radio).\n~ Ensure that windshields are kept clean of dust and bugs."]
["Fatigue & Overexertion","~ Drink 1 quart of water each hour during and after work\n~ Rotate crews out of smoky areas\n~ Set a reasonable work pace and allow adequate rest breaks while on the project\n~ Stagger work crews start time to limit fatigue\n~ Use buddy system to monitor personnel of heat related and fatigue issues\n~ Follow work / rest guidelines"]
["Flash Flooding","~Post lookouts, listen for weather updates by (IMET) \n~Stay out of dry creek beds and gullies during rain/hail/lightning events\n~Avoid walking in areas with rock, and loose debris during storm events\n~Avoid walking is single file when coming off hillside\n~Establish RAWS trigger points on incident radio system for fireline leadership to remove resources prior to severe weather events "]
["Hazard Trees","~ Follow “Hazard Tree Safety” guidelines, IRPG pages 22\n~  Post lookouts, or use a spotter in mop-up areas with personnel \n~  Don’t park vehicles or take breaks in high concentrations of hazard trees\n~  Establish trigger points for disengagement during high wind events"]
["Heat Related Illness (HRI)& Dehydration","~ Drink Fluids throughout operational period (6-8 qts/shift). \n~ Maintain water/electrolyte ratio of 3 to 1.\n~ Carry extra water on line and cache water at drop points.\n~Take Frequent breaks, minimum of 10 minutes every hour.\n~Allow out of area resources time to acclimatize before expecting peak performance.\n~ Recognize symptoms of HEAT RELATED ILLNESS which include.\n    o Lack of energy\n    o Headaches, dizziness \n    o Lack of  rest\n    o No hunger, poor eating habits\n    o Hot skin, and lack of sweating"]
["Heavy Equipment Operations","~ Ensure communications are established with operators\n~ Use hand signals if other communications are unavailable\n~ Maintain a 50’-100’ exclusion area around equipment\n~ Use a spotter when backing"]
["Helicopter Operations","~ Stay clear of all bucket drops when suppression actions are in place and allow 1 minute prior to re-entry\n~ Monitor A-G communications\n~ Follow aviation safety guidelines in IRPG"]
["ICP Protection","~ Follow ICP safety plan"]
["Injury & Medical Emergency","~ Assist injured employee appropriate medical care\n~ Use EMT’s on Division for initial care\n~ Follow medical protocol as outlined in ICS-206 & IRPG Pg 99-108"]
["Mop-up& Rehab","~ Do not work above or below personnel during rehab/mop-up operations\n~ Alert crew personnel of rolling debris by yelling to affected individuals\n~ Position debris that could roll vertically on slope\n~ Wear eye protection  "]
["Night Operations","~ Maintain high visibility in work area and wear vest while in roadway. \n~ Use glow sticks to mark hazards.\n~ Ensure personnel have a personal light (headlamp)\n~ Watch for signs of fatigue\n~ Take breaks away from areas of known hazard"]
["Personal Hygiene","~ Don’t share personal items such as water bottles communication devices and utensils\n~ Wash hands before meals, and after use of rest room facilities   "]
["Poisonous Plants","~ Identify and Avoid hazard areas \n~ Launder clothing\n~ Shower frequently"]
["Power Utilities","~• Notify all personnel of down electrical lines.\n~• Refer to the IRPG pages 24 for Power Line Safety\n~• Always treat downed wires as energized\n~• Identify and avoid high tension transmission lines.\n~• Identify and avoid high pressure natural gas lines\n~• Identify and avoid damaged gas service near structures\n~• Be aware of utility restoration in your work area"]
["PPE","~ Always wear appropriate PPE which includes:\n     o Eye Protection\n     o Hard Hat\n     o Gloves\n     o 8” Leather non-skid boots\n     o Hearing protection when working around chainsaws and pumps\n~ Additional PPE as dictated by local conditions and environment"]
["Severe Weather","~ Review and follow Thunderstorm Safety guidelines in IRPG page 21\n~ Observe 30/30 Rule for lightning safety………page 21, IRPG\n~ Establish “Trigger Points” to withdraw, and ensure all know rally site\n~ Use “Risk Management” process to determine retreat criteria and actions\n~ Carry rain gear and extra food and water if weather limits retreat to ICP"]
["Steep Terrain & Rolling Debris","~  Maintain 8’-10’ spacing when working & walking\n~  Don’t work above any personnel\n~  Evaluate necessity to send personnel in areas with limited access"]
["Unidentified Hazardous Waste and Unexploded Ordinance","~Avoid identified Hazmat and UXO areas\n~Use \"Unexploded Ordinance Safety\" guidelines IRPG Page 27\n~Deny entry to others.  Do not transmit on radio if in proximity\n~Map location of all UXO and Hazmat."]
["Uninformed on Strategy / Tactics / hazards","~ Provide a detailed briefing for all personnel assigned to the Incident\n~ Document briefings on unit log \n~ Use Risk Management Process in evaluating all assignments \n~ Explain leadership responsibilities and expectations from all personnel assigned to task\n~ Determine hazards, and mitigation protocol to limit exposure. \n~ Develop and review 215a\n~ Discuss expected fire behavior, and plans for retreat\n~ Discuss weather, Escape Routes, Safety Zones\n~ Discuss communication plan including all tactical, aerial, and command frequencies\n~ Discuss Emergency Plan outlined in the ICS-206 Medical Plan and IRPG Pg 99-108"]
["Unplanned Public Interaction","~ Be alert to non-fire personnel in areas with suppression personnel\n~ Escort non-fire personnel into exclusion area when entry is required\n~ Post lookouts to in areas with public to avoid conflicts with mission tasks.\n~ Ensure sufficient security to restrict access to exclusion area."]
["Vehicle Operations in Inclement Weather","~ Be alert for potential muddy and slick road surfaces\n~ Avoid parking on soft shoulders along roads\n~ Stay off secondary roads in wet conditions\n~ Increase following distance on slick road surfaces\n~ Send a scout to evaluate roads and work area prior to personnel engagement"]
["Wildlife & Livestock","~ Watch out for wildlife & livestock inside fire area and along roadways.\n~ Clean up all debris and trash during each operational period"]

{"sheet":"Terrorism Hazard Library","index":14,"n_rows":27,"n_cols":2,"rows_kept":27,"cut":false,"hidden":true,"merged":[]}
["Terrorism Hazard","Mitigation or Abatement Action(Engineering, Administrative, PPE, Avoidance, Education, etc.)"]
["Air Operations","~ Always wear appropriate PPE which includes:\n     o Eye Protection\n     o Hard Hat\n     o Gloves\n     o 8” Leather non-skid boots\n     o Hearing protection when working around chainsaws and pumps\n~ Additional PPE as dictated by local conditions and environment"]
["ATV/UTV use","~Ensure equipment is inspected and safe to use.\n~Ensure operator is trained and certified to operate.\n~Ensure operator has proper PPE.\n~Question if it is mission critical."]
["Chain Saw Operations","~  Follow “Hazard Tree Safety” guidelines, IRPG pages 22\n~  Look up, down around for hazard tree indicators\n~  Only fell and buck trees within your expertise, and training\n~  Follow “Procedural Felling Operations” on page 79 in IRPG\n~  Do not fall trees during high wind events"]
["Cold Weather","~  Carry extra clothing to prevent  hypothermia following shift\n~  Dry out gear each night for next day\n~  Watch footing on frozen ground\n~  Maintain personal hydration\n~  Monitor Wind-chill and establish trigger points for disengagement"]
["Communications","~ Maintain communication with aviation resources, and suppression organization. \n~ Ensure all know frequency and protocol for contacting resources\n~ Utilize the ICS 205"]
["Driving & Traffic","~ Practice “Defensive Driving” techniques traveling on all roads and city streets.\n~ Use spotters when backing.\n~ Honk horn to alert personnel when backing.\n~ Keep clutter off dash and inside cab.\n~ Follow Driving LCES (Lights, Chock blocks, Emergency brake, Seat belts.\n~ Always use headlights.\n~ Yield to pedestrians and bicycles.\n~ Observe posted speed limits. \n~ Use the 3 second rule for following distance when driving.\n~ Use chock blocks, turn wheels into hill.\n~ Avoid distractions (eating, cell phones, radio).\n~ Ensure that windshields are kept clean of dust and bugs."]
["Fatigue & Overexertion","~ Drink 1 quart of water each hour during and after work\n~ Rotate crews out of smoky areas\n~ Set a reasonable work pace and allow adequate rest breaks while on the project\n~ Stagger work crews start time to limit fatigue\n~ Use buddy system to monitor personnel of heat related and fatigue issues\n~ Follow work / rest guidelines"]
["Firefighter & Public Smoke Exposure ","~ Identify homes and structures with private parties remaining behind the evacuation\n~ Identify personnel responsible for contacting private parties\n~ Use warning lights and provide traffic control on roadways during smoky and night operations\n~ Rotate crews out of smoky areas during firing and mop-up operations\n~ Contact Communications when firing operations are initiated"]
["Hazard Trees","~ Follow “Hazard Tree Safety” guidelines, IRPG pages 22\n~  Post lookouts, or use a spotter in mop-up areas with personnel \n~  Don’t park vehicles or take breaks in high concentrations of hazard trees\n~  Establish trigger points for disengagement during high wind events"]
["Heat Related Illness (HRI)& Dehydration","~ Drink Fluids throughout operational period (6-8 qts/shift). \n~ Maintain water/electrolyte ratio of 3 to 1.\n~ Carry extra water on line and cache water at drop points.\n~Take Frequent breaks, minimum of 10 minutes every hour.\n~Allow out of area resources time to acclimatize before expecting peak performance.\n~ Recognize symptoms of HEAT RELATED ILLNESS which include.\n    o Lack of energy\n    o Headaches, dizziness \n    o Lack of  rest\n    o No hunger, poor eating habits\n    o Hot skin, and lack of sweating"]
["Heavy Equipment Operations","~ Ensure communications are established with operators\n~ Use hand signals if other communications are unavailable\n~ Maintain a 50’-100’ exclusion area around equipment\n~ Use a spotter when backing"]
["Helicopter Operations","~ Stay clear of all bucket drops when suppression actions are in place and allow 1 minute prior to re-entry\n~ Monitor A-G communications\n~ Follow aviation safety guidelines in IRPG"]
["ICP Protection","~ Follow ICP safety plan"]
["Injury & Medical Emergency","~ Assist injured employee appropriate medical care\n~ Use EMT’s on Division for initial care\n~ Follow medical protocol as outlined in ICS-206 & IRPG Pg 99-108"]
["Mop-up& Rehab","~ Do not work above or below personnel during rehab/mop-up operations\n~ Alert crew personnel of rolling debris by yelling to affected individuals\n~ Position debris that could roll vertically on slope\n~ Wear eye protection  "]
["Night Operations","~ Maintain high visibility in work area and wear vest while in roadway. \n~ Use glow sticks to mark hazards.\n~ Ensure personnel have a personal light (headlamp)\n~ Watch for signs of fatigue\n~ Take breaks away from areas of known hazard"]
["Personal Hygiene","~ Don’t share personal items such as water bottles communication devices and utensils\n~ Wash hands before meals, and after use of rest room facilities   "]
["Poisonous Plants","~ Identify and Avoid hazard areas \n~ Launder clothing\n~ Shower frequently"]
["Power Utilities","~• Notify all personnel of down electrical lines.\n~• Refer to the IRPG pages 24 for Power Line Safety\n~• Always treat downed wires as energized\n~• Identify and avoid high tension transmission lines.\n~• Identify and avoid high pressure natural gas lines\n~• Identify and avoid damaged gas service near structures\n~• Be aware of utility restoration in your work area"]
["PPE","~ Always wear appropriate PPE which includes:\n     o Eye Protection\n     o Hard Hat\n     o Gloves\n     o 8” Leather non-skid boots\n     o Hearing protection when working around chainsaws and pumps\n~ Additional PPE as dictated by local conditions and environment"]
["Severe Weather","~ Review and follow Thunderstorm Safety guidelines in IRPG page 21\n~ Observe 30/30 Rule for lightning safety………page 21, IRPG\n~ Establish “Trigger Points” to withdraw, and ensure all know rally site\n~ Use “Risk Management” process to determine retreat criteria and actions\n~ Carry rain gear and extra food and water if weather limits retreat to ICP"]
["Unidentified Hazardous Waste and Unexploded Ordinance","~Avoid identified Hazmat and UXO areas\n~Use \"Unexploded Ordinance Safety\" guidelines IRPG Page 27\n~Deny entry to others.  Do not transmit on radio if in proximity\n~Map location of all UXO and Hazmat."]
["Uninformed on Strategy / Tactics / hazards","~ Provide a detailed briefing for all personnel assigned to the Incident\n~ Document briefings on unit log \n~ Use Risk Management Process in evaluating all assignments \n~ Explain leadership responsibilities and expectations from all personnel assigned to task\n~ Determine hazards, and mitigation protocol to limit exposure. \n~ Develop and review 215a\n~ Discuss expected fire behavior, and plans for retreat\n~ Discuss weather, Escape Routes, Safety Zones\n~ Discuss communication plan including all tactical, aerial, and command frequencies\n~ Discuss Emergency Plan outlined in the ICS-206 Medical Plan and IRPG Pg 99-108"]
["Unplanned Public Interaction","~ Be alert to non-fire personnel in areas with suppression personnel\n~ Escort non-fire personnel into exclusion area when entry is required\n~ Post lookouts to in areas with public to avoid conflicts with mission tasks.\n~ Ensure sufficient security to restrict access to exclusion area."]
["Vehicle Operations in Inclement Weather","~ Be alert for potential muddy and slick road surfaces\n~ Avoid parking on soft shoulders along roads\n~ Stay off secondary roads in wet conditions\n~ Increase following distance on slick road surfaces\n~ Send a scout to evaluate roads and work area prior to personnel engagement"]
["Wildlife & Livestock","~ Watch out for wildlife & livestock inside fire area and along roadways.\n~ Clean up all debris and trash during each operational period"]

{"sheet":"Other Hazard Library","index":15,"n_rows":26,"n_cols":2,"rows_kept":26,"cut":false,"hidden":true,"merged":[]}
["Other Hazard","Mitigation or Abatement Action(Engineering, Administrative, PPE, Avoidance, Education, etc)"]
["Air Opperations","~ Always wear appropriate PPE which includes:\n     o Eye Protection\n     o Hard Hat\n     o Gloves\n     o 8” Leather non-skid boots\n     o Hearing protection when working around chainsaws and pumps\n~ Additional PPE as dictated by local conditions and environment"]
["ATV/UTV use","~Ensure equipment is inspected and safe to use.\n~Ensure operator is trained and certified to operate.\n~Ensure operator has proper PPE.\n~Question if it is mission critical."]
["Civil Unrest","~Communicate issued with LE, public and staff\n~Stage LE resources to provide quick response and increase official presence\n~Alter race route if needed"]
["Communications","~ Maintain communication with aviation resources, and suppression organization. \n~ Ensure all know frequency and protocol for contacting resources\n~ Utilize the ICS 205"]
["Driving & Traffic","~ Practice “Defensive Driving” techniques traveling on all roads and city streets.\n~ Use spotters when backing.\n~ Honk horn to alert personnel when backing.\n~ Keep clutter off dash and inside cab.\n~ Follow Driving LCES (Lights, Chock blocks, Emergency brake, Seat belts.\n~ Always use headlights.\n~ Yield to pedestrians and bicycles.\n~ Observe posted speed limits. \n~ Use the 3 second rule for following distance when driving.\n~ Use chock blocks, turn wheels into hill.\n~ Avoid distractions (eating, cell phones, radio).\n~ Ensure that windshields are kept clean of dust and bugs."]
["Falling Rocks,Trees & Debris","~ Identify areas of high probability and exclude public & personnel\n~ Communicate incidents to appropriate resources and staff\n~ Provide early warning in fall & work areas"]
["Heat Related Illness (HRI)& Dehydration","~ Drink Fluids throughout operational period (6-8 qts/shift). \n~ Maintain water/electrolyte ratio of 3 to 1.\n~ Carry extra water on line and cache water at drop points.\n~Take Frequent breaks, minimum of 10 minutes every hour.\n~Allow out of area resources time to acclimatize before expecting peak performance.\n~ Recognize symptoms of HEAT RELATED ILLNESS which include.\n    o Lack of energy\n    o Headaches, dizziness \n    o Lack of  rest\n    o No hunger, poor eating habits\n    o Hot skin, and lack of sweating"]
["Heavy Equipment Operations","~ Ensure communications are established with operators\n~ Use hand signals if other communications are unavailable\n~ Maintain a 50’-100’ exclusion area around equipment\n~ Use a spotter when backing"]
["Helicopter Operations","~ Stay clear of all bucket drops when suppression actions are in place and allow 1 minute prior to re-entry\n~ Monitor A-G communications\n~ Follow aviation safety guidelines in IRPG"]
["ICP Protection","~ Follow ICP safety plan"]
["Injury & Medical Emergency","~ Assist injured employee appropriate medical care\n~ Use EMT’s on Division for initial care\n~ Follow medical protocol as outlined in ICS-206 & IRPG Pg 99-108"]
["Mop-up& Rehab","~ Do not work above or below personnel during rehab/mop-up operations\n~ Alert crew personnel of rolling debris by yelling to affected individuals\n~ Position debris that could roll vertically on slope\n~ Wear eye protection  "]
["Night Operations","~ Maitain high visibility in work area and wear vest while in roadway. \n~ Use glow sticks to mark hazards.\n~ Ensure personnel have a personal light (headlamp)\n~ Watch for signs of fatigue\n~ Take breaks away from areas of known hazard"]
["Personal Hygiene","~ Don’t share personal items such as water bottles communication devices and utensils\n~ Wash hands before meals, and after use of rest room facilities   "]
["Power Utilities","~• Notify all personnel of down electrical lines.\n~• Refer to the IRPG pages 24 for Power Line Safety\n~• Always treat downed wires as energized\n~• Identify and avoid high tension transmission lines.\n~• Identify and avoid high pressure natural gas lines\n~• Identify and avoid damaged gas service near structures\n~• Be aware of utility restoration in your work area"]
["PPE","~ Always wear appropriate PPE which includes:\n     o Eye Protection\n     o Hard Hat\n     o Gloves\n     o 8” Leather non-skid boots\n     o Hearing protection when working around chainsaws and pumps\n~ Additional PPE as dictated by local conditions and environment"]
["Severe Weather"]
["Steep slopes &  unstable footing","~ Identify and mark areas of danger\n~ Wear proper and supporting footwear\n~ Keep public away from unprotected steep drop areas\n~ Watch footing when traversing unstable terrain"]
["Terrorist Threat","~Communicateappropriate information with Homeland Security, LE, public and staff\n~Stage LE resources to provide quick response and increase official presence\n~Avoid high profile target areas\n~Alter race route if needed to avoid potential threat"]
["Unexpected Emergency Incident (Fire, Flood, etc)","~ Communicate incident details to proper authorities\n~ Assess impact to  race route or public\n~ Evacuate as necessary\n~ Coordinate with on scene incident command\n~ Communicate as needed to public"]
["Unidentified Hazardous Waste and Unexploded Ordinance","~Avoid identified Hazmat and UXO areas\n~Use \"Unexploded Ordinance Safety\" guidelines IRPG Page 27\n~Deny entry to others.  Do not transmit on radio if in proximity\n~Map location of all UXO and Hazmat."]
["Unidentified HazardousMaterials"]
["Uninformed on Strategy / Tactics / hazards","~ Provide a detailed briefing for all personnel assigned to the Incident\n~ Document briefings on unit log \n~ Use Risk Management Process in evaluating all assignments \n~ Explain leadership responsibilities and expectations from all personnel assigned to task\n~ Determine hazards, and mitigation protocol to limit exposure. \n~ Develop and review 215a\n~ Discuss expected fire behavior, and plans for retreat\n~ Discuss weather, Escape Routes, Safety Zones\n~ Discuss communication plan including all tactical, aerial, and command frequencies\n~ Discuss Emergency Plan outlined in the ICS-206 Medical Plan and IRPG Pg 99-108"]
["Unplanned Public Interaction","~ Be alert to non-fire personnel in areas with suppression personnel\n~ Escort non-fire personnel intoexclusion area when entry is required\n~ Post lookouts to in areas with public to avoid conflicts with mission tasks.\n~ Ensure suffiecient security to restrict access to exclusion area."]
["Wildlife and Domestic Animals","~ Watch out for wildlife & livestock inside operations area and along roadways.\n~ Clean up all debris and trash during each operational period.\n~ Utilize DOW and local animal control to prevent and remove animals before contact."]